Workbook

Sheet AER Changes (hidden)
A2: Issues | B2: Location | C2: Comment
B5: Final Decision
A6: 1 | B6: DNSP Inputs General'!N9 | C6: Actual 2019 capex data inputs amended to reconile to Table "8.2.3 - CAPEX OTHER" in file "[Ausnet (D) 2019 - Annual - RIN Response - 28 May 2020 - PUBLIC (#11009434.2)_0.xlsx]8.2 Capex"
A8: =A6+1 -> 2 | B8: DNSP Inputs General'!B26:F26 | C8: Update for AER Draft Decision Real Pre Tax WACC
A10: =A8+1 -> 3 | B10: DNSP Inputs General'!D31:D35 | C10: Update for AER Final Decision CPI Forecast
A12: =A10+1 -> 4 | B12: DNSP Inputs General'!C31 | C12: CPI to escalate prices in 2021-22 is Forecast CPI
B13: WACC!C14
A16: =A12+1 -> 5 | B16: DNSP Inputs General'!M42:U130 | C16: Updated Quantities
A18: =A16+1 -> 6 | B18: DNSP Inputs General'!Q134:U134 | C18: AER Final Decision Real Labour Escalator
A21: =A18+1 -> 7 | B21: DNSP Inputs O & M'!D384:H386 | C21: Update for AER Final Decision - Number of Repairs in 1 day
B22: DNSP Inputs O & M'!D430:H432
B23: DNSP Inputs O & M'!D476:H478
B26: Revised Proposal Model
B27: [ASD - EDPR 2022-26 Revised proposal - Public Lighting Model - 20210303 - PUBLIC.xlsm]Report|Charges Summary'!$B$25:$K$25
B28: Formula should refer to Opening RAB of current year not average RAB of previous year. Note average RAB of previous year includes half year depreciation which already has been recovered by the business

Sheet Instructions (hidden)
A1: ='DNSP Inputs O&M'!$A$3 -> AusNet
A3: Instructions
A5: This model is to be used for the setting of Public Lighting Tariffs for the Regulatory Period 2021-22 to 2025-26 based on forecast inflation rates, Real Pre Tax WACC and Nominal vanilla WACC.
A7: Distributor data input fields are shaded | C7: and located in tabs "DNSP Inputs General" , "DNSP Inputs O&M" and "DNSP Inputs Capex"
A10: This model will also to be used for the annual Public Lighting Tariff Approvals in the Regulatory Period 2021-22 to 2025-26 based on actual inflation rates and Real Pre Tax WACC.
B16: 2027-06-30
B18: $Real Jun 2026
B20: 2027-31
H68: =G68 -> 0 | I68: =H68 -> 0 | J68: =I68 -> 0 | K68: =J68 -> 0 | L68: =K68 -> 0

Sheet New Forecast
B1: AST 2026-31 Proposal - ACS Public Lighting PTRM input model | L1: Key: | M1: Input | N1: Internal Link
C2: Forecast Volumes
C4: Input | Forecast Light Population
I6: Opening Balance | P6: New Lights | Growth | ASD Funded | X6: New Lights | Replacements | Faults | AF6: New Lights | Replacement | ASD Roll-Out | AN6: New Lights | Replacement | Partially Funded | AV6: Disposed Lights | Replacements | Faults | BD6: Disposed Lights | Replacements | ASD Roll-Out | BL6: Disposed Lights | Replacements | Partially Funded | BT6: Closing Balance
C7: Light Type | D7: Source | E7: Unit | F7: Grouping | G7: Funding | I7: 2025–26 | J7: 2026-27 | K7: 2027–28 | L7: 2028–29 | M7: 2029–30 | N7: 2030–31 | P7: =I7 -> 2025–26 | Q7: 2026-27 | R7: 2027–28 | S7: 2028–29 | T7: 2029–30 | U7: 2030–31 | V7: Total | X7: =P7 -> 2025–26 | Y7: 2026-27 | Z7: 2027–28 | AA7: 2028–29 | AB7: 2029–30 | AC7: 2030–31 | AD7: Total | AF7: =X7 -> 2025–26 | AG7: 2026-27 | AH7: 2027–28 | AI7: 2028–29 | AJ7: 2029–30 | AK7: 2030–31 | AL7: Total | AN7: =AF7 -> 2025–26 | AO7: 2026-27 | AP7: 2027–28 | AQ7: 2028–29 | AR7: 2029–30 | AS7: 2030–31 | AT7: Total | AV7: =AN7 -> 2025–26 | AW7: 2026-27 | AX7: 2027–28 | AY7: 2028–29 | AZ7: 2029–30 | BA7: 2030–31 | BB7: Total | BD7: =AV7 -> 2025–26 | BE7: 2026-27 | BF7: 2027–28 | BG7: 2028–29 | BH7: 2029–30 | BI7: 2030–31 | BJ7: Total | BL7: =BD7 -> 2025–26 | BM7: 2026-27 | BN7: 2027–28 | BO7: 2028–29 | BP7: 2029–30 | BQ7: 2030–31 | BR7: Total | BT7: =BL7 -> 2025–26 | BU7: 2026-27 | BV7: 2027–28 | BW7: 2028–29 | BX7: 2029–30 | BY7: 2030–31
J8: 5 | K8: 4 | L8: 3 | M8: 2 | N8: 1 | Q8: 5 | R8: 4 | S8: 3 | T8: 2 | U8: 1 | Y8: 5 | Z8: 4 | AA8: 3 | AB8: 2 | AC8: 1 | AG8: 5 | AH8: 4 | AI8: 3 | AJ8: 2 | AK8: 1 | AO8: 5 | AP8: 4 | AQ8: 3 | AR8: 2 | AS8: 1 | AW8: 5 | AX8: 4 | AY8: 3 | AZ8: 2 | BA8: 1 | BE8: 10 | BF8: 4 | BG8: 3 | BH8: 2 | BI8: 1 | BM8: 5 | BN8: 4 | BO8: 3 | BP8: 2 | BQ8: 1
AN9: Consider removing completely - 2025-26 is only relevant and covered in column AS
C10: Mercury Vapour 80W | D10: AST | E10: Number | F10: Legacy | G10: AST-funded | I10: 11942 | J10: =BT10 -> 4287 | K10: =BU10 -> 3787 | L10: =BV10 -> 3287 | M10: =BW10 -> 3287 | N10: =BX10 -> 3287 | V10: =SUM(P10:U10) -> 0 | AD10: =SUM(X10:AC10) -> 0 | AL10: =SUM(AF10:AK10) -> 0 | AT10: =SUM(AN10:AS10) -> 0 | AV10: =-ROUND(I10/'Newer version of inputs'!$L$6,0) -> -995 | AW10: 0 | AX10: 0 | AY10: 0 | AZ10: 0 | BA10: 0 | BB10: =SUM(AV10:BA10) -> -995 | BD10: =-3330*2 -> -6660 | BE10: -500 | BF10: -500 | BG10: 0 | BH10: 0 | BI10: 0 | BJ10: =SUM(BD10:BI10) -> -7660 | BR10: =SUM(BL10:BQ10) -> 0 | BT10: =I10+P10+X10+AF10+AN10+AV10+BD10+BL10 -> 4287 | BU10: =J10+Q10+Y10+AG10+AO10+AW10+BE10+BM10 -> 3787 | BV10: =K10+R10+Z10+AH10+AP10+AX10+BF10+BN10 -> 3287 | BW10: =L10+S10+AA10+AI10+AQ10+AY10+BG10+BO10 -> 3287 | BX10: =M10+T10+AB10+AJ10+AR10+AZ10+BH10+BP10 -> 3287 | BY10: =N10+U10+AC10+AK10+AS10+BA10+BI10+BQ10 -> 3287
C11: HP Sodium 150W | D11: AST | E11: Number | F11: Legacy | G11: AST-funded | I11: 12530 | J11: =BT11 -> 11486 | K11: 9380 | L11: 6253 | M11: 3648 | N11: 1520 | V11: 0 | AD11: 0 | AL11: 0 | AT11: 0 | AV11: =-ROUND(I11/'Newer version of inputs'!$L$6,0) -> -1044 | AW11: =-ROUND(J11/'Newer version of inputs'!$L$6,0) -> -957 | AX11: =-ROUND(K11/'Newer version of inputs'!$L$6,0) -> -782 | AY11: =-ROUND(L11/'Newer version of inputs'!$L$6,0) -> -521 | AZ11: =-ROUND(M11/'Newer version of inputs'!$L$6,0) -> -304 | BA11: 0 | BB11: -3608 | BD11: 0 | BE11: =-ROUND(BT11/BE$8,0) -> -1149 | BF11: =-ROUND(BU11/BF$8,0) -> -2345 | BG11: -2084 | BH11: -1824 | BI11: =-BX11 -> -1520 | BJ11: =SUM(BD11:BI11) -> -8922 | BR11: 0 | BT11: =I11+P11+X11+AF11+AN11+AV11+BD11+BL11 -> 11486 | BU11: 9380 | BV11: 6253 | BW11: 3648 | BX11: 1520 | BY11: 0
C12: HP Sodium 250W | D12: AST | E12: Number | F12: Legacy | G12: AST-funded | I12: 6737 | J12: 6176 | K12: 5043 | L12: 3362 | M12: 1961 | N12: 817 | V12: 0 | AD12: 0 | AL12: 0 | AT12: 0 | AV12: =-ROUND(I12/'Newer version of inputs'!$L$6,0) -> -561 | AW12: =-ROUND(J12/'Newer version of inputs'!$L$6,0) -> -515 | AX12: =-ROUND(K12/'Newer version of inputs'!$L$6,0) -> -420 | AY12: =-ROUND(L12/'Newer version of inputs'!$L$6,0) -> -280 | AZ12: =-ROUND(M12/'Newer version of inputs'!$L$6,0) -> -163 | BA12: 0 | BB12: -1939 | BD12: 0 | BE12: =-ROUND(BT12/BE$8,0) -> -618 | BF12: -1261 | BG12: -1121 | BH12: -981 | BI12: =-BX12 -> -817 | BJ12: -4798 | BR12: 0 | BT12: 6176 | BU12: 5043 | BV12: 3362 | BW12: 1961 | BX12: 817 | BY12: 0
C13: Mercury Vapour 50W | D13: AST | E13: Number | F13: Legacy | G13: AST-funded | I13: 74 | J13: 48 | K13: 24 | L13: 0 | M13: 0 | N13: 0 | V13: 0 | AD13: 0 | AL13: 0 | AT13: 0 | AV13: =-ROUND(I13/'Newer version of inputs'!$L$6,0) -> -6 | AW13: 0 | AX13: 0 | AY13: 0 | AZ13: 0 | BA13: 0 | BB13: -6 | BD13: -20 | BE13: =-BT13/2 -> -24 | BF13: =-BU13 -> -24 | BG13: 0 | BH13: 0 | BI13: 0 | BJ13: -68 | BR13: 0 | BT13: 48 | BU13: 24 | BV13: 0 | BW13: 0 | BX13: 0 | BY13: 0
C14: Mercury Vapour 125W | D14: AST | E14: Number | F14: Legacy | G14: AST-funded | I14: 78 | J14: 8 | K14: 0 | L14: 0 | M14: 0 | N14: 0 | V14: 0 | AD14: 0 | AL14: 0 | AT14: 0 | AV14: =-ROUND(I14/'Newer version of inputs'!$L$6,0) -> -7 | AW14: 0 | AX14: 0 | AY14: 0 | AZ14: 0 | BA14: 0 | BB14: -7 | BD14: -63 | BE14: =-BT14 -> -8 | BF14: 0 | BG14: 0 | BH14: 0 | BI14: 0 | BJ14: -71 | BR14: 0 | BT14: 8 | BU14: 0 | BV14: 0 | BW14: 0 | BX14: 0 | BY14: 0
C15: Mercury Vapour 250W | D15: AST | E15: Number | F15: Legacy | G15: AST-funded | I15: 148 | J15: 0 | K15: 0 | L15: 0 | M15: 0 | N15: 0 | V15: 0 | AD15: 0 | AL15: 0 | AT15: 0 | AV15: -4 | AW15: 0 | AX15: 0 | AY15: 0 | AZ15: 0 | BA15: 0 | BB15: -4 | BD15: -144 | BE15: =-BT15 -> 0 | BF15: 0 | BG15: 0 | BH15: 0 | BI15: 0 | BJ15: -144 | BR15: 0 | BT15: 0 | BU15: 0 | BV15: 0 | BW15: 0 | BX15: 0 | BY15: 0
C16: Mercury Vapour 400W | D16: AST | E16: Number | F16: Legacy | G16: AST-funded | I16: 86 | J16: 31 | K16: 0 | L16: 0 | M16: 0 | N16: 0 | V16: 0 | AD16: 0 | AL16: 0 | AT16: 0 | AV16: =-ROUND(I16/'Newer version of inputs'!$L$6,0) -> -7 | AW16: 0 | AX16: 0 | AY16: 0 | AZ16: 0 | BA16: 0 | BB16: -7 | BD16: -48 | BE16: =-BT16 -> -31 | BF16: 0 | BG16: 0 | BH16: 0 | BI16: 0 | BJ16: -79 | BR16: 0 | BT16: 31 | BU16: 0 | BV16: 0 | BW16: 0 | BX16: 0 | BY16: 0
C17: HP Sodium 100W | D17: AST | E17: Number | F17: Legacy | G17: AST-funded | I17: 2413 | J17: 2212 | K17: 1807 | L17: 1204 | M17: 703 | N17: 292 | V17: 0 | AD17: 0 | AL17: 0 | AT17: 0 | AV17: =-ROUND(I17/'Newer version of inputs'!$L$6,0) -> -201 | AW17: =-ROUND(J17/'Newer version of inputs'!$L$6,0) -> -184 | AX17: =-ROUND(K17/'Newer version of inputs'!$L$6,0) -> -151 | AY17: =-ROUND(L17/'Newer version of inputs'!$L$6,0) -> -100 | AZ17: =-ROUND(M17/'Newer version of inputs'!$L$6,0) -> -59 | BA17: 0 | BB17: -695 | BD17: 0 | BE17: =-ROUND(BT17/BE8,0) -> -221 | BF17: =-ROUND(BU17/BF8,0) -> -452 | BG17: =-ROUND(BV17/BG8,0) -> -401 | BH17: =-ROUND(BW17/BH8,0) -> -352 | BI17: =-ROUND(BX17/BI8,0) -> -292 | BJ17: -1718 | BR17: 0 | BT17: 2212 | BU17: 1807 | BV17: 1204 | BW17: 703 | BX17: 292 | BY17: 0
C18: HP Sodium 400W | D18: AST | E18: Number | F18: Legacy | G18: AST-funded | I18: 158 | J18: 145 | K18: 130 | L18: 97 | M18: 65 | N18: 32 | V18: 0 | AD18: 0 | AL18: 0 | AT18: 0 | AV18: =-ROUND(I18/'Newer version of inputs'!$L$6,0) -> -13 | AW18: 0 | AX18: 0 | AY18: 0 | AZ18: 0 | BA18: 0 | BB18: -13 | BD18: 0 | BE18: =-ROUND(BT18/BE8,0) -> -15 | BF18: =-ROUND(BU18/BF8,0) -> -33 | BG18: =-ROUND(BV18/BG8,0) -> -32 | BH18: =-ROUND(BW18/BH8,0) -> -33 | BI18: =-ROUND(BX18/BI8,0) -> -32 | BJ18: -145 | BR18: 0 | BT18: 145 | BU18: 130 | BV18: 97 | BW18: 65 | BX18: 32 | BY18: 0
C19: Metal Halide 70W | D19: AST | E19: Number | F19: Legacy | G19: AST-funded | I19: 43 | J19: 21 | K19: 21 | L19: 21 | M19: 21 | N19: 21 | V19: 0 | AD19: 0 | AL19: 0 | AT19: 0 | AV19: 0 | AW19: 0 | AX19: 0 | AY19: 0 | AZ19: 0 | BA19: 0 | BB19: 0 | BD19: -22 | BE19: 0 | BF19: 0 | BG19: 0 | BH19: 0 | BI19: 0 | BJ19: -22 | BR19: 0 | BT19: 21 | BU19: 21 | BV19: 21 | BW19: 21 | BX19: 21 | BY19: 21
C20: Metal Halide 150W | D20: AST | E20: Number | F20: Legacy | G20: AST-funded | I20: 22 | J20: 12 | K20: 12 | L20: 12 | M20: 12 | N20: 12 | V20: 0 | AD20: 0 | AL20: 0 | AT20: 0 | AV20: 0 | AW20: 0 | AX20: 0 | AY20: 0 | AZ20: 0 | BA20: 0 | BB20: 0 | BD20: -10 | BE20: 0 | BF20: 0 | BG20: 0 | BH20: 0 | BI20: 0 | BJ20: -10 | BR20: 0 | BT20: 12 | BU20: 12 | BV20: 12 | BW20: 12 | BX20: 12 | BY20: 12
C21: T5 2X14W | D21: AST | E21: Number | F21: Energy efficient | G21: Partially-funded | I21: 28136 | J21: 23833 | K21: 19066 | L21: 14299 | M21: 9533 | N21: 4766 | P21: 0 | Q21: 0 | R21: 0 | S21: 0 | T21: 0 | U21: 0 | V21: 0 | X21: 0 | Y21: 0 | Z21: 0 | AA21: 0 | AB21: 0 | AC21: 0 | AD21: 0 | AF21: 0 | AG21: 0 | AH21: 0 | AI21: 0 | AJ21: 0 | AK21: 0 | AL21: 0 | AT21: 0 | AV21: -4303 | AW21: =-ROUND(J21/AW$8,0) -> -4767 | AX21: =-ROUND(K21/AX8,0) -> -4767 | AY21: =-ROUND(L21/AY8,0) -> -4766 | AZ21: =-ROUND(M21/AZ8,0) -> -4767 | BA21: =-ROUND(N21/BA8,0) -> -4766 | BB21: -28136 | BD21: 0 | BE21: 0 | BF21: 0 | BG21: 0 | BH21: 0 | BI21: 0 | BJ21: 0 | BR21: 0 | BT21: 23833 | BU21: 19066 | BV21: 14299 | BW21: 9533 | BX21: 4766 | BY21: 0
C22: T5 2X24W | D22: AST | E22: Number | F22: Energy efficient | G22: Partially-funded | I22: 2587 | J22: 2008 | K22: 1606 | L22: 1204 | M22: 803 | N22: 401 | P22: 0 | Q22: 0 | R22: 0 | S22: 0 | T22: 0 | U22: 0 | V22: 0 | X22: 0 | Y22: 0 | Z22: 0 | AA22: 0 | AB22: 0 | AC22: 0 | AD22: 0 | AF22: 0 | AG22: 0 | AH22: 0 | AI22: 0 | AJ22: 0 | AK22: 0 | AL22: 0 | AT22: 0 | AV22: -579 | AW22: =-ROUND(J22/AW$8,0) -> -402 | AX22: =-ROUND(K22/AX$8,0) -> -402 | AY22: =-ROUND(L22/AY$8,0) -> -401 | AZ22: =-ROUND(M22/AZ$8,0) -> -402 | BA22: =-ROUND(N22/BA$8,0) -> -401 | BB22: -2587 | BD22: 0 | BE22: 0 | BF22: 0 | BG22: 0 | BH22: 0 | BI22: 0 | BJ22: 0 | BR22: 0 | BT22: 2008 | BU22: 1606 | BV22: 1204 | BW22: 803 | BX22: 401 | BY22: 0
C23: LED 18W | D23: AST | E23: Number | F23: Energy efficient | G23: Partially-funded | I23: 57764 | J23: 65800 | K23: 67034 | L23: 68206 | M23: 69417 | N23: 70669 | P23: =ROUND('Newer version of inputs'!J16*'Newer version of inputs'!$H27+'Newer version of inputs'!J18*'Newer version of inputs'!$H49,0) -> 1743 | Q23: =ROUND('Newer version of inputs'!K16*'Newer version of inputs'!$H27+'Newer version of inputs'!K18*'Newer version of inputs'!$H49,0) -> 1792 | R23: =ROUND('Newer version of inputs'!L16*'Newer version of inputs'!$H27+'Newer version of inputs'!L18*'Newer version of inputs'!$H49,0) -> 1842 | S23: =ROUND('Newer version of inputs'!M16*'Newer version of inputs'!$H27+'Newer version of inputs'!M18*'Newer version of inputs'!$H49,0) -> 1893 | T23: =ROUND('Newer version of inputs'!N16*'Newer version of inputs'!$H27+'Newer version of inputs'!N18*'Newer version of inputs'!$H49,0) -> 1946 | U23: =ROUND('Newer version of inputs'!O16*'Newer version of inputs'!$H27+'Newer version of inputs'!O18*'Newer version of inputs'!$H49,0) -> 2001 | V23: 11217 | X23: =-ROUND(SUM(AV10,AV13,AV21,AV22,AV30,AV31,AV32)/2,0) -> 2942 | Y23: 0 | Z23: 0 | AA23: 0 | AB23: 0 | AC23: 0 | AD23: 2942 | AF23: =-BD10/2-(BD13+BD19)/2 -> 3351 | AG23: 0 | AH23: 0 | AI23: 0 | AJ23: 0 | AK23: 0 | AL23: 3351 | AT23: 0 | AW23: =-ROUND(J23*'Newer version of inputs'!$L$10-100,0) -> -558 | AX23: =-ROUND(K23*'Newer version of inputs'!$L$10,0) -> -670 | AY23: =-ROUND(L23*'Newer version of inputs'!$L$10,0) -> -682 | AZ23: =-ROUND(M23*'Newer version of inputs'!$L$10,0) -> -694 | BA23: =-ROUND(N23*'Newer version of inputs'!$L$10,0) -> -707 | BB23: -3311 | BD23: 0 | BE23: 0 | BF23: 0 | BG23: 0 | BH23: 0 | BI23: 0 | BJ23: 0 | BR23: 0 | BT23: 65800 | BU23: 67034 | BV23: 68206 | BW23: 69417 | BX23: 70669 | BY23: 71963
C24: LED 14W | D24: AST | E24: Number | F24: Energy efficient | G24: Partially-funded | I24: 23424 | J24: 31460 | K24: 33067 | L24: 34578 | M24: 36125 | N24: 37710 | P24: =ROUND('Newer version of inputs'!J$16*'Newer version of inputs'!$H28+'Newer version of inputs'!J$18*'Newer version of inputs'!$H50,0) -> 1743 | Q24: =ROUND('Newer version of inputs'!K$16*'Newer version of inputs'!$H28+'Newer version of inputs'!K$18*'Newer version of inputs'!$H50,0) -> 1792 | R24: =ROUND('Newer version of inputs'!L$16*'Newer version of inputs'!$H28+'Newer version of inputs'!L$18*'Newer version of inputs'!$H50,0) -> 1842 | S24: =ROUND('Newer version of inputs'!M$16*'Newer version of inputs'!$H28+'Newer version of inputs'!M$18*'Newer version of inputs'!$H50,0) -> 1893 | T24: =ROUND('Newer version of inputs'!N$16*'Newer version of inputs'!$H28+'Newer version of inputs'!N$18*'Newer version of inputs'!$H50,0) -> 1946 | U24: =ROUND('Newer version of inputs'!O$16*'Newer version of inputs'!$H28+'Newer version of inputs'!O$18*'Newer version of inputs'!$H50,0) -> 2001 | V24: 11217 | X24: =-ROUND(SUM(AV10,AV13,AV21,AV22,AV30,AV31,AV32)/2,0) -> 2942 | Y24: 0 | Z24: 0 | AA24: 0 | AB24: 0 | AC24: 0 | AD24: 2942 | AF24: =-BD10/2-(BD13+BD19)/2 -> 3351 | AG24: 0 | AH24: 0 | AI24: 0 | AJ24: 0 | AK24: 0 | AL24: 3351 | AT24: 0 | AW24: =-ROUND(J24*'Newer version of inputs'!$L$10-130,0) -> -185 | AX24: =-ROUND(K24*'Newer version of inputs'!$L$10,0) -> -331 | AY24: =-ROUND(L24*'Newer version of inputs'!$L$10,0) -> -346 | AZ24: =-ROUND(M24*'Newer version of inputs'!$L$10,0) -> -361 | BA24: =-ROUND(N24*'Newer version of inputs'!$L$10,0) -> -377 | BB24: -1600 | BD24: 0 | BE24: 0 | BF24: 0 | BG24: 0 | BH24: 0 | BI24: 0 | BJ24: 0 | BR24: 0 | BT24: 31460 | BU24: 33067 | BV24: 34578 | BW24: 36125 | BX24: 37710 | BY24: 39334
C25: LED 18W Opt-in Smart Lighting | D25: AST | E25: Number | F25: Energy efficient | G25: Partially-funded | I25: 0 | J25: 0 | K25: 100 | L25: 100 | M25: 100 | N25: 100 | Y25: 100 | BS25: New | BT25: 0 | BU25: 100 | BV25: 100 | BW25: 100 | BX25: 100 | BY25: 100
C26: LED 14W Opt-in Smart Lighting | D26: AST | E26: Number | F26: Energy efficient | G26: Partially-funded | I26: 0 | J26: 0 | K26: 130 | L26: 130 | M26: 130 | N26: 130 | Y26: 130 | BS26: New | BT26: 0 | BU26: 130 | BV26: 130 | BW26: 130 | BX26: 130 | BY26: 130
C27: LED 70W-125W (L1) | D27: AST | E27: Number | F27: Energy efficient | G27: Partially-funded | I27: 16970 | J27: 18522 | K27: 19149 | L27: 19770 | M27: 20384 | N27: 20992 | P27: =ROUND('Newer version of inputs'!$J$16*'Newer version of inputs'!$H29+'Newer version of inputs'!$J$18*'Newer version of inputs'!$H51,0) -> 812 | Q27: =ROUND('Newer version of inputs'!$J$16*'Newer version of inputs'!$H29+'Newer version of inputs'!$J$18*'Newer version of inputs'!$H51,0) -> 812 | R27: =ROUND('Newer version of inputs'!$J$16*'Newer version of inputs'!$H29+'Newer version of inputs'!$J$18*'Newer version of inputs'!$H51,0) -> 812 | S27: =ROUND('Newer version of inputs'!$J$16*'Newer version of inputs'!$H29+'Newer version of inputs'!$J$18*'Newer version of inputs'!$H51,0) -> 812 | T27: =ROUND('Newer version of inputs'!$J$16*'Newer version of inputs'!$H29+'Newer version of inputs'!$J$18*'Newer version of inputs'!$H51,0) -> 812 | U27: =ROUND('Newer version of inputs'!$J$16*'Newer version of inputs'!$H29+'Newer version of inputs'!$J$18*'Newer version of inputs'!$H51,0) -> 812 | V27: =SUM(P27:U27) -> 4872 | X27: =-SUM(AV11*0.5,AV17,AV14,AV36) -> 730 | Y27: 0 | Z27: 0 | AA27: 0 | AB27: 0 | AC27: 0 | AD27: =SUM(X27:AC27) -> 730 | AF27: 10 | AG27: 0 | AH27: 0 | AI27: 0 | AJ27: 0 | AK27: 0 | AL27: =SUM(AF27:AK27) -> 10 | AT27: =SUM(AN27:AS27) -> 0 | AW27: =-ROUND(J27*'Newer version of inputs'!$L$10,0) -> -185 | AX27: =-ROUND(K27*'Newer version of inputs'!$L$10,0) -> -191 | AY27: =-ROUND(L27*'Newer version of inputs'!$L$10,0) -> -198 | AZ27: =-ROUND(M27*'Newer version of inputs'!$L$10,0) -> -204 | BA27: =-ROUND(N27*'Newer version of inputs'!$L$10,0) -> -210 | BB27: =SUM(AV27:BA27) -> -988 | BD27: 0 | BE27: 0 | BF27: 0 | BG27: 0 | BH27: 0 | BI27: 0 | BJ27: 0 | BR27: =SUM(BL27:BQ27) -> 0 | BT27: 18522 | BU27: 19149 | BV27: 19770 | BW27: 20384 | BX27: 20992 | BY27: 21594
C28: LED 155W-250W (L2) | D28: AST | E28: Number | F28: Energy efficient | G28: Partially-funded | I28: 9887 | J28: 11525 | K28: 11818 | L28: 12108 | M28: 12395 | N28: 12679 | P28: =ROUND('Newer version of inputs'!$J$16*'Newer version of inputs'!$H30+'Newer version of inputs'!$J$18*'Newer version of inputs'!$H52,0) -> 408 | Q28: =ROUND('Newer version of inputs'!$J$16*'Newer version of inputs'!$H30+'Newer version of inputs'!$J$18*'Newer version of inputs'!$H52,0) -> 408 | R28: =ROUND('Newer version of inputs'!$J$16*'Newer version of inputs'!$H30+'Newer version of inputs'!$J$18*'Newer version of inputs'!$H52,0) -> 408 | S28: =ROUND('Newer version of inputs'!$J$16*'Newer version of inputs'!$H30+'Newer version of inputs'!$J$18*'Newer version of inputs'!$H52,0) -> 408 | T28: =ROUND('Newer version of inputs'!$J$16*'Newer version of inputs'!$H30+'Newer version of inputs'!$J$18*'Newer version of inputs'!$H52,0) -> 408 | U28: =ROUND('Newer version of inputs'!$J$16*'Newer version of inputs'!$H30+'Newer version of inputs'!$J$18*'Newer version of inputs'!$H52,0) -> 408 | V28: 2448 | X28: =-SUM(AV11*0.5,AV12,AV37) -> 1083 | Y28: 0 | Z28: 0 | AA28: 0 | AB28: 0 | AC28: 0 | AD28: 1083 | AF28: 147 | AG28: 0 | AH28: 0 | AI28: 0 | AJ28: 0 | AK28: 0 | AL28: 147 | AT28: 0 | AW28: =-ROUND(J28*'Newer version of inputs'!$L$10,0) -> -115 | AX28: =-ROUND(K28*'Newer version of inputs'!$L$10,0) -> -118 | AY28: =-ROUND(L28*'Newer version of inputs'!$L$10,0) -> -121 | AZ28: =-ROUND(M28*'Newer version of inputs'!$L$10,0) -> -124 | BA28: =-ROUND(N28*'Newer version of inputs'!$L$10,0) -> -127 | BB28: -605 | BD28: 0 | BE28: 0 | BF28: 0 | BG28: 0 | BH28: 0 | BI28: 0 | BJ28: 0 | BR28: 0 | BT28: 11525 | BU28: 11818 | BV28: 12108 | BW28: 12395 | BX28: 12679 | BY28: 12960
C29: LED 275W-400W (L4) | D29: AST | E29: Number | F29: Energy efficient | G29: Partially-funded | I29: 368 | J29: 434 | K29: 448 | L29: 462 | M29: 475 | N29: 488 | P29: =ROUND('Newer version of inputs'!$J$16*'Newer version of inputs'!$H31+'Newer version of inputs'!$J$18*'Newer version of inputs'!$H53,0) -> 18 | Q29: =ROUND('Newer version of inputs'!$J$16*'Newer version of inputs'!$H31+'Newer version of inputs'!$J$18*'Newer version of inputs'!$H53,0) -> 18 | R29: =ROUND('Newer version of inputs'!$J$16*'Newer version of inputs'!$H31+'Newer version of inputs'!$J$18*'Newer version of inputs'!$H53,0) -> 18 | S29: =ROUND('Newer version of inputs'!$J$16*'Newer version of inputs'!$H31+'Newer version of inputs'!$J$18*'Newer version of inputs'!$H53,0) -> 18 | T29: =ROUND('Newer version of inputs'!$J$16*'Newer version of inputs'!$H31+'Newer version of inputs'!$J$18*'Newer version of inputs'!$H53,0) -> 18 | U29: =ROUND('Newer version of inputs'!$J$16*'Newer version of inputs'!$H31+'Newer version of inputs'!$J$18*'Newer version of inputs'!$H53,0) -> 18 | V29: 108 | X29: =-SUM(AV38) -> 0 | Y29: 0 | Z29: 0 | AA29: 0 | AB29: 0 | AC29: 0 | AD29: 0 | AF29: 48 | AG29: 0 | AH29: 0 | AI29: 0 | AJ29: 0 | AK29: 0 | AL29: 48 | AT29: 0 | AW29: =-ROUND(J29*'Newer version of inputs'!$L$10,0) -> -4 | AX29: =-ROUND(K29*'Newer version of inputs'!$L$10,0) -> -4 | AY29: =-ROUND(L29*'Newer version of inputs'!$L$10,0) -> -5 | AZ29: =-ROUND(M29*'Newer version of inputs'!$L$10,0) -> -5 | BA29: =-ROUND(N29*'Newer version of inputs'!$L$10,0) -> -5 | BB29: -23 | BD29: 0 | BE29: 0 | BF29: 0 | BG29: 0 | BH29: 0 | BI29: 0 | BJ29: 0 | BR29: 0 | BT29: 434 | BU29: 448 | BV29: 462 | BW29: 475 | BX29: 488 | BY29: 501
C30: Compact Fluorescent 32W | D30: AST | E30: Number | F30: Energy efficient | G30: Partially-funded | I30: 3277 | J30: 3277 | K30: 2951 | L30: 2625 | M30: 2299 | N30: 1973 | P30: 0 | Q30: 0 | R30: 0 | S30: 0 | T30: 0 | U30: 0 | V30: 0 | X30: 0 | Y30: 0 | Z30: 0 | AA30: 0 | AB30: 0 | AC30: 0 | AD30: 0 | AF30: 0 | AG30: 0 | AH30: 0 | AI30: 0 | AJ30: 0 | AK30: 0 | AL30: 0 | AT30: 0 | AV30: 0 | AW30: =-ROUND((J30-'Newer version of inputs'!$J22)/AW$8,0) -> -326 | AX30: =-ROUND((K30-'Newer version of inputs'!$J22)/AX$8,0) -> -326 | AY30: =-ROUND((L30-'Newer version of inputs'!$J22)/AY$8,0) -> -326 | AZ30: =-ROUND((M30-'Newer version of inputs'!$J22)/AZ$8,0) -> -326 | BA30: =-ROUND((N30-'Newer version of inputs'!$J22)/BA$8,0) -> -325 | BB30: -1629 | BD30: 0 | BE30: 0 | BF30: 0 | BG30: 0 | BH30: 0 | BI30: 0 | BJ30: 0 | BR30: 0 | BT30: 3277 | BU30: 2951 | BV30: 2625 | BW30: 2299 | BX30: 1973 | BY30: 1648
C31: Compact Fluorescent 42W | D31: AST | E31: Number | F31: Energy efficient | G31: Partially-funded | I31: 3503 | J31: 3503 | K31: 3214 | L31: 2925 | M31: 2636 | N31: 2346 | P31: 0 | Q31: 0 | R31: 0 | S31: 0 | T31: 0 | U31: 0 | V31: 0 | X31: 0 | Y31: 0 | Z31: 0 | AA31: 0 | AB31: 0 | AC31: 0 | AD31: 0 | AF31: 0 | AG31: 0 | AH31: 0 | AI31: 0 | AJ31: 0 | AK31: 0 | AL31: 0 | AT31: 0 | AV31: 0 | AW31: =-ROUND((J31-'Newer version of inputs'!$J23)/AW$8,0) -> -289 | AX31: =-ROUND((K31-'Newer version of inputs'!$J23)/AX$8,0) -> -289 | AY31: =-ROUND((L31-'Newer version of inputs'!$J23)/AY$8,0) -> -289 | AZ31: =-ROUND((M31-'Newer version of inputs'!$J23)/AZ$8,0) -> -290 | BA31: =-ROUND((N31-'Newer version of inputs'!$J23)/BA$8,0) -> -289 | BB31: -1446 | BD31: 0 | BE31: 0 | BF31: 0 | BG31: 0 | BH31: 0 | BI31: 0 | BJ31: 0 | BR31: 0 | BT31: 3503 | BU31: 3214 | BV31: 2925 | BW31: 2636 | BX31: 2346 | BY31: 2057
C32: LED 18W | D32: AST | E32: Number | F32: Energy efficient | G32: AST-funded | J32: 0 | K32: 3204 | L32: 6142 | M32: 9003 | N32: 11851 | V32: 0 | X32: 0 | Y32: =-ROUND(SUM(AW10,AW13,AW21,AW22,AW30,AW31,AW32)/2-Y34,0) -> 2942 | Z32: =-ROUND(SUM(AX10,AX13,AX21,AX22,AX30,AX31,AX32)/2,0)-Z34 -> 2708 | AA32: =-ROUND(SUM(AY10,AY13,AY21,AY22,AY30,AY31,AY32)/2,0) -> 2922 | AB32: =-ROUND(SUM(AZ10,AZ13,AZ21,AZ22,AZ30,AZ31,AZ32)/2,0) -> 2938 | AC32: =AB32 -> 2938 | AD32: 14448 | AG32: =-SUM(BE10,BE13,BE19)/2 -> 262 | AH32: =-SUM(BF10,BF13,BF19)/2 -> 262 | AI32: =-SUM(BG10,BG13,BG19)/2 -> 0 | AJ32: =-SUM(BH10,BH13,BH19)/2 -> 0 | AK32: =-SUM(BI10,BI13,BI19)/2 -> 0 | AL32: 524 | AN32: 0 | AO32: 0 | AP32: 0 | AQ32: 0 | AR32: 0 | AS32: 0 | AT32: 0 | AV32: 0 | AW32: =-ROUND(J32*'Newer version of inputs'!$L$10,0) -> 0 | AX32: =-ROUND(K32*'Newer version of inputs'!$L$10,0) -> -32 | AY32: =-ROUND(L32*'Newer version of inputs'!$L$10,0) -> -61 | AZ32: =-ROUND(M32*'Newer version of inputs'!$L$10,0) -> -90 | BA32: =-ROUND(N32*'Newer version of inputs'!$L$10,0) -> -119 | BB32: -302 | BJ32: 0 | BL32: 0 | BM32: 0 | BN32: 0 | BO32: 0 | BP32: 0 | BQ32: 0 | BR32: 0 | BT32: 0 | BU32: 3204 | BV32: 6142 | BW32: 9003 | BX32: 11851 | BY32: 14670
C33: LED 14W | D33: AST | E33: Number | F33: Energy efficient | G33: AST-funded | J33: 0 | K33: 3204 | L33: 6142 | M33: 8803 | N33: 11453 | V33: 0 | X33: 0 | Y33: =-ROUND(SUM(AW10,AW13,AW21,AW22,AW30,AW31,AW32)/2-Y35,0) -> 2942 | Z33: =-ROUND(SUM(AX10,AX13,AX21,AX22,AX30,AX31,AX32)/2,0)-Z35 -> 2708 | AA33: =-ROUND(SUM(AY10,AY13,AY21,AY22,AY30,AY31,AY32)/2,0)-AA35 -> 2722 | AB33: =-ROUND(SUM(AZ10,AZ13,AZ21,AZ22,AZ30,AZ31,AZ32)/2,0)-AB35 -> 2738 | AC33: =-ROUND(SUM(BA10,BA13,BA21,BA22,BA30,BA31,BA32)/2,0)-AC35 -> 2750 | AD33: 13860 | AG33: =-SUM(BE10,BE13,BE19)/2 -> 262 | AH33: =-SUM(BF10,BF13,BF19)/2 -> 262 | AI33: =-SUM(BG10,BG13,BG19)/2 -> 0 | AJ33: =-SUM(BH10,BH13,BH19)/2 -> 0 | AK33: =-SUM(BI10,BI13,BI19)/2 -> 0 | AL33: 524 | AN33: 0 | AO33: 0 | AP33: 0 | AQ33: 0 | AR33: 0 | AS33: 0 | AT33: 0 | AV33: 0 | AW33: =-ROUND(J33*'Newer version of inputs'!$L$10,0) -> 0 | AX33: =-ROUND(K33*'Newer version of inputs'!$L$10,0) -> -32 | AY33: =-ROUND(L33*'Newer version of inputs'!$L$10,0) -> -61 | AZ33: =-ROUND(M33*'Newer version of inputs'!$L$10,0) -> -88 | BA33: =-ROUND(N33*'Newer version of inputs'!$L$10,0) -> -115 | BB33: -296 | BJ33: 0 | BL33: 0 | BM33: 0 | BN33: 0 | BO33: 0 | BP33: 0 | BQ33: 0 | BR33: 0 | BT33: 0 | BU33: 3204 | BV33: 6142 | BW33: 8803 | BX33: 11453 | BY33: 14088
C34: LED 18W Opt-in Smart Lighting | D34: AST | E34: Number | F34: Energy efficient | G34: AST-funded | J34: 0 | K34: 50 | L34: 250 | M34: 450 | N34: 650 | Y34: 50 | Z34: 200 | AA34: 200 | AB34: 200 | AC34: 200 | BS34: New | BT34: 0 | BU34: 50 | BV34: 250 | BW34: 450 | BX34: 650 | BY34: 850
C35: LED 14W Opt-in Smart Lighting | D35: AST | E35: Number | F35: Energy efficient | G35: AST-funded | J35: 0 | K35: 50 | L35: 250 | M35: 450 | N35: 650 | Y35: 50 | Z35: 200 | AA35: 200 | AB35: 200 | AC35: 200 | BS35: New | BT35: 0 | BU35: 50 | BV35: 250 | BW35: 450 | BX35: 650 | BY35: 850
C36: LED 70W-125W (L1) | D36: AST | E36: Number | F36: Energy efficient | G36: AST-funded | J36: 0 | K36: =BU36 -> 1491 | L36: 3682 | M36: 5486 | N36: 6961 | V36: =SUM(P36:U36) -> 0 | X36: 0 | Y36: =-ROUND(SUM(AW11*0.5,AW17,AW14,AW36),0) -> 663 | Z36: =-ROUND(SUM(AX11*0.5,AX17,AX14,AX36),0) -> 557 | AA36: =-ROUND(SUM(AY11*0.5,AY17,AY14,AY36),0) -> 398 | AB36: =-ROUND(SUM(AZ11*0.5,AZ17,AZ14,AZ36),0) -> 266 | AC36: =AB36 -> 266 | AD36: =SUM(X36:AC36) -> 2150 | AG36: =-ROUND(SUM(BE11*0.5,BE14,BE13,BE17),0) -> 828 | AH36: =-ROUND(SUM(BF11*0.5,BF14,BF13,BF17),0) -> 1649 | AI36: =-ROUND(SUM(BG11*0.5,BG14,BG13,BG17),0) -> 1443 | AJ36: =-ROUND(SUM(BH11*0.5,BH14,BH13,BH17),0) -> 1264 | AK36: =-ROUND(SUM(BI11*0.5,BI14,BI13,BI17),0) -> 1052 | AL36: =SUM(AF36:AK36) -> 6236 | AN36: 0 | AO36: 0 | AP36: 0 | AQ36: 0 | AR36: 0 | AS36: 0 | AT36: =SUM(AN36:AS36) -> 0 | AV36: 0 | AW36: =-J36*'Newer version of inputs'!$L$10 -> 0 | AX36: =-ROUND(K36*'Newer version of inputs'!$L$10,0) -> -15 | AY36: =-ROUND(L36*'Newer version of inputs'!$L$10,0) -> -37 | AZ36: =-ROUND(M36*'Newer version of inputs'!$L$10,0) -> -55 | BA36: =-ROUND(N36*'Newer version of inputs'!$L$10,0) -> -70 | BB36: =SUM(AV36:BA36) -> -177 | BJ36: 0 | BL36: 0 | BM36: 0 | BN36: 0 | BO36: 0 | BP36: 0 | BQ36: 0 | BR36: =SUM(BL36:BQ36) -> 0 | BT36: 0 | BU36: 1491 | BV36: 3682 | BW36: 5486 | BX36: 6961 | BY36: 8209
C37: LED 155W-250W (L2) | D37: AST | E37: Number | F37: Energy efficient | G37: AST-funded | J37: 0 | K37: =BU37 -> 2187 | L37: 5432 | M37: 8136 | N37: 10344 | V37: 0 | X37: 0 | Y37: =-ROUND(SUM(AW11*0.5,AW12,AW37),0) -> 994 | Z37: =-ROUND(SUM(AX11*0.5,AX12,AX37),0) -> 833 | AA37: =-ROUND(SUM(AY11*0.5,AY12,AY37),0) -> 595 | AB37: =-ROUND(SUM(AZ11*0.5,AZ12,AZ37),0) -> 396 | AC37: =AB37 -> 396 | AD37: 3214 | AG37: =-ROUND(SUM(BE11*0.5,BE12,BE15),0) -> 1193 | AH37: =-ROUND(SUM(BF11*0.5,BF12,BF15),0) -> 2434 | AI37: =-ROUND(SUM(BG11*0.5,BG12,BG15),0) -> 2163 | AJ37: =-ROUND(SUM(BH11*0.5,BH12,BH15),0) -> 1893 | AK37: =-ROUND(SUM(BI11*0.5,BI12,BI15),0) -> 1577 | AL37: 9260 | AN37: 0 | AO37: 0 | AP37: 0 | AQ37: 0 | AR37: 0 | AS37: 0 | AT37: 0 | AV37: 0 | AW37: =-J37*'Newer version of inputs'!$L$10 -> 0 | AX37: =-ROUND(K37*'Newer version of inputs'!$L$10,0) -> -22 | AY37: =-ROUND(L37*'Newer version of inputs'!$L$10,0) -> -54 | AZ37: =-ROUND(M37*'Newer version of inputs'!$L$10,0) -> -81 | BA37: =-ROUND(N37*'Newer version of inputs'!$L$10,0) -> -103 | BB37: -260 | BJ37: 0 | BL37: 0 | BM37: 0 | BN37: 0 | BO37: 0 | BP37: 0 | BQ37: 0 | BR37: 0 | BT37: 0 | BU37: 2187 | BV37: 5432 | BW37: 8136 | BX37: 10344 | BY37: 12214
C38: LED 275W-400W (L4) | D38: AST | E38: Number | F38: Energy efficient | G38: AST-funded | J38: 0 | K38: 66 | L38: 99 | M38: 131 | N38: 164 | V38: 0 | X38: 0 | Y38: =-SUM(AV18,AV16,AW38) -> 20 | Z38: =-SUM(AW18,AW16,AX38) -> 1 | AA38: =-SUM(AX18,AX16,AY38) -> 1 | AB38: =-SUM(AY18,AY16,AZ38) -> 1 | AC38: =AB38 -> 1 | AD38: 24 | AG38: =-SUM(BE18,BE16) -> 46 | AH38: =-SUM(BF18,BF16) -> 33 | AI38: =-SUM(BG18,BG16) -> 32 | AJ38: =-SUM(BH18,BH16) -> 33 | AK38: =-SUM(BI18,BI16) -> 32 | AL38: 176 | AN38: 0 | AO38: 0 | AP38: 0 | AQ38: 0 | AR38: 0 | AS38: 0 | AT38: 0 | AV38: 0 | AW38: =-J38*'Newer version of inputs'!$L$10 -> 0 | AX38: =-ROUND(K38*'Newer version of inputs'!$L$10,0) -> -1 | AY38: =-ROUND(L38*'Newer version of inputs'!$L$10,0) -> -1 | AZ38: =-ROUND(M38*'Newer version of inputs'!$L$10,0) -> -1 | BA38: =-ROUND(N38*'Newer version of inputs'!$L$10,0) -> -2 | BB38: -5 | BJ38: 0 | BL38: 0 | BM38: 0 | BN38: 0 | BO38: 0 | BP38: 0 | BQ38: 0 | BR38: 0 | BT38: 0 | BU38: 66 | BV38: 99 | BW38: 131 | BX38: 164 | BY38: 195
D39: AST | E39: Number | J39: 0 | K39: 0 | L39: 0 | M39: 0 | N39: 0 | V39: 0 | AD39: 0 | AL39: 0 | AT39: 0 | BB39: 0 | BJ39: 0 | BR39: 0 | BT39: 0 | BU39: 0 | BV39: 0 | BW39: 0 | BX39: 0 | BY39: 0
D40: AST | E40: Number | J40: 0 | K40: 0 | L40: 0 | M40: 0 | N40: 0 | V40: 0 | AD40: 0 | AL40: 0 | AT40: 0 | BB40: 0 | BJ40: 0 | BR40: 0 | BT40: 0 | BU40: 0 | BV40: 0 | BW40: 0 | BX40: 0 | BY40: 0
D41: AST | E41: Number | J41: 0 | K41: 0 | L41: 0 | M41: 0 | N41: 0 | V41: 0 | AD41: 0 | AL41: 0 | AT41: 0 | BB41: 0 | BJ41: 0 | BR41: 0 | BT41: 0 | BU41: 0 | BV41: 0 | BW41: 0 | BX41: 0 | BY41: 0
C43: Total | D43: Calculated | E43: Number | I43: =SUM(I10:I41) -> 180147 | J43: 184788 | K43: 189039 | L43: 192640 | M43: 196453 | N43: 200308 | P43: =SUM(P10:P41) -> 4724 | Q43: 4822 | R43: 4922 | S43: 5024 | T43: 5130 | U43: 5240 | V43: 29862 | X43: =SUM(X10:X41) -> 7697 | Y43: 7891 | Z43: 7207 | AA43: 7038 | AB43: 6739 | AC43: 6751 | AD43: 41393 | AF43: =SUM(AF10:AF41) -> 6907 | AG43: 2591 | AH43: 4640 | AI43: 3638 | AJ43: 3190 | AK43: 2661 | AL43: 23627 | AN43: =SUM(AN10:AN41) -> 0 | AO43: 0 | AP43: 0 | AQ43: 0 | AR43: 0 | AS43: 0 | AT43: 0 | AV43: =SUM(AV10:AV41) -> -7720 | AW43: -8487 | AX43: -8553 | AY43: -8249 | AZ43: -8014 | BA43: -7616 | BB43: -48639 | BD43: =SUM(BD10:BD41) -> -6967 | BE43: -2566 | BF43: -4615 | BG43: -3638 | BH43: -3190 | BI43: -2661 | BJ43: -23637 | BL43: =SUM(BL10:BL41) -> 0 | BM43: 0 | BN43: 0 | BO43: 0 | BP43: 0 | BQ43: 0 | BR43: 0 | BT43: =SUM(BT10:BT41) -> 184788 | BU43: 189039 | BV43: 192640 | BW43: 196453 | BX43: 200308 | BY43: 204683
C45: Legacy lights | D45: Calculated | E45: Number | F45: Legacy | G45: AST-funded | I45: =SUMIFS(I$10:I$41,$F$10:$F$41,$F45,$G$10:$G$41,$G45) -> 34231 | J45: 24426 | K45: 20204 | L45: 14236 | M45: 9697 | N45: 5981 | P45: =SUMIFS(P$10:P$41,$F$10:$F$41,$F45,$G$10:$G$41,$G45) -> 0 | Q45: 0 | R45: 0 | S45: 0 | T45: 0 | U45: 0 | V45: 0 | X45: =SUMIFS(X$10:X$41,$F$10:$F$41,$F45,$G$10:$G$41,$G45) -> 0 | Y45: 0 | Z45: 0 | AA45: 0 | AB45: 0 | AC45: 0 | AD45: 0 | AF45: =SUMIFS(AF$10:AF$41,$F$10:$F$41,$F45,$G$10:$G$41,$G45) -> 0 | AG45: 0 | AH45: 0 | AI45: 0 | AJ45: 0 | AK45: 0 | AL45: 0 | AN45: =SUMIFS(AN$10:AN$41,$F$10:$F$41,$F45,$G$10:$G$41,$G45) -> 0 | AO45: 0 | AP45: 0 | AQ45: 0 | AR45: 0 | AS45: 0 | AT45: 0 | AV45: =SUMIFS(AV$10:AV$41,$F$10:$F$41,$F45,$G$10:$G$41,$G45) -> -2838 | AW45: -1656 | AX45: -1353 | AY45: -901 | AZ45: -526 | BA45: 0 | BB45: -7274 | BD45: =SUMIFS(BD$10:BD$41,$F$10:$F$41,$F45,$G$10:$G$41,$G45) -> -6967 | BE45: -2566 | BF45: -4615 | BG45: -3638 | BH45: -3190 | BI45: -2661 | BJ45: -23637 | BL45: =SUMIFS(BL$10:BL$41,$F$10:$F$41,$F45,$G$10:$G$41,$G45) -> 0 | BM45: 0 | BN45: 0 | BO45: 0 | BP45: 0 | BQ45: 0 | BR45: 0 | BT45: =SUMIFS(BT$10:BT$41,$F$10:$F$41,$F45,$G$10:$G$41,$G45) -> 24426 | BU45: 20204 | BV45: 14236 | BW45: 9697 | BX45: 5981 | BY45: 3320
C46: Energy efficient lights | D46: Calculated | E46: Number | F46: Energy efficient | G46: AST-funded | I46: 0 | J46: 0 | K46: 10252 | L46: 21997 | M46: 32459 | N46: 42073 | P46: 0 | Q46: 0 | R46: 0 | S46: 0 | T46: 0 | U46: 0 | V46: 0 | X46: 0 | Y46: 7661 | Z46: 7207 | AA46: 7038 | AB46: 6739 | AC46: 6751 | AD46: 33696 | AF46: 0 | AG46: 2591 | AH46: 4640 | AI46: 3638 | AJ46: 3190 | AK46: 2661 | AL46: 16720 | AN46: 0 | AO46: 0 | AP46: 0 | AQ46: 0 | AR46: 0 | AS46: 0 | AT46: 0 | AV46: 0 | AW46: 0 | AX46: -102 | AY46: -214 | AZ46: -315 | BA46: -409 | BB46: -1040 | BD46: 0 | BE46: 0 | BF46: 0 | BG46: 0 | BH46: 0 | BI46: 0 | BJ46: 0 | BL46: 0 | BM46: 0 | BN46: 0 | BO46: 0 | BP46: 0 | BQ46: 0 | BR46: 0 | BT46: 0 | BU46: 10252 | BV46: 21997 | BW46: 32459 | BX46: 42073 | BY46: 51076
C47: Partially-funded energy efficient lights | D47: Calculated | E47: Number | F47: Energy efficient | G47: Partially-funded | I47: 145916 | J47: 160362 | K47: 158583 | L47: 156407 | M47: 154297 | N47: 152254 | P47: 4724 | Q47: 4822 | R47: 4922 | S47: 5024 | T47: 5130 | U47: 5240 | V47: 29862 | X47: 7697 | Y47: 230 | Z47: 0 | AA47: 0 | AB47: 0 | AC47: 0 | AD47: 7697 | AF47: 6907 | AG47: 0 | AH47: 0 | AI47: 0 | AJ47: 0 | AK47: 0 | AL47: 6907 | AN47: 0 | AO47: 0 | AP47: 0 | AQ47: 0 | AR47: 0 | AS47: 0 | AT47: 0 | AV47: -4882 | AW47: -6831 | AX47: -7098 | AY47: -7134 | AZ47: -7173 | BA47: -7207 | BB47: -40325 | BD47: 0 | BE47: 0 | BF47: 0 | BG47: 0 | BH47: 0 | BI47: 0 | BJ47: 0 | BL47: 0 | BM47: 0 | BN47: 0 | BO47: 0 | BP47: 0 | BQ47: 0 | BR47: 0 | BT47: 160362 | BU47: 158583 | BV47: 156407 | BW47: 154297 | BX47: 152254 | BY47: 150287
C49: Total | D49: Calculated | E49: Number | I49: =SUM(I45:I47) -> 180147 | J49: 184788 | K49: 189039 | L49: 192640 | M49: 196453 | N49: 200308 | P49: =SUM(P45:P47) -> 4724 | Q49: 4822 | R49: 4922 | S49: 5024 | T49: 5130 | U49: 5240 | V49: =SUM(V45:V47) -> 29862 | X49: =SUM(X45:X47) -> 7697 | Y49: 7891 | Z49: 7207 | AA49: 7038 | AB49: 6739 | AC49: 6751 | AD49: 41393 | AF49: =SUM(AF45:AF47) -> 6907 | AG49: 2591 | AH49: 4640 | AI49: 3638 | AJ49: 3190 | AK49: 2661 | AL49: 23627 | AN49: =SUM(AN45:AN47) -> 0 | AO49: 0 | AP49: 0 | AQ49: 0 | AR49: 0 | AS49: 0 | AT49: 0 | AV49: =SUM(AV45:AV47) -> -7720 | AW49: -8487 | AX49: -8553 | AY49: -8249 | AZ49: -8014 | BA49: -7616 | BB49: -48639 | BD49: =SUM(BD45:BD47) -> -6967 | BE49: -2566 | BF49: -4615 | BG49: -3638 | BH49: -3190 | BI49: -2661 | BJ49: -23637 | BL49: =SUM(BL45:BL47) -> 0 | BM49: 0 | BN49: 0 | BO49: 0 | BP49: 0 | BQ49: 0 | BR49: 0 | BT49: =SUM(BT45:BT47) -> 184788 | BU49: 189039 | BV49: 192640 | BW49: 196453 | BX49: 200308 | BY49: 204683
B52: End
I54: NEED TO CHECK THESE HARD CODED
C55: PUBLIC LIGHT INSTALLATION
C56: Major road light installed | I56: 0.2290328525 | J56: 0.2298606524 | K56: 0.2301345683 | L56: 0.2293682449 | M56: 0.2292903118 | N56: 0.2300669389
C57: Minor road light installed | I57: 0.7709671475 | J57: 0.7701393476 | K57: 0.7698654317 | L57: 0.7706317551 | M57: 0.7707096882 | N57: 0.7699330611
C58: Number of poles installed | I58: 0.204620462 | J58: 0.204620462 | K58: 0.204620462 | L58: 0.204620462 | M58: 0.204620462 | N58: 0.204620462
C60: PUBLIC LIGHT REPLACEMENT
C61: Major road light installed | I61: 0.3345341875 | J61: 0.2246167921 | K61: 0.3365103456 | L61: 0.3536500539 | M61: 0.2726976189 | N61: 0.3008019398
C62: Minor road light installed | I62: 0.6654658125 | J62: 0.7753832079 | K62: 0.6634896544 | L62: 0.6463499461 | M62: 0.7273023811 | N62: 0.6991980602
C63: Number of poles replaced | I63: 0.1291046772 | J63: 0.08610406034 | K63: 0.01532090106 | L63: 0.01540381337 | M63: 0.03299734474 | N63: 0.01480959946
C65: PUBLIC LIGHT MAINTENANCE
C66: Major road light installed | I66: 0.1943164907 | J66: 0.1943164907 | K66: 0.1943164907 | L66: 0.1943164907 | M66: 0.1943164907 | N66: 0.1943164907
C67: Minor road light installed | I67: 0.8056835093 | J67: 0.8056835093 | K67: 0.8056835093 | L67: 0.8056835093 | M67: 0.8056835093 | N67: 0.8056835093
C68: Number of poles maintained | I68: 0.05638627076 | J68: 0.05638627076 | K68: 0.05638627076 | L68: 0.05638627076 | M68: 0.05638627076 | N68: 0.05638627076
B71: End
C81: LED 275W

Sheet Historical light volumes
B2: AusNet
D4: 2009 | E4: 2011 | F4: 2012 | G4: 2013 | H4: 2014 | I4: 2015 | J4: 2016 | K4: 2017 | L4: 2018 | M4: 2019 | N4: 2020 | O4: HY2021 | P4: 2022-06-30 | Q4: 2023-06-30 | R4: 2024-06-30 | S4: 2025-06-30
B5: Capital Expenditure | D5: Actual | E5: Actual | F5: Actual | G5: Actual | H5: Actual | I5: Actual | J5: Actual | K5: Actual | L5: Actual | M5: Actual | N5: Actual | O5: Actual | P5: Actual | Q5: Actual | R5: Decision | S5: Decision
B8: Number Of Lights
B10: Central | E10: =E$4 -> 2011 | F10: 2012 | G10: 2013 | H10: 2014 | I10: 2015 | J10: 2016 | K10: 2017 | L10: 2018 | M10: 2019 | N10: 2020 | O10: HY2021 | P10: 2022-06-30 | Q10: 2023-06-30 | R10: 2024-06-30 | S10: 2025-06-30
E11: Actual Volumes | I11: =I5 -> Actual | J11: Actual | K11: Actual | L11: Actual | M11: Actual | N11: Actual | O11: Actual | P11: Actual | Q11: Actual | R11: Decision | S11: Decision
B12: Existing Lights | C12: Reference Light | D12: Price Factor | R12: Refer to Sheet RIN RY24 and later data
B13: Mercury Vapour 80W | C13: =B$13 -> Mercury Vapour 80W | D13: 1 | E13: 59322.5 | F13: 58866.85 | G13: 58715.36667 | H13: 56826.28333 | I13: 48843.3699 | J13: 33071 | K13: 19501 | L13: 20899 | M13: 20183 | N13: 19640 | O13: 19640 | P13: 14785.8132 | Q13: 16742 | R13: 11161.33333 | S13: 5580.666667
B14: HP Sodium 150W | C14: =B$14 -> HP Sodium 150W | D14: 1 | E14: 12679.83333 | F14: 13325.13333 | G14: 13781.75 | H14: 14149.8 | I14: 14308.29031 | J14: 15306 | K14: 14457 | L14: 16891 | M14: 15334 | N14: 14783 | O14: 14783 | P14: 14443.46329 | Q14: 14552 | R14: 13339.33333 | S14: 12126.66667
B15: HP Sodium 250W | C15: =B$15 -> HP Sodium 250W | D15: 1 | E15: 6080.266667 | F15: 6156.533333 | G15: 6248.633333 | H15: 6374.183333 | I15: 6445.579842 | J15: 6810 | K15: 7048 | L15: 7381 | M15: 6784 | N15: 6880 | O15: 6880 | P15: 6758.215629 | Q15: 6391 | R15: 5858.416667 | S15: 5325.833333
B16: Mercury Vapour 50W | C16: =B$13 -> Mercury Vapour 80W | D16: 1.53 | E16: 324 | F16: 322.3333333 | G16: 319.5833333 | H16: 270.1666667 | I16: 273.192773 | J16: 75 | K16: 71 | L16: 71 | M16: 25 | N16: 71 | O16: 70.37165 | P16: 54.814856 | Q16: 8 | R16: 5.333333333 | S16: 2.666666667
B17: Mercury Vapour 125W | C17: =B$13 -> Mercury Vapour 80W | D17: 1.47 | E17: 855.25 | F17: 848.0833333 | G17: 839.5 | H17: 803.65 | I17: 812.651593 | J17: 425 | K17: 332 | L17: 289 | M17: 297 | N17: 284 | O17: 281.4866 | P17: 211.11495 | Q17: 178 | R17: 118.6666667 | S17: 59.33333333
B18: Mercury Vapour 250W | C18: =B$15 -> HP Sodium 250W | D18: 1.05 | E18: 875.8666667 | F18: 850.0833333 | G18: 817.7833333 | H18: 791.6 | I18: 800.4666223 | J18: 702 | K18: 668 | L18: 655 | M18: 1036 | N18: 611 | O18: 605.59265 | P18: 460.8580933 | Q18: 324 | R18: 216 | S18: 108
B19: Mercury Vapour 400W | C19: =B$15 -> HP Sodium 250W | D19: 1.09 | E19: 151.1666667 | F19: 146.8666667 | G19: 148 | H19: 147.9166667 | I19: 149.5734646 | J19: 143 | K19: 141 | L19: 146 | M19: 206 | N19: 116 | O19: 114.9734 | P19: 87 | Q19: 55 | R19: 36.66666667 | S19: 18.33333333
B20: HP Sodium 100W | C20: =B$14 -> HP Sodium 150W | D20: 1.07 | E20: 2304.166667 | F20: 2478.2 | G20: 2612.416667 | H20: 2729.483333 | I20: 2760.055968 | J20: 2851 | K20: 2465 | L20: 3109 | M20: 2948 | N20: 2497 | O20: 2481.458941 | P20: 2465.677637 | Q20: 2583 | R20: 2367.75 | S20: 2152.5
B21: HP Sodium 400W | C21: =B$15 -> HP Sodium 250W | D21: 1.42 | E21: 289.5 | F21: 283.55 | G21: 275.25 | H21: 267.9166667 | I21: 270.917571 | J21: 282 | K21: 281 | L21: 297 | M21: 443 | N21: 212 | O21: 212 | P21: 215.7035154 | Q21: 176 | R21: 161.3333333 | S21: 146.6666667
B22: Metal Halide 70W | C22: =B$13 -> Mercury Vapour 80W | D22: 4.365105678 | E22: 31 | F22: 31 | G22: 31 | H22: 31 | I22: 31.3472275 | J22: 31 | K22: 31 | L22: 31 | M22: 31 | N22: 31 | O22: 27.125 | P22: 19.375 | Q22: 65 | R22: 43.33333333 | S22: 21.66666667
B23: Metal Halide 100W | C23: HP Sodium 150W | D23: 2.387689088 | E23: 34 | F23: 34 | G23: 34 | H23: 34 | I23: 34.38083016 | J23: 34 | K23: 34 | L23: 34 | M23: 34 | N23: 34 | O23: 29.75 | P23: 21.25 | Q23: 0 | R23: 0 | S23: 0
B24: Metal Halide 150W | C24: HP Sodium 150W | D24: 2.712586814 | E24: 32 | F24: 32 | G24: 32 | H24: 32.16666667 | I24: 32.52696187 | J24: 33 | K24: 33 | L24: 33 | M24: 33 | N24: 33 | O24: 28.875 | P24: 20.625 | Q24: 31 | R24: 20.66666667 | S24: 10.33333333
B25: HP Sodium 50W | C25: =B$14 -> HP Sodium 150W | D25: 0.4433450671 | E25: 94 | F25: 95 | G25: 95 | H25: 95 | I25: 96.06408428 | J25: 0 | K25: 0 | L25: 0 | M25: 0 | N25: 0 | O25: 0 | P25: 0 | Q25: 0 | R25: 0 | S25: 0
B27: Total Existing Lights | E27: =SUM(E13:E26) -> 83073.55 | F27: 83469.63333 | G27: 83950.28333 | H27: 82553.16667 | I27: 74858.41715 | J27: 59763 | K27: 45062 | L27: 49836 | M27: 47354 | N27: 45192 | O27: 45154.63324 | P27: 39543.91117 | Q27: 41105 | R27: 33328.83333 | S27: 25552.66667
B29: Energy Efficient Lights | C29: Reference Light | D29: Price Factor | R29: Refer to Sheet RIN RY24 and later data
B30: T5 2X14W | C30: =B$30 -> T5 2X14W | D30: 1 | E30: 3208.75 | F30: 5202.25 | G30: 6045.833333 | H30: 8439.583333 | I30: 11516.80288 | J30: 21929 | K30: 21271 | L30: 22991 | M30: 22499 | N30: 22518 | O30: 22518 | P30: 22528.43237 | Q30: 23515 | R30: 20144 | S30: 16773
B31: T5 2X24W | C31: =B$31 -> T5 2X24W | D31: 1 | E31: 105.1666667 | F31: 277 | G31: 352.4166667 | H31: 542.9166667 | I31: 932.7493248 | J31: 1690 | K31: 1584 | L31: 2040 | M31: 1780 | N31: 1649 | O31: 1781 | P31: 1781 | Q31: 1772 | R31: 1223 | S31: 674
B32: LED 18W | C32: =B$32 -> LED 18W | D32: 1 | E32: 0 | F32: 0 | G32: 0 | H32: 0 | I32: 2982.688731 | J32: 12368 | K32: 23946 | L32: 30035 | M32: 30436 | N32: 30959 | O32: 32106.50385 | P32: 38758.36993 | Q32: 28810 | R32: 39582.33333 | S32: 46468.66667
B33: LED 14W | C33: =B33 -> LED 14W | D33: 1 | E33: 0 | F33: 0 | G33: 0 | H33: 0 | I33: 0 | J33: 0 | K33: 0 | L33: 307 | M33: 1726 | N33: 2673 | O33: 2673 | P33: 2732.116782 | Q33: 6228 | R33: 7416.46 | S33: 8638.19688
B34: LED 70W-125W (L1) | C34: =B34 -> LED 70W-125W (L1) | D34: 1 | E34: 0 | F34: 0 | G34: 0 | H34: 0 | I34: 0 | J34: 0 | K34: 0 | L34: 417 | M34: 1259 | N34: 1833.421779 | O34: 2118.198557 | P34: 2465.3301 | Q34: 7031 | R34: 7636.192 | S34: 8483.912709
B35: LED 155W-250W (L2) | C35: =B35 -> LED 155W-250W (L2) | D35: 1 | E35: 0 | F35: 0 | G35: 0 | H35: 0 | I35: 0 | J35: 0 | K35: 0 | L35: 273 | M35: 901 | N35: 1227 | O35: 1434.175143 | P35: 2465.205716 | Q35: 2615 | R35: 2876.24 | S35: 4650.496109
B36: LED 275W-400W (L4) | C36: =B36 -> LED 275W-400W (L4) | D36: 1 | E36: 0 | F36: 0 | G36: 0 | H36: 0 | I36: 0 | J36: 0 | K36: 0 | L36: 0 | M36: 50 | N36: 68 | O36: 77.83661336 | P36: 119.3902363 | Q36: 46 | R36: 52.468 | S36: 92.117104
B37: Compact Fluorescent 32W | C37: =B$30 -> T5 2X14W | D37: 0.8796098925 | E37: 1978.933333 | F37: 2125.083333 | G37: 2279.5 | H37: 2420.833333 | I37: 4159.074119 | J37: 2908 | K37: 2707 | L37: 2827 | M37: 3108 | N37: 3107 | O37: 3107 | P37: 3111.172949 | Q37: 3011 | R37: 3011 | S37: 2580.857143
B38: Compact Fluorescent 42W | C38: =B$30 -> T5 2X14W | D38: 0.8796098925 | E38: 245.5 | F38: 366.3333333 | G38: 572.1666667 | H38: 791.0833333 | I38: 1359.108111 | J38: 1570 | K38: 1336 | L38: 2089 | M38: 1921 | N38: 1924 | O38: 1924 | P38: 1992.158172 | Q38: 1978 | R38: 1978 | S38: 1582
B39: Smart lighting L1 | C39: =B39 -> Smart lighting L1 | D39: 1 | E39: 0 | F39: 0 | G39: 0 | H39: 0 | I39: 0 | J39: 0 | K39: 0 | L39: 0 | M39: 0 | N39: 0 | O39: 1 | P39: 1 | Q39: 0 | R39: 0 | S39: 0
B40: Smart lighting L2 | C40: =B40 -> Smart lighting L2 | D40: 1 | E40: 0 | F40: 0 | G40: 0 | H40: 0 | I40: 0 | J40: 0 | K40: 0 | L40: 0 | M40: 0 | N40: 0 | O40: 3 | P40: 3 | Q40: 0 | R40: 0 | S40: 0
B41: Smart lighting L4 | C41: =B41 -> Smart lighting L4 | D41: 1 | E41: 0 | F41: 0 | G41: 0 | H41: 0 | I41: 0 | J41: 0 | K41: 0 | L41: 0 | M41: 0 | N41: 0 | O41: 1 | P41: 1 | Q41: 0 | R41: 0 | S41: 0
B43: Total Energy Efficient Lights | E43: =SUM(E30:E38) -> 5538.35 | F43: 7970.666667 | G43: 9249.916667 | H43: 12194.41667 | I43: 20950.42317 | J43: 40465 | K43: 50844 | L43: 60979 | M43: 63680 | N43: 65958.42178 | O43: =SUM(O30:O41) -> 67744.71416 | P43: 75958.17626 | Q43: 75006 | R43: =SUM(R30:R41) -> 83919.69333 | S43: =SUM(S30:S41) -> 89943.24661
B45: Total Number of Lights | E45: =SUM(E27,E43) -> 88611.9 | F45: 91440.3 | G45: 93200.2 | H45: 94747.58333 | I45: 95808.84032 | J45: 100228 | K45: 95906 | L45: 110815 | M45: 111034 | N45: 111150.4218 | O45: 112899.3474 | P45: 115502.0874 | Q45: 116111 | R45: 117248.5267 | S45: 115495.9133
B50: North & East | E50: =E$4 -> 2011 | F50: 2012 | G50: 2013 | H50: 2014 | I50: 2015 | J50: 2016 | K50: 2017 | L50: 2018 | M50: 2019 | N50: 2020 | O50: HY2021 | P50: 2022-06-30 | Q50: 2023-06-30 | R50: 2024-06-30 | S50: 2025-06-30
E51: Actual Volumes | O51: Forecast Volumes
B52: Existing Lights | C52: Reference Light | D52: Price Factor
B53: Mercury Vapour 80W | C53: =B$53 -> Mercury Vapour 80W | D53: 1 | E53: 28734.83333 | F53: 28906.48333 | G53: 28889.05 | H53: 26233.91667 | I53: 22548.59584 | J53: 6984 | K53: 8177 | L53: 4522 | M53: 4620 | N53: 4664 | O53: 4664 | P53: 3522.436803 | Q53: 3227 | R53: 2151.333333 | S53: 1075.666667
B54: HP Sodium 150W | C54: =B$54 -> HP Sodium 150W | D54: 1 | E54: 4571.583333 | F54: 4712.166667 | G54: 4750.25 | H54: 4824.416667 | I54: 4878.454413 | J54: 5333 | K54: 7159 | L54: 5274 | M54: 5404 | N54: 5446 | O54: 5446 | P54: 5238.877714 | Q54: 3661 | R54: 3355.916667 | S54: 3050.833333
B55: HP Sodium 250W | C55: =B$55 -> HP Sodium 250W | D55: 1 | E55: 4504.7 | F55: 4586.866667 | G55: 4654.616667 | H55: 4713.483333 | I55: 4766.278528 | J55: 5034 | K55: 5363 | L55: 5257 | M55: 5214 | N55: 5137 | O55: 5137 | P55: 5005.044881 | Q55: 3528 | R55: 3234 | S55: 2940
B56: Mercury Vapour 50W | C56: =B$53 -> Mercury Vapour 80W | D56: 1.48 | E56: 376.75 | F56: 367.75 | G56: 363.1666667 | H56: 289.4166667 | I56: 292.6583901 | J56: 146 | K56: 128 | L56: 128 | M56: 128 | N56: 125 | O56: 125 | P56: 94.435144 | Q56: 52 | R56: 34.66666667 | S56: 17.33333333
B57: Mercury Vapour 125W | C57: =B$53 -> Mercury Vapour 80W | D57: 1.48 | E57: 62 | F57: 62.08333333 | G57: 60.33333333 | H57: 54.58333333 | I57: 55.19471509 | J57: 26 | K57: 21 | L57: 13 | M57: 17 | N57: 17 | O57: 17 | P57: 12.75 | Q57: 11 | R57: 7.333333333 | S57: 3.666666667
B58: Mercury Vapour 250W | C58: =B$55 -> HP Sodium 250W | D58: 1.04 | E58: 433.85 | F58: 433.2833333 | G58: 427.8 | H58: 417.6833333 | I58: 422.3617572 | J58: 277 | K58: 275 | L58: 274 | M58: 272 | N58: 260 | O58: 260 | P58: 196.1419067 | Q58: 107 | R58: 71.33333333 | S58: 35.66666667
B59: Mercury Vapour 400W | C59: =B$55 -> HP Sodium 250W | D59: 1.07 | E59: 132 | F59: 131.3333333 | G59: 127.6666667 | H59: 123.1666667 | I59: 124.5462426 | J59: 92 | K59: 91 | L59: 85 | M59: 91 | N59: 91 | O59: 91 | P59: 68.25 | Q59: 89 | R59: 59.33333333 | S59: 29.66666667
B60: HP Sodium 100W | C60: =B$54 -> HP Sodium 150W | D60: 1.07 | E60: 143.9166667 | F60: 196.8333333 | G60: 222.9166667 | H60: 248.5 | I60: 251.2834205 | J60: 244 | K60: 729 | L60: 152 | M60: 329 | N60: 315 | O60: 315 | P60: 316.8680959 | Q60: 256 | R60: 229.5943253 | S60: 203.1886507
B61: HP Sodium 400W | C61: =B$55 -> HP Sodium 250W | D61: 1.42 | E61: 299.0833333 | F61: 310.4166667 | G61: 321.5 | H61: 330.0833333 | I61: 333.7805595 | J61: 349 | K61: 361 | L61: 354 | M61: 367 | N61: 354 | O61: 354 | P61: 351.6158596 | Q61: 300 | R61: 270.6986784 | S61: 241.3973567
B62: Metal Halide 70W | C62: =B$53 -> Mercury Vapour 80W | D62: 3.804442037 | E62: 0 | F62: 0 | G62: 0 | H62: 0 | I62: 0 | J62: 0 | K62: 0 | L62: 0 | M62: 0 | N62: 0 | O62: 0 | P62: 0 | Q62: 0 | R62: 0 | S62: 0
B63: Metal Halide 100W | C63: =B$54 -> HP Sodium 150W | D63: 2.11804911 | E63: 0 | F63: 0 | G63: 0 | H63: 0 | I63: 0 | J63: 0 | K63: 0 | L63: 0 | M63: 0 | N63: 0 | O63: 0 | P63: 0 | Q63: 0 | R63: 0 | S63: 0
B64: Metal Halide 150W | C64: =B$54 -> HP Sodium 150W | D64: 2.406294827 | E64: 0 | F64: 0 | G64: 0 | H64: 0 | I64: 0 | J64: 0 | K64: 0 | L64: 0 | M64: 0 | N64: 0 | O64: 0 | P64: 0 | Q64: 0 | R64: 0 | S64: 0
B65: =B25 -> HP Sodium 50W | C65: =B$54 -> HP Sodium 150W | D65: 0.4547295587 | E65: 0 | F65: 0 | G65: 0 | H65: 0 | I65: 0 | J65: 0 | K65: 0 | L65: 0 | M65: 0 | N65: 0 | O65: 0 | P65: 0 | Q65: 0 | R65: 0 | S65: 0
B67: Total Existing Lights | E67: =SUM(E53:E66) -> 39258.71667 | F67: 39707.21667 | G67: 39817.3 | H67: 37235.25 | I67: 33673.15386 | J67: 18485 | K67: 22304 | L67: 16059 | M67: 16442 | N67: 16409 | O67: 16409 | P67: 14806.4204 | Q67: 11231 | R67: 9414.20967 | S67: 7597.419341
B69: Energy Efficient Lights | C69: Reference Light | D69: Price Factor
B70: T5 2X14W | C70: =B$70 -> T5 2X14W | D70: 1 | E70: 64.75 | F70: 140 | G70: 249.5833333 | H70: 3014.583333 | I70: 5220.598408 | J70: 7036 | K70: 8015 | L70: 6506 | M70: 7097 | N70: 7099 | O70: 7099 | P70: 7103.567627 | Q70: 5515 | R70: 4583 | S70: 3651
B71: T5 2X24W | C71: =B$71 -> T5 2X24W | D71: 1 | E71: 36.5 | F71: 44.33333333 | G71: 64.41666667 | H71: 93.5 | I71: 128.2344074 | J71: 1002 | K71: 1159 | L71: 761 | M71: 1015 | N71: 1020 | O71: 1020 | P71: 1020 | Q71: 979 | R71: 949 | S71: 919
B72: LED 18W | C72: =B$72 -> LED 18W | D72: 1 | E72: 0 | F72: 0 | G72: 0 | H72: 0 | I72: 33.68712443 | J72: 14920 | K72: 19876 | L72: 18786 | M72: 19360 | N72: 18962 | O72: 19356.52962 | P72: 21167.16157 | Q72: 18575 | R72: 21136.982 | S72: 23354.60394
B73: LED 14W | C73: =B73 -> LED 14W | D73: 1 | E73: 0 | F73: 0 | G73: 0 | H73: 0 | I73: 0 | J73: 0 | K73: 0 | L73: 47 | M73: 324 | N73: 937 | O73: 937 | P73: 962.8832179 | Q73: 5297 | R73: 5803.982 | S73: 6325.159496
B74: LED 70W-125W (L1) | C74: =B74 -> LED 70W-125W (L1) | D74: 1 | E74: 0 | F74: 0 | G74: 0 | H74: 0 | I74: 0 | J74: 0 | K74: 0 | L74: 33 | M74: 181 | N74: 497.2095361 | O74: 583.3925412 | P74: 681.5988342 | Q74: 2657 | R74: 2841.38 | S74: 3030.92264
B75: LED 155W-250W (L2) | C75: =B75 -> LED 155W-250W (L2) | D75: 1 | E75: 0 | F75: 0 | G75: 0 | H75: 0 | I75: 0 | J75: 0 | K75: 0 | L75: 117 | M75: 180 | N75: 278 | O75: 359.1076347 | P75: 1013.705102 | Q75: 1206 | R75: 1377.214667 | S75: 1555.891344
B76: LED 275W-400W (L4) | C76: =B76 -> LED 275W-400W (L4) | D76: 1 | E76: 0 | F76: 0 | G76: 0 | H76: 0 | I76: 0 | J76: 0 | K76: 0 | L76: 9 | M76: 9 | N76: 68 | O76: 73.94211492 | P76: 107.8035148 | Q76: 64 | R76: 104.5586667 | S76: 145.4223093
B77: Compact Fluorescent 32W | C77: =B$70 -> T5 2X14W | D77: 0.8796098925 | E77: 180.5833333 | F77: 291.75 | G77: 405.75 | H77: 536.5833333 | I77: 929.2448693 | J77: 640 | K77: 718 | L77: 689 | M77: 651 | N77: 680 | O77: 680 | P77: 681.8270507 | Q77: 575 | R77: 575 | S77: 575
B78: Compact Fluorescent 42W | C78: =B$70 -> T5 2X14W | D78: 0.8796098925 | E78: 709.1666667 | F78: 1220.083333 | G78: 1602.333333 | H78: 1877.5 | I78: 3251.418995 | J78: 2614 | K78: 3222 | L78: 2634 | M78: 2761 | N78: 2715 | O78: 2715 | P78: 2744.841828 | Q78: 1982 | R78: 1982 | S78: 1982
B79: Smart lighting L1 | C79: =B79 -> Smart lighting L1 | D79: 1 | E79: 0 | F79: 0 | G79: 0 | H79: 0 | I79: 0 | J79: 0 | K79: 0 | L79: 0 | M79: 0 | N79: 0 | O79: 1 | P79: 1 | Q79: 0 | R79: 0 | S79: 0
B80: Smart lighting L2 | C80: =B80 -> Smart lighting L2 | D80: 1 | E80: 0 | F80: 0 | G80: 0 | H80: 0 | I80: 0 | J80: 0 | K80: 0 | L80: 0 | M80: 0 | N80: 0 | O80: 3 | P80: 3 | Q80: 0 | R80: 0 | S80: 0
B81: Smart lighting L4 | C81: =B81 -> Smart lighting L4 | D81: 1 | L81: 0 | M81: 0 | N81: 0 | O81: 1 | P81: 1 | Q81: 0 | R81: 0 | S81: 0
B83: Total Energy Efficient Lights | E83: =SUM(E70:E78) -> 991 | F83: 1696.166667 | G83: 2322.083333 | H83: 5522.166667 | I83: 9563.183804 | J83: 26212 | K83: 32990 | L83: 29582 | M83: 31578 | N83: 32256.20954 | O83: =SUM(O70:O81) -> 32828.97191 | P83: 35488.38875 | Q83: 36850 | R83: 39353.11733 | S83: 41538.99973
B85: Total Number of Lights | E85: =SUM(E67,E83) -> 40249.71667 | F85: 41403.38333 | G85: 42139.38333 | H85: 42757.41667 | I85: 43236.33767 | J85: 44697 | K85: 55294 | L85: 45641 | M85: 48020 | N85: 48665.20954 | O85: 49237.97191 | P85: 50294.80915 | Q85: 48081 | R85: 48767.327 | S85: 49136.41907

Sheet Newer version of inputs
C3: 2023 | D3: Central lights | F3: 116111 | H3: 2023 | I3: N&E lights | J3: 48081
D5: Average Yearly Growth (Central) | H5: Average Yearly Growth (N&E) | L5: Average years to HPS luminare or globes fail - for legacy lights
D6: 2024 | E6: 0.028 | F6: =F3*(1+$E$6)-F3 -> 3251.108 | H6: 2024 | I6: 0.028 | J6: =J3*(1+$I6)-J3 -> 1346.268 | L6: 12
D7: 2025 | E7: 0.028 | F7: =F6*(1+$E6) -> 3342.139024 | H7: 2025 | I7: 0.028 | J7: =J6*(1+$I$6) -> 1383.963504
D8: 2026 | E8: 0.028 | F8: =F7*(1+$E7) -> 3435.718917 | H8: 2026 | I8: 0.028 | J8: =J7*(1+$I$6) -> 1422.714482
D9: 2027 | E9: 0.028 | F9: =F8*(1+$E8) -> 3531.919046 | H9: 2027 | I9: 0.028 | J9: 1462.550488 | L9: Failure rate of LED lights
D10: 2028 | E10: 0.028 | F10: 3630.81278 | H10: 2028 | I10: 0.028 | J10: 1503.501901 | L10: 0.01
D11: 2029 | E11: 0.028 | F11: 3732.475537 | H11: 2029 | I11: 0.028 | J11: 1545.599954
D12: 2030 | E12: 0.028 | F12: 3836.984853 | H12: 2030 | I12: 0.028 | J12: 1588.876753
D13: 2031 | E13: 0.028 | F13: 3944.420428 | H13: 2031 | I13: 0.028 | J13: 1633.365302
J15: 2025–26 | K15: 2026-27 | L15: 2027–28 | M15: 2028–29 | N15: 2029–30 | O15: 2030–31
J16: =F7 -> 3342.139024 | K16: =F8 -> 3435.718917 | L16: =F9 -> 3531.919046 | M16: =F10 -> 3630.81278 | N16: =F11 -> 3732.475537 | O16: =F12 -> 3836.984853
J17: 2025–26 | K17: 2026-27 | L17: 2027–28 | M17: 2028–29 | N17: 2029–30 | O17: 2030–31
J18: =J7 -> 1383.963504 | K18: =J8 -> 1422.714482 | L18: =J9 -> 1462.550488 | M18: =J10 -> 1503.501901 | N18: =J11 -> 1545.599954 | O18: =J12 -> 1588.876753
J21: Non-standard CFLs | L21: Based on July 2025
J22: 1648
J23: 2057
G27: LED -street 18W | H27: 0.3655553737
G28: LED -street 14W | H28: 0.3655553737
G29: L1 equiv | H29: 0.1861494604
G30: L2 equiv | H30: 0.08035414388
G31: L4 equiv | H31: 0.001989475588
G49: LED -street 18W | H49: 0.3765832657
G50: LED -street 14W | H50: 0.3765832657
G51: L1 equiv | H51: 0.1369563861
G52: L2 equiv | H52: 0.100684262
G53: L4 equiv | H53: 0.008090513924

Sheet RIN RY24
A1: 4.1.1 - DESCRIPTOR METRICS OVER YEAR
D2: VOLUME 0's
B3: LIGHT TYPE | D3: 2023-24
A4: POPULATION OF LIGHTS | B4: CC Mercury Vapour 125.000 W | D4: 88 | E4: Mercury Vapour 125W | I4: Mercury Vapour 80W | L4: =SUM(D11:D13) -> 14878
B5: CC Mercury Vapour 142.000 W | D5: 5 | E5: Mercury Vapour 250W | I5: HP Sodium 150W | L5: =SUM(D19:D21) -> 12898
B6: CC Mercury Vapour 250.000 W | D6: 190 | E6: Mercury Vapour 250W | I6: HP Sodium 250W | L6: =SUM(D21:D23) -> 7941
B7: CC Mercury Vapour 270.000 W | D7: 18 | E7: Mercury Vapour 250W | I7: Mercury Vapour 50W | L7: =SUM(D10:D11) -> 74
B8: CC Mercury Vapour 400.000 W | D8: 76 | E8: Mercury Vapour 400W | I8: Mercury Vapour 125W | L8: =SUM(D4,) -> 88
B9: CC Mercury Vapour 430.000 W | D9: 14 | E9: Mercury Vapour 400W | I9: Mercury Vapour 250W | L9: =SUM(D5:D7,) -> 213
B10: CC Mercury Vapour 50.000 W | D10: 46 | E10: Mercury Vapour 50W | I10: Mercury Vapour 400W | L10: =SUM(D8:D9) -> 90
B11: CC Mercury Vapour 65.000 W | D11: 28 | E11: Mercury Vapour 80W | I11: HP Sodium 100W | L11: =SUM(D18) -> 2468
B12: CC Mercury Vapour 80.000 W | D12: 14751 | E12: Mercury Vapour 80W | I12: HP Sodium 400W | L12: =SUM(D24:D25) -> 178
B13: CC Mercury Vapour 95.800 W | D13: 99 | E13: Mercury Vapour 80W | I13: Metal Halide 70W | L13: =D75 -> 54
B14: Compact Flourescent 36.600 W | D14: 9 | E14: Compact Fluorescent 42W - Partially-funded | I14: Metal Halide 150W | L14: =SUM(D73:D74) -> 32
B15: Compact Flourescent 46.400 W | D15: 1 | E15: Compact Fluorescent 42W - Partially-funded | I15: T5 2X14W - Partially-funded | L15: =D76 -> 28556
B16: Compact Fluorescent 32.000 W | D16: 3455 | E16: Compact Fluorescent 32W - Partially-funded | I16: T5 2X24W - Partially-funded | L16: =SUM(D77:D78) -> 2674
B17: Compact Fluorescent 42.000 W | D17: 3584 | E17: Compact Fluorescent 42W - Partially-funded | I17: LED 18W - Partially-funded | L17: =SUM(D37:D39,D43:D44,D47:D53,D57:D58) -> 56591
B18: HP Sodium 100.000 W | D18: 2468 | E18: HP Sodium 100W | I18: LED 14W - Partially-funded | L18: =SUM(D29:D31,D36) -> 18508
B19: HP Sodium 120.000 W | D19: 8 | E19: HP Sodium 150W | I19: LED 18W Opt-in Smart Lighting - Partially-funded | L19: 0
B20: HP Sodium 150.000 W | D20: 12206 | E20: HP Sodium 150W | I20: LED 14W Opt-in Smart Lighting - Partially-funded | L20: 0
B21: HP Sodium 173.000 W | D21: 684 | E21: HP Sodium 150W | I21: LED 70W-125W (L1) - Partially-funded | L21: =SUM(D26:D28,D60:D64,D66:D72) -> 16965
B22: HP Sodium 250.000 W | D22: 5724 | E22: HP Sodium 250W | I22: LED 155W-250W (L2) - Partially-funded | L22: =SUM(D32:D35,D40:D42,D45:D46,D54) -> 8967
B23: HP Sodium 273.000 W | D23: 1533 | E23: HP Sodium 250W | I23: LED 275W-400W (L4) - Partially-funded | L23: =SUM(D55:D56,D59,D65) -> 444
B24: HP Sodium 400.000 W | D24: 123 | E24: HP Sodium 400W | I24: Compact Fluorescent 32W - Partially-funded | L24: =SUM(D16) -> 3455
B25: HP Sodium 440.000 W | D25: 55 | E25: HP Sodium 400W | I25: Compact Fluorescent 42W - Partially-funded | L25: =SUM(D14:D15,D17) -> 3594
B26: LED 100.000 W | D26: 16 | E26: LED 70W-125W (L1) - Partially-funded
B27: LED 105.000 W | D27: 1769 | E27: LED 70W-125W (L1) - Partially-funded
B28: LED 117.000 W | D28: 13 | E28: LED 70W-125W (L1) - Partially-funded
B29: LED 12.000 W | D29: 240 | E29: LED 14W - Partially-funded
B30: LED 13.000 W | D30: 312 | E30: LED 14W - Partially-funded
B31: LED 14.000 W | D31: 17570 | E31: LED 14W - Partially-funded
B32: LED 150.000 W | D32: 4222 | E32: LED 155W-250W (L2) - Partially-funded
B33: LED 151.200 W | D33: 4 | E33: LED 155W-250W (L2) - Partially-funded
B34: LED 155.000 W | D34: 2781 | E34: LED 155W-250W (L2) - Partially-funded
B35: LED 156.600 W | D35: 19 | E35: LED 155W-250W (L2) - Partially-funded
B36: LED 16.000 W | D36: 386 | E36: LED 14W - Partially-funded
B37: LED 17.000 W | D37: 10170 | E37: LED 18W - Partially-funded
B38: LED 17.100 W | D38: 2 | E38: LED 18W - Partially-funded
B39: LED 17.700 W | D39: 3 | E39: LED 18W - Partially-funded
B40: LED 170.000 W | D40: 4 | E40: LED 155W-250W (L2) - Partially-funded
B41: LED 174.900 W | D41: 8 | E41: LED 155W-250W (L2) - Partially-funded
B42: LED 175.000 W | D42: 1235 | E42: LED 155W-250W (L2) - Partially-funded
B43: LED 18.000 W | D43: 37331 | E43: LED 18W - Partially-funded
B44: LED 19.000 W | D44: 99 | E44: LED 18W - Partially-funded
B45: LED 198.000 W | D45: 663 | E45: LED 155W-250W (L2) - Partially-funded
B46: LED 198.900 W | D46: 3 | E46: LED 155W-250W (L2) - Partially-funded
B47: LED 20.000 W | D47: 4 | E47: LED 18W - Partially-funded
B48: LED 21.000 W | D48: 293 | E48: LED 18W - Partially-funded
B49: LED 21.900 W | D49: 1 | E49: LED 18W - Partially-funded
B50: LED 22.000 W | D50: 7983 | E50: LED 18W - Partially-funded
B51: LED 23.000 W | D51: 633 | E51: LED 18W - Partially-funded
B52: LED 24.000 W | D52: 12 | E52: LED 18W - Partially-funded
B53: LED 25.000 W | D53: 18 | E53: LED 18W - Partially-funded
B54: LED 250.000 W | D54: 28 | E54: LED 155W-250W (L2) - Partially-funded
B55: LED 265.000 W | D55: 77 | E55: LED 275W-400W (L4) - Partially-funded
B56: LED 275.000 W | D56: 353 | E56: LED 275W-400W (L4) - Partially-funded
B57: LED 28.000 W | D57: 41 | E57: LED 18W - Partially-funded
B58: LED 29.000 W | D58: 1 | E58: LED 18W - Partially-funded
B59: LED 298.000 W | D59: 11 | E59: LED 275W-400W (L4) - Partially-funded
B60: LED 30.000 W | D60: 8 | E60: LED 70W-125W (L1) - Partially-funded
B61: LED 32.000 W | D61: 19 | E61: LED 70W-125W (L1) - Partially-funded
B62: LED 33.000 W | D62: 621 | E62: LED 70W-125W (L1) - Partially-funded
B63: LED 34.000 W | D63: 68 | E63: LED 70W-125W (L1) - Partially-funded
B64: LED 37.000 W | D64: 200 | E64: LED 70W-125W (L1) - Partially-funded
B65: LED 400.000 W | D65: 3 | E65: LED 275W-400W (L4) - Partially-funded
B66: LED 50.000 W | D66: 1 | E66: LED 70W-125W (L1) - Partially-funded
B67: LED 58.000 W | D67: 227 | E67: LED 70W-125W (L1) - Partially-funded
B68: LED 69.600 W | D68: 9 | E68: LED 70W-125W (L1) - Partially-funded
B69: LED 70.000 W | D69: 10220 | E69: LED 70W-125W (L1) - Partially-funded
B70: LED 74.000 W | D70: 6 | E70: LED 70W-125W (L1) - Partially-funded
B71: LED 75.000 W | D71: 3697 | E71: LED 70W-125W (L1) - Partially-funded
B72: LED 80.000 W | D72: 91 | E72: LED 70W-125W (L1) - Partially-funded
B73: Metal Halide 150.000 W | D73: 31
B74: Metal Halide 400.000 W | D74: 1
B75: Metal Halide 70.000 W | D75: 54
B76: T5 Fluor 14.000 W | D76: 28556 | E76: T5 2X14W - Partially-funded
B77: T5 Fluor 24.000 W | D77: 2668 | E77: T5 2X24W - Partially-funded
B78: T5 Fluor 30.500 W | D78: 6 | E78: T5 2X24W - Partially-funded

Sheet DNSP Inputs O&M (hidden)
A1: Public Lighting Cost Build-up Model
A3: AusNet | C3: O & M Data Inputs
C5: =Instructions!$B$18 -> $Real Jun 2026
A7: Input parameters | C7: =EOMONTH(D7,-12) -> 2026-06-30 | D7: =Instructions!$B$16 -> 2027-06-30 | E7: =EOMONTH(D7,12) -> 2028-06-30 | F7: =EOMONTH(E7,12) -> 2029-06-30 | G7: =EOMONTH(F7,12) -> 2030-06-30 | H7: =EOMONTH(G7,12) -> 2031-06-30
A9: Inputs - all lamps
A11: Material premium for rural areas | C11: 0.05 | D11: 0.05 | E11: 0.05 | F11: 0.05 | G11: 0.05 | H11: 0.05
A12: Labour rate (per hour) | C12: 105.1461393 | D12: 111.3622324 | E12: =D12*(1+#REF!) ->  | F12: =E12*(1+#REF!) ->  | G12: =F12*(1+#REF!) ->  | H12: =G12*(1+#REF!) ->  | I12: approved ACS units - reg team
A13: Labour rate for night patrols (per hour) | C13: 131.4292303 | D13: 143.4781359 | E13: =D13*(1+#REF!) ->  | F13: =E13*(1+#REF!) ->  | G13: =F13*(1+#REF!) ->  | H13: =G13*(1+#REF!) -> 
A14: Elevated platform vehicle (per hour) - urban MV,urban T5 | C14: 49.79045722 | D14: 50.18 | E14: 50.18 | F14: 50.18 | G14: 50.18 | H14: 50.18
A15: Elevated platform vehicle (per hour) - rural MV, rural T5, S-HP | C15: 89.9713562 | D15: 63.64 | E15: 63.64 | F15: 63.64 | G15: 63.64 | H15: 63.64
A16: Patrol vehicle (per hour) | C16: 34.1064632 | D16: 34.37 | E16: 34.37 | F16: 34.37 | G16: 34.37 | H16: 34.37
A17: Number of hours in a day | C17: 8 | D17: 7.5 | E17: 7.5 | F17: 7.5 | G17: 7.5 | H17: 7.5
A18: Indirect overheads | C18: 0.25 | D18: 0.25 | E18: 0.25 | F18: 0.25 | G18: 0.25 | H18: 0.25
A22: =#REF! -> 
A24: Depreciation period | B24: years | C24: 20 | D24: =C24 -> 20 | E24: =D24 -> 20 | F24: =E24 -> 20 | G24: =F24 -> 20 | H24: =G24 -> 20 | I24: Unchanged fom previous EDPR period
A25: Lamps - bulk change | B25: years | C25: 4 | D25: 4 | E25: 4 | F25: 4 | G25: 4 | H25: 4 | I25: Unchanged fom previous EDPR period
A26: PE cells - bulk change | B26: years | C26: 8 | D26: 8 | E26: 8 | F26: 8 | G26: 8 | H26: 8 | I26: Unchanged fom previous EDPR period
A27: Proportion of lamps that fail between bulk change | C27: 0.107 | D27: 0.1941685018 | E27: 0.1941685018 | F27: 0.1941685018 | G27: 0.1941685018 | H27: 0.1941685018 | I27: TO UPDATE yearly globe failure x no. of years - janahdis
A28: Unit cost - lamp | C28: 6.111746931 | D28: 4.71 | E28: 4.71 | F28: 4.71 | G28: 4.71 | H28: 4.71 | I28: TO UPDATE
A29: Unit cost - PE cell | C29: 24.67380676 | D29: 25.041365 | E29: 25.041365 | F29: 25.041365 | G29: 25.041365 | H29: 25.041365 | I29: Updated
A30: Unit cost - luminaire | C30: 212.0348253 | D30: 237.4684858 | E30: 237.4684858 | F30: 237.4684858 | G30: 237.4684858 | H30: 237.4684858 | I30: Updated
A31: Unit cost - miscellaneous materials (bulk lamp) | C31: 1.3373337 | D31: 1.347645671 | E31: 1.347645671 | F31: 1.347645671 | G31: 1.347645671 | H31: 1.347645671 | I31: TO UPDATE
A32: Unit cost - miscellaneous materials (repair) | C32: 13.373337 | D32: 13.47645671 | E32: 13.47645671 | F32: 13.47645671 | G32: 13.47645671 | H32: 13.47645671 | I32: TO UPDATE
A33: Number of men in crew | C33: 2 | D33: 2 | E33: 2 | F33: 2 | G33: 2 | H33: 2 | I33: Unchanged fom previous EDPR period
A34: Number of bulk lamp changes in 1 day - urban | C34: 85 | D34: 86 | E34: 86 | F34: 86 | G34: 86 | H34: 86 | I34: Unchanged fom previous EDPR period
A35: Number of bulk lamp changes in 1 day - rural | C35: 70 | D35: 72 | E35: 72 | F35: 72 | G35: 72 | H35: 72 | I35: Unchanged fom previous EDPR period
A36: Number of bulk lamp changes in 1 day - remote | C36: 50 | D36: 60 | E36: 60 | F36: 60 | G36: 60 | H36: 60 | I36: Unchanged fom previous EDPR period
A37: Number of repairs in 1 day - urban | C37: 20 | D37: 28.8 | E37: 28.8 | F37: 28.8 | G37: 28.8 | H37: 28.8 | I37: Unchanged fom previous EDPR period
A38: Number of repairs in 1 day - rural | C38: 15 | D38: 24 | E38: 24 | F38: 24 | G38: 24 | H38: 24 | I38: Unchanged fom previous EDPR period
A39: Number of repairs in 1 day - remote | C39: 10 | D39: 19.2 | E39: 19.2 | F39: 19.2 | G39: 19.2 | H39: 19.2 | I39: Unchanged fom previous EDPR period
A40: % of repairs - lamps | C40: 0.6 | D40: 0.6 | E40: 0.6 | F40: 0.6 | G40: 0.6 | H40: 0.6 | I40: Unchanged fom previous EDPR period
A41: % of repairs - PE cells | C41: 0.5 | D41: 0.5 | E41: 0.5 | F41: 0.5 | G41: 0.5 | H41: 0.5 | I41: Unchanged fom previous EDPR period
A42: % of repairs - luminaires | C42: 0.15 | D42: 0.15 | E42: 0.15 | F42: 0.15 | G42: 0.15 | H42: 0.15 | I42: Unchanged fom previous EDPR period
A43: % of repairs - other | C43: 0.1 | D43: 0.1 | E43: 0.1 | F43: 0.1 | G43: 0.1 | H43: 0.1 | I43: Unchanged fom previous EDPR period
A45: Other Maintenance and Repair costs
A46: Traffic control costs | C46: 6771.147526 | D46: =D49*D50-D47 ->  | E46: =E49*E50-E47 ->  | F46: =F49*F50-F47 ->  | G46: =G49*G50-G47 ->  | H46: =H49*H50-H47 ->  | I46: TO UPDATE
A47: Other costs : Describe……………………………………. | C47: 0 | D47: 0 | E47: 0 | F47: 0 | G47: 0 | H47: 0
C48: =SUM(C46:C47) -> 6771.147526
A49: Number of Lights | C49: =C48/C50 -> 34321.64001 | D49: =SUMPRODUCT((#REF!=$A22)*(#REF!=D$7)*(#REF!)) +SUMPRODUCT((#REF!=$A22)*(#REF!=D$7)*(#REF!)) ->  | E49: =SUMPRODUCT((#REF!=$A22)*(#REF!=E$7)*(#REF!)) +SUMPRODUCT((#REF!=$A22)*(#REF!=E$7)*(#REF!)) ->  | F49: =SUMPRODUCT((#REF!=$A22)*(#REF!=F$7)*(#REF!)) +SUMPRODUCT((#REF!=$A22)*(#REF!=F$7)*(#REF!)) ->  | G49: =SUMPRODUCT((#REF!=$A22)*(#REF!=G$7)*(#REF!)) +SUMPRODUCT((#REF!=$A22)*(#REF!=G$7)*(#REF!)) ->  | H49: =SUMPRODUCT((#REF!=$A22)*(#REF!=H$7)*(#REF!)) +SUMPRODUCT((#REF!=$A22)*(#REF!=H$7)*(#REF!)) -> 
A50: Unit Cost | C50: 0.1972850809 | D50: 2.1 | E50: 2.1 | F50: 2.1 | G50: 2.1 | H50: 2.1
A52: Other O & M costs specific to North/East zone
A53: Other N\E O & M costs : Describe……………………………………. | C53: 2873.472555 | D53: =D54*D55 ->  | E53: =E54*E55 ->  | F53: =F54*F55 ->  | G53: =G54*G55 ->  | H53: =H54*H55 ->  | I53: TO UPDATE
A54: Number of Lights | C54: =C53/C55 -> 10840.22244 | D54: =SUMPRODUCT((#REF!=$A22)*(#REF!=D$7)*(#REF!)) ->  | E54: =SUMPRODUCT((#REF!=$A22)*(#REF!=E$7)*(#REF!)) ->  | F54: =SUMPRODUCT((#REF!=$A22)*(#REF!=F$7)*(#REF!)) ->  | G54: =SUMPRODUCT((#REF!=$A22)*(#REF!=G$7)*(#REF!)) ->  | H54: =SUMPRODUCT((#REF!=$A22)*(#REF!=H$7)*(#REF!)) -> 
A55: Unit Cost | C55: 0.2650750546 | D55: 0.98 | E55: 0.98 | F55: 0.98 | G55: 0.98 | H55: 0.98
A57: Location of selected public lighting assets within distributors' areas (%)
A58: SP AusNet - Central
A59: Urban | C59: 0.96 | D59: 0.96 | E59: 0.96 | F59: 0.96 | G59: 0.96 | H59: 0.96 | I59: Unchanged fom previous EDPR period
A60: Rural | C60: 0.04 | D60: 0.04 | E60: 0.04 | F60: 0.04 | G60: 0.04 | H60: 0.04 | I60: Unchanged fom previous EDPR period
A61: Remote | C61: 0 | D61: 0 | E61: 0 | F61: 0 | G61: 0 | H61: 0 | I61: Unchanged fom previous EDPR period
A63: SP AusNet - North/East
A64: Urban | C64: 0.35 | D64: 0.35 | E64: 0.35 | F64: 0.35 | G64: 0.35 | H64: 0.35 | I64: Unchanged fom previous EDPR period
A65: Rural | C65: 0.53 | D65: 0.53 | E65: 0.53 | F65: 0.53 | G65: 0.53 | H65: 0.53 | I65: Unchanged fom previous EDPR period
A66: Remote | C66: 0.12 | D66: 0.12 | E66: 0.12 | F66: 0.12 | G66: 0.12 | H66: 0.12 | I66: Unchanged fom previous EDPR period
A70: =#REF! -> 
A72: Depreciation period | B72: years | C72: 20 | D72: =C72 -> 20 | E72: =D72 -> 20 | F72: =E72 -> 20 | G72: =F72 -> 20 | H72: =G72 -> 20
A73: Number of patrols per year | C73: 3 | D73: =C73 -> 3 | E73: 3 | F73: 3 | G73: 3 | H73: 3
A74: Lamps - frequency of replacement | B74: years | C74: 5 | D74: 5 | E74: 5 | F74: 5 | G74: 5 | H74: 5
A75: PE cells - frequency of replacement | B75: years | C75: 10 | D75: 10 | E75: 10 | F75: 10 | G75: 10 | H75: 10
A76: Unit cost - lamp | C76: 44.19769594 | D76: 19.33 | E76: 19.33 | F76: 19.33 | G76: 19.33 | H76: 19.33
A77: Unit cost - PE cell | C77: 24.00513991 | D77: 25.041365 | E77: 25.041365 | F77: 25.041365 | G77: 25.041365 | H77: 25.041365 | I77: Updated
A78: Unit cost - miscellaneous materials | C78: 2.6746674 | D78: 2.695291341 | E78: 2.695291341 | F78: 2.695291341 | G78: 2.695291341 | H78: 2.695291341
A79: Number of men in crew - road patrols | C79: 2 | D79: 2 | E79: 2 | F79: 2 | G79: 2 | H79: 2
A80: Number of men in crew - repairs | C80: 2 | D80: 2 | E80: 2 | F80: 2 | G80: 2 | H80: 2
A81: Number of lamps patrolled in 1 day - urban | C81: 3000 | D81: 3000 | E81: 3000 | F81: 3000 | G81: 3000 | H81: 3000
A82: Number of lamps patrolled in 1 day - rural | C82: 2000 | D82: 2000 | E82: 2000 | F82: 2000 | G82: 2000 | H82: 2000
A83: Number of lamps patrolled in 1 day - remote | C83: 1000 | D83: 1000 | E83: 1000 | F83: 1000 | G83: 1000 | H83: 1000
A84: Number of repairs in 1 day - urban | C84: 15 | D84: 15 | E84: 15 | F84: 15 | G84: 15 | H84: 15
A85: Number of repairs in 1 day - rural | C85: 12 | D85: 11 | E85: 11 | F85: 11 | G85: 11 | H85: 11
A86: Number of repairs in 1 day - remote | C86: 9 | D86: 9 | E86: 9 | F86: 9 | G86: 9 | H86: 9
A88: Other Maintenance and Repair costs
A89: Traffic control costs | C89: 4101.281743 | D89: 54736.60844 | E89: 52834.47495 | F89: 50974.88941 | G89: 49156.95647 | H89: 47359.62851
A90: Other costs : Describe……………………………………. | C90: 995.8091444 | D90: 0 | E90: 0 | F90: 0 | G90: 0 | H90: 0
C91: =SUM(C89:C90) -> 5097.090887 | D91: 54736.60844 | E91: 52834.47495 | F91: 50974.88941 | G91: 49156.95647 | H91: 47359.62851
A92: Number of Lights | C92: =C91/C93 -> 20788.60563 | D92: =SUMPRODUCT((#REF!=$A70)*(#REF!=D$7)*(#REF!)) +SUMPRODUCT((#REF!=$A70)*(#REF!=D$7)*(#REF!)) ->  | E92: =SUMPRODUCT((#REF!=$A70)*(#REF!=E$7)*(#REF!)) +SUMPRODUCT((#REF!=$A70)*(#REF!=E$7)*(#REF!)) ->  | F92: =SUMPRODUCT((#REF!=$A70)*(#REF!=F$7)*(#REF!)) +SUMPRODUCT((#REF!=$A70)*(#REF!=F$7)*(#REF!)) ->  | G92: =SUMPRODUCT((#REF!=$A70)*(#REF!=G$7)*(#REF!)) +SUMPRODUCT((#REF!=$A70)*(#REF!=G$7)*(#REF!)) ->  | H92: =SUMPRODUCT((#REF!=$A70)*(#REF!=H$7)*(#REF!)) +SUMPRODUCT((#REF!=$A70)*(#REF!=H$7)*(#REF!)) -> 
A93: Unit Cost | C93: 0.2451867614 | D93: =D91/D92 ->  | E93: =E91/E92 ->  | F93: =F91/F92 ->  | G93: =G91/G92 ->  | H93: =H91/H92 -> 
A95: Other O & M costs specific to North/East zone
A96: Other N\E O & M costs : Describe……………………………………. | C96: 1401.119488 | D96: 8769.04886 | E96: 8434.92777 | F96: 8108.810232 | G96: 7790.550498 | H96: 7476.183726
A97: Number of Lights | C97: =C96/C98 -> 5285.746296 | D97: =SUMPRODUCT((#REF!=$A70)*(#REF!=D$7)*(#REF!)) ->  | E97: =SUMPRODUCT((#REF!=$A70)*(#REF!=E$7)*(#REF!)) ->  | F97: =SUMPRODUCT((#REF!=$A70)*(#REF!=F$7)*(#REF!)) ->  | G97: =SUMPRODUCT((#REF!=$A70)*(#REF!=G$7)*(#REF!)) ->  | H97: =SUMPRODUCT((#REF!=$A70)*(#REF!=H$7)*(#REF!)) -> 
A98: Unit Cost | C98: 0.2650750546 | D98: =D96/D97 ->  | E98: =E96/E97 ->  | F98: =F96/F97 ->  | G98: =G96/G97 ->  | H98: =H96/H97 -> 
A100: Location of selected public lighting assets within distributors' areas (%)
A101: SP AusNet - Central
A102: Urban | C102: 0.94 | D102: 0.94 | E102: 0.94 | F102: 0.94 | G102: 0.94 | H102: 0.94
A103: Rural | C103: 0.06 | D103: 0.06 | E103: 0.06 | F103: 0.06 | G103: 0.06 | H103: 0.06
A104: Remote | C104: 0 | D104: 0 | E104: 0 | F104: 0 | G104: 0 | H104: 0
A106: SP AusNet - North/East
A107: Urban | C107: 0.3 | D107: 0.3 | E107: 0.3 | F107: 0.3 | G107: 0.3 | H107: 0.3
A108: Rural | C108: 0.63 | D108: 0.63 | E108: 0.63 | F108: 0.63 | G108: 0.63 | H108: 0.63
A109: Remote | C109: 0.07 | D109: 0.07 | E109: 0.07 | F109: 0.07 | G109: 0.07 | H109: 0.07
A113: =#REF! -> 
A115: Depreciation period | B115: years | C115: =C72 -> 20 | D115: 20 | E115: 20 | F115: 20 | G115: 20 | H115: 20
A116: Number of patrols per year | C116: =C73 -> 3 | D116: 3 | E116: 3 | F116: 3 | G116: 3 | H116: 3
A117: Lamps - frequency of replacement | B117: years | C117: =C74 -> 5 | D117: 5 | E117: 5 | F117: 5 | G117: 5 | H117: 5
A118: PE cells - frequency of replacement | B118: years | C118: =C75 -> 10 | D118: 10 | E118: 10 | F118: 10 | G118: 10 | H118: 10
A119: Unit cost - lamp | C119: 44.41714825 | D119: 21.28 | E119: 21.28 | F119: 21.28 | G119: 21.28 | H119: 21.28
A120: Unit cost - PE cell | C120: 24.00513991 | D120: 25.041365 | E120: 25.041365 | F120: 25.041365 | G120: 25.041365 | H120: 25.041365 | I120: Updated
A121: Unit cost - miscellaneous materials | C121: 2.6746674 | D121: 2.548069545 | E121: 2.548069545 | F121: 2.548069545 | G121: 2.548069545 | H121: 2.548069545
A122: Number of men in crew - road patrols | C122: =C79 -> 2 | D122: 2 | E122: 2 | F122: 2 | G122: 2 | H122: 2
A123: Number of men in crew - repairs | C123: =C80 -> 2 | D123: 2 | E123: 2 | F123: 2 | G123: 2 | H123: 2
A124: Number of lamps patrolled in 1 day - urban | C124: =C81 -> 3000 | D124: 3000 | E124: 3000 | F124: 3000 | G124: 3000 | H124: 3000
A125: Number of lamps patrolled in 1 day - rural | C125: =C82 -> 2000 | D125: 2000 | E125: 2000 | F125: 2000 | G125: 2000 | H125: 2000
A126: Number of lamps patrolled in 1 day - remote | C126: =C83 -> 1000 | D126: 1000 | E126: 1000 | F126: 1000 | G126: 1000 | H126: 1000
A127: Number of repairs in 1 day - urban | C127: =C84 -> 15 | D127: 15 | E127: 15 | F127: 15 | G127: 15 | H127: 15
A128: Number of repairs in 1 day - rural | C128: =C85 -> 12 | D128: 11 | E128: 11 | F128: 11 | G128: 11 | H128: 11
A129: Number of repairs in 1 day - remote | C129: =C86 -> 9 | D129: 9 | E129: 9 | F129: 9 | G129: 9 | H129: 9
A131: Other Maintenance and Repair costs
A132: Traffic control costs | C132: 2396.601961 | D132: 41324.63412 | E132: 39886.86547 | F132: 38481.49949 | G132: 37107.85364 | H132: 35749.89366
A133: Other costs : Describe……………………………………. | C133: 995.8091444 | D133: 0 | E133: 0 | F133: 0 | G133: 0 | H133: 0
C134: =SUM(C132:C133) -> 3392.411105 | D134: 41324.63412 | E134: 39886.86547 | F134: 38481.49949 | G134: 37107.85364 | H134: 35749.89366
A135: Number of Lights | C135: =C134/C136 -> 12147.91281 | D135: =SUMPRODUCT((#REF!=$A113)*(#REF!=D$7)*(#REF!)) +SUMPRODUCT((#REF!=$A113)*(#REF!=D$7)*(#REF!)) ->  | E135: =SUMPRODUCT((#REF!=$A113)*(#REF!=E$7)*(#REF!)) +SUMPRODUCT((#REF!=$A113)*(#REF!=E$7)*(#REF!)) ->  | F135: =SUMPRODUCT((#REF!=$A113)*(#REF!=F$7)*(#REF!)) +SUMPRODUCT((#REF!=$A113)*(#REF!=F$7)*(#REF!)) ->  | G135: =SUMPRODUCT((#REF!=$A113)*(#REF!=G$7)*(#REF!)) +SUMPRODUCT((#REF!=$A113)*(#REF!=G$7)*(#REF!)) ->  | H135: =SUMPRODUCT((#REF!=$A113)*(#REF!=H$7)*(#REF!)) +SUMPRODUCT((#REF!=$A113)*(#REF!=H$7)*(#REF!)) -> 
A136: Unit Cost | C136: 0.2792587631 | D136: =D134/D135 ->  | E136: =E134/E135 ->  | F136: =F134/F135 ->  | G136: =G134/G135 ->  | H136: =H134/H135 -> 
A138: Other O & M costs specific to North/East zone
A139: Other N\E O & M costs : Describe……………………………………. | C139: 1368.901944 | D139: 7817.865259 | E139: 7554.229292 | F139: 7296.29069 | G139: 7043.926498 | H139: 6794.318126
A140: Number of Lights | C140: =C139/C141 -> 5164.205083 | D140: =SUMPRODUCT((#REF!=$A113)*(#REF!=D$7)*(#REF!)) ->  | E140: =SUMPRODUCT((#REF!=$A113)*(#REF!=E$7)*(#REF!)) ->  | F140: =SUMPRODUCT((#REF!=$A113)*(#REF!=F$7)*(#REF!)) ->  | G140: =SUMPRODUCT((#REF!=$A113)*(#REF!=G$7)*(#REF!)) ->  | H140: =SUMPRODUCT((#REF!=$A113)*(#REF!=H$7)*(#REF!)) -> 
A141: Unit Cost | C141: 0.2650750546 | D141: =D139/D140 ->  | E141: =E139/E140 ->  | F141: =F139/F140 ->  | G141: =G139/G140 ->  | H141: =H139/H140 -> 
A143: Location of selected public lighting assets within distributors' areas (%)
A144: SP AusNet - Central
A145: Urban | C145: 0.9 | D145: 0.9 | E145: 0.9 | F145: 0.9 | G145: 0.9 | H145: 0.9
A146: Rural | C146: 0.1 | D146: 0.1 | E146: 0.1 | F146: 0.1 | G146: 0.1 | H146: 0.1
A147: Remote | C147: 0 | D147: 0 | E147: 0 | F147: 0 | G147: 0 | H147: 0
A149: SP AusNet - North/East
A150: Urban | C150: 0.37 | D150: 0.37 | E150: 0.37 | F150: 0.37 | G150: 0.37 | H150: 0.37
A151: Rural | C151: 0.57 | D151: 0.57 | E151: 0.57 | F151: 0.57 | G151: 0.57 | H151: 0.57
A152: Remote | C152: 0.06 | D152: 0.06 | E152: 0.06 | F152: 0.06 | G152: 0.06 | H152: 0.06
A156: Dedicated street lighting poles
A158: Period of inspection | B158: years | C158: 5 | D158: 5 | E158: 5 | F158: 5 | G158: 5 | H158: 5
A159: Pole inspection rate | B159: per day | C159: 75 | D159: 75 | E159: 75 | F159: 75 | G159: 75 | H159: 75
A160: Depreciation of dedicated street lighting pole & bracket | B160: years | C160: 35 | D160: =C160 -> 35 | E160: =D160 -> 35 | F160: =E160 -> 35 | G160: =F160 -> 35 | H160: =G160 -> 35
A161: Proportion of lights on dedicated poles
A162: SP AusNet - Central | C162: 0.381190625 | D162: 0.381190625 | E162: 0.381190625 | F162: 0.381190625 | G162: 0.381190625 | H162: 0.381190625
A163: SP AusNet - North/East | C163: 0.3829674402 | D163: 0.3829674402 | E163: 0.3829674402 | F163: 0.3829674402 | G163: 0.3829674402 | H163: 0.3829674402
A167: Other direct costs
A168: Call centre
A169: Number of calls | C169: 4000 | D169: 4000 | E169: 4000 | F169: 4000 | G169: 4000 | H169: 4000
A170: Average cost per call $ | C170: 16.0309915 | D170: 15.61 | E170: 16.61 | F170: 17.61 | G170: 18.61 | H170: 19.61
C171: =C169*C170 -> 64123.96601 | D171: 62440 | E171: 66440 | F171: 70440 | G171: 74440 | H171: 78440
A173: GIS and other | C173: 124476.143 | D173: 118584.4151 | E173: 118584.4151 | F173: 118584.4151 | G173: 118584.4151 | H173: 118584.4151
A174: Complaints handling | C174: 37342.84291 | D174: 35575.32453 | E174: 35575.32453 | F174: 35575.32453 | G174: 35575.32453 | H174: 35575.32453
A178: ENERGY EFFICIENT LIGHTS
A180: =#REF! -> 
A182: Depreciation period | B182: years | C182: 20 | D182: =C182 -> 20 | E182: =D182 -> 20 | F182: =E182 -> 20 | G182: =F182 -> 20 | H182: =G182 -> 20
A183: Lamps - bulk change | B183: years | C183: 4 | D183: 4 | E183: 4 | F183: 4 | G183: 4 | H183: 4
A184: PE cells - bulk change | B184: years | C184: 8 | D184: 8 | E184: 8 | F184: 8 | G184: 8 | H184: 8
A185: Ballast unit life | B185: years | C185: 20 | D185: =C185 -> 20 | E185: =D185 -> 20 | F185: =E185 -> 20 | G185: =F185 -> 20 | H185: =G185 -> 20
A186: Proportion of luminaires that fail between bulk change | C186: 0.114 | D186: 0.4156563612 | E186: 0.4156563612 | F186: 0.4156563612 | G186: 0.4156563612 | H186: 0.4156563612
A187: Unit cost - lamp | C187: 10.69830028 | D187: 8.1 | E187: 8.1 | F187: 8.1 | G187: 8.1 | H187: 8.1
A188: Unit cost - PE cell | C188: 18.05400495 | D188: 15.12 | E188: 15.12 | F188: 15.12 | G188: 15.12 | H188: 15.12
A189: Unit cost - luminaire | C189: 258.1088385 | D189: 260.28 | E189: 260.28 | F189: 260.28 | G189: 260.28 | H189: 260.28
A190: Unit cost - miscellaneous materials (bulk lamp) | C190: 1.3373337 | D190: 1.347645671 | E190: 1.347645671 | F190: 1.347645671 | G190: 1.347645671 | H190: 1.347645671
A191: Unit cost - miscellaneous materials (repair) | C191: 13.373337 | D191: 13.47645671 | E191: 13.47645671 | F191: 13.47645671 | G191: 13.47645671 | H191: 13.47645671
A192: Number of men in crew | C192: 2 | D192: 2 | E192: 2 | F192: 2 | G192: 2 | H192: 2
A193: Number of bulk lamp changes in 1 day - urban | C193: 85 | D193: 73.92 | E193: 73.92 | F193: 73.92 | G193: 73.92 | H193: 73.92
A194: Number of bulk lamp changes in 1 day - rural | C194: 70 | D194: 61.44 | E194: 61.44 | F194: 61.44 | G194: 61.44 | H194: 61.44
A195: Number of bulk lamp changes in 1 day - remote | C195: 50 | D195: 48.96 | E195: 48.96 | F195: 48.96 | G195: 48.96 | H195: 48.96
A196: Number of repairs in 1 day - urban | C196: 20 | D196: 24.96 | E196: 24.96 | F196: 24.96 | G196: 24.96 | H196: 24.96
A197: Number of repairs in 1 day - rural | C197: 15 | D197: 20.16 | E197: 20.16 | F197: 20.16 | G197: 20.16 | H197: 20.16
A198: Number of repairs in 1 day - remote | C198: 10 | D198: 16.32 | E198: 16.32 | F198: 16.32 | G198: 16.32 | H198: 16.32
A199: % of repairs - lamps | C199: 0.6 | D199: 0.6 | E199: 0.6 | F199: 0.6 | G199: 0.6 | H199: 0.6
A200: % of repairs - PE cells | C200: 0.5 | D200: 0.5 | E200: 0.5 | F200: 0.5 | G200: 0.5 | H200: 0.5
A201: % of repairs - luminaires | C201: 0.15 | D201: 0 | E201: 0 | F201: 0 | G201: 0 | H201: 0
A202: % of repairs - other | C202: 0.1 | D202: 0.1 | E202: 0.1 | F202: 0.1 | G202: 0.1 | H202: 0.1
A204: Other Maintenance and Repair costs
A205: Traffic control costs | C205: 7051.275982 | D205: 30287.25 | E205: 30287.25 | F205: 30287.25 | G205: 30287.25 | H205: 30287.25
A206: Other costs : Describe……………………………………. | C206: 0 | D206: 0 | E206: 0 | F206: 0 | G206: 0 | H206: 0
C207: =SUM(C205:C206) -> 7051.275982 | D207: 30287.25 | E207: 30287.25 | F207: 30287.25 | G207: 30287.25 | H207: 30287.25
A208: Number of Lights | C208: =C207/C209 -> 35741.55709 | D208: =SUMPRODUCT((#REF!=$A180)*(#REF!=D$7)*(#REF!)) +SUMPRODUCT((#REF!=$A180)*(#REF!=D$7)*(#REF!)) ->  | E208: =SUMPRODUCT((#REF!=$A180)*(#REF!=E$7)*(#REF!)) +SUMPRODUCT((#REF!=$A180)*(#REF!=E$7)*(#REF!)) ->  | F208: =SUMPRODUCT((#REF!=$A180)*(#REF!=F$7)*(#REF!)) +SUMPRODUCT((#REF!=$A180)*(#REF!=F$7)*(#REF!)) ->  | G208: =SUMPRODUCT((#REF!=$A180)*(#REF!=G$7)*(#REF!)) +SUMPRODUCT((#REF!=$A180)*(#REF!=G$7)*(#REF!)) ->  | H208: =SUMPRODUCT((#REF!=$A180)*(#REF!=H$7)*(#REF!)) +SUMPRODUCT((#REF!=$A180)*(#REF!=H$7)*(#REF!)) -> 
A209: Unit Cost | C209: 0.1972850809 | D209: =D207/D208 ->  | E209: =E207/E208 ->  | F209: =F207/F208 ->  | G209: =G207/G208 ->  | H209: =H207/H208 -> 
A211: Other O & M costs specific to North/East zone
A212: Other N\E O & M costs : Describe……………………………………. | C212: 3466.071593 | D212: 7762.58 | E212: 7762.58 | F212: 7762.58 | G212: 7762.58 | H212: 7762.58
A213: Number of Lights | C213: =C212/C214 -> 13075.81205 | D213: =SUMPRODUCT((#REF!=$A180)*(#REF!=D$7)*(#REF!)) ->  | E213: =SUMPRODUCT((#REF!=$A180)*(#REF!=E$7)*(#REF!)) ->  | F213: =SUMPRODUCT((#REF!=$A180)*(#REF!=F$7)*(#REF!)) ->  | G213: =SUMPRODUCT((#REF!=$A180)*(#REF!=G$7)*(#REF!)) ->  | H213: =SUMPRODUCT((#REF!=$A180)*(#REF!=H$7)*(#REF!)) -> 
A214: Unit Cost | C214: 0.2650750546 | D214: =D212/D213 ->  | E214: =E212/E213 ->  | F214: =F212/F213 ->  | G214: =G212/G213 ->  | H214: =H212/H213 -> 
A216: Location of selected public lighting assets within distributors' areas (%)
A217: SP AusNet - Central
A218: Urban | C218: 0.96 | D218: 0.96 | E218: 0.96 | F218: 0.96 | G218: 0.96 | H218: 0.96
A219: Rural | C219: 0.04 | D219: 0.04 | E219: 0.04 | F219: 0.04 | G219: 0.04 | H219: 0.04
A220: Remote | C220: 0 | D220: 0 | E220: 0 | F220: 0 | G220: 0 | H220: 0
A222: SP AusNet - North/East
A223: Urban | C223: 0.35 | D223: 0.35 | E223: 0.35 | F223: 0.35 | G223: 0.35 | H223: 0.35
A224: Rural | C224: 0.53 | D224: 0.53 | E224: 0.53 | F224: 0.53 | G224: 0.53 | H224: 0.53
A225: Remote | C225: 0.12 | D225: 0.12 | E225: 0.12 | F225: 0.12 | G225: 0.12 | H225: 0.12
A229: =#REF! -> 
A231: Depreciation period | B231: years | C231: 20 | D231: =C231 -> 20 | E231: =D231 -> 20 | F231: =E231 -> 20 | G231: =F231 -> 20 | H231: =G231 -> 20
A232: Lamps - bulk change | B232: years | C232: 4 | D232: 4 | E232: 4 | F232: 4 | G232: 4 | H232: 4
A233: PE cells - bulk change | B233: years | C233: 8 | D233: 8 | E233: 8 | F233: 8 | G233: 8 | H233: 8
A234: Ballast unit life | C234: 20 | D234: =C234 -> 20 | E234: =D234 -> 20 | F234: =E234 -> 20 | G234: =F234 -> 20 | H234: =G234 -> 20
A235: Proportion of luminaires that fail between bulk change | C235: 0.114 | D235: 0.4156563612 | E235: 0.4156563612 | F235: 0.4156563612 | G235: 0.4156563612 | H235: 0.4156563612
A236: Unit cost - lamp | C236: 18.45593957 | D236: 8.1 | E236: 8.1 | F236: 8.1 | G236: 8.1 | H236: 8.1
A237: Unit cost - PE cell | C237: 23.40333975 | D237: 15.12 | E237: 15.12 | F237: 15.12 | G237: 15.12 | H237: 15.12
A238: Unit cost - luminaire | C238: 286.187762 | D238: 267.33 | E238: 267.33 | F238: 267.33 | G238: 267.33 | H238: 267.33
A239: Unit cost - miscellaneous materials (bulk lamp) | C239: 1.3373337 | D239: 1.347645671 | E239: 1.347645671 | F239: 1.347645671 | G239: 1.347645671 | H239: 1.347645671
A240: Unit cost - miscellaneous materials (repair) | C240: 13.373337 | D240: 13.47645671 | E240: 13.47645671 | F240: 13.47645671 | G240: 13.47645671 | H240: 13.47645671
A241: Number of men in crew | C241: 2 | D241: 2 | E241: 2 | F241: 2 | G241: 2 | H241: 2
A242: Number of bulk lamp changes in 1 day - urban | C242: 85 | D242: =D193 -> 73.92 | E242: 73.92 | F242: 73.92 | G242: 73.92 | H242: 73.92
A243: Number of bulk lamp changes in 1 day - rural | C243: 70 | D243: 61.44 | E243: 61.44 | F243: 61.44 | G243: 61.44 | H243: 61.44
A244: Number of bulk lamp changes in 1 day - remote | C244: 50 | D244: 48.96 | E244: 48.96 | F244: 48.96 | G244: 48.96 | H244: 48.96
A245: Number of repairs in 1 day - urban | C245: 20 | D245: 24.96 | E245: 24.96 | F245: 24.96 | G245: 24.96 | H245: 24.96
A246: Number of repairs in 1 day - rural | C246: 15 | D246: 20.16 | E246: 20.16 | F246: 20.16 | G246: 20.16 | H246: 20.16
A247: Number of repairs in 1 day - remote | C247: 10 | D247: 16.32 | E247: 16.32 | F247: 16.32 | G247: 16.32 | H247: 16.32
A248: % of repairs - lamps | C248: 0.6 | D248: 0.6 | E248: 0.6 | F248: 0.6 | G248: 0.6 | H248: 0.6
A249: % of repairs - PE cells | C249: 0.5 | D249: 0.5 | E249: 0.5 | F249: 0.5 | G249: 0.5 | H249: 0.5
A250: % of repairs - luminaires | C250: 0.15 | D250: 0 | E250: 0 | F250: 0 | G250: 0 | H250: 0
... 310 more rows

Sheet DNSP Inputs Capex (hidden)
A1: Public Lighting Cost Build-up Model
A3: ='DNSP Inputs O&M'!$A$3 -> AusNet | C3: Capex Data Inputs
C5: =Instructions!$B$18 -> $Real Jun 2026
A7: Input parameters | C7: =EOMONTH(D7,-12) -> 2026-06-30 | D7: =Instructions!$B$16 -> 2027-06-30 | E7: =EOMONTH(D7,12) -> 2028-06-30 | F7: =EOMONTH(E7,12) -> 2029-06-30 | G7: =EOMONTH(F7,12) -> 2030-06-30 | H7: =EOMONTH(G7,12) -> 2031-06-30
A9: Inputs - all lamps
A11: Material premium for rural areas | C11: ='DNSP Inputs O&M'!C11 -> 0.05 | D11: ='DNSP Inputs O&M'!D11 -> 0.05 | E11: ='DNSP Inputs O&M'!E11 -> 0.05 | F11: ='DNSP Inputs O&M'!F11 -> 0.05 | G11: ='DNSP Inputs O&M'!G11 -> 0.05 | H11: ='DNSP Inputs O&M'!H11 -> 0.05
A12: Labour rate (per hour) | C12: ='DNSP Inputs O&M'!C12 -> 105.1461393 | D12: ='DNSP Inputs O&M'!D12 -> 111.3622324 | E12: ='DNSP Inputs O&M'!E12 ->  | F12: ='DNSP Inputs O&M'!F12 ->  | G12: ='DNSP Inputs O&M'!G12 ->  | H12: ='DNSP Inputs O&M'!H12 -> 
A13: Elevated platform vehicle (per hour) - urban MV,urban T5 | C13: ='DNSP Inputs O&M'!C14 -> 49.79045722 | D13: ='DNSP Inputs O&M'!D14 -> 50.18 | E13: ='DNSP Inputs O&M'!E14 -> 50.18 | F13: ='DNSP Inputs O&M'!F14 -> 50.18 | G13: ='DNSP Inputs O&M'!G14 -> 50.18 | H13: ='DNSP Inputs O&M'!H14 -> 50.18
A14: Elevated platform vehicle (per hour) - rural MV, rural T5, S-HP | C14: ='DNSP Inputs O&M'!C15 -> 89.9713562 | D14: ='DNSP Inputs O&M'!D15 -> 63.64 | E14: ='DNSP Inputs O&M'!E15 -> 63.64 | F14: ='DNSP Inputs O&M'!F15 -> 63.64 | G14: ='DNSP Inputs O&M'!G15 -> 63.64 | H14: ='DNSP Inputs O&M'!H15 -> 63.64
A15: Number of hours in a day | C15: ='DNSP Inputs O&M'!C17 -> 8 | D15: ='DNSP Inputs O&M'!D17 -> 7.5 | E15: ='DNSP Inputs O&M'!E17 -> 7.5 | F15: ='DNSP Inputs O&M'!F17 -> 7.5 | G15: ='DNSP Inputs O&M'!G17 -> 7.5 | H15: ='DNSP Inputs O&M'!H17 -> 7.5
A19: Inputs - MV80
A21: Unit cost - luminaire | C21: ='DNSP Inputs O&M'!C30 -> 212.0348253 | D21: ='DNSP Inputs O&M'!D30 -> 237.4684858 | E21: ='DNSP Inputs O&M'!E30 -> 237.4684858 | F21: ='DNSP Inputs O&M'!F30 -> 237.4684858 | G21: ='DNSP Inputs O&M'!G30 -> 237.4684858 | H21: ='DNSP Inputs O&M'!H30 -> 237.4684858
A22: Unit cost - miscellaneous materials (bulk lamp) | C22: ='DNSP Inputs O&M'!C31 -> 1.3373337 | D22: ='DNSP Inputs O&M'!D31 -> 1.347645671 | E22: ='DNSP Inputs O&M'!E31 -> 1.347645671 | F22: ='DNSP Inputs O&M'!F31 -> 1.347645671 | G22: ='DNSP Inputs O&M'!G31 -> 1.347645671 | H22: ='DNSP Inputs O&M'!H31 -> 1.347645671
A23: Number of men in crew | C23: ='DNSP Inputs O&M'!C33 -> 2 | D23: ='DNSP Inputs O&M'!D33 -> 2 | E23: ='DNSP Inputs O&M'!E33 -> 2 | F23: ='DNSP Inputs O&M'!F33 -> 2 | G23: ='DNSP Inputs O&M'!G33 -> 2 | H23: ='DNSP Inputs O&M'!H33 -> 2
A24: Number of luminaires replaced per day - urban | C24: 16 | D24: 16 | E24: 16 | F24: 16 | G24: 16 | H24: 16
A25: Number of luminaires replaced per day - rural | C25: 13 | D25: 13 | E25: 13 | F25: 13 | G25: 13 | H25: 13
A26: Number of luminaires replaced per day - remote | C26: 10 | D26: 10 | E26: 10 | F26: 10 | G26: 10 | H26: 10
A28: Other Capex unit costs Describe :……………………… | C28: 0 | D28: 0 | E28: 0 | F28: 0 | G28: 0 | H28: 0
A30: Forecast Quantities to be replaced
A31: Number of luminaires replaced per year - urban | C31: 749.9114407 | D31: 0 | E31: 0 | F31: 0 | G31: 0 | H31: 0
A32: Number of luminaires replaced per year - rural | C32: 189.4001079 | D32: 0 | E32: 0 | F32: 0 | G32: 0 | H32: 0
A33: Number of luminaires replaced per year - remote | C33: 36.82157946 | D33: 0 | E33: 0 | F33: 0 | G33: 0 | H33: 0
A35: MV80 Lights replaced with T5 Energy Efficient Lights
A36: Number of Lights MV80 replaced with T5 per year
A37: SP AusNet - Central | C37: 1500 | D37: 0 | E37: 0 | F37: 0 | G37: 0 | H37: 0
A38: SP AusNet - North/East | C38: 500 | D38: 0 | E38: 0 | F38: 0 | G38: 0 | H38: 0
A42: Inputs - S-HP150
A44: Unit cost - luminaire | C44: 264.8350519 | D44: 234.07 | E44: 234.07 | F44: 234.07 | G44: 234.07 | H44: 234.07
A45: Unit cost - miscellaneous materials | C45: ='DNSP Inputs O&M'!C78 -> 2.6746674 | D45: ='DNSP Inputs O&M'!D78 -> 2.695291341 | E45: ='DNSP Inputs O&M'!E78 -> 2.695291341 | F45: ='DNSP Inputs O&M'!F78 -> 2.695291341 | G45: ='DNSP Inputs O&M'!G78 -> 2.695291341 | H45: ='DNSP Inputs O&M'!H78 -> 2.695291341
A46: Number of men in crew | C46: ='DNSP Inputs O&M'!C80 -> 2 | D46: ='DNSP Inputs O&M'!D80 -> 2 | E46: ='DNSP Inputs O&M'!E80 -> 2 | F46: ='DNSP Inputs O&M'!F80 -> 2 | G46: ='DNSP Inputs O&M'!G80 -> 2 | H46: ='DNSP Inputs O&M'!H80 -> 2
A47: Number of luminaires replaced per day - urban | C47: 16 | D47: 16 | E47: 16 | F47: 16 | G47: 16 | H47: 16 | I47: previous edpr
A48: Number of luminaires replaced per day - rural | C48: 13 | D48: 13 | E48: 13 | F48: 13 | G48: 13 | H48: 13
A49: Number of luminaires replaced per day - remote | C49: 10 | D49: 10 | E49: 10 | F49: 10 | G49: 10 | H49: 10
A51: Other Capex unit costs Describe :……………………… | C51: 0 | D51: 0 | E51: 0 | F51: 0 | G51: 0 | H51: 0
A53: Forecast Quantities to be replaced
A54: Number of luminaires replaced per year - urban | C54: 335.2045732 | D54: 0 | E54: 0 | F54: 0 | G54: 0 | H54: 0
A55: Number of luminaires replaced per year - rural | C55: 94.52251231 | D55: 0 | E55: 0 | F55: 0 | G55: 0 | H55: 0
A56: Number of luminaires replaced per day - remote | C56: 8.379871303 | D56: 0 | E56: 0 | F56: 0 | G56: 0 | H56: 0
A60: Inputs - S-HP250
A62: Unit cost - luminaire | C62: 271.769745 | D62: 240.18 | E62: 240.18 | F62: 240.18 | G62: 240.18 | H62: 240.18
A63: Unit cost - miscellaneous materials | C63: ='DNSP Inputs O&M'!C121 -> 2.6746674 | D63: ='DNSP Inputs O&M'!D121 -> 2.548069545 | E63: ='DNSP Inputs O&M'!E121 -> 2.548069545 | F63: ='DNSP Inputs O&M'!F121 -> 2.548069545 | G63: ='DNSP Inputs O&M'!G121 -> 2.548069545 | H63: ='DNSP Inputs O&M'!H121 -> 2.548069545
A64: Number of men in crew | C64: ='DNSP Inputs O&M'!C123 -> 2 | D64: ='DNSP Inputs O&M'!D123 -> 2 | E64: ='DNSP Inputs O&M'!E123 -> 2 | F64: ='DNSP Inputs O&M'!F123 -> 2 | G64: ='DNSP Inputs O&M'!G123 -> 2 | H64: ='DNSP Inputs O&M'!H123 -> 2
A65: Number of luminaires replaced per day - urban | C65: 16 | D65: 16 | E65: 16 | F65: 16 | G65: 16 | H65: 16
A66: Number of luminaires replaced per day - rural | C66: 13 | D66: 13 | E66: 13 | F66: 13 | G66: 13 | H66: 13
A67: Number of luminaires replaced per day - remote | C67: 10 | D67: 10 | E67: 10 | F67: 10 | G67: 10 | H67: 10
A69: Other Capex unit costs Describe :……………………… | C69: 0 | D69: 0 | E69: 0 | F69: 0 | G69: 0 | H69: 0
A71: Forecast Quantities to be replaced
A72: Number of luminaires replaced per year - urban | C72: 212.0461387 | D72: 0 | E72: 0 | F72: 0 | G72: 0 | H72: 0
A73: Number of luminaires replaced per year - rural | C73: 61.66473706 | D73: 0 | E73: 0 | F73: 0 | G73: 0 | H73: 0
A74: Number of luminaires replaced per day - remote | C74: 5.232576094 | D74: 0 | E74: 0 | F74: 0 | G74: 0 | H74: 0
A78: Dedicated street lighting poles
A80: Cost of pole & bracket | C80: 945.4664023 | D80: 1223.627538 | E80: 1223.627538 | F80: 1223.627538 | G80: 1223.627538 | H80: 1223.627538
A81: Number of men in crew | D81: 4 | E81: 4 | F81: 4 | G81: 4 | H81: 4
A82: Number of poles & brackets replaced per day | C82: 4 | D82: 4 | E82: 4 | F82: 4 | G82: 4 | H82: 4
A83: Cost of bracket on non-dedicated poles | C83: 47.99422096 | D83: 48.36429688 | E83: 48.36429688 | F83: 48.36429688 | G83: 48.36429688 | H83: 48.36429688
A84: Number of brackets replaced per day | C84: 20 | D84: 20 | E84: 20 | F84: 20 | G84: 20 | H84: 20
A85: Plant costs (including truck mounted crane & auger, and tipper truck) | D85: 387.05858 | E85: 387.05858 | F85: 387.05858 | G85: 387.05858 | H85: 387.05858
A86: Other poles & brackets Capex unit costs Describe :………………… | C86: 22.04901374 | D86: 20.53017169 | E86: 20.96576029 | F86: 21.4013489 | G86: 21.8369375 | H86: 22.2725261
A89: Forecast Quantities to be replaced
A90: Number of poles & brackets replaced per year - urban | C90: 598.7331124 | D90: 598.7331124 | E90: 598.7331124 | F90: 598.7331124 | G90: 598.7331124 | H90: 598.7331124
A91: Number of poles & brackets replaced per year - rural | C91: 203.0623874 | D91: 203.0623874 | E91: 203.0623874 | F91: 203.0623874 | G91: 203.0623874 | H91: 203.0623874
A92: Number of poles & brackets replaced per year - remote | C92: 15.48943329 | D92: 15.48943329 | E92: 15.48943329 | F92: 15.48943329 | G92: 15.48943329 | H92: 15.48943329
A94: Brackets on non-dedicated poles :
A95: Number of brackets replaced per year - urban | C95: 970.796428 | D95: 970.796428 | E95: 970.796428 | F95: 970.796428 | G95: 970.796428 | H95: 970.796428
A96: Number of brackets replaced per year - rural | C96: 327.8522232 | D96: 327.8522232 | E96: 327.8522232 | F96: 327.8522232 | G96: 327.8522232 | H96: 327.8522232
A97: Number of brackets replaced per year - remote | C97: 24.95638968 | D97: 24.95638968 | E97: 24.95638968 | F97: 24.95638968 | G97: 24.95638968 | H97: 24.95638968
A101: Luminaire Replacements - Other Light types (excluding T5s)
A102: Number of luminaires replaced per year | C102: 129.5406343 | D102: 0 | E102: 0 | F102: 0 | G102: 0 | H102: 0
A103: Forecast Capex | C103: 41924.26816 | D103: 0 | E103: 0 | F103: 0 | G103: 0 | H103: 0
A107: Inputs - T5 (2 X 14W)
A109: Unit cost - luminaire | C109: ='DNSP Inputs O&M'!C189 -> 258.1088385 | D109: ='DNSP Inputs O&M'!D189 -> 260.28 | E109: ='DNSP Inputs O&M'!E189 -> 260.28 | F109: ='DNSP Inputs O&M'!F189 -> 260.28 | G109: ='DNSP Inputs O&M'!G189 -> 260.28 | H109: ='DNSP Inputs O&M'!H189 -> 260.28
A110: Unit cost - miscellaneous materials (bulk lamp) | C110: ='DNSP Inputs O&M'!C190 -> 1.3373337 | D110: ='DNSP Inputs O&M'!D190 -> 1.347645671 | E110: ='DNSP Inputs O&M'!E190 -> 1.347645671 | F110: ='DNSP Inputs O&M'!F190 -> 1.347645671 | G110: ='DNSP Inputs O&M'!G190 -> 1.347645671 | H110: ='DNSP Inputs O&M'!H190 -> 1.347645671
A111: Number of men in crew | C111: ='DNSP Inputs O&M'!C192 -> 2 | D111: ='DNSP Inputs O&M'!D192 -> 2 | E111: ='DNSP Inputs O&M'!E192 -> 2 | F111: ='DNSP Inputs O&M'!F192 -> 2 | G111: ='DNSP Inputs O&M'!G192 -> 2 | H111: ='DNSP Inputs O&M'!H192 -> 2
A112: Number of luminaires replaced per day - urban | C112: 0 | D112: 16 | E112: 16 | F112: 16 | G112: 16 | H112: 16
A113: Number of luminaires replaced per day - rural | C113: 0 | D113: 13 | E113: 13 | F113: 13 | G113: 13 | H113: 13
A114: Number of luminaires replaced per day - remote | C114: 0 | D114: 10 | E114: 10 | F114: 10 | G114: 10 | H114: 10
A116: Other Capex unit costs Describe :……………………… | C116: 0 | D116: 0 | E116: 0 | F116: 0 | G116: 0 | H116: 0
A118: Forecast Quantities to be replaced
A119: Number of luminaires replaced per year - urban | C119: 0 | D119: 332.3168495 | E119: 332.3168495 | F119: 332.3168495 | G119: 332.3168495 | H119: 332.3168495
A120: Number of luminaires replaced per year - rural | C120: 0 | D120: 83.936583 | E120: 83.936583 | F120: 83.936583 | G120: 83.936583 | H120: 83.936583
A121: Number of luminaires replaced per year - remote | C121: 0 | D121: 16.29004164 | E121: 16.29004164 | F121: 16.29004164 | G121: 16.29004164 | H121: 16.29004164
A125: Inputs - T5 (2x24W)
A127: Unit cost - luminaire | C127: ='DNSP Inputs O&M'!C238 -> 286.187762 | D127: ='DNSP Inputs O&M'!D238 -> 267.33 | E127: ='DNSP Inputs O&M'!E238 -> 267.33 | F127: ='DNSP Inputs O&M'!F238 -> 267.33 | G127: ='DNSP Inputs O&M'!G238 -> 267.33 | H127: ='DNSP Inputs O&M'!H238 -> 267.33
A128: Unit cost - miscellaneous materials (bulk lamp) | C128: ='DNSP Inputs O&M'!C239 -> 1.3373337 | D128: ='DNSP Inputs O&M'!D239 -> 1.347645671 | E128: ='DNSP Inputs O&M'!E239 -> 1.347645671 | F128: ='DNSP Inputs O&M'!F239 -> 1.347645671 | G128: ='DNSP Inputs O&M'!G239 -> 1.347645671 | H128: ='DNSP Inputs O&M'!H239 -> 1.347645671
A129: Number of men in crew | C129: ='DNSP Inputs O&M'!C241 -> 2 | D129: ='DNSP Inputs O&M'!D241 -> 2 | E129: ='DNSP Inputs O&M'!E241 -> 2 | F129: ='DNSP Inputs O&M'!F241 -> 2 | G129: ='DNSP Inputs O&M'!G241 -> 2 | H129: ='DNSP Inputs O&M'!H241 -> 2
A130: Number of luminaires replaced per day - urban | C130: 0 | D130: 16 | E130: 16 | F130: 16 | G130: 16 | H130: 16
A131: Number of luminaires replaced per day - rural | C131: 0 | D131: 13 | E131: 13 | F131: 13 | G131: 13 | H131: 13
A132: Number of luminaires replaced per day - remote | C132: 0 | D132: 10 | E132: 10 | F132: 10 | G132: 10 | H132: 10
A134: Other Capex unit costs Describe :……………………… | C134: 0 | D134: 0 | E134: 0 | F134: 0 | G134: 0 | H134: 0
A136: Forecast Quantities to be replaced
A137: Number of luminaires replaced per year - urban | C137: 0 | D137: 35.82962046 | E137: 35.82962046 | F137: 35.82962046 | G137: 35.82962046 | H137: 35.82962046
A138: Number of luminaires replaced per year - rural | C138: 0 | D138: 9.049844796 | E138: 9.049844796 | F138: 9.049844796 | G138: 9.049844796 | H138: 9.049844796
A139: Number of luminaires replaced per year - remote | C139: 0 | D139: 1.756353944 | E139: 1.756353944 | F139: 1.756353944 | G139: 1.756353944 | H139: 1.756353944
A143: Inputs - LED 18W
J144: O & M
A145: Unit cost - luminaire | C145: ='DNSP Inputs O&M'!C286 -> 391.1415906 | D145: 473.5730337 | E145: 473.5730337 | F145: 473.5730337 | G145: 473.5730337 | H145: 473.5730337 | J145: ='DNSP Inputs O&M'!D286 -> 602.8983468 | K145: ='DNSP Inputs O&M'!E286 -> 602.8983468 | L145: ='DNSP Inputs O&M'!F286 -> 602.8983468 | M145: ='DNSP Inputs O&M'!G286 -> 602.8983468 | N145: ='DNSP Inputs O&M'!H286 -> 602.8983468
A146: Number of men in crew | C146: ='DNSP Inputs O&M'!C288 -> 2 | D146: ='DNSP Inputs O&M'!D288 -> 2 | E146: ='DNSP Inputs O&M'!E288 -> 2 | F146: ='DNSP Inputs O&M'!F288 -> 2 | G146: ='DNSP Inputs O&M'!G288 -> 2 | H146: ='DNSP Inputs O&M'!H288 -> 2
A147: Number of luminaires replaced per day - urban | C147: 0 | D147: 16 | E147: 16 | F147: 16 | G147: 16 | H147: 16
A148: Number of luminaires replaced per day - rural | C148: 0 | D148: 13 | E148: 13 | F148: 13 | G148: 13 | H148: 13
A149: Number of luminaires replaced per day - remote | C149: 0 | D149: 10 | E149: 10 | F149: 10 | G149: 10 | H149: 10
A151: Other Capex unit costs Describe :……………………… | C151: 0 | D151: 0 | E151: 0 | F151: 0 | G151: 0 | H151: 0
A153: Forecast Quantities to be replaced
A154: Number of luminaires replaced per year - urban | C154: 0 | D154: 1962.195227 | E154: 2205.373769 | F154: 2157.146945 | G154: 2109.229869 | H154: 333.1017506
A155: Number of luminaires replaced per year - rural | C155: 0 | D155: 495.7331393 | E155: 557.033261 | F155: 544.8521309 | G155: 532.7492367 | H155: 84.1348333
A156: Number of luminaires replaced per year - remote | C156: 0 | D156: 96.20970016 | E156: 108.1065573 | F156: 105.7424973 | G156: 103.393621 | H156: 16.32851719
A159: NEW
A160: Inputs - LED 14W
A162: Unit cost - luminaire | D162: ='DNSP Inputs O&M'!D332 -> 205 | E162: ='DNSP Inputs O&M'!E332 -> 205 | F162: ='DNSP Inputs O&M'!F332 -> 205 | G162: ='DNSP Inputs O&M'!G332 -> 205 | H162: ='DNSP Inputs O&M'!H332 -> 205
A163: Number of men in crew | D163: ='DNSP Inputs O&M'!D334 -> 2 | E163: ='DNSP Inputs O&M'!E334 -> 2 | F163: ='DNSP Inputs O&M'!F334 -> 2 | G163: ='DNSP Inputs O&M'!G334 -> 2 | H163: ='DNSP Inputs O&M'!H334 -> 2
A164: Number of luminaires replaced per day - urban | D164: 16 | E164: 16 | F164: 16 | G164: 16 | H164: 16
A165: Number of luminaires replaced per day - rural | D165: 13 | E165: 13 | F165: 13 | G165: 13 | H165: 13
A166: Number of luminaires replaced per day - remote | D166: 10 | E166: 10 | F166: 10 | G166: 10 | H166: 10
A168: Other Capex unit costs Describe :……………………… | D168: 0 | E168: 0 | F168: 0 | G168: 0 | H168: 0
A170: Forecast Quantities to be replaced
A171: Number of luminaires replaced per year - urban | D171: 13.50372755 | E171: 13.50372755 | F171: 13.50372755 | G171: 13.50372755 | H171: 13.50372755
A172: Number of luminaires replaced per year - rural | D172: 3.411610201 | E172: 3.411610201 | F172: 3.411610201 | G172: 3.411610201 | H172: 3.411610201
A173: Number of luminaires replaced per year - remote | D173: 0.6621102535 | E173: 0.6621102535 | F173: 0.6621102535 | G173: 0.6621102535 | H173: 0.6621102535
A176: NEW
A177: Inputs - LED 70W (L1)
A179: Unit cost - luminaire | D179: ='DNSP Inputs O&M'!D378 -> 1221.36204 | E179: ='DNSP Inputs O&M'!E378 -> 1221.36204 | F179: ='DNSP Inputs O&M'!F378 -> 1221.36204 | G179: ='DNSP Inputs O&M'!G378 -> 1221.36204 | H179: ='DNSP Inputs O&M'!H378 -> 1221.36204
A180: Number of men in crew | D180: ='DNSP Inputs O&M'!D380 -> 2 | E180: ='DNSP Inputs O&M'!E380 -> 2 | F180: ='DNSP Inputs O&M'!F380 -> 2 | G180: ='DNSP Inputs O&M'!G380 -> 2 | H180: ='DNSP Inputs O&M'!H380 -> 2
A181: Number of luminaires replaced per day - urban | D181: 16 | E181: 16 | F181: 16 | G181: 16 | H181: 16
A182: Number of luminaires replaced per day - rural | D182: 13 | E182: 13 | F182: 13 | G182: 13 | H182: 13
A183: Number of luminaires replaced per day - remote | D183: 10 | E183: 10 | F183: 10 | G183: 10 | H183: 10
A185: Other Capex unit costs Describe :……………………… | D185: 0 | E185: 0 | F185: 0 | G185: 0 | H185: 0
A187: Forecast Quantities to be replaced
A188: Number of luminaires replaced per year - urban | D188: 77.41435979 | E188: 78.47781207 | F188: 82.79370883 | G188: 85.94510215 | H188: 25.11870721
A189: Number of luminaires replaced per year - rural | D189: 19.5533174 | E189: 19.82192415 | F189: 20.91203327 | G189: 21.70801213 | H189: 6.344482549
A190: Number of luminaires replaced per year - remote | D190: 3.794821558 | E190: 3.846951572 | F190: 4.058515139 | G190: 4.212995203 | H190: 1.231309177
A193: NEW
A194: Inputs - LED 155W (L2)
A196: Unit cost - luminaire | D196: ='DNSP Inputs O&M'!D424 -> 1270.4309 | E196: ='DNSP Inputs O&M'!E424 -> 1270.4309 | F196: ='DNSP Inputs O&M'!F424 -> 1270.4309 | G196: ='DNSP Inputs O&M'!G424 -> 1270.4309 | H196: ='DNSP Inputs O&M'!H424 -> 1270.4309
A197: Number of men in crew | D197: ='DNSP Inputs O&M'!D426 -> 2 | E197: ='DNSP Inputs O&M'!E426 -> 2 | F197: ='DNSP Inputs O&M'!F426 -> 2 | G197: ='DNSP Inputs O&M'!G426 -> 2 | H197: ='DNSP Inputs O&M'!H426 -> 2
A198: Number of luminaires replaced per day - urban | D198: 16 | E198: 16 | F198: 16 | G198: 16 | H198: 16
A199: Number of luminaires replaced per day - rural | D199: 13 | E199: 13 | F199: 13 | G199: 13 | H199: 13
A200: Number of luminaires replaced per day - remote | D200: 10 | E200: 10 | F200: 10 | G200: 10 | H200: 10
A202: Other Capex unit costs Describe :……………………… | D202: 0 | E202: 0 | F202: 0 | G202: 0 | H202: 0
A204: Forecast Quantities to be replaced
A205: Number of luminaires replaced per year - urban | D205: 936.0338563 | E205: 929.8403706 | F205: 916.2721213 | G205: 903.0052867 | H205: 883.5794396
A206: Number of luminaires replaced per year - rural | D206: 236.4234121 | E206: 234.8590616 | F206: 231.4319935 | G206: 228.0810567 | H206: 223.1744766
A207: Number of luminaires replaced per year - remote | D207: 45.88401256 | E207: 45.58041032 | F207: 44.91530006 | G207: 44.26496503 | H207: 43.31271763
A210: NEW
A211: Inputs - LED 275W (L4)
A213: Unit cost - luminaire | D213: ='DNSP Inputs O&M'!D470 -> 1775.261764 | E213: ='DNSP Inputs O&M'!E470 -> 1775.261764 | F213: ='DNSP Inputs O&M'!F470 -> 1775.261764 | G213: ='DNSP Inputs O&M'!G470 -> 1775.261764 | H213: ='DNSP Inputs O&M'!H470 -> 1775.261764
A214: Number of men in crew | D214: ='DNSP Inputs O&M'!D472 -> 2 | E214: ='DNSP Inputs O&M'!E472 -> 2 | F214: ='DNSP Inputs O&M'!F472 -> 2 | G214: ='DNSP Inputs O&M'!G472 -> 2 | H214: ='DNSP Inputs O&M'!H472 -> 2
A215: Number of luminaires replaced per day - urban | D215: 16 | E215: 16 | F215: 16 | G215: 16 | H215: 16
A216: Number of luminaires replaced per day - rural | D216: 13 | E216: 13 | F216: 13 | G216: 13 | H216: 13
A217: Number of luminaires replaced per day - remote | D217: 10 | E217: 10 | F217: 10 | G217: 10 | H217: 10
A219: Other Capex unit costs Describe :……………………… | D219: 0 | E219: 0 | F219: 0 | G219: 0 | H219: 0
A221: Forecast Quantities to be replaced
A222: Number of luminaires replaced per year - urban | D222: 47.26849897 | E222: 47.74717948 | F222: 48.23058626 | G222: 48.72014899 | H222: 9.271581598
A223: Number of luminaires replaced per year - rural | D223: 11.93907649 | E223: 12.05998161 | F223: 12.18208048 | G223: 12.30573423 | H223: 2.341815889
A224: Number of luminaires replaced per year - remote | D224: 2.317083283 | E224: 2.340548014 | F224: 2.364244424 | G224: 2.388242597 | H224: 0.454489294
A226: NEW
A227: Inputs - Smart lighting L1
A229: Unit cost - luminaire | D229: ='DNSP Inputs O&M'!D517 -> 402 | E229: ='DNSP Inputs O&M'!E517 -> 402 | F229: ='DNSP Inputs O&M'!F517 -> 402 | G229: ='DNSP Inputs O&M'!G517 -> 402 | H229: ='DNSP Inputs O&M'!H517 -> 402
A230: Number of men in crew | D230: ='DNSP Inputs O&M'!D519 -> 2 | E230: ='DNSP Inputs O&M'!E519 -> 2 | F230: ='DNSP Inputs O&M'!F519 -> 2 | G230: ='DNSP Inputs O&M'!G519 -> 2 | H230: ='DNSP Inputs O&M'!H519 -> 2
A231: Number of luminaires replaced per day - urban | D231: 16 | E231: 16 | F231: 16 | G231: 16 | H231: 16
A232: Number of luminaires replaced per day - rural | D232: 13 | E232: 13 | F232: 13 | G232: 13 | H232: 13
A233: Number of luminaires replaced per day - remote | D233: 10 | E233: 10 | F233: 10 | G233: 10 | H233: 10
A235: Other Capex unit costs Describe :……………………… | D235: 0 | E235: 0 | F235: 0 | G235: 0 | H235: 0
A237: Forecast Quantities to be replaced
A238: Number of luminaires replaced per year - urban | D238: 77 | E238: 77 | F238: 76.90315209 | G238: 76.90315209 | H238: 11.69601551
A239: Number of luminaires replaced per year - rural | D239: 19 | E239: 19 | F239: 19.82615735 | G239: 19.82615735 | H239: 2
A240: Number of luminaires replaced per year - remote | D240: 4 | E240: 4 | F240: 3.907017259 | G240: 3.907017259 | H240: 0
A242: Inputs - Smart lighting L2
A244: Unit cost - luminaire | D244: ='DNSP Inputs O&M'!D561 -> 427 | E244: ='DNSP Inputs O&M'!E561 -> 427 | F244: ='DNSP Inputs O&M'!F561 -> 427 | G244: ='DNSP Inputs O&M'!G561 -> 427 | H244: ='DNSP Inputs O&M'!H561 -> 427
A245: Number of men in crew | D245: ='DNSP Inputs O&M'!D563 -> 2 | E245: ='DNSP Inputs O&M'!E563 -> 2 | F245: ='DNSP Inputs O&M'!F563 -> 2 | G245: ='DNSP Inputs O&M'!G563 -> 2 | H245: ='DNSP Inputs O&M'!H563 -> 2
A246: Number of luminaires replaced per day - urban | D246: 16 | E246: 16 | F246: 16 | G246: 16 | H246: 16
A247: Number of luminaires replaced per day - rural | D247: 13 | E247: 13 | F247: 13 | G247: 13 | H247: 13
A248: Number of luminaires replaced per day - remote | D248: 10 | E248: 10 | F248: 10 | G248: 10 | H248: 10
A250: Other Capex unit costs Describe :……………………… | D250: 0 | E250: 0 | F250: 0 | G250: 0 | H250: 0
A252: Forecast Quantities to be replaced
A253: Number of luminaires replaced per year - urban | D253: 77 | E253: 77 | F253: 76.90315209 | G253: 76.90315209 | H253: 11.69601551
A254: Number of luminaires replaced per year - rural | D254: 19 | E254: 19 | F254: 19.82615735 | G254: 19.82615735 | H254: 2
A255: Number of luminaires replaced per year - remote | D255: 4 | E255: 4 | F255: 3.907017259 | G255: 3.907017259 | H255: 0
A257: Inputs - Smart lighting L4
A259: Unit cost - luminaire | D259: ='DNSP Inputs O&M'!D605 -> 650.88 | E259: ='DNSP Inputs O&M'!E605 -> 650.88 | F259: ='DNSP Inputs O&M'!F605 -> 650.88 | G259: ='DNSP Inputs O&M'!G605 -> 650.88 | H259: ='DNSP Inputs O&M'!H605 -> 650.88
A260: Number of men in crew | D260: ='DNSP Inputs O&M'!D607 -> 2 | E260: ='DNSP Inputs O&M'!E607 -> 2 | F260: ='DNSP Inputs O&M'!F607 -> 2 | G260: ='DNSP Inputs O&M'!G607 -> 2 | H260: ='DNSP Inputs O&M'!H607 -> 2
A261: Number of luminaires replaced per day - urban | D261: 16 | E261: 16 | F261: 16 | G261: 16 | H261: 16
A262: Number of luminaires replaced per day - rural | D262: 13 | E262: 13 | F262: 13 | G262: 13 | H262: 13
A263: Number of luminaires replaced per day - remote | D263: 10 | E263: 10 | F263: 10 | G263: 10 | H263: 10
A265: Other Capex unit costs Describe :……………………… | D265: 0 | E265: 0 | F265: 0 | G265: 0 | H265: 0
A267: Forecast Quantities to be replaced
A268: Number of luminaires replaced per year - urban | D268: 77 | E268: 77 | F268: 76.90315209 | G268: 76.90315209 | H268: 11.69601551
A269: Number of luminaires replaced per year - rural | D269: 19 | E269: 19 | F269: 19.82615735 | G269: 19.82615735 | H269: 2
A270: Number of luminaires replaced per year - remote | D270: 4 | E270: 4 | F270: 3.907017259 | G270: 3.907017259 | H270: 0

Sheet PL Tariffs (hidden)
A1: ='DNSP Inputs O&M'!$A$3 -> AusNet | E1: Global Check | F1: =IF(SUM('Total RAB'!F1,'Depn & WACC Post 2004 N & E'!F1,'Depn & WACC Post 2004 Central'!F1,'Cashflow Summary'!F1,'PL Tariff Components'!W1)<1,"Ok","Error") -> 
D3: =#REF! ->  | V3: Average
A4: Public Lighting Tariffs | C4: Nominal Prices | J4: Nominal Price Movement | P4: Real Price Movement (Implied X Factor) | V4: Nubmer | W4: % of | Y4: Revised Submission Model | AE4: Difference
C5: Actual | V5: of Lights | W5: Total Lights
A6: =#REF! ->  | C6: =EOMONTH(D6,-12) -> 2026-06-30 | D6: =Instructions!$B$16 -> 2027-06-30 | E6: =EOMONTH(D6,12) -> 2028-06-30 | F6: =EOMONTH(E6,12) -> 2029-06-30 | G6: =EOMONTH(F6,12) -> 2030-06-30 | H6: =EOMONTH(G6,12) -> 2031-06-30 | J6: =D6 -> 2027-06-30 | K6: =E6 -> 2028-06-30 | L6: =F6 -> 2029-06-30 | M6: =G6 -> 2030-06-30 | N6: =H6 -> 2031-06-30 | P6: =J6 -> 2027-06-30 | Q6: =K6 -> 2028-06-30 | R6: =L6 -> 2029-06-30 | S6: =M6 -> 2030-06-30 | T6: =N6 -> 2031-06-30 | V6: =Instructions!$B$20 -> 2027-31 | W6: =Instructions!$B$20 -> 2027-31 | Y6: =P6 -> 2027-06-30 | Z6: =Q6 -> 2028-06-30 | AA6: =R6 -> 2029-06-30 | AB6: =S6 -> 2030-06-30 | AC6: =T6 -> 2031-06-30 | AE6: =Y6 -> 2027-06-30 | AF6: =Z6 -> 2028-06-30 | AG6: =AA6 -> 2029-06-30 | AH6: =AB6 -> 2030-06-30 | AI6: =AC6 -> 2031-06-30
A7: =#REF! ->  | C7: =#REF! ->  | D7: ='Charges Summary'!D$31 ->  | E7: ='Charges Summary'!E$31 ->  | F7: ='Charges Summary'!F$31 ->  | G7: ='Charges Summary'!G$31 ->  | H7: ='Charges Summary'!H$31 ->  | J7: =IF(C7=0,"",D7/C7-1) ->  | K7: =IF(D7=0,"",E7/D7-1) ->  | L7: =IF(E7=0,"",F7/E7-1) ->  | M7: =IF(F7=0,"",G7/F7-1) ->  | N7: =IF(G7=0,"",H7/G7-1) ->  | P7: =IF(C7=0,"",(D7/'Charges Summary'!D$4)/C7-1) ->  | Q7: =IF(D7=0,"",(E7/'Charges Summary'!E$4)/(D7/'Charges Summary'!D$4)-1) ->  | R7: =IF(E7=0,"",(F7/'Charges Summary'!F$4)/(E7/'Charges Summary'!E$4)-1) ->  | S7: =IF(F7=0,"",(G7/'Charges Summary'!G$4)/(F7/'Charges Summary'!F$4)-1) ->  | T7: =IF(G7=0,"",(H7/'Charges Summary'!H$4)/(G7/'Charges Summary'!G$4)-1) ->  | V7: =SUM(#REF!)/5 ->  | W7: =V7/V$35 ->  | Y7: 62.32190759 | Z7: 63.78635216 | AA7: 67.13530862 | AB7: 73.40006283 | AC7: 74.90059055 | AE7: =D7-Y7 ->  | AF7: =E7-Z7 ->  | AG7: =F7-AA7 ->  | AH7: =G7-AB7 ->  | AI7: =H7-AC7 -> 
A8: =#REF! ->  | C8: =#REF! ->  | D8: ='Charges Summary'!D$55 ->  | E8: ='Charges Summary'!E$55 ->  | F8: ='Charges Summary'!F$55 ->  | G8: ='Charges Summary'!G$55 ->  | H8: ='Charges Summary'!H$55 ->  | P8: =IF(C8=0,"",(D8/'Charges Summary'!D$4)/C8-1) ->  | Q8: =IF(D8=0,"",(E8/'Charges Summary'!E$4)/(D8/'Charges Summary'!D$4)-1) ->  | R8: =IF(E8=0,"",(F8/'Charges Summary'!F$4)/(E8/'Charges Summary'!E$4)-1) ->  | S8: =IF(F8=0,"",(G8/'Charges Summary'!G$4)/(F8/'Charges Summary'!F$4)-1) ->  | T8: =IF(G8=0,"",(H8/'Charges Summary'!H$4)/(G8/'Charges Summary'!G$4)-1) ->  | V8: =SUM(#REF!)/5 ->  | W8: =V8/V$35 ->  | Y8: 114.8305964 | Z8: 117.6689276 | AA8: 121.2194088 | AB8: 129.7829967 | AC8: 133.0783398 | AE8: =D8-Y8 ->  | AF8: =E8-Z8 ->  | AG8: =F8-AA8 ->  | AH8: =G8-AB8 ->  | AI8: =H8-AC8 -> 
A9: =#REF! ->  | C9: =#REF! ->  | D9: ='Charges Summary'!D$71 ->  | E9: ='Charges Summary'!E$71 ->  | F9: ='Charges Summary'!F$71 ->  | G9: ='Charges Summary'!G$71 ->  | H9: ='Charges Summary'!H$71 ->  | P9: =IF(C9=0,"",(D9/'Charges Summary'!D$4)/C9-1) ->  | Q9: =IF(D9=0,"",(E9/'Charges Summary'!E$4)/(D9/'Charges Summary'!D$4)-1) ->  | R9: =IF(E9=0,"",(F9/'Charges Summary'!F$4)/(E9/'Charges Summary'!E$4)-1) ->  | S9: =IF(F9=0,"",(G9/'Charges Summary'!G$4)/(F9/'Charges Summary'!F$4)-1) ->  | T9: =IF(G9=0,"",(H9/'Charges Summary'!H$4)/(G9/'Charges Summary'!G$4)-1) ->  | V9: =SUM(#REF!)/5 ->  | Y9: 117.7355319 | Z9: 120.6385768 | AA9: 124.4543534 | AB9: 133.2324489 | AC9: 136.6034772
A10: =#REF! ->  | C10: =#REF! ->  | D10: =IF(#REF!=#REF!,D$7,IF(#REF!=#REF!,D$8,D$9))*#REF! ->  | E10: =IF(#REF!=#REF!,E$7,IF(#REF!=#REF!,E$8,E$9))*#REF! ->  | F10: =IF(#REF!=#REF!,F$7,IF(#REF!=#REF!,F$8,F$9))*#REF! ->  | G10: =IF(#REF!=#REF!,G$7,IF(#REF!=#REF!,G$8,G$9))*#REF! ->  | H10: =IF(#REF!=#REF!,H$7,IF(#REF!=#REF!,H$8,H$9))*#REF! ->  | P10: =IF(C10=0,"",(D10/'Charges Summary'!D$4)/C10-1) ->  | Q10: =IF(D10=0,"",(E10/'Charges Summary'!E$4)/(D10/'Charges Summary'!D$4)-1) ->  | R10: =IF(E10=0,"",(F10/'Charges Summary'!F$4)/(E10/'Charges Summary'!E$4)-1) ->  | S10: =IF(F10=0,"",(G10/'Charges Summary'!G$4)/(F10/'Charges Summary'!F$4)-1) ->  | T10: =IF(G10=0,"",(H10/'Charges Summary'!H$4)/(G10/'Charges Summary'!G$4)-1) ->  | V10: =SUM(#REF!)/5 ->  | Y10: 95.35251861 | Z10: 97.59311881 | AA10: 102.7170222 | AB10: 112.3020961 | AC10: 114.5979035
A11: =#REF! ->  | C11: =#REF! ->  | D11: =IF(#REF!=#REF!,D$7,IF(#REF!=#REF!,D$8,D$9))*#REF! ->  | E11: =IF(#REF!=#REF!,E$7,IF(#REF!=#REF!,E$8,E$9))*#REF! ->  | F11: =IF(#REF!=#REF!,F$7,IF(#REF!=#REF!,F$8,F$9))*#REF! ->  | G11: =IF(#REF!=#REF!,G$7,IF(#REF!=#REF!,G$8,G$9))*#REF! ->  | H11: =IF(#REF!=#REF!,H$7,IF(#REF!=#REF!,H$8,H$9))*#REF! ->  | P11: =IF(C11=0,"",(D11/'Charges Summary'!D$4)/C11-1) ->  | Q11: =IF(D11=0,"",(E11/'Charges Summary'!E$4)/(D11/'Charges Summary'!D$4)-1) ->  | R11: =IF(E11=0,"",(F11/'Charges Summary'!F$4)/(E11/'Charges Summary'!E$4)-1) ->  | S11: =IF(F11=0,"",(G11/'Charges Summary'!G$4)/(F11/'Charges Summary'!F$4)-1) ->  | T11: =IF(G11=0,"",(H11/'Charges Summary'!H$4)/(G11/'Charges Summary'!G$4)-1) ->  | V11: =SUM(#REF!)/5 ->  | Y11: 91.61320415 | Z11: 93.76593768 | AA11: 98.68890367 | AB11: 107.8980924 | AC11: 110.1038681
A12: =#REF! ->  | C12: =#REF! ->  | D12: =IF(#REF!=#REF!,D$7,IF(#REF!=#REF!,D$8,D$9))*#REF! ->  | E12: =IF(#REF!=#REF!,E$7,IF(#REF!=#REF!,E$8,E$9))*#REF! ->  | F12: =IF(#REF!=#REF!,F$7,IF(#REF!=#REF!,F$8,F$9))*#REF! ->  | G12: =IF(#REF!=#REF!,G$7,IF(#REF!=#REF!,G$8,G$9))*#REF! ->  | H12: =IF(#REF!=#REF!,H$7,IF(#REF!=#REF!,H$8,H$9))*#REF! ->  | P12: =IF(C12=0,"",(D12/'Charges Summary'!D$4)/C12-1) ->  | Q12: =IF(D12=0,"",(E12/'Charges Summary'!E$4)/(D12/'Charges Summary'!D$4)-1) ->  | R12: =IF(E12=0,"",(F12/'Charges Summary'!F$4)/(E12/'Charges Summary'!E$4)-1) ->  | S12: =IF(F12=0,"",(G12/'Charges Summary'!G$4)/(F12/'Charges Summary'!F$4)-1) ->  | T12: =IF(G12=0,"",(H12/'Charges Summary'!H$4)/(G12/'Charges Summary'!G$4)-1) ->  | V12: =SUM(#REF!)/5 ->  | Y12: 123.6223085 | Z12: 126.6705056 | AA12: 130.6770711 | AB12: 139.8940714 | AC12: 143.4336511
A13: =#REF! ->  | C13: =#REF! ->  | D13: =IF(#REF!=#REF!,D$7,IF(#REF!=#REF!,D$8,D$9))*#REF! ->  | E13: =IF(#REF!=#REF!,E$7,IF(#REF!=#REF!,E$8,E$9))*#REF! ->  | F13: =IF(#REF!=#REF!,F$7,IF(#REF!=#REF!,F$8,F$9))*#REF! ->  | G13: =IF(#REF!=#REF!,G$7,IF(#REF!=#REF!,G$8,G$9))*#REF! ->  | H13: =IF(#REF!=#REF!,H$7,IF(#REF!=#REF!,H$8,H$9))*#REF! ->  | P13: =IF(C13=0,"",(D13/'Charges Summary'!D$4)/C13-1) ->  | Q13: =IF(D13=0,"",(E13/'Charges Summary'!E$4)/(D13/'Charges Summary'!D$4)-1) ->  | R13: =IF(E13=0,"",(F13/'Charges Summary'!F$4)/(E13/'Charges Summary'!E$4)-1) ->  | S13: =IF(F13=0,"",(G13/'Charges Summary'!G$4)/(F13/'Charges Summary'!F$4)-1) ->  | T13: =IF(G13=0,"",(H13/'Charges Summary'!H$4)/(G13/'Charges Summary'!G$4)-1) ->  | V13: =SUM(#REF!)/5 ->  | Y13: 128.3317297 | Z13: 131.4960487 | AA13: 135.6552452 | AB13: 145.2233693 | AC13: 148.8977902
A14: =#REF! ->  | C14: =#REF! ->  | D14: =IF(#REF!=#REF!,D$7,IF(#REF!=#REF!,D$8,D$9))*#REF! ->  | E14: =IF(#REF!=#REF!,E$7,IF(#REF!=#REF!,E$8,E$9))*#REF! ->  | F14: =IF(#REF!=#REF!,F$7,IF(#REF!=#REF!,F$8,F$9))*#REF! ->  | G14: =IF(#REF!=#REF!,G$7,IF(#REF!=#REF!,G$8,G$9))*#REF! ->  | H14: =IF(#REF!=#REF!,H$7,IF(#REF!=#REF!,H$8,H$9))*#REF! ->  | P14: =IF(C14=0,"",(D14/'Charges Summary'!D$4)/C14-1) ->  | Q14: =IF(D14=0,"",(E14/'Charges Summary'!E$4)/(D14/'Charges Summary'!D$4)-1) ->  | R14: =IF(E14=0,"",(F14/'Charges Summary'!F$4)/(E14/'Charges Summary'!E$4)-1) ->  | S14: =IF(F14=0,"",(G14/'Charges Summary'!G$4)/(F14/'Charges Summary'!F$4)-1) ->  | T14: =IF(G14=0,"",(H14/'Charges Summary'!H$4)/(G14/'Charges Summary'!G$4)-1) ->  | V14: =SUM(#REF!)/5 ->  | Y14: 122.8687381 | Z14: 125.9057525 | AA14: 129.7047674 | AB14: 138.8678065 | AC14: 142.3938235
A15: =#REF! ->  | C15: =#REF! ->  | D15: =IF(#REF!=#REF!,D$7,IF(#REF!=#REF!,D$8,D$9))*#REF! ->  | E15: =IF(#REF!=#REF!,E$7,IF(#REF!=#REF!,E$8,E$9))*#REF! ->  | F15: =IF(#REF!=#REF!,F$7,IF(#REF!=#REF!,F$8,F$9))*#REF! ->  | G15: =IF(#REF!=#REF!,G$7,IF(#REF!=#REF!,G$8,G$9))*#REF! ->  | H15: =IF(#REF!=#REF!,H$7,IF(#REF!=#REF!,H$8,H$9))*#REF! ->  | P15: =IF(C15=0,"",(D15/'Charges Summary'!D$4)/C15-1) ->  | Q15: =IF(D15=0,"",(E15/'Charges Summary'!E$4)/(D15/'Charges Summary'!D$4)-1) ->  | R15: =IF(E15=0,"",(F15/'Charges Summary'!F$4)/(E15/'Charges Summary'!E$4)-1) ->  | S15: =IF(F15=0,"",(G15/'Charges Summary'!G$4)/(F15/'Charges Summary'!F$4)-1) ->  | T15: =IF(G15=0,"",(H15/'Charges Summary'!H$4)/(G15/'Charges Summary'!G$4)-1) ->  | V15: =SUM(#REF!)/5 ->  | Y15: 167.1844553 | Z15: 171.306779 | AA15: 176.7251819 | AB15: 189.1900775 | AC15: 193.9769377
A16: =#REF! ->  | C16: =#REF! ->  | D16: =IF(#REF!=#REF!,D$7,IF(#REF!=#REF!,D$8,D$9))*#REF! ->  | E16: =IF(#REF!=#REF!,E$7,IF(#REF!=#REF!,E$8,E$9))*#REF! ->  | F16: =IF(#REF!=#REF!,F$7,IF(#REF!=#REF!,F$8,F$9))*#REF! ->  | G16: =IF(#REF!=#REF!,G$7,IF(#REF!=#REF!,G$8,G$9))*#REF! ->  | H16: =IF(#REF!=#REF!,H$7,IF(#REF!=#REF!,H$8,H$9))*#REF! ->  | J16: =IF(C16=0,"",D16/C16-1) ->  | P16: =IF(C16=0,"",(D16/'Charges Summary'!D$4)/C16-1) ->  | Q16: =IF(D16=0,"",(E16/'Charges Summary'!E$4)/(D16/'Charges Summary'!D$4)-1) ->  | R16: =IF(E16=0,"",(F16/'Charges Summary'!F$4)/(E16/'Charges Summary'!E$4)-1) ->  | S16: =IF(F16=0,"",(G16/'Charges Summary'!G$4)/(F16/'Charges Summary'!F$4)-1) ->  | T16: =IF(G16=0,"",(H16/'Charges Summary'!H$4)/(G16/'Charges Summary'!G$4)-1) ->  | V16: =SUM(#REF!)/5 ->  | Y16: 272.0417126 | Z16: 278.434168 | AA16: 293.0527168 | AB16: 320.399031 | AC16: 326.9489931
A17: =#REF! ->  | C17: =#REF! ->  | D17: =IF(#REF!=#REF!,D$7,IF(#REF!=#REF!,D$8,D$9))*#REF! ->  | E17: =IF(#REF!=#REF!,E$7,IF(#REF!=#REF!,E$8,E$9))*#REF! ->  | F17: =IF(#REF!=#REF!,F$7,IF(#REF!=#REF!,F$8,F$9))*#REF! ->  | G17: =IF(#REF!=#REF!,G$7,IF(#REF!=#REF!,G$8,G$9))*#REF! ->  | H17: =IF(#REF!=#REF!,H$7,IF(#REF!=#REF!,H$8,H$9))*#REF! ->  | P17: =IF(C17=0,"",(D17/'Charges Summary'!D$4)/C17-1) ->  | Q17: =IF(D17=0,"",(E17/'Charges Summary'!E$4)/(D17/'Charges Summary'!D$4)-1) ->  | R17: =IF(E17=0,"",(F17/'Charges Summary'!F$4)/(E17/'Charges Summary'!E$4)-1) ->  | S17: =IF(F17=0,"",(G17/'Charges Summary'!G$4)/(F17/'Charges Summary'!F$4)-1) ->  | T17: =IF(G17=0,"",(H17/'Charges Summary'!H$4)/(G17/'Charges Summary'!G$4)-1) ->  | V17: =SUM(#REF!)/5 ->  | Y17: 274.1797618 | Z17: 280.9568143 | AA17: 289.4342597 | AB17: 309.881445 | AC17: 317.7496996
A18: =#REF! ->  | C18: =#REF! ->  | D18: =IF(#REF!=#REF!,D$7,IF(#REF!=#REF!,D$8,D$9))*#REF! ->  | E18: =IF(#REF!=#REF!,E$7,IF(#REF!=#REF!,E$8,E$9))*#REF! ->  | F18: =IF(#REF!=#REF!,F$7,IF(#REF!=#REF!,F$8,F$9))*#REF! ->  | G18: =IF(#REF!=#REF!,G$7,IF(#REF!=#REF!,G$8,G$9))*#REF! ->  | H18: =IF(#REF!=#REF!,H$7,IF(#REF!=#REF!,H$8,H$9))*#REF! ->  | P18: =IF(C18=0,"",(D18/'Charges Summary'!D$4)/C18-1) ->  | Q18: =IF(D18=0,"",(E18/'Charges Summary'!E$4)/(D18/'Charges Summary'!D$4)-1) ->  | R18: =IF(E18=0,"",(F18/'Charges Summary'!F$4)/(E18/'Charges Summary'!E$4)-1) ->  | S18: =IF(F18=0,"",(G18/'Charges Summary'!G$4)/(F18/'Charges Summary'!F$4)-1) ->  | T18: =IF(G18=0,"",(H18/'Charges Summary'!H$4)/(G18/'Charges Summary'!G$4)-1) ->  | V18: =SUM(#REF!)/5 ->  | Y18: 311.4879615 | Z18: 319.1871813 | AA18: 328.81817 | AB18: 352.0476455 | AC18: 360.9865496
A19: =#REF! ->  | C19: =#REF! ->  | D19: =IF(#REF!=#REF!,D$7,IF(#REF!=#REF!,D$8,D$9))*#REF! ->  | E19: =IF(#REF!=#REF!,E$7,IF(#REF!=#REF!,E$8,E$9))*#REF! ->  | F19: =IF(#REF!=#REF!,F$7,IF(#REF!=#REF!,F$8,F$9))*#REF! ->  | G19: =IF(#REF!=#REF!,G$7,IF(#REF!=#REF!,G$8,G$9))*#REF! ->  | H19: =IF(#REF!=#REF!,H$7,IF(#REF!=#REF!,H$8,H$9))*#REF! ->  | P19: =IF(C19=0,"",(D19/'Charges Summary'!D$4)/C19-1) ->  | Q19: =IF(D19=0,"",(E19/'Charges Summary'!E$4)/(D19/'Charges Summary'!D$4)-1) ->  | R19: =IF(E19=0,"",(F19/'Charges Summary'!F$4)/(E19/'Charges Summary'!E$4)-1) ->  | S19: =IF(F19=0,"",(G19/'Charges Summary'!G$4)/(F19/'Charges Summary'!F$4)-1) ->  | T19: =IF(G19=0,"",(H19/'Charges Summary'!H$4)/(G19/'Charges Summary'!G$4)-1) ->  | V19: =SUM(#REF!)/5 ->  | Y19: 50.90957844 | Z19: 52.16793859 | AA19: 53.74202694 | AB19: 57.53865137 | AC19: 58.99962546
A22: =#REF! -> 
A23: =#REF! ->  | C23: =#REF! ->  | D23: ='Charges Summary'!D$89 ->  | E23: ='Charges Summary'!E$89 ->  | F23: ='Charges Summary'!F$89 ->  | G23: ='Charges Summary'!G$89 ->  | H23: ='Charges Summary'!H$89 ->  | J23: =IF(C23=0,"",D23/C23-1) ->  | P23: =IF(C23=0,"",(D23/'Charges Summary'!D$4)/C23-1) ->  | Q23: =IF(D23=0,"",(E23/'Charges Summary'!E$4)/(D23/'Charges Summary'!D$4)-1) ->  | R23: =IF(E23=0,"",(F23/'Charges Summary'!F$4)/(E23/'Charges Summary'!E$4)-1) ->  | S23: =IF(F23=0,"",(G23/'Charges Summary'!G$4)/(F23/'Charges Summary'!F$4)-1) ->  | T23: =IF(G23=0,"",(H23/'Charges Summary'!H$4)/(G23/'Charges Summary'!G$4)-1) ->  | V23: =SUM(#REF!)/5 ->  | W23: =V23/V$35 ->  | Y23: 51.54481725 | Z23: 54.59179001 | AA23: 57.34144503 | AB23: 59.95136283 | AC23: 62.19683763 | AE23: =D23-Y23 ->  | AF23: =E23-Z23 ->  | AG23: =F23-AA23 ->  | AH23: =G23-AB23 ->  | AI23: =H23-AC23 -> 
A24: =#REF! ->  | C24: =#REF! ->  | D24: ='Charges Summary'!D$105 ->  | E24: ='Charges Summary'!E$105 ->  | F24: ='Charges Summary'!F$105 ->  | G24: ='Charges Summary'!G$105 ->  | H24: ='Charges Summary'!H$105 ->  | P24: =IF(C24=0,"",(D24/'Charges Summary'!D$4)/C24-1) ->  | Q24: =IF(D24=0,"",(E24/'Charges Summary'!E$4)/(D24/'Charges Summary'!D$4)-1) ->  | R24: =IF(E24=0,"",(F24/'Charges Summary'!F$4)/(E24/'Charges Summary'!E$4)-1) ->  | S24: =IF(F24=0,"",(G24/'Charges Summary'!G$4)/(F24/'Charges Summary'!F$4)-1) ->  | T24: =IF(G24=0,"",(H24/'Charges Summary'!H$4)/(G24/'Charges Summary'!G$4)-1) ->  | V24: =SUM(#REF!)/5 ->  | Y24: 55.05742193 | Z24: 58.23936187 | AA24: 61.12190411 | AB24: 63.86912608 | AC24: 66.25165821
A25: =#REF! ->  | C25: =#REF! ->  | D25: ='Charges Summary'!D$121 ->  | E25: ='Charges Summary'!E$121 ->  | F25: ='Charges Summary'!F$121 ->  | G25: ='Charges Summary'!G$121 ->  | H25: ='Charges Summary'!H$121 ->  | J25: =IF(C25=0,"",D25/C25-1) ->  | K25: =IF(D25=0,"",E25/D25-1) ->  | L25: =IF(E25=0,"",F25/E25-1) ->  | M25: =IF(F25=0,"",G25/F25-1) ->  | N25: =IF(G25=0,"",H25/G25-1) ->  | P25: =IF(C25=0,"",(D25/'Charges Summary'!D$4)/C25-1) ->  | Q25: =IF(D25=0,"",(E25/'Charges Summary'!E$4)/(D25/'Charges Summary'!D$4)-1) ->  | R25: =IF(E25=0,"",(F25/'Charges Summary'!F$4)/(E25/'Charges Summary'!E$4)-1) ->  | S25: =IF(F25=0,"",(G25/'Charges Summary'!G$4)/(F25/'Charges Summary'!F$4)-1) ->  | T25: =IF(G25=0,"",(H25/'Charges Summary'!H$4)/(G25/'Charges Summary'!G$4)-1) ->  | V25: =SUM(#REF!)/5 ->  | Y25: 29.22854592 | Z25: 31.35919624 | AA25: 33.21847795 | AB25: 34.9207972 | AC25: 36.27831639
A26: =#REF! ->  | C26: =#REF! ->  | D26: ='Charges Summary'!D$137 ->  | E26: ='Charges Summary'!E$137 ->  | F26: ='Charges Summary'!F$137 ->  | G26: ='Charges Summary'!G$137 ->  | H26: ='Charges Summary'!H$137 ->  | J26: =IF(C26=0,"",D26/C26-1) ->  | P26: =IF(C26=0,"",(D26/'Charges Summary'!D$4)/C26-1) ->  | Q26: =IF(D26=0,"",(E26/'Charges Summary'!E$4)/(D26/'Charges Summary'!D$4)-1) ->  | R26: =IF(E26=0,"",(F26/'Charges Summary'!F$4)/(E26/'Charges Summary'!E$4)-1) ->  | S26: =IF(F26=0,"",(G26/'Charges Summary'!G$4)/(F26/'Charges Summary'!F$4)-1) ->  | T26: =IF(G26=0,"",(H26/'Charges Summary'!H$4)/(G26/'Charges Summary'!G$4)-1) ->  | V26: =SUM(#REF!)/5 ->  | Y26: 31.05400811 | Z26: 33.23290539 | AA26: 35.14329934 | AB26: 36.90173262 | AC26: 38.32045491
A27: =#REF! ->  | C27: =#REF! ->  | D27: ='Charges Summary'!D$153 ->  | E27: ='Charges Summary'!E$153 ->  | F27: ='Charges Summary'!F$153 ->  | G27: ='Charges Summary'!G$153 ->  | H27: ='Charges Summary'!H$153 ->  | P27: =IF(C27=0,"",(D27/'Charges Summary'!D$4)/C27-1) ->  | Q27: =IF(D27=0,"",(E27/'Charges Summary'!E$4)/(D27/'Charges Summary'!D$4)-1) ->  | R27: =IF(E27=0,"",(F27/'Charges Summary'!F$4)/(E27/'Charges Summary'!E$4)-1) ->  | S27: =IF(F27=0,"",(G27/'Charges Summary'!G$4)/(F27/'Charges Summary'!F$4)-1) ->  | T27: =IF(G27=0,"",(H27/'Charges Summary'!H$4)/(G27/'Charges Summary'!G$4)-1) ->  | V27: =SUM(#REF!)/5 ->  | Y27: 48.82118537 | Z27: 52.61133364 | AA27: 55.93536966 | AB27: 58.98198538 | AC27: 61.42881417
A28: =#REF! ->  | C28: =#REF! ->  | D28: ='Charges Summary'!D$169 ->  | E28: ='Charges Summary'!E$169 ->  | F28: ='Charges Summary'!F$169 ->  | G28: ='Charges Summary'!G$169 ->  | H28: ='Charges Summary'!H$169 ->  | P28: =IF(C28=0,"",(D28/'Charges Summary'!D$4)/C28-1) ->  | Q28: =IF(D28=0,"",(E28/'Charges Summary'!E$4)/(D28/'Charges Summary'!D$4)-1) ->  | R28: =IF(E28=0,"",(F28/'Charges Summary'!F$4)/(E28/'Charges Summary'!E$4)-1) ->  | S28: =IF(F28=0,"",(G28/'Charges Summary'!G$4)/(F28/'Charges Summary'!F$4)-1) ->  | T28: =IF(G28=0,"",(H28/'Charges Summary'!H$4)/(G28/'Charges Summary'!G$4)-1) ->  | V28: =SUM(#REF!)/5 ->  | Y28: 49.48586632 | Z28: 53.43528099 | AA28: 56.889819 | AB28: 60.04409698 | AC28: 62.55854856
A29: =#REF! ->  | C29: =#REF! ->  | D29: ='Charges Summary'!D$185 ->  | E29: ='Charges Summary'!E$185 ->  | F29: ='Charges Summary'!F$185 ->  | G29: ='Charges Summary'!G$185 ->  | H29: ='Charges Summary'!H$185 ->  | P29: =IF(C29=0,"",(D29/'Charges Summary'!D$4)/C29-1) ->  | Q29: =IF(D29=0,"",(E29/'Charges Summary'!E$4)/(D29/'Charges Summary'!D$4)-1) ->  | R29: =IF(E29=0,"",(F29/'Charges Summary'!F$4)/(E29/'Charges Summary'!E$4)-1) ->  | S29: =IF(F29=0,"",(G29/'Charges Summary'!G$4)/(F29/'Charges Summary'!F$4)-1) ->  | T29: =IF(G29=0,"",(H29/'Charges Summary'!H$4)/(G29/'Charges Summary'!G$4)-1) ->  | V29: =SUM(#REF!)/5 ->  | Y29: 55.43821715 | Z29: 60.81389425 | AA29: 65.4371038 | AB29: 69.55551873 | AC29: 72.67554602
A30: =#REF! ->  | C30: =#REF! ->  | D30: =IF(#REF!=#REF!,D$23,D$24)*#REF! ->  | E30: =IF(#REF!=#REF!,E$23,E$24)*#REF! ->  | F30: =IF(#REF!=#REF!,F$23,F$24)*#REF! ->  | G30: =IF(#REF!=#REF!,G$23,G$24)*#REF! ->  | H30: =IF(#REF!=#REF!,H$23,H$24)*#REF! ->  | P30: =IF(C30=0,"",(D30/'Charges Summary'!D$4)/C30-1) ->  | Q30: =IF(D30=0,"",(E30/'Charges Summary'!E$4)/(D30/'Charges Summary'!D$4)-1) ->  | R30: =IF(E30=0,"",(F30/'Charges Summary'!F$4)/(E30/'Charges Summary'!E$4)-1) ->  | S30: =IF(F30=0,"",(G30/'Charges Summary'!G$4)/(F30/'Charges Summary'!F$4)-1) ->  | T30: =IF(G30=0,"",(H30/'Charges Summary'!H$4)/(G30/'Charges Summary'!G$4)-1) ->  | V30: =SUM(#REF!)/5 ->  | Y30: 45.33933116 | Z30: 48.01947854 | AA30: 50.4381023 | AB30: 52.73381181 | AC30: 54.70895367
A31: =#REF! ->  | C31: =#REF! ->  | D31: =IF(#REF!=#REF!,D$23,D$24)*#REF! ->  | E31: =IF(#REF!=#REF!,E$23,E$24)*#REF! ->  | F31: =IF(#REF!=#REF!,F$23,F$24)*#REF! ->  | G31: =IF(#REF!=#REF!,G$23,G$24)*#REF! ->  | H31: =IF(#REF!=#REF!,H$23,H$24)*#REF! ->  | P31: =IF(C31=0,"",(D31/'Charges Summary'!D$4)/C31-1) ->  | Q31: =IF(D31=0,"",(E31/'Charges Summary'!E$4)/(D31/'Charges Summary'!D$4)-1) ->  | R31: =IF(E31=0,"",(F31/'Charges Summary'!F$4)/(E31/'Charges Summary'!E$4)-1) ->  | S31: =IF(F31=0,"",(G31/'Charges Summary'!G$4)/(F31/'Charges Summary'!F$4)-1) ->  | T31: =IF(G31=0,"",(H31/'Charges Summary'!H$4)/(G31/'Charges Summary'!G$4)-1) ->  | V31: =SUM(#REF!)/5 ->  | Y31: 45.33933116 | Z31: 48.01947854 | AA31: 50.4381023 | AB31: 52.73381181 | AC31: 54.70895367
A32: =#REF! ->  | C32: =#REF! ->  | D32: ='Charges Summary'!D$201 ->  | E32: ='Charges Summary'!E$201 ->  | F32: ='Charges Summary'!F$201 ->  | G32: ='Charges Summary'!G$201 ->  | H32: ='Charges Summary'!H$201 ->  | P32: =IF(C32=0,"",(D32/'Charges Summary'!D$4)/C32-1) ->  | Q32: =IF(D32=0,"",(E32/'Charges Summary'!E$4)/(D32/'Charges Summary'!D$4)-1) ->  | R32: =IF(E32=0,"",(F32/'Charges Summary'!F$4)/(E32/'Charges Summary'!E$4)-1) ->  | S32: =IF(F32=0,"",(G32/'Charges Summary'!G$4)/(F32/'Charges Summary'!F$4)-1) ->  | T32: =IF(G32=0,"",(H32/'Charges Summary'!H$4)/(G32/'Charges Summary'!G$4)-1) ->  | V32: =SUM(#REF!)/5 ->  | W32: =V32/V$35 ->  | Y32: 59.78002868 | Z32: 63.83037371 | AA32: 67.42078437 | AB32: 70.7400993 | AC32: 73.466102 | AE32: =D32-Y32 -> 
A33: =#REF! ->  | C33: =#REF! ->  | D33: ='Charges Summary'!D$217 ->  | E33: ='Charges Summary'!E$217 ->  | F33: ='Charges Summary'!F$217 ->  | G33: ='Charges Summary'!G$217 ->  | H33: ='Charges Summary'!H$217 ->  | P33: =IF(C33=0,"",(D33/'Charges Summary'!D$4)/C33-1) ->  | Q33: =IF(D33=0,"",(E33/'Charges Summary'!E$4)/(D33/'Charges Summary'!D$4)-1) ->  | R33: =IF(E33=0,"",(F33/'Charges Summary'!F$4)/(E33/'Charges Summary'!E$4)-1) ->  | S33: =IF(F33=0,"",(G33/'Charges Summary'!G$4)/(F33/'Charges Summary'!F$4)-1) ->  | T33: =IF(G33=0,"",(H33/'Charges Summary'!H$4)/(G33/'Charges Summary'!G$4)-1) ->  | V33: =SUM(#REF!)/5 ->  | W33: =V33/V$35 ->  | Y33: 60.44470963 | Z33: 64.65432106 | AA33: 68.37523372 | AB33: 71.80221089 | AC33: 74.5958364
A34: =#REF! ->  | C34: =#REF! ->  | D34: ='Charges Summary'!D$233 ->  | E34: ='Charges Summary'!E$233 ->  | F34: ='Charges Summary'!F$233 ->  | G34: ='Charges Summary'!G$233 ->  | H34: ='Charges Summary'!H$233 ->  | P34: =IF(C34=0,"",(D34/'Charges Summary'!D$4)/C34-1) ->  | Q34: =IF(D34=0,"",(E34/'Charges Summary'!E$4)/(D34/'Charges Summary'!D$4)-1) ->  | R34: =IF(E34=0,"",(F34/'Charges Summary'!F$4)/(E34/'Charges Summary'!E$4)-1) ->  | S34: =IF(F34=0,"",(G34/'Charges Summary'!G$4)/(F34/'Charges Summary'!F$4)-1) ->  | T34: =IF(G34=0,"",(H34/'Charges Summary'!H$4)/(G34/'Charges Summary'!G$4)-1) ->  | V34: =SUM(#REF!)/5 ->  | W34: =V34/V$35 ->  | Y34: 66.39706046 | Z34: 72.03293433 | AA34: 76.92251852 | AB34: 81.31363264 | AC34: 84.71283386
V35: =SUM(V7:V34) -> 
A37: Total Revenue - Nominal ($,000) | D37: ='Cashflow Summary'!D7/10^3 ->  | E37: ='Cashflow Summary'!E7/10^3 ->  | F37: ='Cashflow Summary'!F7/10^3 ->  | G37: ='Cashflow Summary'!G7/10^3 ->  | H37: ='Cashflow Summary'!H7/10^3 ->  | R37: as such | Y37: 9912.928164 | Z37: 10207.06722 | AA37: 10531.95133 | AB37: 11014.92835 | AC37: 11550.29383 | AE37: =D37-Y37 ->  | AF37: =E37-Z37 ->  | AG37: =F37-AA37 ->  | AH37: =G37-AB37 ->  | AI37: =H37-AC37 -> 
AI39: =SUM(AE37:AI37)/SUM(Y37:AC37) -> 
D40: =#REF! ->  | V40: Average
A41: Public Lighting Tariffs | C41: Nominal Prices | J41: Nominal Price Movement | P41: Real Price Movement (Implied X Factor) | V41: Nubmer | W41: % of | Y41: =Y4 -> Revised Submission Model | AE41: Difference
C42: Actual | V42: of Lights | W42: Total Lights
A43: =#REF! ->  | C43: =EOMONTH(D43,-12) -> 2026-06-30 | D43: =Instructions!$B$16 -> 2027-06-30 | E43: =EOMONTH(D43,12) -> 2028-06-30 | F43: =EOMONTH(E43,12) -> 2029-06-30 | G43: =EOMONTH(F43,12) -> 2030-06-30 | H43: =EOMONTH(G43,12) -> 2031-06-30 | J43: =D43 -> 2027-06-30 | K43: =E43 -> 2028-06-30 | L43: =F43 -> 2029-06-30 | M43: =G43 -> 2030-06-30 | N43: =H43 -> 2031-06-30 | P43: =J43 -> 2027-06-30 | Q43: =K43 -> 2028-06-30 | R43: =L43 -> 2029-06-30 | S43: =M43 -> 2030-06-30 | T43: =N43 -> 2031-06-30 | V43: =Instructions!$B$20 -> 2027-31 | W43: =Instructions!$B$20 -> 2027-31 | Y43: =P43 -> 2027-06-30 | Z43: =Q43 -> 2028-06-30 | AA43: =R43 -> 2029-06-30 | AB43: =S43 -> 2030-06-30 | AC43: =T43 -> 2031-06-30 | AE43: =Y43 -> 2027-06-30 | AF43: =Z43 -> 2028-06-30 | AG43: =AA43 -> 2029-06-30 | AH43: =AB43 -> 2030-06-30 | AI43: =AC43 -> 2031-06-30
A44: =#REF! ->  | C44: =#REF! ->  | D44: ='Charges Summary'!K$31 ->  | E44: ='Charges Summary'!L$31 ->  | F44: ='Charges Summary'!M$31 ->  | G44: ='Charges Summary'!N$31 ->  | H44: ='Charges Summary'!O$31 ->  | J44: =IF(C44=0,"",D44/C44-1) ->  | K44: =IF(D44=0,"",E44/D44-1) ->  | L44: =IF(E44=0,"",F44/E44-1) ->  | M44: =IF(F44=0,"",G44/F44-1) ->  | N44: =IF(G44=0,"",H44/G44-1) ->  | P44: =IF(C44=0,"",(D44/'Charges Summary'!K$4)/C44-1) ->  | Q44: =IF(D44=0,"",(E44/'Charges Summary'!L$4)/(D44/'Charges Summary'!K$4)-1) ->  | R44: =IF(E44=0,"",(F44/'Charges Summary'!M$4)/(E44/'Charges Summary'!L$4)-1) ->  | S44: =IF(F44=0,"",(G44/'Charges Summary'!N$4)/(F44/'Charges Summary'!M$4)-1) ->  | T44: =IF(G44=0,"",(H44/'Charges Summary'!O$4)/(G44/'Charges Summary'!N$4)-1) ->  | V44: =SUM(#REF!)/5 ->  | W44: =V44/V$35 ->  | Y44: 68.542872 | Z44: 70.12690138 | AA44: 71.12620399 | AB44: 77.50073941 | AC44: 79.1233014 | AE44: =D44-Y44 ->  | AF44: =E44-Z44 ->  | AG44: =F44-AA44 ->  | AH44: =G44-AB44 ->  | AI44: =H44-AC44 -> 
A45: =#REF! ->  | C45: =#REF! ->  | D45: ='Charges Summary'!K$55 ->  | E45: ='Charges Summary'!L$55 ->  | F45: ='Charges Summary'!M$55 ->  | G45: ='Charges Summary'!N$55 ->  | H45: ='Charges Summary'!O$55 ->  | P45: =IF(C45=0,"",(D45/'Charges Summary'!K$4)/C45-1) ->  | Q45: =IF(D45=0,"",(E45/'Charges Summary'!L$4)/(D45/'Charges Summary'!K$4)-1) ->  | R45: =IF(E45=0,"",(F45/'Charges Summary'!M$4)/(E45/'Charges Summary'!L$4)-1) ->  | S45: =IF(F45=0,"",(G45/'Charges Summary'!N$4)/(F45/'Charges Summary'!M$4)-1) ->  | T45: =IF(G45=0,"",(H45/'Charges Summary'!O$4)/(G45/'Charges Summary'!N$4)-1) ->  | V45: =SUM(#REF!)/5 ->  | W45: =V45/V$35 ->  | Y45: 134.3463528 | Z45: 137.6980233 | AA45: 139.5209989 | AB45: 148.6730864 | AC45: 152.6222837
A46: =#REF! ->  | C46: =#REF! ->  | D46: ='Charges Summary'!K$71 ->  | E46: ='Charges Summary'!L$71 ->  | F46: ='Charges Summary'!M$71 ->  | G46: ='Charges Summary'!N$71 ->  | H46: ='Charges Summary'!O$71 ->  | P46: =IF(C46=0,"",(D46/'Charges Summary'!K$4)/C46-1) ->  | Q46: =IF(D46=0,"",(E46/'Charges Summary'!L$4)/(D46/'Charges Summary'!K$4)-1) ->  | R46: =IF(E46=0,"",(F46/'Charges Summary'!M$4)/(E46/'Charges Summary'!L$4)-1) ->  | S46: =IF(F46=0,"",(G46/'Charges Summary'!N$4)/(F46/'Charges Summary'!M$4)-1) ->  | T46: =IF(G46=0,"",(H46/'Charges Summary'!O$4)/(G46/'Charges Summary'!N$4)-1) ->  | V46: =SUM(#REF!)/5 ->  | Y46: 134.1670687 | Z46: 137.5988638 | AA46: 139.9479253 | AB46: 149.2014912 | AC46: 153.1009187
A47: =#REF! ->  | C47: =#REF! ->  | D47: =IF(#REF!=#REF!,D$44,IF(#REF!=#REF!,D$45,D$46))*#REF! ->  | E47: =IF(#REF!=#REF!,E$44,IF(#REF!=#REF!,E$45,E$46))*#REF! ->  | F47: =IF(#REF!=#REF!,F$44,IF(#REF!=#REF!,F$45,F$46))*#REF! ->  | G47: =IF(#REF!=#REF!,G$44,IF(#REF!=#REF!,G$45,G$46))*#REF! ->  | H47: =IF(#REF!=#REF!,H$44,IF(#REF!=#REF!,H$45,H$46))*#REF! ->  | P47: =IF(C47=0,"",(D47/'Charges Summary'!K$4)/C47-1) ->  | Q47: =IF(D47=0,"",(E47/'Charges Summary'!L$4)/(D47/'Charges Summary'!K$4)-1) ->  | R47: =IF(E47=0,"",(F47/'Charges Summary'!M$4)/(E47/'Charges Summary'!L$4)-1) ->  | S47: =IF(F47=0,"",(G47/'Charges Summary'!N$4)/(F47/'Charges Summary'!M$4)-1) ->  | T47: =IF(G47=0,"",(H47/'Charges Summary'!O$4)/(G47/'Charges Summary'!N$4)-1) ->  | V47: =SUM(#REF!)/5 ->  | Y47: 101.4434506 | Z47: 103.787814 | AA47: 105.2667819 | AB47: 114.7010943 | AC47: 117.1024861
A48: =#REF! ->  | C48: =#REF! ->  | D48: =IF(#REF!=#REF!,D$44,IF(#REF!=#REF!,D$45,D$46))*#REF! ->  | E48: =IF(#REF!=#REF!,E$44,IF(#REF!=#REF!,E$45,E$46))*#REF! ->  | F48: =IF(#REF!=#REF!,F$44,IF(#REF!=#REF!,F$45,F$46))*#REF! ->  | G48: =IF(#REF!=#REF!,G$44,IF(#REF!=#REF!,G$45,G$46))*#REF! ->  | H48: =IF(#REF!=#REF!,H$44,IF(#REF!=#REF!,H$45,H$46))*#REF! ->  | P48: =IF(C48=0,"",(D48/'Charges Summary'!K$4)/C48-1) ->  | Q48: =IF(D48=0,"",(E48/'Charges Summary'!L$4)/(D48/'Charges Summary'!K$4)-1) ->  | R48: =IF(E48=0,"",(F48/'Charges Summary'!M$4)/(E48/'Charges Summary'!L$4)-1) ->  | S48: =IF(F48=0,"",(G48/'Charges Summary'!N$4)/(F48/'Charges Summary'!M$4)-1) ->  | T48: =IF(G48=0,"",(H48/'Charges Summary'!O$4)/(G48/'Charges Summary'!N$4)-1) ->  | V48: =SUM(#REF!)/5 ->  | Y48: 101.4434506 | Z48: 103.787814 | AA48: 105.2667819 | AB48: 114.7010943 | AC48: 117.1024861
A49: =#REF! ->  | C49: =#REF! ->  | D49: =IF(#REF!=#REF!,D$44,IF(#REF!=#REF!,D$45,D$46))*#REF! ->  | E49: =IF(#REF!=#REF!,E$44,IF(#REF!=#REF!,E$45,E$46))*#REF! ->  | F49: =IF(#REF!=#REF!,F$44,IF(#REF!=#REF!,F$45,F$46))*#REF! ->  | G49: =IF(#REF!=#REF!,G$44,IF(#REF!=#REF!,G$45,G$46))*#REF! ->  | H49: =IF(#REF!=#REF!,H$44,IF(#REF!=#REF!,H$45,H$46))*#REF! ->  | P49: =IF(C49=0,"",(D49/'Charges Summary'!K$4)/C49-1) ->  | Q49: =IF(D49=0,"",(E49/'Charges Summary'!L$4)/(D49/'Charges Summary'!K$4)-1) ->  | R49: =IF(E49=0,"",(F49/'Charges Summary'!M$4)/(E49/'Charges Summary'!L$4)-1) ->  | S49: =IF(F49=0,"",(G49/'Charges Summary'!N$4)/(F49/'Charges Summary'!M$4)-1) ->  | T49: =IF(G49=0,"",(H49/'Charges Summary'!O$4)/(G49/'Charges Summary'!N$4)-1) ->  | V49: =SUM(#REF!)/5 ->  | Y49: 139.5337514 | Z49: 143.1028184 | AA49: 145.5458423 | AB49: 155.1695508 | AC49: 159.2249554
A50: =#REF! ->  | C50: =#REF! ->  | D50: =IF(#REF!=#REF!,D$44,IF(#REF!=#REF!,D$45,D$46))*#REF! ->  | E50: =IF(#REF!=#REF!,E$44,IF(#REF!=#REF!,E$45,E$46))*#REF! ->  | F50: =IF(#REF!=#REF!,F$44,IF(#REF!=#REF!,F$45,F$46))*#REF! ->  | G50: =IF(#REF!=#REF!,G$44,IF(#REF!=#REF!,G$45,G$46))*#REF! ->  | H50: =IF(#REF!=#REF!,H$44,IF(#REF!=#REF!,H$45,H$46))*#REF! ->  | P50: =IF(C50=0,"",(D50/'Charges Summary'!K$4)/C50-1) ->  | Q50: =IF(D50=0,"",(E50/'Charges Summary'!L$4)/(D50/'Charges Summary'!K$4)-1) ->  | R50: =IF(E50=0,"",(F50/'Charges Summary'!M$4)/(E50/'Charges Summary'!L$4)-1) ->  | S50: =IF(F50=0,"",(G50/'Charges Summary'!N$4)/(F50/'Charges Summary'!M$4)-1) ->  | T50: =IF(G50=0,"",(H50/'Charges Summary'!O$4)/(G50/'Charges Summary'!N$4)-1) ->  | V50: =SUM(#REF!)/5 ->  | Y50: 143.5587635 | Z50: 147.2307843 | AA50: 149.7442801 | AB50: 159.6455956 | AC50: 163.817983
A51: =#REF! ->  | C51: =#REF! ->  | D51: =IF(#REF!=#REF!,D$44,IF(#REF!=#REF!,D$45,D$46))*#REF! ->  | E51: =IF(#REF!=#REF!,E$44,IF(#REF!=#REF!,E$45,E$46))*#REF! ->  | F51: =IF(#REF!=#REF!,F$44,IF(#REF!=#REF!,F$45,F$46))*#REF! ->  | G51: =IF(#REF!=#REF!,G$44,IF(#REF!=#REF!,G$45,G$46))*#REF! ->  | H51: =IF(#REF!=#REF!,H$44,IF(#REF!=#REF!,H$45,H$46))*#REF! ->  | P51: =IF(C51=0,"",(D51/'Charges Summary'!K$4)/C51-1) ->  | Q51: =IF(D51=0,"",(E51/'Charges Summary'!L$4)/(D51/'Charges Summary'!K$4)-1) ->  | R51: =IF(E51=0,"",(F51/'Charges Summary'!M$4)/(E51/'Charges Summary'!L$4)-1) ->  | S51: =IF(F51=0,"",(G51/'Charges Summary'!N$4)/(F51/'Charges Summary'!M$4)-1) ->  | T51: =IF(G51=0,"",(H51/'Charges Summary'!O$4)/(G51/'Charges Summary'!N$4)-1) ->  | V51: =SUM(#REF!)/5 ->  | Y51: 143.7505975 | Z51: 147.3368849 | AA51: 149.2874689 | AB51: 159.0802024 | AC51: 163.3058436
A52: =#REF! ->  | C52: =#REF! ->  | D52: =IF(#REF!=#REF!,D$44,IF(#REF!=#REF!,D$45,D$46))*#REF! ->  | E52: =IF(#REF!=#REF!,E$44,IF(#REF!=#REF!,E$45,E$46))*#REF! ->  | F52: =IF(#REF!=#REF!,F$44,IF(#REF!=#REF!,F$45,F$46))*#REF! ->  | G52: =IF(#REF!=#REF!,G$44,IF(#REF!=#REF!,G$45,G$46))*#REF! ->  | H52: =IF(#REF!=#REF!,H$44,IF(#REF!=#REF!,H$45,H$46))*#REF! ->  | P52: =IF(C52=0,"",(D52/'Charges Summary'!K$4)/C52-1) ->  | Q52: =IF(D52=0,"",(E52/'Charges Summary'!L$4)/(D52/'Charges Summary'!K$4)-1) ->  | R52: =IF(E52=0,"",(F52/'Charges Summary'!M$4)/(E52/'Charges Summary'!L$4)-1) ->  | S52: =IF(F52=0,"",(G52/'Charges Summary'!N$4)/(F52/'Charges Summary'!M$4)-1) ->  | T52: =IF(G52=0,"",(H52/'Charges Summary'!O$4)/(G52/'Charges Summary'!N$4)-1) ->  | V52: =SUM(#REF!)/5 ->  | Y52: 190.5172375 | Z52: 195.3903867 | AA52: 198.7260539 | AB52: 211.8661175 | AC52: 217.4033046
A53: =#REF! ->  | C53: =#REF! ->  | D53: =IF(#REF!=#REF!,D$44,IF(#REF!=#REF!,D$45,D$46))*#REF! ->  | E53: =IF(#REF!=#REF!,E$44,IF(#REF!=#REF!,E$45,E$46))*#REF! ->  | F53: =IF(#REF!=#REF!,F$44,IF(#REF!=#REF!,F$45,F$46))*#REF! ->  | G53: =IF(#REF!=#REF!,G$44,IF(#REF!=#REF!,G$45,G$46))*#REF! ->  | H53: =IF(#REF!=#REF!,H$44,IF(#REF!=#REF!,H$45,H$46))*#REF! ->  | J53: =IF(C53=0,"",D53/C53-1) ->  | P53: =IF(C53=0,"",(D53/'Charges Summary'!K$4)/C53-1) ->  | Q53: =IF(D53=0,"",(E53/'Charges Summary'!L$4)/(D53/'Charges Summary'!K$4)-1) ->  | R53: =IF(E53=0,"",(F53/'Charges Summary'!M$4)/(E53/'Charges Summary'!L$4)-1) ->  | S53: =IF(F53=0,"",(G53/'Charges Summary'!N$4)/(F53/'Charges Summary'!M$4)-1) ->  | T53: =IF(G53=0,"",(H53/'Charges Summary'!O$4)/(G53/'Charges Summary'!N$4)-1) ->  | V53: =SUM(#REF!)/5 ->  | Y53: 260.7673836 | Z53: 266.7937315 | AA53: 270.5955204 | AB53: 294.8470709 | AC53: 301.0200139
A54: =#REF! ->  | C54: =#REF! ->  | D54: =IF(#REF!=#REF!,D$44,IF(#REF!=#REF!,D$45,D$46))*#REF! ->  | E54: =IF(#REF!=#REF!,E$44,IF(#REF!=#REF!,E$45,E$46))*#REF! ->  | F54: =IF(#REF!=#REF!,F$44,IF(#REF!=#REF!,F$45,F$46))*#REF! ->  | G54: =IF(#REF!=#REF!,G$44,IF(#REF!=#REF!,G$45,G$46))*#REF! ->  | H54: =IF(#REF!=#REF!,H$44,IF(#REF!=#REF!,H$45,H$46))*#REF! ->  | P54: =IF(C54=0,"",(D54/'Charges Summary'!K$4)/C54-1) ->  | Q54: =IF(D54=0,"",(E54/'Charges Summary'!L$4)/(D54/'Charges Summary'!K$4)-1) ->  | R54: =IF(E54=0,"",(F54/'Charges Summary'!M$4)/(E54/'Charges Summary'!L$4)-1) ->  | S54: =IF(F54=0,"",(G54/'Charges Summary'!N$4)/(F54/'Charges Summary'!M$4)-1) ->  | T54: =IF(G54=0,"",(H54/'Charges Summary'!O$4)/(G54/'Charges Summary'!N$4)-1) ->  | V54: =SUM(#REF!)/5 ->  | Y54: 284.552173 | Z54: 291.6511756 | AA54: 295.5123276 | AB54: 314.8968983 | AC54: 323.2614922
A55: =#REF! ->  | C55: =#REF! ->  | D55: =IF(#REF!=#REF!,D$44,IF(#REF!=#REF!,D$45,D$46))*#REF! ->  | E55: =IF(#REF!=#REF!,E$44,IF(#REF!=#REF!,E$45,E$46))*#REF! ->  | F55: =IF(#REF!=#REF!,F$44,IF(#REF!=#REF!,F$45,F$46))*#REF! ->  | G55: =IF(#REF!=#REF!,G$44,IF(#REF!=#REF!,G$45,G$46))*#REF! ->  | H55: =IF(#REF!=#REF!,H$44,IF(#REF!=#REF!,H$45,H$46))*#REF! ->  | P55: =IF(C55=0,"",(D55/'Charges Summary'!K$4)/C55-1) ->  | Q55: =IF(D55=0,"",(E55/'Charges Summary'!L$4)/(D55/'Charges Summary'!K$4)-1) ->  | R55: =IF(E55=0,"",(F55/'Charges Summary'!M$4)/(E55/'Charges Summary'!L$4)-1) ->  | S55: =IF(F55=0,"",(G55/'Charges Summary'!N$4)/(F55/'Charges Summary'!M$4)-1) ->  | T55: =IF(G55=0,"",(H55/'Charges Summary'!O$4)/(G55/'Charges Summary'!N$4)-1) ->  | V55: =SUM(#REF!)/5 ->  | Y55: 323.2769339 | Z55: 331.3420412 | AA55: 335.7286581 | AB55: 357.7512788 | AC55: 367.2542119
A56: =#REF! ->  | C56: =#REF! ->  | D56: =IF(#REF!=#REF!,D$44,IF(#REF!=#REF!,D$45,D$46))*#REF! ->  | E56: =IF(#REF!=#REF!,E$44,IF(#REF!=#REF!,E$45,E$46))*#REF! ->  | F56: =IF(#REF!=#REF!,F$44,IF(#REF!=#REF!,F$45,F$46))*#REF! ->  | G56: =IF(#REF!=#REF!,G$44,IF(#REF!=#REF!,G$45,G$46))*#REF! ->  | H56: =IF(#REF!=#REF!,H$44,IF(#REF!=#REF!,H$45,H$46))*#REF! ->  | P56: =IF(C56=0,"",(D56/'Charges Summary'!K$4)/C56-1) ->  | Q56: =IF(D56=0,"",(E56/'Charges Summary'!L$4)/(D56/'Charges Summary'!K$4)-1) ->  | R56: =IF(E56=0,"",(F56/'Charges Summary'!M$4)/(E56/'Charges Summary'!L$4)-1) ->  | S56: =IF(F56=0,"",(G56/'Charges Summary'!N$4)/(F56/'Charges Summary'!M$4)-1) ->  | T56: =IF(G56=0,"",(H56/'Charges Summary'!O$4)/(G56/'Charges Summary'!N$4)-1) ->  | V56: =SUM(#REF!)/5 ->  | Y56: 61.09125774 | Z56: 62.61536136 | AA56: 63.44432227 | AB56: 67.60604697 | AC56: 69.40186372
A59: =#REF! -> 
A60: =#REF! ->  | C60: =#REF! ->  | D60: ='Charges Summary'!K$89 ->  | E60: ='Charges Summary'!L$89 ->  | F60: ='Charges Summary'!M$89 ->  | G60: ='Charges Summary'!N$89 ->  | H60: ='Charges Summary'!O$89 ->  | J60: =IF(C60=0,"",D60/C60-1) ->  | P60: =IF(C60=0,"",(D60/'Charges Summary'!K$4)/C60-1) ->  | Q60: =IF(D60=0,"",(E60/'Charges Summary'!L$4)/(D60/'Charges Summary'!K$4)-1) ->  | R60: =IF(E60=0,"",(F60/'Charges Summary'!M$4)/(E60/'Charges Summary'!L$4)-1) ->  | S60: =IF(F60=0,"",(G60/'Charges Summary'!N$4)/(F60/'Charges Summary'!M$4)-1) ->  | T60: =IF(G60=0,"",(H60/'Charges Summary'!O$4)/(G60/'Charges Summary'!N$4)-1) ->  | V60: =SUM(#REF!)/5 ->  | W60: =V60/V$35 ->  | Y60: 57.41341852 | Z60: 60.60915495 | AA60: 63.51641311 | AB60: 66.3023124 | AC60: 68.74276848 | AE60: =D60-Y60 ->  | AF60: =E60-Z60 ->  | AG60: =F60-AA60 ->  | AH60: =G60-AB60 ->  | AI60: =H60-AC60 -> 
A61: =#REF! ->  | C61: =#REF! ->  | D61: ='Charges Summary'!K$105 ->  | E61: ='Charges Summary'!L$105 ->  | F61: ='Charges Summary'!M$105 ->  | G61: ='Charges Summary'!N$105 ->  | H61: ='Charges Summary'!O$105 ->  | P61: =IF(C61=0,"",(D61/'Charges Summary'!K$4)/C61-1) ->  | Q61: =IF(D61=0,"",(E61/'Charges Summary'!L$4)/(D61/'Charges Summary'!K$4)-1) ->  | R61: =IF(E61=0,"",(F61/'Charges Summary'!M$4)/(E61/'Charges Summary'!L$4)-1) ->  | S61: =IF(F61=0,"",(G61/'Charges Summary'!N$4)/(F61/'Charges Summary'!M$4)-1) ->  | T61: =IF(G61=0,"",(H61/'Charges Summary'!O$4)/(G61/'Charges Summary'!N$4)-1) ->  | V61: =SUM(#REF!)/5 ->  | Y61: 61.48425566 | Z61: 64.82998361 | AA61: 67.88613071 | AB61: 70.82708302 | AC61: 73.4241225
A62: =#REF! ->  | C62: =#REF! ->  | D62: ='Charges Summary'!K$121 ->  | E62: ='Charges Summary'!L$121 ->  | F62: ='Charges Summary'!M$121 ->  | G62: ='Charges Summary'!N$121 ->  | H62: ='Charges Summary'!O$121 ->  | J62: =IF(C62=0,"",D62/C62-1) ->  | K62: =IF(D62=0,"",E62/D62-1) ->  | L62: =IF(E62=0,"",F62/E62-1) ->  | M62: =IF(F62=0,"",G62/F62-1) ->  | N62: =IF(G62=0,"",H62/G62-1) ->  | P62: =IF(C62=0,"",(D62/'Charges Summary'!K$4)/C62-1) ->  | Q62: =IF(D62=0,"",(E62/'Charges Summary'!L$4)/(D62/'Charges Summary'!K$4)-1) ->  | R62: =IF(E62=0,"",(F62/'Charges Summary'!M$4)/(E62/'Charges Summary'!L$4)-1) ->  | S62: =IF(F62=0,"",(G62/'Charges Summary'!N$4)/(F62/'Charges Summary'!M$4)-1) ->  | T62: =IF(G62=0,"",(H62/'Charges Summary'!O$4)/(G62/'Charges Summary'!N$4)-1) ->  | V62: =SUM(#REF!)/5 ->  | Y62: 31.35545768 | Z62: 33.53417642 | AA62: 35.44381828 | AB62: 37.20317285 | AC62: 38.62482224
A63: =#REF! ->  | C63: =#REF! ->  | D63: ='Charges Summary'!K$137 ->  | E63: ='Charges Summary'!L$137 ->  | F63: ='Charges Summary'!M$137 ->  | G63: ='Charges Summary'!N$137 ->  | H63: ='Charges Summary'!O$137 ->  | J63: =IF(C63=0,"",D63/C63-1) ->  | P63: =IF(C63=0,"",(D63/'Charges Summary'!K$4)/C63-1) ->  | Q63: =IF(D63=0,"",(E63/'Charges Summary'!L$4)/(D63/'Charges Summary'!K$4)-1) ->  | R63: =IF(E63=0,"",(F63/'Charges Summary'!M$4)/(E63/'Charges Summary'!L$4)-1) ->  | S63: =IF(F63=0,"",(G63/'Charges Summary'!N$4)/(F63/'Charges Summary'!M$4)-1) ->  | T63: =IF(G63=0,"",(H63/'Charges Summary'!O$4)/(G63/'Charges Summary'!N$4)-1) ->  | V63: =SUM(#REF!)/5 ->  | Y63: 33.11066226 | Z63: 35.33554105 | AA63: 37.29401184 | AB63: 39.10681949 | AC63: 40.58662708
A64: =#REF! ->  | C64: =#REF! ->  | D64: ='Charges Summary'!K$153 ->  | E64: ='Charges Summary'!L$153 ->  | F64: ='Charges Summary'!M$153 ->  | G64: ='Charges Summary'!N$153 ->  | H64: ='Charges Summary'!O$153 ->  | P64: =IF(C64=0,"",(D64/'Charges Summary'!K$4)/C64-1) ->  | Q64: =IF(D64=0,"",(E64/'Charges Summary'!L$4)/(D64/'Charges Summary'!K$4)-1) ->  | R64: =IF(E64=0,"",(F64/'Charges Summary'!M$4)/(E64/'Charges Summary'!L$4)-1) ->  | S64: =IF(F64=0,"",(G64/'Charges Summary'!N$4)/(F64/'Charges Summary'!M$4)-1) ->  | T64: =IF(G64=0,"",(H64/'Charges Summary'!O$4)/(G64/'Charges Summary'!N$4)-1) ->  | V64: =SUM(#REF!)/5 ->  | Y64: 56.37649942 | Z64: 60.36418532 | AA64: 63.89881606 | AB64: 67.18240268 | AC64: 69.8933338
A65: =#REF! ->  | C65: =#REF! ->  | D65: ='Charges Summary'!K$169 ->  | E65: ='Charges Summary'!L$169 ->  | F65: ='Charges Summary'!M$169 ->  | G65: ='Charges Summary'!N$169 ->  | H65: ='Charges Summary'!O$169 ->  | P65: =IF(C65=0,"",(D65/'Charges Summary'!K$4)/C65-1) ->  | Q65: =IF(D65=0,"",(E65/'Charges Summary'!L$4)/(D65/'Charges Summary'!K$4)-1) ->  | R65: =IF(E65=0,"",(F65/'Charges Summary'!M$4)/(E65/'Charges Summary'!L$4)-1) ->  | S65: =IF(F65=0,"",(G65/'Charges Summary'!N$4)/(F65/'Charges Summary'!M$4)-1) ->  | T65: =IF(G65=0,"",(H65/'Charges Summary'!O$4)/(G65/'Charges Summary'!N$4)-1) ->  | V65: =SUM(#REF!)/5 ->  | Y65: 57.04118037 | Z65: 61.18813267 | AA65: 64.85326541 | AB65: 68.24451428 | AC65: 71.0230682
A66: =#REF! ->  | C66: =#REF! ->  | D66: ='Charges Summary'!K$185 ->  | E66: ='Charges Summary'!L$185 ->  | F66: ='Charges Summary'!M$185 ->  | G66: ='Charges Summary'!N$185 ->  | H66: ='Charges Summary'!O$185 ->  | P66: =IF(C66=0,"",(D66/'Charges Summary'!K$4)/C66-1) ->  | Q66: =IF(D66=0,"",(E66/'Charges Summary'!L$4)/(D66/'Charges Summary'!K$4)-1) ->  | R66: =IF(E66=0,"",(F66/'Charges Summary'!M$4)/(E66/'Charges Summary'!L$4)-1) ->  | S66: =IF(F66=0,"",(G66/'Charges Summary'!N$4)/(F66/'Charges Summary'!M$4)-1) ->  | T66: =IF(G66=0,"",(H66/'Charges Summary'!O$4)/(G66/'Charges Summary'!N$4)-1) ->  | V66: =SUM(#REF!)/5 ->  | Y66: 62.9935312 | Z66: 68.56674593 | AA66: 73.40055021 | AB66: 77.75593603 | AC66: 81.14006565
A67: =#REF! ->  | C67: =#REF! ->  | D67: =IF(#REF!=#REF!,D$60,D$61)*#REF! ->  | E67: =IF(#REF!=#REF!,E$60,E$61)*#REF! ->  | F67: =IF(#REF!=#REF!,F$60,F$61)*#REF! ->  | G67: =IF(#REF!=#REF!,G$60,G$61)*#REF! ->  | H67: =IF(#REF!=#REF!,H$60,H$61)*#REF! ->  | P67: =IF(C67=0,"",(D67/'Charges Summary'!K$4)/C67-1) ->  | Q67: =IF(D67=0,"",(E67/'Charges Summary'!L$4)/(D67/'Charges Summary'!K$4)-1) ->  | R67: =IF(E67=0,"",(F67/'Charges Summary'!M$4)/(E67/'Charges Summary'!L$4)-1) ->  | S67: =IF(F67=0,"",(G67/'Charges Summary'!N$4)/(F67/'Charges Summary'!M$4)-1) ->  | T67: =IF(G67=0,"",(H67/'Charges Summary'!O$4)/(G67/'Charges Summary'!N$4)-1) ->  | V67: =SUM(#REF!)/5 ->  | Y67: 50.5014109 | Z67: 53.31241227 | AA67: 55.86966531 | AB67: 58.32016988 | AC67: 60.46681919
A68: =#REF! ->  | C68: =#REF! ->  | D68: =IF(#REF!=#REF!,D$60,D$61)*#REF! ->  | E68: =IF(#REF!=#REF!,E$60,E$61)*#REF! ->  | F68: =IF(#REF!=#REF!,F$60,F$61)*#REF! ->  | G68: =IF(#REF!=#REF!,G$60,G$61)*#REF! ->  | H68: =IF(#REF!=#REF!,H$60,H$61)*#REF! ->  | P68: =IF(C68=0,"",(D68/'Charges Summary'!K$4)/C68-1) ->  | Q68: =IF(D68=0,"",(E68/'Charges Summary'!L$4)/(D68/'Charges Summary'!K$4)-1) ->  | R68: =IF(E68=0,"",(F68/'Charges Summary'!M$4)/(E68/'Charges Summary'!L$4)-1) ->  | S68: =IF(F68=0,"",(G68/'Charges Summary'!N$4)/(F68/'Charges Summary'!M$4)-1) ->  | T68: =IF(G68=0,"",(H68/'Charges Summary'!O$4)/(G68/'Charges Summary'!N$4)-1) ->  | V68: =SUM(#REF!)/5 ->  | W68: =V68/V$35 ->  | Y68: 50.5014109 | Z68: 53.31241227 | AA68: 55.86966531 | AB68: 58.32016988 | AC68: 60.46681919
A69: =#REF! ->  | C69: =#REF! ->  | D69: ='Charges Summary'!K$201 ->  | E69: ='Charges Summary'!L$201 ->  | F69: ='Charges Summary'!M$201 ->  | G69: ='Charges Summary'!N$201 ->  | H69: ='Charges Summary'!O$201 ->  | P69: =IF(C69=0,"",(D69/'Charges Summary'!K$4)/C69-1) ->  | Q69: =IF(D69=0,"",(E69/'Charges Summary'!L$4)/(D69/'Charges Summary'!K$4)-1) ->  | R69: =IF(E69=0,"",(F69/'Charges Summary'!M$4)/(E69/'Charges Summary'!L$4)-1) ->  | S69: =IF(F69=0,"",(G69/'Charges Summary'!N$4)/(F69/'Charges Summary'!M$4)-1) ->  | T69: =IF(G69=0,"",(H69/'Charges Summary'!O$4)/(G69/'Charges Summary'!N$4)-1) ->  | V69: =SUM(#REF!)/5 ->  | W69: =V69/V$35 ->  | Y69: 67.64759213 | Z69: 71.90288856 | AA69: 75.71148373 | AB69: 79.27553955 | AC69: 82.27359906 | AE69: =D69-Y69 -> 
A70: =#REF! ->  | C70: =#REF! ->  | D70: ='Charges Summary'!K$217 ->  | E70: ='Charges Summary'!L$217 ->  | F70: ='Charges Summary'!M$217 ->  | G70: ='Charges Summary'!N$217 ->  | H70: ='Charges Summary'!O$217 ->  | P70: =IF(C70=0,"",(D70/'Charges Summary'!K$4)/C70-1) ->  | Q70: =IF(D70=0,"",(E70/'Charges Summary'!L$4)/(D70/'Charges Summary'!K$4)-1) ->  | R70: =IF(E70=0,"",(F70/'Charges Summary'!M$4)/(E70/'Charges Summary'!L$4)-1) ->  | S70: =IF(F70=0,"",(G70/'Charges Summary'!N$4)/(F70/'Charges Summary'!M$4)-1) ->  | T70: =IF(G70=0,"",(H70/'Charges Summary'!O$4)/(G70/'Charges Summary'!N$4)-1) ->  | V70: =SUM(#REF!)/5 ->  | W70: =V70/V$35 ->  | Y70: 68.31227308 | Z70: 72.72683591 | AA70: 76.66593308 | AB70: 80.33765114 | AC70: 83.40333346
A71: =#REF! ->  | C71: =#REF! ->  | D71: ='Charges Summary'!K$233 ->  | E71: ='Charges Summary'!L$233 ->  | F71: ='Charges Summary'!M$233 ->  | G71: ='Charges Summary'!N$233 ->  | H71: ='Charges Summary'!O$233 ->  | P71: =IF(C71=0,"",(D71/'Charges Summary'!K$4)/C71-1) ->  | Q71: =IF(D71=0,"",(E71/'Charges Summary'!L$4)/(D71/'Charges Summary'!K$4)-1) ->  | R71: =IF(E71=0,"",(F71/'Charges Summary'!M$4)/(E71/'Charges Summary'!L$4)-1) ->  | S71: =IF(F71=0,"",(G71/'Charges Summary'!N$4)/(F71/'Charges Summary'!M$4)-1) ->  | T71: =IF(G71=0,"",(H71/'Charges Summary'!O$4)/(G71/'Charges Summary'!N$4)-1) ->  | V71: =SUM(#REF!)/5 ->  | W71: =V71/V$35 ->  | Y71: 74.26462391 | Z71: 80.10544917 | AA71: 85.21321788 | AB71: 89.84907289 | AC71: 93.52033092
V72: =SUM(V44:V71) -> 

Sheet PL Tariff Components (hidden)
A1: ='DNSP Inputs O&M'!$A$3 -> AusNet | E1: Global Check | F1: =IF(SUM('Total RAB'!F1,'Depn & WACC Post 2004 N & E'!F1,'Depn & WACC Post 2004 Central'!F1,'Cashflow Summary'!F1,W1)<1,"Ok","Error") ->  | V1: Check | W1: =SUM(V7:Z34,V41:Z68) -> 
D3: =#REF! -> 
A4: Public Lighting Tariffs | C4: Total Tariff | J4: Operations, maintenance and repair Tariff | P4: Replacement Tariff | V4: Check
C5: Actual
A6: =#REF! ->  | C6: =EOMONTH(D6,-12) -> 2026-06-30 | D6: =Instructions!$B$16 -> 2027-06-30 | E6: =EOMONTH(D6,12) -> 2028-06-30 | F6: =EOMONTH(E6,12) -> 2029-06-30 | G6: =EOMONTH(F6,12) -> 2030-06-30 | H6: =EOMONTH(G6,12) -> 2031-06-30 | J6: =D6 -> 2027-06-30 | K6: =E6 -> 2028-06-30 | L6: =F6 -> 2029-06-30 | M6: =G6 -> 2030-06-30 | N6: =H6 -> 2031-06-30 | P6: =J6 -> 2027-06-30 | Q6: =K6 -> 2028-06-30 | R6: =L6 -> 2029-06-30 | S6: =M6 -> 2030-06-30 | T6: =N6 -> 2031-06-30 | V6: =P6 -> 2027-06-30 | W6: =Q6 -> 2028-06-30 | X6: =R6 -> 2029-06-30 | Y6: =S6 -> 2030-06-30 | Z6: =T6 -> 2031-06-30
A7: =#REF! ->  | C7: =#REF! ->  | D7: ='Charges Summary'!D$31 ->  | E7: ='Charges Summary'!E$31 ->  | F7: ='Charges Summary'!F$31 ->  | G7: ='Charges Summary'!G$31 ->  | H7: ='Charges Summary'!H$31 ->  | J7: =SUM('Charges Summary'!D25,'Charges Summary'!D8) ->  | K7: =SUM('Charges Summary'!E25,'Charges Summary'!E8) ->  | L7: =SUM('Charges Summary'!F25,'Charges Summary'!F8) ->  | M7: =SUM('Charges Summary'!G25,'Charges Summary'!G8) ->  | N7: =SUM('Charges Summary'!H25,'Charges Summary'!H8) ->  | P7: =SUM('Charges Summary'!D27,'Charges Summary'!D11) ->  | Q7: =SUM('Charges Summary'!E27,'Charges Summary'!E11) ->  | R7: =SUM('Charges Summary'!F27,'Charges Summary'!F11) ->  | S7: =SUM('Charges Summary'!G27,'Charges Summary'!G11) ->  | T7: =SUM('Charges Summary'!H27,'Charges Summary'!H11) ->  | V7: =ABS(D7-J7-P7) ->  | W7: =ABS(E7-K7-Q7) -> 
A8: =#REF! ->  | C8: =#REF! ->  | D8: ='Charges Summary'!D$55 ->  | E8: ='Charges Summary'!E$55 ->  | F8: ='Charges Summary'!F$55 ->  | G8: ='Charges Summary'!G$55 ->  | H8: ='Charges Summary'!H$55 ->  | J8: =SUM('Charges Summary'!D49,'Charges Summary'!D8) ->  | K8: =SUM('Charges Summary'!E49,'Charges Summary'!E8) ->  | L8: =SUM('Charges Summary'!F49,'Charges Summary'!F8) ->  | M8: =SUM('Charges Summary'!G49,'Charges Summary'!G8) ->  | N8: =SUM('Charges Summary'!H49,'Charges Summary'!H8) ->  | P8: =SUM('Charges Summary'!D51,'Charges Summary'!D11) ->  | Q8: =SUM('Charges Summary'!E51,'Charges Summary'!E11) ->  | R8: =SUM('Charges Summary'!F51,'Charges Summary'!F11) ->  | S8: =SUM('Charges Summary'!G51,'Charges Summary'!G11) ->  | T8: =SUM('Charges Summary'!H51,'Charges Summary'!H11) ->  | V8: =ABS(D8-J8-P8) -> 
A9: =#REF! ->  | C9: =#REF! ->  | D9: ='Charges Summary'!D$71 ->  | E9: ='Charges Summary'!E$71 ->  | F9: ='Charges Summary'!F$71 ->  | G9: ='Charges Summary'!G$71 ->  | H9: ='Charges Summary'!H$71 ->  | J9: =SUM('Charges Summary'!D65,'Charges Summary'!D8) ->  | K9: =SUM('Charges Summary'!E65,'Charges Summary'!E8) ->  | L9: =SUM('Charges Summary'!F65,'Charges Summary'!F8) ->  | M9: =SUM('Charges Summary'!G65,'Charges Summary'!G8) ->  | N9: =SUM('Charges Summary'!H65,'Charges Summary'!H8) ->  | P9: =SUM('Charges Summary'!D67,'Charges Summary'!D11) ->  | Q9: =SUM('Charges Summary'!E67,'Charges Summary'!E11) ->  | R9: =SUM('Charges Summary'!F67,'Charges Summary'!F11) ->  | S9: =SUM('Charges Summary'!G67,'Charges Summary'!G11) ->  | T9: =SUM('Charges Summary'!H67,'Charges Summary'!H11) ->  | V9: =ABS(D9-J9-P9) ->  | W9: =ABS(E9-K9-Q9) ->  | X9: =ABS(F9-L9-R9) ->  | Y9: =ABS(G9-M9-S9) ->  | Z9: =ABS(H9-N9-T9) -> 
A10: =#REF! ->  | C10: =#REF! ->  | D10: =IF(#REF!=#REF!,D$7,IF(#REF!=#REF!,D$8,D$9))*#REF! ->  | E10: =IF(#REF!=#REF!,E$7,IF(#REF!=#REF!,E$8,E$9))*#REF! ->  | F10: =IF(#REF!=#REF!,F$7,IF(#REF!=#REF!,F$8,F$9))*#REF! ->  | G10: =IF(#REF!=#REF!,G$7,IF(#REF!=#REF!,G$8,G$9))*#REF! ->  | H10: =IF(#REF!=#REF!,H$7,IF(#REF!=#REF!,H$8,H$9))*#REF! ->  | J10: =IF(#REF!=#REF!,J$7,IF(#REF!=#REF!,J$8,J$9))*#REF! ->  | K10: =IF(#REF!=#REF!,K$7,IF(#REF!=#REF!,K$8,K$9))*#REF! ->  | L10: =IF(#REF!=#REF!,L$7,IF(#REF!=#REF!,L$8,L$9))*#REF! ->  | M10: =IF(#REF!=#REF!,M$7,IF(#REF!=#REF!,M$8,M$9))*#REF! ->  | N10: =IF(#REF!=#REF!,N$7,IF(#REF!=#REF!,N$8,N$9))*#REF! ->  | P10: =IF(#REF!=#REF!,P$7,IF(#REF!=#REF!,P$8,P$9))*#REF! ->  | Q10: =IF(#REF!=#REF!,Q$7,IF(#REF!=#REF!,Q$8,Q$9))*#REF! ->  | R10: =IF(#REF!=#REF!,R$7,IF(#REF!=#REF!,R$8,R$9))*#REF! ->  | S10: =IF(#REF!=#REF!,S$7,IF(#REF!=#REF!,S$8,S$9))*#REF! ->  | T10: =IF(#REF!=#REF!,T$7,IF(#REF!=#REF!,T$8,T$9))*#REF! -> 
A11: =#REF! ->  | C11: =#REF! ->  | D11: =IF(#REF!=#REF!,D$7,IF(#REF!=#REF!,D$8,D$9))*#REF! ->  | E11: =IF(#REF!=#REF!,E$7,IF(#REF!=#REF!,E$8,E$9))*#REF! ->  | F11: =IF(#REF!=#REF!,F$7,IF(#REF!=#REF!,F$8,F$9))*#REF! ->  | G11: =IF(#REF!=#REF!,G$7,IF(#REF!=#REF!,G$8,G$9))*#REF! ->  | H11: =IF(#REF!=#REF!,H$7,IF(#REF!=#REF!,H$8,H$9))*#REF! ->  | J11: =IF(#REF!=#REF!,J$7,IF(#REF!=#REF!,J$8,J$9))*#REF! ->  | K11: =IF(#REF!=#REF!,K$7,IF(#REF!=#REF!,K$8,K$9))*#REF! ->  | L11: =IF(#REF!=#REF!,L$7,IF(#REF!=#REF!,L$8,L$9))*#REF! ->  | M11: =IF(#REF!=#REF!,M$7,IF(#REF!=#REF!,M$8,M$9))*#REF! ->  | N11: =IF(#REF!=#REF!,N$7,IF(#REF!=#REF!,N$8,N$9))*#REF! ->  | P11: =IF(#REF!=#REF!,P$7,IF(#REF!=#REF!,P$8,P$9))*#REF! ->  | Q11: =IF(#REF!=#REF!,Q$7,IF(#REF!=#REF!,Q$8,Q$9))*#REF! ->  | R11: =IF(#REF!=#REF!,R$7,IF(#REF!=#REF!,R$8,R$9))*#REF! ->  | S11: =IF(#REF!=#REF!,S$7,IF(#REF!=#REF!,S$8,S$9))*#REF! ->  | T11: =IF(#REF!=#REF!,T$7,IF(#REF!=#REF!,T$8,T$9))*#REF! -> 
A12: =#REF! ->  | C12: =#REF! ->  | D12: =IF(#REF!=#REF!,D$7,IF(#REF!=#REF!,D$8,D$9))*#REF! ->  | E12: =IF(#REF!=#REF!,E$7,IF(#REF!=#REF!,E$8,E$9))*#REF! ->  | F12: =IF(#REF!=#REF!,F$7,IF(#REF!=#REF!,F$8,F$9))*#REF! ->  | G12: =IF(#REF!=#REF!,G$7,IF(#REF!=#REF!,G$8,G$9))*#REF! ->  | H12: =IF(#REF!=#REF!,H$7,IF(#REF!=#REF!,H$8,H$9))*#REF! ->  | J12: =IF(#REF!=#REF!,J$7,IF(#REF!=#REF!,J$8,J$9))*#REF! ->  | K12: =IF(#REF!=#REF!,K$7,IF(#REF!=#REF!,K$8,K$9))*#REF! ->  | L12: =IF(#REF!=#REF!,L$7,IF(#REF!=#REF!,L$8,L$9))*#REF! ->  | M12: =IF(#REF!=#REF!,M$7,IF(#REF!=#REF!,M$8,M$9))*#REF! ->  | N12: =IF(#REF!=#REF!,N$7,IF(#REF!=#REF!,N$8,N$9))*#REF! ->  | P12: =IF(#REF!=#REF!,P$7,IF(#REF!=#REF!,P$8,P$9))*#REF! ->  | Q12: =IF(#REF!=#REF!,Q$7,IF(#REF!=#REF!,Q$8,Q$9))*#REF! ->  | R12: =IF(#REF!=#REF!,R$7,IF(#REF!=#REF!,R$8,R$9))*#REF! ->  | S12: =IF(#REF!=#REF!,S$7,IF(#REF!=#REF!,S$8,S$9))*#REF! ->  | T12: =IF(#REF!=#REF!,T$7,IF(#REF!=#REF!,T$8,T$9))*#REF! -> 
A13: =#REF! ->  | C13: =#REF! ->  | D13: =IF(#REF!=#REF!,D$7,IF(#REF!=#REF!,D$8,D$9))*#REF! ->  | E13: =IF(#REF!=#REF!,E$7,IF(#REF!=#REF!,E$8,E$9))*#REF! ->  | F13: =IF(#REF!=#REF!,F$7,IF(#REF!=#REF!,F$8,F$9))*#REF! ->  | G13: =IF(#REF!=#REF!,G$7,IF(#REF!=#REF!,G$8,G$9))*#REF! ->  | H13: =IF(#REF!=#REF!,H$7,IF(#REF!=#REF!,H$8,H$9))*#REF! ->  | J13: =IF(#REF!=#REF!,J$7,IF(#REF!=#REF!,J$8,J$9))*#REF! ->  | K13: =IF(#REF!=#REF!,K$7,IF(#REF!=#REF!,K$8,K$9))*#REF! ->  | L13: =IF(#REF!=#REF!,L$7,IF(#REF!=#REF!,L$8,L$9))*#REF! ->  | M13: =IF(#REF!=#REF!,M$7,IF(#REF!=#REF!,M$8,M$9))*#REF! ->  | N13: =IF(#REF!=#REF!,N$7,IF(#REF!=#REF!,N$8,N$9))*#REF! ->  | P13: =IF(#REF!=#REF!,P$7,IF(#REF!=#REF!,P$8,P$9))*#REF! ->  | Q13: =IF(#REF!=#REF!,Q$7,IF(#REF!=#REF!,Q$8,Q$9))*#REF! ->  | R13: =IF(#REF!=#REF!,R$7,IF(#REF!=#REF!,R$8,R$9))*#REF! ->  | S13: =IF(#REF!=#REF!,S$7,IF(#REF!=#REF!,S$8,S$9))*#REF! ->  | T13: =IF(#REF!=#REF!,T$7,IF(#REF!=#REF!,T$8,T$9))*#REF! -> 
A14: =#REF! ->  | C14: =#REF! ->  | D14: =IF(#REF!=#REF!,D$7,IF(#REF!=#REF!,D$8,D$9))*#REF! ->  | E14: =IF(#REF!=#REF!,E$7,IF(#REF!=#REF!,E$8,E$9))*#REF! ->  | F14: =IF(#REF!=#REF!,F$7,IF(#REF!=#REF!,F$8,F$9))*#REF! ->  | G14: =IF(#REF!=#REF!,G$7,IF(#REF!=#REF!,G$8,G$9))*#REF! ->  | H14: =IF(#REF!=#REF!,H$7,IF(#REF!=#REF!,H$8,H$9))*#REF! ->  | J14: =IF(#REF!=#REF!,J$7,IF(#REF!=#REF!,J$8,J$9))*#REF! ->  | K14: =IF(#REF!=#REF!,K$7,IF(#REF!=#REF!,K$8,K$9))*#REF! ->  | L14: =IF(#REF!=#REF!,L$7,IF(#REF!=#REF!,L$8,L$9))*#REF! ->  | M14: =IF(#REF!=#REF!,M$7,IF(#REF!=#REF!,M$8,M$9))*#REF! ->  | N14: =IF(#REF!=#REF!,N$7,IF(#REF!=#REF!,N$8,N$9))*#REF! ->  | P14: =IF(#REF!=#REF!,P$7,IF(#REF!=#REF!,P$8,P$9))*#REF! ->  | Q14: =IF(#REF!=#REF!,Q$7,IF(#REF!=#REF!,Q$8,Q$9))*#REF! ->  | R14: =IF(#REF!=#REF!,R$7,IF(#REF!=#REF!,R$8,R$9))*#REF! ->  | S14: =IF(#REF!=#REF!,S$7,IF(#REF!=#REF!,S$8,S$9))*#REF! ->  | T14: =IF(#REF!=#REF!,T$7,IF(#REF!=#REF!,T$8,T$9))*#REF! -> 
A15: =#REF! ->  | C15: =#REF! ->  | D15: =IF(#REF!=#REF!,D$7,IF(#REF!=#REF!,D$8,D$9))*#REF! ->  | E15: =IF(#REF!=#REF!,E$7,IF(#REF!=#REF!,E$8,E$9))*#REF! ->  | F15: =IF(#REF!=#REF!,F$7,IF(#REF!=#REF!,F$8,F$9))*#REF! ->  | G15: =IF(#REF!=#REF!,G$7,IF(#REF!=#REF!,G$8,G$9))*#REF! ->  | H15: =IF(#REF!=#REF!,H$7,IF(#REF!=#REF!,H$8,H$9))*#REF! ->  | J15: =IF(#REF!=#REF!,J$7,IF(#REF!=#REF!,J$8,J$9))*#REF! ->  | K15: =IF(#REF!=#REF!,K$7,IF(#REF!=#REF!,K$8,K$9))*#REF! ->  | L15: =IF(#REF!=#REF!,L$7,IF(#REF!=#REF!,L$8,L$9))*#REF! ->  | M15: =IF(#REF!=#REF!,M$7,IF(#REF!=#REF!,M$8,M$9))*#REF! ->  | N15: =IF(#REF!=#REF!,N$7,IF(#REF!=#REF!,N$8,N$9))*#REF! ->  | P15: =IF(#REF!=#REF!,P$7,IF(#REF!=#REF!,P$8,P$9))*#REF! ->  | Q15: =IF(#REF!=#REF!,Q$7,IF(#REF!=#REF!,Q$8,Q$9))*#REF! ->  | R15: =IF(#REF!=#REF!,R$7,IF(#REF!=#REF!,R$8,R$9))*#REF! ->  | S15: =IF(#REF!=#REF!,S$7,IF(#REF!=#REF!,S$8,S$9))*#REF! ->  | T15: =IF(#REF!=#REF!,T$7,IF(#REF!=#REF!,T$8,T$9))*#REF! -> 
A16: =#REF! ->  | C16: =#REF! ->  | D16: =IF(#REF!=#REF!,D$7,IF(#REF!=#REF!,D$8,D$9))*#REF! ->  | E16: =IF(#REF!=#REF!,E$7,IF(#REF!=#REF!,E$8,E$9))*#REF! ->  | F16: =IF(#REF!=#REF!,F$7,IF(#REF!=#REF!,F$8,F$9))*#REF! ->  | G16: =IF(#REF!=#REF!,G$7,IF(#REF!=#REF!,G$8,G$9))*#REF! ->  | H16: =IF(#REF!=#REF!,H$7,IF(#REF!=#REF!,H$8,H$9))*#REF! ->  | J16: =IF(#REF!=#REF!,J$7,IF(#REF!=#REF!,J$8,J$9))*#REF! ->  | K16: =IF(#REF!=#REF!,K$7,IF(#REF!=#REF!,K$8,K$9))*#REF! ->  | L16: =IF(#REF!=#REF!,L$7,IF(#REF!=#REF!,L$8,L$9))*#REF! ->  | M16: =IF(#REF!=#REF!,M$7,IF(#REF!=#REF!,M$8,M$9))*#REF! ->  | N16: =IF(#REF!=#REF!,N$7,IF(#REF!=#REF!,N$8,N$9))*#REF! ->  | P16: =IF(#REF!=#REF!,P$7,IF(#REF!=#REF!,P$8,P$9))*#REF! ->  | Q16: =IF(#REF!=#REF!,Q$7,IF(#REF!=#REF!,Q$8,Q$9))*#REF! ->  | R16: =IF(#REF!=#REF!,R$7,IF(#REF!=#REF!,R$8,R$9))*#REF! ->  | S16: =IF(#REF!=#REF!,S$7,IF(#REF!=#REF!,S$8,S$9))*#REF! ->  | T16: =IF(#REF!=#REF!,T$7,IF(#REF!=#REF!,T$8,T$9))*#REF! -> 
A17: =#REF! ->  | C17: =#REF! ->  | D17: =IF(#REF!=#REF!,D$7,IF(#REF!=#REF!,D$8,D$9))*#REF! ->  | E17: =IF(#REF!=#REF!,E$7,IF(#REF!=#REF!,E$8,E$9))*#REF! ->  | F17: =IF(#REF!=#REF!,F$7,IF(#REF!=#REF!,F$8,F$9))*#REF! ->  | G17: =IF(#REF!=#REF!,G$7,IF(#REF!=#REF!,G$8,G$9))*#REF! ->  | H17: =IF(#REF!=#REF!,H$7,IF(#REF!=#REF!,H$8,H$9))*#REF! ->  | J17: =IF(#REF!=#REF!,J$7,IF(#REF!=#REF!,J$8,J$9))*#REF! ->  | K17: =IF(#REF!=#REF!,K$7,IF(#REF!=#REF!,K$8,K$9))*#REF! ->  | L17: =IF(#REF!=#REF!,L$7,IF(#REF!=#REF!,L$8,L$9))*#REF! ->  | M17: =IF(#REF!=#REF!,M$7,IF(#REF!=#REF!,M$8,M$9))*#REF! ->  | N17: =IF(#REF!=#REF!,N$7,IF(#REF!=#REF!,N$8,N$9))*#REF! ->  | P17: =IF(#REF!=#REF!,P$7,IF(#REF!=#REF!,P$8,P$9))*#REF! ->  | Q17: =IF(#REF!=#REF!,Q$7,IF(#REF!=#REF!,Q$8,Q$9))*#REF! ->  | R17: =IF(#REF!=#REF!,R$7,IF(#REF!=#REF!,R$8,R$9))*#REF! ->  | S17: =IF(#REF!=#REF!,S$7,IF(#REF!=#REF!,S$8,S$9))*#REF! ->  | T17: =IF(#REF!=#REF!,T$7,IF(#REF!=#REF!,T$8,T$9))*#REF! -> 
A18: =#REF! ->  | C18: =#REF! ->  | D18: =IF(#REF!=#REF!,D$7,IF(#REF!=#REF!,D$8,D$9))*#REF! ->  | E18: =IF(#REF!=#REF!,E$7,IF(#REF!=#REF!,E$8,E$9))*#REF! ->  | F18: =IF(#REF!=#REF!,F$7,IF(#REF!=#REF!,F$8,F$9))*#REF! ->  | G18: =IF(#REF!=#REF!,G$7,IF(#REF!=#REF!,G$8,G$9))*#REF! ->  | H18: =IF(#REF!=#REF!,H$7,IF(#REF!=#REF!,H$8,H$9))*#REF! ->  | J18: =IF(#REF!=#REF!,J$7,IF(#REF!=#REF!,J$8,J$9))*#REF! ->  | K18: =IF(#REF!=#REF!,K$7,IF(#REF!=#REF!,K$8,K$9))*#REF! ->  | L18: =IF(#REF!=#REF!,L$7,IF(#REF!=#REF!,L$8,L$9))*#REF! ->  | M18: =IF(#REF!=#REF!,M$7,IF(#REF!=#REF!,M$8,M$9))*#REF! ->  | N18: =IF(#REF!=#REF!,N$7,IF(#REF!=#REF!,N$8,N$9))*#REF! ->  | P18: =IF(#REF!=#REF!,P$7,IF(#REF!=#REF!,P$8,P$9))*#REF! ->  | Q18: =IF(#REF!=#REF!,Q$7,IF(#REF!=#REF!,Q$8,Q$9))*#REF! ->  | R18: =IF(#REF!=#REF!,R$7,IF(#REF!=#REF!,R$8,R$9))*#REF! ->  | S18: =IF(#REF!=#REF!,S$7,IF(#REF!=#REF!,S$8,S$9))*#REF! ->  | T18: =IF(#REF!=#REF!,T$7,IF(#REF!=#REF!,T$8,T$9))*#REF! -> 
A19: =#REF! ->  | C19: =#REF! ->  | D19: =IF(#REF!=#REF!,D$7,IF(#REF!=#REF!,D$8,D$9))*#REF! ->  | E19: =IF(#REF!=#REF!,E$7,IF(#REF!=#REF!,E$8,E$9))*#REF! ->  | F19: =IF(#REF!=#REF!,F$7,IF(#REF!=#REF!,F$8,F$9))*#REF! ->  | G19: =IF(#REF!=#REF!,G$7,IF(#REF!=#REF!,G$8,G$9))*#REF! ->  | H19: =IF(#REF!=#REF!,H$7,IF(#REF!=#REF!,H$8,H$9))*#REF! ->  | J19: =IF(#REF!=#REF!,J$7,IF(#REF!=#REF!,J$8,J$9))*#REF! ->  | K19: =IF(#REF!=#REF!,K$7,IF(#REF!=#REF!,K$8,K$9))*#REF! ->  | L19: =IF(#REF!=#REF!,L$7,IF(#REF!=#REF!,L$8,L$9))*#REF! ->  | M19: =IF(#REF!=#REF!,M$7,IF(#REF!=#REF!,M$8,M$9))*#REF! ->  | N19: =IF(#REF!=#REF!,N$7,IF(#REF!=#REF!,N$8,N$9))*#REF! ->  | P19: =IF(#REF!=#REF!,P$7,IF(#REF!=#REF!,P$8,P$9))*#REF! ->  | Q19: =IF(#REF!=#REF!,Q$7,IF(#REF!=#REF!,Q$8,Q$9))*#REF! ->  | R19: =IF(#REF!=#REF!,R$7,IF(#REF!=#REF!,R$8,R$9))*#REF! ->  | S19: =IF(#REF!=#REF!,S$7,IF(#REF!=#REF!,S$8,S$9))*#REF! ->  | T19: =IF(#REF!=#REF!,T$7,IF(#REF!=#REF!,T$8,T$9))*#REF! -> 
A22: =#REF! -> 
A23: =#REF! ->  | C23: =#REF! ->  | D23: ='Charges Summary'!D$89 ->  | E23: ='Charges Summary'!E$89 ->  | F23: ='Charges Summary'!F$89 ->  | G23: ='Charges Summary'!G$89 ->  | H23: ='Charges Summary'!H$89 ->  | J23: =SUM('Charges Summary'!D83,'Charges Summary'!D8) ->  | K23: =SUM('Charges Summary'!E83,'Charges Summary'!E8) ->  | L23: =SUM('Charges Summary'!F83,'Charges Summary'!F8) ->  | M23: =SUM('Charges Summary'!G83,'Charges Summary'!G8) ->  | N23: =SUM('Charges Summary'!H83,'Charges Summary'!H8) ->  | P23: =SUM('Charges Summary'!D85,'Charges Summary'!D11) ->  | Q23: =SUM('Charges Summary'!E85,'Charges Summary'!E11) ->  | R23: =SUM('Charges Summary'!F85,'Charges Summary'!F11) ->  | S23: =SUM('Charges Summary'!G85,'Charges Summary'!G11) ->  | T23: =SUM('Charges Summary'!H85,'Charges Summary'!H11) ->  | V23: =ABS(D23-J23-P23) ->  | W23: =ABS(E23-K23-Q23) ->  | X23: =ABS(F23-L23-R23) ->  | Y23: =ABS(G23-M23-S23) ->  | Z23: =ABS(H23-N23-T23) -> 
A24: =#REF! ->  | C24: =#REF! ->  | D24: ='Charges Summary'!D$105 ->  | E24: ='Charges Summary'!E$105 ->  | F24: ='Charges Summary'!F$105 ->  | G24: ='Charges Summary'!G$105 ->  | H24: ='Charges Summary'!H$105 ->  | J24: =SUM('Charges Summary'!D99,'Charges Summary'!D8) ->  | K24: =SUM('Charges Summary'!E99,'Charges Summary'!E8) ->  | L24: =SUM('Charges Summary'!F99,'Charges Summary'!F8) ->  | M24: =SUM('Charges Summary'!G99,'Charges Summary'!G8) ->  | N24: =SUM('Charges Summary'!H99,'Charges Summary'!H8) ->  | P24: =SUM('Charges Summary'!D101,'Charges Summary'!D11) ->  | Q24: =SUM('Charges Summary'!E101,'Charges Summary'!E11) ->  | R24: =SUM('Charges Summary'!F101,'Charges Summary'!F11) ->  | S24: =SUM('Charges Summary'!G101,'Charges Summary'!G11) ->  | T24: =SUM('Charges Summary'!H101,'Charges Summary'!H11) -> 
A25: =#REF! ->  | C25: =#REF! ->  | D25: ='Charges Summary'!D$121 ->  | E25: ='Charges Summary'!E$121 ->  | F25: ='Charges Summary'!F$121 ->  | G25: ='Charges Summary'!G$121 ->  | H25: ='Charges Summary'!H$121 ->  | J25: =SUM('Charges Summary'!D115,'Charges Summary'!D8) ->  | K25: =SUM('Charges Summary'!E115,'Charges Summary'!E8) ->  | L25: =SUM('Charges Summary'!F115,'Charges Summary'!F8) ->  | M25: =SUM('Charges Summary'!G115,'Charges Summary'!G8) ->  | N25: =SUM('Charges Summary'!H115,'Charges Summary'!H8) ->  | P25: =SUM('Charges Summary'!D117,'Charges Summary'!D11) ->  | Q25: =SUM('Charges Summary'!E117,'Charges Summary'!E11) ->  | R25: =SUM('Charges Summary'!F117,'Charges Summary'!F11) ->  | S25: =SUM('Charges Summary'!G117,'Charges Summary'!G11) ->  | T25: =SUM('Charges Summary'!H117,'Charges Summary'!H11) -> 
A26: =#REF! ->  | C26: =#REF! ->  | D26: ='Charges Summary'!D$137 ->  | E26: ='Charges Summary'!E$137 ->  | F26: ='Charges Summary'!F$137 ->  | G26: ='Charges Summary'!G$137 ->  | H26: ='Charges Summary'!H$137 ->  | J26: =SUM('Charges Summary'!D131,'Charges Summary'!D$8) ->  | K26: =SUM('Charges Summary'!E131,'Charges Summary'!E$8) ->  | L26: =SUM('Charges Summary'!F131,'Charges Summary'!F$8) ->  | M26: =SUM('Charges Summary'!G131,'Charges Summary'!G$8) ->  | N26: =SUM('Charges Summary'!H131,'Charges Summary'!H$8) ->  | P26: =SUM('Charges Summary'!D133,'Charges Summary'!D$11) ->  | Q26: =SUM('Charges Summary'!E133,'Charges Summary'!E$11) ->  | R26: =SUM('Charges Summary'!F133,'Charges Summary'!F$11) ->  | S26: =SUM('Charges Summary'!G133,'Charges Summary'!G$11) ->  | T26: =SUM('Charges Summary'!H133,'Charges Summary'!H$11) ->  | V26: =ABS(D26-J26-P26) -> 
A27: =#REF! ->  | C27: =#REF! ->  | D27: ='Charges Summary'!D$153 ->  | E27: ='Charges Summary'!E$153 ->  | F27: ='Charges Summary'!F$153 ->  | G27: ='Charges Summary'!G$153 ->  | H27: ='Charges Summary'!H$153 ->  | J27: =SUM('Charges Summary'!D147,'Charges Summary'!D$8) ->  | K27: =SUM('Charges Summary'!E147,'Charges Summary'!E$8) ->  | L27: =SUM('Charges Summary'!F147,'Charges Summary'!F$8) ->  | M27: =SUM('Charges Summary'!G147,'Charges Summary'!G$8) ->  | N27: =SUM('Charges Summary'!H147,'Charges Summary'!H$8) ->  | P27: =SUM('Charges Summary'!D149,'Charges Summary'!D$11) ->  | Q27: =SUM('Charges Summary'!E149,'Charges Summary'!E$11) ->  | R27: =SUM('Charges Summary'!F149,'Charges Summary'!F$11) ->  | S27: =SUM('Charges Summary'!G149,'Charges Summary'!G$11) ->  | T27: =SUM('Charges Summary'!H149,'Charges Summary'!H$11) -> 
A28: =#REF! ->  | C28: =#REF! ->  | D28: ='Charges Summary'!D$169 ->  | E28: ='Charges Summary'!E$169 ->  | F28: ='Charges Summary'!F$169 ->  | G28: ='Charges Summary'!G$169 ->  | H28: ='Charges Summary'!H$169 ->  | J28: =SUM('Charges Summary'!D163,'Charges Summary'!D$8) ->  | K28: =SUM('Charges Summary'!E163,'Charges Summary'!E$8) ->  | L28: =SUM('Charges Summary'!F163,'Charges Summary'!F$8) ->  | M28: =SUM('Charges Summary'!G163,'Charges Summary'!G$8) ->  | N28: =SUM('Charges Summary'!H163,'Charges Summary'!H$8) ->  | P28: =SUM('Charges Summary'!D165,'Charges Summary'!D$11) ->  | Q28: =SUM('Charges Summary'!E165,'Charges Summary'!E$11) ->  | R28: =SUM('Charges Summary'!F165,'Charges Summary'!F$11) ->  | S28: =SUM('Charges Summary'!G165,'Charges Summary'!G$11) ->  | T28: =SUM('Charges Summary'!H165,'Charges Summary'!H$11) -> 
A29: =#REF! ->  | C29: =#REF! ->  | D29: ='Charges Summary'!D$185 ->  | E29: ='Charges Summary'!E$185 ->  | F29: ='Charges Summary'!F$185 ->  | G29: ='Charges Summary'!G$185 ->  | H29: ='Charges Summary'!H$185 ->  | J29: =SUM('Charges Summary'!D179,'Charges Summary'!D$8) ->  | K29: =SUM('Charges Summary'!E179,'Charges Summary'!E$8) ->  | L29: =SUM('Charges Summary'!F179,'Charges Summary'!F$8) ->  | M29: =SUM('Charges Summary'!G179,'Charges Summary'!G$8) ->  | N29: =SUM('Charges Summary'!H179,'Charges Summary'!H$8) ->  | P29: =SUM('Charges Summary'!D181,'Charges Summary'!D$11) ->  | Q29: =SUM('Charges Summary'!E181,'Charges Summary'!E$11) ->  | R29: =SUM('Charges Summary'!F181,'Charges Summary'!F$11) ->  | S29: =SUM('Charges Summary'!G181,'Charges Summary'!G$11) ->  | T29: =SUM('Charges Summary'!H181,'Charges Summary'!H$11) -> 
A30: =#REF! ->  | C30: =#REF! ->  | D30: =IF(#REF!=#REF!,D$23,D$24)*#REF! ->  | E30: =IF(#REF!=#REF!,E$23,E$24)*#REF! ->  | F30: =IF(#REF!=#REF!,F$23,F$24)*#REF! ->  | G30: =IF(#REF!=#REF!,G$23,G$24)*#REF! ->  | H30: =IF(#REF!=#REF!,H$23,H$24)*#REF! ->  | J30: =IF(#REF!=#REF!,J$23,J$24)*#REF! ->  | K30: =IF(#REF!=#REF!,K$23,K$24)*#REF! ->  | L30: =IF(#REF!=#REF!,L$23,L$24)*#REF! ->  | M30: =IF(#REF!=#REF!,M$23,M$24)*#REF! ->  | N30: =IF(#REF!=#REF!,N$23,N$24)*#REF! ->  | P30: =IF(#REF!=#REF!,P$23,P$24)*#REF! ->  | Q30: =IF(#REF!=#REF!,Q$23,Q$24)*#REF! ->  | R30: =IF(#REF!=#REF!,R$23,R$24)*#REF! ->  | S30: =IF(#REF!=#REF!,S$23,S$24)*#REF! ->  | T30: =IF(#REF!=#REF!,T$23,T$24)*#REF! -> 
A31: =#REF! ->  | C31: =#REF! ->  | D31: =IF(#REF!=#REF!,D$23,D$24)*#REF! ->  | E31: =IF(#REF!=#REF!,E$23,E$24)*#REF! ->  | F31: =IF(#REF!=#REF!,F$23,F$24)*#REF! ->  | G31: =IF(#REF!=#REF!,G$23,G$24)*#REF! ->  | H31: =IF(#REF!=#REF!,H$23,H$24)*#REF! ->  | J31: =IF(#REF!=#REF!,J$23,J$24)*#REF! ->  | K31: =IF(#REF!=#REF!,K$23,K$24)*#REF! ->  | L31: =IF(#REF!=#REF!,L$23,L$24)*#REF! ->  | M31: =IF(#REF!=#REF!,M$23,M$24)*#REF! ->  | N31: =IF(#REF!=#REF!,N$23,N$24)*#REF! ->  | P31: =IF(#REF!=#REF!,P$23,P$24)*#REF! ->  | Q31: =IF(#REF!=#REF!,Q$23,Q$24)*#REF! ->  | R31: =IF(#REF!=#REF!,R$23,R$24)*#REF! ->  | S31: =IF(#REF!=#REF!,S$23,S$24)*#REF! ->  | T31: =IF(#REF!=#REF!,T$23,T$24)*#REF! -> 
A32: =#REF! ->  | C32: =#REF! ->  | D32: ='Charges Summary'!D$201 ->  | E32: ='Charges Summary'!E$201 ->  | F32: ='Charges Summary'!F$201 ->  | G32: ='Charges Summary'!G$201 ->  | H32: ='Charges Summary'!H$201 ->  | J32: =SUM('Charges Summary'!D$195,'Charges Summary'!D$8) ->  | K32: =SUM('Charges Summary'!E$195,'Charges Summary'!E$8) ->  | L32: =SUM('Charges Summary'!F$195,'Charges Summary'!F$8) ->  | M32: =SUM('Charges Summary'!G$195,'Charges Summary'!G$8) ->  | N32: =SUM('Charges Summary'!H$195,'Charges Summary'!H$8) ->  | P32: =SUM('Charges Summary'!D$197,'Charges Summary'!D$11) ->  | Q32: =SUM('Charges Summary'!E$197,'Charges Summary'!E$11) ->  | R32: =SUM('Charges Summary'!F$197,'Charges Summary'!F$11) ->  | S32: =SUM('Charges Summary'!G$197,'Charges Summary'!G$11) ->  | T32: =SUM('Charges Summary'!H$197,'Charges Summary'!H$11) ->  | V32: =ABS(D32-J32-P32) -> 
A33: =#REF! ->  | C33: =#REF! ->  | D33: ='Charges Summary'!D$217 ->  | E33: ='Charges Summary'!E$217 ->  | F33: ='Charges Summary'!F$217 ->  | G33: ='Charges Summary'!G$217 ->  | H33: ='Charges Summary'!H$217 ->  | J33: =SUM('Charges Summary'!D$211,'Charges Summary'!D$8) ->  | K33: =SUM('Charges Summary'!E$211,'Charges Summary'!E$8) ->  | L33: =SUM('Charges Summary'!F$211,'Charges Summary'!F$8) ->  | M33: =SUM('Charges Summary'!G$211,'Charges Summary'!G$8) ->  | N33: =SUM('Charges Summary'!H$211,'Charges Summary'!H$8) ->  | P33: =SUM('Charges Summary'!D$213,'Charges Summary'!D$11) ->  | Q33: =SUM('Charges Summary'!E$213,'Charges Summary'!E$11) ->  | R33: =SUM('Charges Summary'!F$213,'Charges Summary'!F$11) ->  | S33: =SUM('Charges Summary'!G$213,'Charges Summary'!G$11) ->  | T33: =SUM('Charges Summary'!H$213,'Charges Summary'!H$11) -> 
A34: =#REF! ->  | C34: =#REF! ->  | D34: ='Charges Summary'!D$233 ->  | E34: ='Charges Summary'!E$233 ->  | F34: ='Charges Summary'!F$233 ->  | G34: ='Charges Summary'!G$233 ->  | H34: ='Charges Summary'!H$233 ->  | J34: =SUM('Charges Summary'!D$227,'Charges Summary'!D$8) ->  | K34: =SUM('Charges Summary'!E$227,'Charges Summary'!E$8) ->  | L34: =SUM('Charges Summary'!F$227,'Charges Summary'!F$8) ->  | M34: =SUM('Charges Summary'!G$227,'Charges Summary'!G$8) ->  | N34: =SUM('Charges Summary'!H$227,'Charges Summary'!H$8) ->  | P34: =SUM('Charges Summary'!D$229,'Charges Summary'!D$11) ->  | Q34: =SUM('Charges Summary'!E$229,'Charges Summary'!E$11) ->  | R34: =SUM('Charges Summary'!F$229,'Charges Summary'!F$11) ->  | S34: =SUM('Charges Summary'!G$229,'Charges Summary'!G$11) ->  | T34: =SUM('Charges Summary'!H$229,'Charges Summary'!H$11) -> 
D37: =#REF! -> 
A38: Public Lighting Tariffs | C38: Total Tariff | J38: Operations, maintenance and repair Tariff | P38: Replacement Tariff | V38: Check
C39: Actual
A40: =#REF! ->  | C40: =EOMONTH(D40,-12) -> 2026-06-30 | D40: =Instructions!$B$16 -> 2027-06-30 | E40: =EOMONTH(D40,12) -> 2028-06-30 | F40: =EOMONTH(E40,12) -> 2029-06-30 | G40: =EOMONTH(F40,12) -> 2030-06-30 | H40: =EOMONTH(G40,12) -> 2031-06-30 | J40: =D40 -> 2027-06-30 | K40: =E40 -> 2028-06-30 | L40: =F40 -> 2029-06-30 | M40: =G40 -> 2030-06-30 | N40: =H40 -> 2031-06-30 | P40: =J40 -> 2027-06-30 | Q40: =K40 -> 2028-06-30 | R40: =L40 -> 2029-06-30 | S40: =M40 -> 2030-06-30 | T40: =N40 -> 2031-06-30 | V40: =P40 -> 2027-06-30 | W40: =Q40 -> 2028-06-30 | X40: =R40 -> 2029-06-30 | Y40: =S40 -> 2030-06-30 | Z40: =T40 -> 2031-06-30
A41: =#REF! ->  | C41: =#REF! ->  | D41: ='Charges Summary'!K$31 ->  | E41: ='Charges Summary'!L$31 ->  | F41: ='Charges Summary'!M$31 ->  | G41: ='Charges Summary'!N$31 ->  | H41: ='Charges Summary'!O$31 ->  | J41: =SUM('Charges Summary'!K25,'Charges Summary'!K8) ->  | K41: =SUM('Charges Summary'!L25,'Charges Summary'!L8) ->  | L41: =SUM('Charges Summary'!M25,'Charges Summary'!M8) ->  | M41: =SUM('Charges Summary'!N25,'Charges Summary'!N8) ->  | N41: =SUM('Charges Summary'!O25,'Charges Summary'!O8) ->  | P41: =SUM('Charges Summary'!K27,'Charges Summary'!K11) ->  | Q41: =SUM('Charges Summary'!L27,'Charges Summary'!L11) ->  | R41: =SUM('Charges Summary'!M27,'Charges Summary'!M11) ->  | S41: =SUM('Charges Summary'!N27,'Charges Summary'!N11) ->  | T41: =SUM('Charges Summary'!O27,'Charges Summary'!O11) ->  | V41: =ABS(D41-J41-P41) ->  | W41: =ABS(E41-K41-Q41) ->  | X41: =ABS(F41-L41-R41) ->  | Y41: =ABS(G41-M41-S41) ->  | Z41: =ABS(H41-N41-T41) -> 
A42: =#REF! ->  | C42: =#REF! ->  | D42: ='Charges Summary'!K$55 ->  | E42: ='Charges Summary'!L$55 ->  | F42: ='Charges Summary'!M$55 ->  | G42: ='Charges Summary'!N$55 ->  | H42: ='Charges Summary'!O$55 ->  | J42: =SUM('Charges Summary'!K49,'Charges Summary'!K8) ->  | K42: =SUM('Charges Summary'!L49,'Charges Summary'!L8) ->  | L42: =SUM('Charges Summary'!M49,'Charges Summary'!M8) ->  | M42: =SUM('Charges Summary'!N49,'Charges Summary'!N8) ->  | N42: =SUM('Charges Summary'!O49,'Charges Summary'!O8) ->  | P42: =SUM('Charges Summary'!K51,'Charges Summary'!K11) ->  | Q42: =SUM('Charges Summary'!L51,'Charges Summary'!L11) ->  | R42: =SUM('Charges Summary'!M51,'Charges Summary'!M11) ->  | S42: =SUM('Charges Summary'!N51,'Charges Summary'!N11) ->  | T42: =SUM('Charges Summary'!O51,'Charges Summary'!O11) ->  | V42: =ABS(D42-J42-P42) -> 
A43: =#REF! ->  | C43: =#REF! ->  | D43: ='Charges Summary'!K$71 ->  | E43: ='Charges Summary'!L$71 ->  | F43: ='Charges Summary'!M$71 ->  | G43: ='Charges Summary'!N$71 ->  | H43: ='Charges Summary'!O$71 ->  | J43: =SUM('Charges Summary'!K65,'Charges Summary'!K8) ->  | K43: =SUM('Charges Summary'!L65,'Charges Summary'!L8) ->  | L43: =SUM('Charges Summary'!M65,'Charges Summary'!M8) ->  | M43: =SUM('Charges Summary'!N65,'Charges Summary'!N8) ->  | N43: =SUM('Charges Summary'!O65,'Charges Summary'!O8) ->  | P43: =SUM('Charges Summary'!K67,'Charges Summary'!K11) ->  | Q43: =SUM('Charges Summary'!L67,'Charges Summary'!L11) ->  | R43: =SUM('Charges Summary'!M67,'Charges Summary'!M11) ->  | S43: =SUM('Charges Summary'!N67,'Charges Summary'!N11) ->  | T43: =SUM('Charges Summary'!O67,'Charges Summary'!O11) -> 
A44: =#REF! ->  | C44: =#REF! ->  | D44: =IF(#REF!=#REF!,D$41,IF(#REF!=#REF!,D$42,D$43))*#REF! ->  | E44: =IF(#REF!=#REF!,E$41,IF(#REF!=#REF!,E$42,E$43))*#REF! ->  | F44: =IF(#REF!=#REF!,F$41,IF(#REF!=#REF!,F$42,F$43))*#REF! ->  | G44: =IF(#REF!=#REF!,G$41,IF(#REF!=#REF!,G$42,G$43))*#REF! ->  | H44: =IF(#REF!=#REF!,H$41,IF(#REF!=#REF!,H$42,H$43))*#REF! ->  | J44: =IF(#REF!=#REF!,J$41,IF(#REF!=#REF!,J$42,J$43))*#REF! ->  | K44: =IF(#REF!=#REF!,K$41,IF(#REF!=#REF!,K$42,K$43))*#REF! ->  | L44: =IF(#REF!=#REF!,L$41,IF(#REF!=#REF!,L$42,L$43))*#REF! ->  | M44: =IF(#REF!=#REF!,M$41,IF(#REF!=#REF!,M$42,M$43))*#REF! ->  | N44: =IF(#REF!=#REF!,N$41,IF(#REF!=#REF!,N$42,N$43))*#REF! ->  | P44: =IF(#REF!=#REF!,P$41,IF(#REF!=#REF!,P$42,P$43))*#REF! ->  | Q44: =IF(#REF!=#REF!,Q$41,IF(#REF!=#REF!,Q$42,Q$43))*#REF! ->  | R44: =IF(#REF!=#REF!,R$41,IF(#REF!=#REF!,R$42,R$43))*#REF! ->  | S44: =IF(#REF!=#REF!,S$41,IF(#REF!=#REF!,S$42,S$43))*#REF! ->  | T44: =IF(#REF!=#REF!,T$41,IF(#REF!=#REF!,T$42,T$43))*#REF! -> 
A45: =#REF! ->  | C45: =#REF! ->  | D45: =IF(#REF!=#REF!,D$41,IF(#REF!=#REF!,D$42,D$43))*#REF! ->  | E45: =IF(#REF!=#REF!,E$41,IF(#REF!=#REF!,E$42,E$43))*#REF! ->  | F45: =IF(#REF!=#REF!,F$41,IF(#REF!=#REF!,F$42,F$43))*#REF! ->  | G45: =IF(#REF!=#REF!,G$41,IF(#REF!=#REF!,G$42,G$43))*#REF! ->  | H45: =IF(#REF!=#REF!,H$41,IF(#REF!=#REF!,H$42,H$43))*#REF! ->  | J45: =IF(#REF!=#REF!,J$41,IF(#REF!=#REF!,J$42,J$43))*#REF! ->  | K45: =IF(#REF!=#REF!,K$41,IF(#REF!=#REF!,K$42,K$43))*#REF! ->  | L45: =IF(#REF!=#REF!,L$41,IF(#REF!=#REF!,L$42,L$43))*#REF! ->  | M45: =IF(#REF!=#REF!,M$41,IF(#REF!=#REF!,M$42,M$43))*#REF! ->  | N45: =IF(#REF!=#REF!,N$41,IF(#REF!=#REF!,N$42,N$43))*#REF! ->  | P45: =IF(#REF!=#REF!,P$41,IF(#REF!=#REF!,P$42,P$43))*#REF! ->  | Q45: =IF(#REF!=#REF!,Q$41,IF(#REF!=#REF!,Q$42,Q$43))*#REF! ->  | R45: =IF(#REF!=#REF!,R$41,IF(#REF!=#REF!,R$42,R$43))*#REF! ->  | S45: =IF(#REF!=#REF!,S$41,IF(#REF!=#REF!,S$42,S$43))*#REF! ->  | T45: =IF(#REF!=#REF!,T$41,IF(#REF!=#REF!,T$42,T$43))*#REF! -> 
A46: =#REF! ->  | C46: =#REF! ->  | D46: =IF(#REF!=#REF!,D$41,IF(#REF!=#REF!,D$42,D$43))*#REF! ->  | E46: =IF(#REF!=#REF!,E$41,IF(#REF!=#REF!,E$42,E$43))*#REF! ->  | F46: =IF(#REF!=#REF!,F$41,IF(#REF!=#REF!,F$42,F$43))*#REF! ->  | G46: =IF(#REF!=#REF!,G$41,IF(#REF!=#REF!,G$42,G$43))*#REF! ->  | H46: =IF(#REF!=#REF!,H$41,IF(#REF!=#REF!,H$42,H$43))*#REF! ->  | J46: =IF(#REF!=#REF!,J$41,IF(#REF!=#REF!,J$42,J$43))*#REF! ->  | K46: =IF(#REF!=#REF!,K$41,IF(#REF!=#REF!,K$42,K$43))*#REF! ->  | L46: =IF(#REF!=#REF!,L$41,IF(#REF!=#REF!,L$42,L$43))*#REF! ->  | M46: =IF(#REF!=#REF!,M$41,IF(#REF!=#REF!,M$42,M$43))*#REF! ->  | N46: =IF(#REF!=#REF!,N$41,IF(#REF!=#REF!,N$42,N$43))*#REF! ->  | P46: =IF(#REF!=#REF!,P$41,IF(#REF!=#REF!,P$42,P$43))*#REF! ->  | Q46: =IF(#REF!=#REF!,Q$41,IF(#REF!=#REF!,Q$42,Q$43))*#REF! ->  | R46: =IF(#REF!=#REF!,R$41,IF(#REF!=#REF!,R$42,R$43))*#REF! ->  | S46: =IF(#REF!=#REF!,S$41,IF(#REF!=#REF!,S$42,S$43))*#REF! ->  | T46: =IF(#REF!=#REF!,T$41,IF(#REF!=#REF!,T$42,T$43))*#REF! -> 
A47: =#REF! ->  | C47: =#REF! ->  | D47: =IF(#REF!=#REF!,D$41,IF(#REF!=#REF!,D$42,D$43))*#REF! ->  | E47: =IF(#REF!=#REF!,E$41,IF(#REF!=#REF!,E$42,E$43))*#REF! ->  | F47: =IF(#REF!=#REF!,F$41,IF(#REF!=#REF!,F$42,F$43))*#REF! ->  | G47: =IF(#REF!=#REF!,G$41,IF(#REF!=#REF!,G$42,G$43))*#REF! ->  | H47: =IF(#REF!=#REF!,H$41,IF(#REF!=#REF!,H$42,H$43))*#REF! ->  | J47: =IF(#REF!=#REF!,J$41,IF(#REF!=#REF!,J$42,J$43))*#REF! ->  | K47: =IF(#REF!=#REF!,K$41,IF(#REF!=#REF!,K$42,K$43))*#REF! ->  | L47: =IF(#REF!=#REF!,L$41,IF(#REF!=#REF!,L$42,L$43))*#REF! ->  | M47: =IF(#REF!=#REF!,M$41,IF(#REF!=#REF!,M$42,M$43))*#REF! ->  | N47: =IF(#REF!=#REF!,N$41,IF(#REF!=#REF!,N$42,N$43))*#REF! ->  | P47: =IF(#REF!=#REF!,P$41,IF(#REF!=#REF!,P$42,P$43))*#REF! ->  | Q47: =IF(#REF!=#REF!,Q$41,IF(#REF!=#REF!,Q$42,Q$43))*#REF! ->  | R47: =IF(#REF!=#REF!,R$41,IF(#REF!=#REF!,R$42,R$43))*#REF! ->  | S47: =IF(#REF!=#REF!,S$41,IF(#REF!=#REF!,S$42,S$43))*#REF! ->  | T47: =IF(#REF!=#REF!,T$41,IF(#REF!=#REF!,T$42,T$43))*#REF! -> 
A48: =#REF! ->  | C48: =#REF! ->  | D48: =IF(#REF!=#REF!,D$41,IF(#REF!=#REF!,D$42,D$43))*#REF! ->  | E48: =IF(#REF!=#REF!,E$41,IF(#REF!=#REF!,E$42,E$43))*#REF! ->  | F48: =IF(#REF!=#REF!,F$41,IF(#REF!=#REF!,F$42,F$43))*#REF! ->  | G48: =IF(#REF!=#REF!,G$41,IF(#REF!=#REF!,G$42,G$43))*#REF! ->  | H48: =IF(#REF!=#REF!,H$41,IF(#REF!=#REF!,H$42,H$43))*#REF! ->  | J48: =IF(#REF!=#REF!,J$41,IF(#REF!=#REF!,J$42,J$43))*#REF! ->  | K48: =IF(#REF!=#REF!,K$41,IF(#REF!=#REF!,K$42,K$43))*#REF! ->  | L48: =IF(#REF!=#REF!,L$41,IF(#REF!=#REF!,L$42,L$43))*#REF! ->  | M48: =IF(#REF!=#REF!,M$41,IF(#REF!=#REF!,M$42,M$43))*#REF! ->  | N48: =IF(#REF!=#REF!,N$41,IF(#REF!=#REF!,N$42,N$43))*#REF! ->  | P48: =IF(#REF!=#REF!,P$41,IF(#REF!=#REF!,P$42,P$43))*#REF! ->  | Q48: =IF(#REF!=#REF!,Q$41,IF(#REF!=#REF!,Q$42,Q$43))*#REF! ->  | R48: =IF(#REF!=#REF!,R$41,IF(#REF!=#REF!,R$42,R$43))*#REF! ->  | S48: =IF(#REF!=#REF!,S$41,IF(#REF!=#REF!,S$42,S$43))*#REF! ->  | T48: =IF(#REF!=#REF!,T$41,IF(#REF!=#REF!,T$42,T$43))*#REF! -> 
A49: =#REF! ->  | C49: =#REF! ->  | D49: =IF(#REF!=#REF!,D$41,IF(#REF!=#REF!,D$42,D$43))*#REF! ->  | E49: =IF(#REF!=#REF!,E$41,IF(#REF!=#REF!,E$42,E$43))*#REF! ->  | F49: =IF(#REF!=#REF!,F$41,IF(#REF!=#REF!,F$42,F$43))*#REF! ->  | G49: =IF(#REF!=#REF!,G$41,IF(#REF!=#REF!,G$42,G$43))*#REF! ->  | H49: =IF(#REF!=#REF!,H$41,IF(#REF!=#REF!,H$42,H$43))*#REF! ->  | J49: =IF(#REF!=#REF!,J$41,IF(#REF!=#REF!,J$42,J$43))*#REF! ->  | K49: =IF(#REF!=#REF!,K$41,IF(#REF!=#REF!,K$42,K$43))*#REF! ->  | L49: =IF(#REF!=#REF!,L$41,IF(#REF!=#REF!,L$42,L$43))*#REF! ->  | M49: =IF(#REF!=#REF!,M$41,IF(#REF!=#REF!,M$42,M$43))*#REF! ->  | N49: =IF(#REF!=#REF!,N$41,IF(#REF!=#REF!,N$42,N$43))*#REF! ->  | P49: =IF(#REF!=#REF!,P$41,IF(#REF!=#REF!,P$42,P$43))*#REF! ->  | Q49: =IF(#REF!=#REF!,Q$41,IF(#REF!=#REF!,Q$42,Q$43))*#REF! ->  | R49: =IF(#REF!=#REF!,R$41,IF(#REF!=#REF!,R$42,R$43))*#REF! ->  | S49: =IF(#REF!=#REF!,S$41,IF(#REF!=#REF!,S$42,S$43))*#REF! ->  | T49: =IF(#REF!=#REF!,T$41,IF(#REF!=#REF!,T$42,T$43))*#REF! -> 
A50: =#REF! ->  | C50: =#REF! ->  | D50: =IF(#REF!=#REF!,D$41,IF(#REF!=#REF!,D$42,D$43))*#REF! ->  | E50: =IF(#REF!=#REF!,E$41,IF(#REF!=#REF!,E$42,E$43))*#REF! ->  | F50: =IF(#REF!=#REF!,F$41,IF(#REF!=#REF!,F$42,F$43))*#REF! ->  | G50: =IF(#REF!=#REF!,G$41,IF(#REF!=#REF!,G$42,G$43))*#REF! ->  | H50: =IF(#REF!=#REF!,H$41,IF(#REF!=#REF!,H$42,H$43))*#REF! ->  | J50: =IF(#REF!=#REF!,J$41,IF(#REF!=#REF!,J$42,J$43))*#REF! ->  | K50: =IF(#REF!=#REF!,K$41,IF(#REF!=#REF!,K$42,K$43))*#REF! ->  | L50: =IF(#REF!=#REF!,L$41,IF(#REF!=#REF!,L$42,L$43))*#REF! ->  | M50: =IF(#REF!=#REF!,M$41,IF(#REF!=#REF!,M$42,M$43))*#REF! ->  | N50: =IF(#REF!=#REF!,N$41,IF(#REF!=#REF!,N$42,N$43))*#REF! ->  | P50: =IF(#REF!=#REF!,P$41,IF(#REF!=#REF!,P$42,P$43))*#REF! ->  | Q50: =IF(#REF!=#REF!,Q$41,IF(#REF!=#REF!,Q$42,Q$43))*#REF! ->  | R50: =IF(#REF!=#REF!,R$41,IF(#REF!=#REF!,R$42,R$43))*#REF! ->  | S50: =IF(#REF!=#REF!,S$41,IF(#REF!=#REF!,S$42,S$43))*#REF! ->  | T50: =IF(#REF!=#REF!,T$41,IF(#REF!=#REF!,T$42,T$43))*#REF! -> 
A51: =#REF! ->  | C51: =#REF! ->  | D51: =IF(#REF!=#REF!,D$41,IF(#REF!=#REF!,D$42,D$43))*#REF! ->  | E51: =IF(#REF!=#REF!,E$41,IF(#REF!=#REF!,E$42,E$43))*#REF! ->  | F51: =IF(#REF!=#REF!,F$41,IF(#REF!=#REF!,F$42,F$43))*#REF! ->  | G51: =IF(#REF!=#REF!,G$41,IF(#REF!=#REF!,G$42,G$43))*#REF! ->  | H51: =IF(#REF!=#REF!,H$41,IF(#REF!=#REF!,H$42,H$43))*#REF! ->  | J51: =IF(#REF!=#REF!,J$41,IF(#REF!=#REF!,J$42,J$43))*#REF! ->  | K51: =IF(#REF!=#REF!,K$41,IF(#REF!=#REF!,K$42,K$43))*#REF! ->  | L51: =IF(#REF!=#REF!,L$41,IF(#REF!=#REF!,L$42,L$43))*#REF! ->  | M51: =IF(#REF!=#REF!,M$41,IF(#REF!=#REF!,M$42,M$43))*#REF! ->  | N51: =IF(#REF!=#REF!,N$41,IF(#REF!=#REF!,N$42,N$43))*#REF! ->  | P51: =IF(#REF!=#REF!,P$41,IF(#REF!=#REF!,P$42,P$43))*#REF! ->  | Q51: =IF(#REF!=#REF!,Q$41,IF(#REF!=#REF!,Q$42,Q$43))*#REF! ->  | R51: =IF(#REF!=#REF!,R$41,IF(#REF!=#REF!,R$42,R$43))*#REF! ->  | S51: =IF(#REF!=#REF!,S$41,IF(#REF!=#REF!,S$42,S$43))*#REF! ->  | T51: =IF(#REF!=#REF!,T$41,IF(#REF!=#REF!,T$42,T$43))*#REF! -> 
A52: =#REF! ->  | C52: =#REF! ->  | D52: =IF(#REF!=#REF!,D$41,IF(#REF!=#REF!,D$42,D$43))*#REF! ->  | E52: =IF(#REF!=#REF!,E$41,IF(#REF!=#REF!,E$42,E$43))*#REF! ->  | F52: =IF(#REF!=#REF!,F$41,IF(#REF!=#REF!,F$42,F$43))*#REF! ->  | G52: =IF(#REF!=#REF!,G$41,IF(#REF!=#REF!,G$42,G$43))*#REF! ->  | H52: =IF(#REF!=#REF!,H$41,IF(#REF!=#REF!,H$42,H$43))*#REF! ->  | J52: =IF(#REF!=#REF!,J$41,IF(#REF!=#REF!,J$42,J$43))*#REF! ->  | K52: =IF(#REF!=#REF!,K$41,IF(#REF!=#REF!,K$42,K$43))*#REF! ->  | L52: =IF(#REF!=#REF!,L$41,IF(#REF!=#REF!,L$42,L$43))*#REF! ->  | M52: =IF(#REF!=#REF!,M$41,IF(#REF!=#REF!,M$42,M$43))*#REF! ->  | N52: =IF(#REF!=#REF!,N$41,IF(#REF!=#REF!,N$42,N$43))*#REF! ->  | P52: =IF(#REF!=#REF!,P$41,IF(#REF!=#REF!,P$42,P$43))*#REF! ->  | Q52: =IF(#REF!=#REF!,Q$41,IF(#REF!=#REF!,Q$42,Q$43))*#REF! ->  | R52: =IF(#REF!=#REF!,R$41,IF(#REF!=#REF!,R$42,R$43))*#REF! ->  | S52: =IF(#REF!=#REF!,S$41,IF(#REF!=#REF!,S$42,S$43))*#REF! ->  | T52: =IF(#REF!=#REF!,T$41,IF(#REF!=#REF!,T$42,T$43))*#REF! -> 
A53: =#REF! ->  | C53: =#REF! ->  | D53: =IF(#REF!=#REF!,D$41,IF(#REF!=#REF!,D$42,D$43))*#REF! ->  | E53: =IF(#REF!=#REF!,E$41,IF(#REF!=#REF!,E$42,E$43))*#REF! ->  | F53: =IF(#REF!=#REF!,F$41,IF(#REF!=#REF!,F$42,F$43))*#REF! ->  | G53: =IF(#REF!=#REF!,G$41,IF(#REF!=#REF!,G$42,G$43))*#REF! ->  | H53: =IF(#REF!=#REF!,H$41,IF(#REF!=#REF!,H$42,H$43))*#REF! ->  | J53: =IF(#REF!=#REF!,J$41,IF(#REF!=#REF!,J$42,J$43))*#REF! ->  | K53: =IF(#REF!=#REF!,K$41,IF(#REF!=#REF!,K$42,K$43))*#REF! ->  | L53: =IF(#REF!=#REF!,L$41,IF(#REF!=#REF!,L$42,L$43))*#REF! ->  | M53: =IF(#REF!=#REF!,M$41,IF(#REF!=#REF!,M$42,M$43))*#REF! ->  | N53: =IF(#REF!=#REF!,N$41,IF(#REF!=#REF!,N$42,N$43))*#REF! ->  | P53: =IF(#REF!=#REF!,P$41,IF(#REF!=#REF!,P$42,P$43))*#REF! ->  | Q53: =IF(#REF!=#REF!,Q$41,IF(#REF!=#REF!,Q$42,Q$43))*#REF! ->  | R53: =IF(#REF!=#REF!,R$41,IF(#REF!=#REF!,R$42,R$43))*#REF! ->  | S53: =IF(#REF!=#REF!,S$41,IF(#REF!=#REF!,S$42,S$43))*#REF! ->  | T53: =IF(#REF!=#REF!,T$41,IF(#REF!=#REF!,T$42,T$43))*#REF! -> 
A56: =#REF! -> 
A57: =#REF! ->  | C57: =#REF! ->  | D57: ='Charges Summary'!K$89 ->  | E57: ='Charges Summary'!L$89 ->  | F57: ='Charges Summary'!M$89 ->  | G57: ='Charges Summary'!N$89 ->  | H57: ='Charges Summary'!O$89 ->  | J57: =SUM('Charges Summary'!K83,'Charges Summary'!K8) ->  | K57: =SUM('Charges Summary'!L83,'Charges Summary'!L8) ->  | L57: =SUM('Charges Summary'!M83,'Charges Summary'!M8) ->  | M57: =SUM('Charges Summary'!N83,'Charges Summary'!N8) ->  | N57: =SUM('Charges Summary'!O83,'Charges Summary'!O8) ->  | P57: =SUM('Charges Summary'!K85,'Charges Summary'!K11) ->  | Q57: =SUM('Charges Summary'!L85,'Charges Summary'!L11) ->  | R57: =SUM('Charges Summary'!M85,'Charges Summary'!M11) ->  | S57: =SUM('Charges Summary'!N85,'Charges Summary'!N11) ->  | T57: =SUM('Charges Summary'!O85,'Charges Summary'!O11) ->  | V57: =ABS(D57-J57-P57) ->  | W57: =ABS(E57-K57-Q57) ->  | X57: =ABS(F57-L57-R57) ->  | Y57: =ABS(G57-M57-S57) ->  | Z57: =ABS(H57-N57-T57) -> 
A58: =#REF! ->  | C58: =#REF! ->  | D58: ='Charges Summary'!K$105 ->  | E58: ='Charges Summary'!L$105 ->  | F58: ='Charges Summary'!M$105 ->  | G58: ='Charges Summary'!N$105 ->  | H58: ='Charges Summary'!O$105 ->  | J58: =SUM('Charges Summary'!K99,'Charges Summary'!K8) ->  | K58: =SUM('Charges Summary'!L99,'Charges Summary'!L8) ->  | L58: =SUM('Charges Summary'!M99,'Charges Summary'!M8) ->  | M58: =SUM('Charges Summary'!N99,'Charges Summary'!N8) ->  | N58: =SUM('Charges Summary'!O99,'Charges Summary'!O8) ->  | P58: =SUM('Charges Summary'!K101,'Charges Summary'!K11) ->  | Q58: =SUM('Charges Summary'!L101,'Charges Summary'!L11) ->  | R58: =SUM('Charges Summary'!M101,'Charges Summary'!M11) ->  | S58: =SUM('Charges Summary'!N101,'Charges Summary'!N11) ->  | T58: =SUM('Charges Summary'!O101,'Charges Summary'!O11) -> 
A59: =#REF! ->  | C59: =#REF! ->  | D59: ='Charges Summary'!K$121 ->  | E59: ='Charges Summary'!L$121 ->  | F59: ='Charges Summary'!M$121 ->  | G59: ='Charges Summary'!N$121 ->  | H59: ='Charges Summary'!O$121 ->  | J59: =SUM('Charges Summary'!K115,'Charges Summary'!K8) ->  | K59: =SUM('Charges Summary'!L115,'Charges Summary'!L8) ->  | L59: =SUM('Charges Summary'!M115,'Charges Summary'!M8) ->  | M59: =SUM('Charges Summary'!N115,'Charges Summary'!N8) ->  | N59: =SUM('Charges Summary'!O115,'Charges Summary'!O8) ->  | P59: =SUM('Charges Summary'!K117,'Charges Summary'!K11) ->  | Q59: =SUM('Charges Summary'!L117,'Charges Summary'!L11) ->  | R59: =SUM('Charges Summary'!M117,'Charges Summary'!M11) ->  | S59: =SUM('Charges Summary'!N117,'Charges Summary'!N11) ->  | T59: =SUM('Charges Summary'!O117,'Charges Summary'!O11) -> 
A60: =#REF! ->  | C60: =#REF! ->  | D60: ='Charges Summary'!K$137 ->  | E60: ='Charges Summary'!L$137 ->  | F60: ='Charges Summary'!M$137 ->  | G60: ='Charges Summary'!N$137 ->  | H60: ='Charges Summary'!O$137 ->  | J60: =SUM('Charges Summary'!K131,'Charges Summary'!K$8) ->  | K60: =SUM('Charges Summary'!L131,'Charges Summary'!L$8) ->  | L60: =SUM('Charges Summary'!M131,'Charges Summary'!M$8) ->  | M60: =SUM('Charges Summary'!N131,'Charges Summary'!N$8) ->  | N60: =SUM('Charges Summary'!O131,'Charges Summary'!O$8) ->  | P60: =SUM('Charges Summary'!K133,'Charges Summary'!K$11) ->  | Q60: =SUM('Charges Summary'!L133,'Charges Summary'!L$11) ->  | R60: =SUM('Charges Summary'!M133,'Charges Summary'!M$11) ->  | S60: =SUM('Charges Summary'!N133,'Charges Summary'!N$11) ->  | T60: =SUM('Charges Summary'!O133,'Charges Summary'!O$11) ->  | V60: =ABS(D60-J60-P60) -> 
A61: =#REF! ->  | C61: =#REF! ->  | D61: ='Charges Summary'!K$153 ->  | E61: ='Charges Summary'!L$153 ->  | F61: ='Charges Summary'!M$153 ->  | G61: ='Charges Summary'!N$153 ->  | H61: ='Charges Summary'!O$153 ->  | J61: =SUM('Charges Summary'!K147,'Charges Summary'!K$8) ->  | K61: =SUM('Charges Summary'!L147,'Charges Summary'!L$8) ->  | L61: =SUM('Charges Summary'!M147,'Charges Summary'!M$8) ->  | M61: =SUM('Charges Summary'!N147,'Charges Summary'!N$8) ->  | N61: =SUM('Charges Summary'!O147,'Charges Summary'!O$8) ->  | P61: =SUM('Charges Summary'!K149,'Charges Summary'!K$11) ->  | Q61: =SUM('Charges Summary'!L149,'Charges Summary'!L$11) ->  | R61: =SUM('Charges Summary'!M149,'Charges Summary'!M$11) ->  | S61: =SUM('Charges Summary'!N149,'Charges Summary'!N$11) ->  | T61: =SUM('Charges Summary'!O149,'Charges Summary'!O$11) -> 
A62: =#REF! ->  | C62: =#REF! ->  | D62: ='Charges Summary'!K$169 ->  | E62: ='Charges Summary'!L$169 ->  | F62: ='Charges Summary'!M$169 ->  | G62: ='Charges Summary'!N$169 ->  | H62: ='Charges Summary'!O$169 ->  | J62: =SUM('Charges Summary'!K163,'Charges Summary'!K$8) ->  | K62: =SUM('Charges Summary'!L163,'Charges Summary'!L$8) ->  | L62: =SUM('Charges Summary'!M163,'Charges Summary'!M$8) ->  | M62: =SUM('Charges Summary'!N163,'Charges Summary'!N$8) ->  | N62: =SUM('Charges Summary'!O163,'Charges Summary'!O$8) ->  | P62: =SUM('Charges Summary'!K165,'Charges Summary'!K$11) ->  | Q62: =SUM('Charges Summary'!L165,'Charges Summary'!L$11) ->  | R62: =SUM('Charges Summary'!M165,'Charges Summary'!M$11) ->  | S62: =SUM('Charges Summary'!N165,'Charges Summary'!N$11) ->  | T62: =SUM('Charges Summary'!O165,'Charges Summary'!O$11) -> 
A63: =#REF! ->  | C63: =#REF! ->  | D63: ='Charges Summary'!K$185 ->  | E63: ='Charges Summary'!L$185 ->  | F63: ='Charges Summary'!M$185 ->  | G63: ='Charges Summary'!N$185 ->  | H63: ='Charges Summary'!O$185 ->  | J63: =SUM('Charges Summary'!K179,'Charges Summary'!K$8) ->  | K63: =SUM('Charges Summary'!L179,'Charges Summary'!L$8) ->  | L63: =SUM('Charges Summary'!M179,'Charges Summary'!M$8) ->  | M63: =SUM('Charges Summary'!N179,'Charges Summary'!N$8) ->  | N63: =SUM('Charges Summary'!O179,'Charges Summary'!O$8) ->  | P63: =SUM('Charges Summary'!K181,'Charges Summary'!K$11) ->  | Q63: =SUM('Charges Summary'!L181,'Charges Summary'!L$11) ->  | R63: =SUM('Charges Summary'!M181,'Charges Summary'!M$11) ->  | S63: =SUM('Charges Summary'!N181,'Charges Summary'!N$11) ->  | T63: =SUM('Charges Summary'!O181,'Charges Summary'!O$11) -> 
A64: =#REF! ->  | C64: =#REF! ->  | D64: =IF(#REF!=#REF!,D$57,D$58)*#REF! ->  | E64: =IF(#REF!=#REF!,E$57,E$58)*#REF! ->  | F64: =IF(#REF!=#REF!,F$57,F$58)*#REF! ->  | G64: =IF(#REF!=#REF!,G$57,G$58)*#REF! ->  | H64: =IF(#REF!=#REF!,H$57,H$58)*#REF! ->  | J64: =IF(#REF!=#REF!,J$57,J$58)*#REF! ->  | K64: =IF(#REF!=#REF!,K$57,K$58)*#REF! ->  | L64: =IF(#REF!=#REF!,L$57,L$58)*#REF! ->  | M64: =IF(#REF!=#REF!,M$57,M$58)*#REF! ->  | N64: =IF(#REF!=#REF!,N$57,N$58)*#REF! ->  | P64: =IF(#REF!=#REF!,P$57,P$58)*#REF! ->  | Q64: =IF(#REF!=#REF!,Q$57,Q$58)*#REF! ->  | R64: =IF(#REF!=#REF!,R$57,R$58)*#REF! ->  | S64: =IF(#REF!=#REF!,S$57,S$58)*#REF! ->  | T64: =IF(#REF!=#REF!,T$57,T$58)*#REF! -> 
A65: =#REF! ->  | C65: =#REF! ->  | D65: =IF(#REF!=#REF!,D$57,D$58)*#REF! ->  | E65: =IF(#REF!=#REF!,E$57,E$58)*#REF! ->  | F65: =IF(#REF!=#REF!,F$57,F$58)*#REF! ->  | G65: =IF(#REF!=#REF!,G$57,G$58)*#REF! ->  | H65: =IF(#REF!=#REF!,H$57,H$58)*#REF! ->  | J65: =IF(#REF!=#REF!,J$57,J$58)*#REF! ->  | K65: =IF(#REF!=#REF!,K$57,K$58)*#REF! ->  | L65: =IF(#REF!=#REF!,L$57,L$58)*#REF! ->  | M65: =IF(#REF!=#REF!,M$57,M$58)*#REF! ->  | N65: =IF(#REF!=#REF!,N$57,N$58)*#REF! ->  | P65: =IF(#REF!=#REF!,P$57,P$58)*#REF! ->  | Q65: =IF(#REF!=#REF!,Q$57,Q$58)*#REF! ->  | R65: =IF(#REF!=#REF!,R$57,R$58)*#REF! ->  | S65: =IF(#REF!=#REF!,S$57,S$58)*#REF! ->  | T65: =IF(#REF!=#REF!,T$57,T$58)*#REF! -> 
A66: =#REF! ->  | C66: =#REF! ->  | D66: ='Charges Summary'!K$201 ->  | E66: ='Charges Summary'!L$201 ->  | F66: ='Charges Summary'!M$201 ->  | G66: ='Charges Summary'!N$201 ->  | H66: ='Charges Summary'!O$201 ->  | J66: =SUM('Charges Summary'!K$195,'Charges Summary'!K$8) ->  | K66: =SUM('Charges Summary'!L$195,'Charges Summary'!L$8) ->  | L66: =SUM('Charges Summary'!M$195,'Charges Summary'!M$8) ->  | M66: =SUM('Charges Summary'!N$195,'Charges Summary'!N$8) ->  | N66: =SUM('Charges Summary'!O$195,'Charges Summary'!O$8) ->  | P66: =SUM('Charges Summary'!K$197,'Charges Summary'!K$11) ->  | Q66: =SUM('Charges Summary'!L$197,'Charges Summary'!L$11) ->  | R66: =SUM('Charges Summary'!M$197,'Charges Summary'!M$11) ->  | S66: =SUM('Charges Summary'!N$197,'Charges Summary'!N$11) ->  | T66: =SUM('Charges Summary'!O$197,'Charges Summary'!O$11) ->  | V66: =ABS(D66-J66-P66) -> 
A67: =#REF! ->  | C67: =#REF! ->  | D67: ='Charges Summary'!K$217 ->  | E67: ='Charges Summary'!L$217 ->  | F67: ='Charges Summary'!M$217 ->  | G67: ='Charges Summary'!N$217 ->  | H67: ='Charges Summary'!O$217 ->  | J67: =SUM('Charges Summary'!K$211,'Charges Summary'!K$8) ->  | K67: =SUM('Charges Summary'!L$211,'Charges Summary'!L$8) ->  | L67: =SUM('Charges Summary'!M$211,'Charges Summary'!M$8) ->  | M67: =SUM('Charges Summary'!N$211,'Charges Summary'!N$8) ->  | N67: =SUM('Charges Summary'!O$211,'Charges Summary'!O$8) ->  | P67: =SUM('Charges Summary'!K$213,'Charges Summary'!K$11) ->  | Q67: =SUM('Charges Summary'!L$213,'Charges Summary'!L$11) ->  | R67: =SUM('Charges Summary'!M$213,'Charges Summary'!M$11) ->  | S67: =SUM('Charges Summary'!N$213,'Charges Summary'!N$11) ->  | T67: =SUM('Charges Summary'!O$213,'Charges Summary'!O$11) -> 
A68: =#REF! ->  | C68: =#REF! ->  | D68: ='Charges Summary'!K$233 ->  | E68: ='Charges Summary'!L$233 ->  | F68: ='Charges Summary'!M$233 ->  | G68: ='Charges Summary'!N$233 ->  | H68: ='Charges Summary'!O$233 ->  | J68: =SUM('Charges Summary'!K$227,'Charges Summary'!K$8) ->  | K68: =SUM('Charges Summary'!L$227,'Charges Summary'!L$8) ->  | L68: =SUM('Charges Summary'!M$227,'Charges Summary'!M$8) ->  | M68: =SUM('Charges Summary'!N$227,'Charges Summary'!N$8) ->  | N68: =SUM('Charges Summary'!O$227,'Charges Summary'!O$8) ->  | P68: =SUM('Charges Summary'!K$229,'Charges Summary'!K$11) ->  | Q68: =SUM('Charges Summary'!L$229,'Charges Summary'!L$11) ->  | R68: =SUM('Charges Summary'!M$229,'Charges Summary'!M$11) ->  | S68: =SUM('Charges Summary'!N$229,'Charges Summary'!N$11) ->  | T68: =SUM('Charges Summary'!O$229,'Charges Summary'!O$11) -> 

Sheet Cashflow Summary (hidden)
A1: ='DNSP Inputs O&M'!$A$3 -> AusNet | E1: Check | F1: =SUM(C21,C27,C50,C213,C378) -> 
C2: =EOMONTH(D2,-12) -> 2026-06-30 | D2: =Instructions!$B$16 -> 2027-06-30 | E2: =EOMONTH(D2,12) -> 2028-06-30 | F2: =EOMONTH(E2,12) -> 2029-06-30 | G2: =EOMONTH(F2,12) -> 2030-06-30 | H2: =EOMONTH(G2,12) -> 2031-06-30 | J2: =C2 -> 2026-06-30 | K2: 2027-06-30 | L2: 2028-06-30 | M2: 2029-06-30 | N2: 2030-06-30 | O2: 2031-06-30
A4: Public Lighting - Revenue | C4: Revenue - $Nominal | J4: Revenue - $Real Jun 2026
C5: =C$2 -> 2026-06-30 | D5: 2027-06-30 | E5: 2028-06-30 | F5: 2029-06-30 | G5: 2030-06-30 | H5: 2031-06-30 | J5: =J$2 -> 2026-06-30 | K5: 2027-06-30 | L5: 2028-06-30 | M5: 2029-06-30 | N5: 2030-06-30 | O5: 2031-06-30
A7: Total Revenue | C7: =C95+C260 ->  | J7: =J95+J260 -> 
D8: =D7/C7-1 ->  | E8: =E7/D7-1 ->  | F8: =F7/E7-1 ->  | G8: =G7/F7-1 ->  | H8: =H7/G7-1 ->  | K8: =K7/J7-1 ->  | L8: =L7/K7-1 ->  | M8: =M7/L7-1 ->  | N8: =N7/M7-1 ->  | O8: =O7/N7-1 -> 
A10: Public Lighting - O & M | D10: Forecast O & M - $Nominal | K10: Forecast O & M - $Real Jun 2026
D11: =D$2 -> 2027-06-30 | E11: =E$2 -> 2028-06-30 | F11: =F$2 -> 2029-06-30 | G11: =G$2 -> 2030-06-30 | H11: =H$2 -> 2031-06-30 | K11: =K$2 -> 2027-06-30 | L11: =L$2 -> 2028-06-30 | M11: =M$2 -> 2029-06-30 | N11: =N$2 -> 2030-06-30 | O11: =O$2 -> 2031-06-30
A13: Total O & M | D13: =D153+D318 ->  | E13: =E153+E318 ->  | F13: =F153+F318 ->  | G13: =G153+G318 ->  | H13: =H153+H318 ->  | K13: =K153+K318 ->  | L13: =L153+L318 ->  | M13: =M153+M318 ->  | N13: =N153+N318 ->  | O13: =O153+O318 -> 
A16: Public Lighting - Capital Charge | D16: Capital Charge - $Nominal | K16: Capital Charge - $Real Jun 2026
D17: =D$2 -> 2027-06-30 | E17: =E$2 -> 2028-06-30 | F17: =F$2 -> 2029-06-30 | G17: =G$2 -> 2030-06-30 | H17: =H$2 -> 2031-06-30 | K17: =K$2 -> 2027-06-30 | L17: =L$2 -> 2028-06-30 | M17: =M$2 -> 2029-06-30 | N17: =N$2 -> 2030-06-30 | O17: =O$2 -> 2031-06-30
A19: Total Capital Charge | D19: =D211+D376 ->  | E19: =E211+E376 ->  | F19: =F211+F376 ->  | G19: =G211+G376 ->  | H19: =H211+H376 ->  | K19: =K211+K376 ->  | L19: =L211+L376 ->  | M19: =M211+M376 ->  | N19: =N211+N376 ->  | O19: =O211+O376 -> 
A21: Check | C21: =SUM(D21:O21) ->  | D21: =ABS(D7-SUM(D13,D19)) ->  | E21: =ABS(E7-SUM(E13,E19)) ->  | F21: =ABS(F7-SUM(F13,F19)) ->  | G21: =ABS(G7-SUM(G13,G19)) ->  | H21: =ABS(H7-SUM(H13,H19)) ->  | K21: =ABS(K7-SUM(K13,K19)) ->  | L21: =ABS(L7-SUM(L13,L19)) ->  | M21: =ABS(M7-SUM(M13,M19)) ->  | N21: =ABS(N7-SUM(N13,N19)) ->  | O21: =ABS(O7-SUM(O13,O19)) -> 
A23: Public Lighting - Capital Expenditure | D23: Forecast Capital Expenditure - $Nominal | K23: Forecast Capital Expenditure - $Real Jun 2026
D24: =D$2 -> 2027-06-30 | E24: =E$2 -> 2028-06-30 | F24: =F$2 -> 2029-06-30 | G24: =G$2 -> 2030-06-30 | H24: =H$2 -> 2031-06-30 | K24: =K$2 -> 2027-06-30 | L24: =L$2 -> 2028-06-30 | M24: =M$2 -> 2029-06-30 | N24: =N$2 -> 2030-06-30 | O24: =O$2 -> 2031-06-30
A26: Total Capital Expenditure | D26: =K26*'Charges Summary'!K$4 ->  | E26: =L26*'Charges Summary'!L$4 ->  | F26: =M26*'Charges Summary'!M$4 ->  | G26: =N26*'Charges Summary'!N$4 ->  | H26: =O26*'Charges Summary'!O$4 ->  | K26: =#REF! ->  | L26: =#REF! ->  | M26: =#REF! ->  | N26: =#REF! ->  | O26: =#REF! -> 
A27: Check | C27: =SUM(D27:H27) ->  | D27: =ABS(D26-D34) ->  | E27: =ABS(E26-E34) ->  | F27: =ABS(F26-F34) ->  | G27: =ABS(G26-G34) ->  | H27: =ABS(H26-H34) -> 
A30: Public Lighting - RAB | D30: RAB - Historical Cost ($)
D31: =D$2 -> 2027-06-30 | E31: =E$2 -> 2028-06-30 | F31: =F$2 -> 2029-06-30 | G31: =G$2 -> 2030-06-30 | H31: =H$2 -> 2031-06-30
A33: Opening RAB | D33: ='Total RAB'!T172 ->  | E33: =D36 ->  | F33: =E36 ->  | G33: =F36 ->  | H33: =G36 -> 
A34: Capex | D34: ='Total RAB'!T173 ->  | E34: ='Total RAB'!U173 ->  | F34: ='Total RAB'!V173 ->  | G34: ='Total RAB'!W173 ->  | H34: ='Total RAB'!X173 -> 
A35: Depreciation | D35: ='Total RAB'!T174 ->  | E35: ='Total RAB'!U174 ->  | F35: ='Total RAB'!V174 ->  | G35: ='Total RAB'!W174 ->  | H35: ='Total RAB'!X174 -> 
A36: Closing RAB | D36: =D33+D34-D35 ->  | E36: =E33+E34-E35 ->  | F36: =F33+F34-F35 ->  | G36: =G33+G34-G35 ->  | H36: =H33+H34-H35 -> 
A38: Average RAB | D38: =SUM(D33,D36)/2 ->  | E38: =SUM(E33,E36)/2 ->  | F38: =SUM(F33,F36)/2 ->  | G38: =SUM(G33,G36)/2 ->  | H38: =SUM(H33,H36)/2 -> 
A40: =WACC!B$8 -> Nominal Pre Tax WACC | D40: =WACC!E$8 ->  | E40: =WACC!F$8 ->  | F40: =WACC!G$8 ->  | G40: =WACC!H$8 ->  | H40: =WACC!I$8 -> 
A42: Capital Charge | D42: Capital Charge - $Nominal
D43: =D$2 -> 2027-06-30 | E43: =E$2 -> 2028-06-30 | F43: =F$2 -> 2029-06-30 | G43: =G$2 -> 2030-06-30 | H43: =H$2 -> 2031-06-30
A45: Depreciation | D45: =D35 ->  | E45: =E35 ->  | F45: =F35 ->  | G45: =G35 ->  | H45: =H35 -> 
A46: Return | D46: =D40*D38 ->  | E46: =E40*E38 ->  | F46: =F40*F38 ->  | G46: =G40*G38 ->  | H46: =H40*H38 -> 
D48: =SUM(D45:D47) ->  | E48: =SUM(E45:E47) ->  | F48: =SUM(F45:F47) ->  | G48: =SUM(G45:G47) ->  | H48: =SUM(H45:H47) -> 
A50: Check | C50: =SUM(D50:H50) ->  | D50: =ABS(D19-D48)*IF(#REF!=0,0,1)*IF(#REF!=0,0,1) ->  | E50: =ABS(E19-E48)*IF(#REF!=0,0,1)*IF(#REF!=0,0,1) ->  | F50: =ABS(F19-F48)*IF(#REF!=0,0,1)*IF(#REF!=0,0,1) ->  | G50: =ABS(G19-G48)*IF(#REF!=0,0,1)*IF(#REF!=0,0,1) ->  | H50: =ABS(H19-H48)*IF(#REF!=0,0,1)*IF(#REF!=0,0,1) -> 
A53: =#REF! -> 
A54: Public Lighting - Revenue | C54: Revenue - $Nominal | J54: Revenue - $Real Jun 2026
C55: =C$2 -> 2026-06-30 | D55: 2027-06-30 | E55: 2028-06-30 | F55: 2029-06-30 | G55: 2030-06-30 | H55: 2031-06-30 | J55: =J$2 -> 2026-06-30 | K55: 2027-06-30 | L55: 2028-06-30 | M55: 2029-06-30 | N55: 2030-06-30 | O55: 2031-06-30
A56: =#REF! -> 
A57: =#REF! ->  | C57: =IF('PL Tariffs'!C7=0,"",#REF!*'PL Tariffs'!C7) ->  | D57: =#REF!*'PL Tariffs'!D7 ->  | E57: =#REF!*'PL Tariffs'!E7 ->  | F57: =#REF!*'PL Tariffs'!F7 ->  | G57: =#REF!*'PL Tariffs'!G7 ->  | H57: =#REF!*'PL Tariffs'!H7 ->  | J57: =C57 ->  | K57: =D57/'Charges Summary'!D$4 ->  | L57: =E57/'Charges Summary'!E$4 ->  | M57: =F57/'Charges Summary'!F$4 ->  | N57: =G57/'Charges Summary'!G$4 ->  | O57: =H57/'Charges Summary'!H$4 -> 
A58: =#REF! ->  | C58: =IF('PL Tariffs'!C8=0,"",#REF!*'PL Tariffs'!C8) ->  | D58: =#REF!*'PL Tariffs'!D8 ->  | E58: =#REF!*'PL Tariffs'!E8 ->  | F58: =#REF!*'PL Tariffs'!F8 ->  | G58: =#REF!*'PL Tariffs'!G8 ->  | H58: =#REF!*'PL Tariffs'!H8 ->  | K58: =D58/'Charges Summary'!D$4 ->  | L58: =E58/'Charges Summary'!E$4 ->  | M58: =F58/'Charges Summary'!F$4 ->  | N58: =G58/'Charges Summary'!G$4 ->  | O58: =H58/'Charges Summary'!H$4 -> 
A59: =#REF! ->  | C59: =IF('PL Tariffs'!C9=0,"",#REF!*'PL Tariffs'!C9) ->  | D59: =#REF!*'PL Tariffs'!D9 ->  | E59: =#REF!*'PL Tariffs'!E9 ->  | F59: =#REF!*'PL Tariffs'!F9 ->  | G59: =#REF!*'PL Tariffs'!G9 ->  | H59: =#REF!*'PL Tariffs'!H9 ->  | K59: =D59/'Charges Summary'!D$4 ->  | L59: =E59/'Charges Summary'!E$4 ->  | M59: =F59/'Charges Summary'!F$4 ->  | N59: =G59/'Charges Summary'!G$4 ->  | O59: =H59/'Charges Summary'!H$4 -> 
A60: =#REF! ->  | C60: =IF('PL Tariffs'!C10=0,"",#REF!*'PL Tariffs'!C10) ->  | D60: =#REF!*'PL Tariffs'!D10 ->  | E60: =#REF!*'PL Tariffs'!E10 ->  | F60: =#REF!*'PL Tariffs'!F10 ->  | G60: =#REF!*'PL Tariffs'!G10 ->  | H60: =#REF!*'PL Tariffs'!H10 ->  | K60: =D60/'Charges Summary'!D$4 ->  | L60: =E60/'Charges Summary'!E$4 ->  | M60: =F60/'Charges Summary'!F$4 ->  | N60: =G60/'Charges Summary'!G$4 ->  | O60: =H60/'Charges Summary'!H$4 -> 
A61: =#REF! ->  | C61: =IF('PL Tariffs'!C11=0,"",#REF!*'PL Tariffs'!C11) ->  | D61: =#REF!*'PL Tariffs'!D11 ->  | E61: =#REF!*'PL Tariffs'!E11 ->  | F61: =#REF!*'PL Tariffs'!F11 ->  | G61: =#REF!*'PL Tariffs'!G11 ->  | H61: =#REF!*'PL Tariffs'!H11 ->  | K61: =D61/'Charges Summary'!D$4 ->  | L61: =E61/'Charges Summary'!E$4 ->  | M61: =F61/'Charges Summary'!F$4 ->  | N61: =G61/'Charges Summary'!G$4 ->  | O61: =H61/'Charges Summary'!H$4 -> 
A62: =#REF! ->  | C62: =IF('PL Tariffs'!C12=0,"",#REF!*'PL Tariffs'!C12) ->  | D62: =#REF!*'PL Tariffs'!D12 ->  | E62: =#REF!*'PL Tariffs'!E12 ->  | F62: =#REF!*'PL Tariffs'!F12 ->  | G62: =#REF!*'PL Tariffs'!G12 ->  | H62: =#REF!*'PL Tariffs'!H12 ->  | K62: =D62/'Charges Summary'!D$4 ->  | L62: =E62/'Charges Summary'!E$4 ->  | M62: =F62/'Charges Summary'!F$4 ->  | N62: =G62/'Charges Summary'!G$4 ->  | O62: =H62/'Charges Summary'!H$4 -> 
A63: =#REF! ->  | C63: =IF('PL Tariffs'!C13=0,"",#REF!*'PL Tariffs'!C13) ->  | D63: =#REF!*'PL Tariffs'!D13 ->  | E63: =#REF!*'PL Tariffs'!E13 ->  | F63: =#REF!*'PL Tariffs'!F13 ->  | G63: =#REF!*'PL Tariffs'!G13 ->  | H63: =#REF!*'PL Tariffs'!H13 ->  | K63: =D63/'Charges Summary'!D$4 ->  | L63: =E63/'Charges Summary'!E$4 ->  | M63: =F63/'Charges Summary'!F$4 ->  | N63: =G63/'Charges Summary'!G$4 ->  | O63: =H63/'Charges Summary'!H$4 -> 
A64: =#REF! ->  | C64: =IF('PL Tariffs'!C14=0,"",#REF!*'PL Tariffs'!C14) ->  | D64: =#REF!*'PL Tariffs'!D14 ->  | E64: =#REF!*'PL Tariffs'!E14 ->  | F64: =#REF!*'PL Tariffs'!F14 ->  | G64: =#REF!*'PL Tariffs'!G14 ->  | H64: =#REF!*'PL Tariffs'!H14 ->  | K64: =D64/'Charges Summary'!D$4 ->  | L64: =E64/'Charges Summary'!E$4 ->  | M64: =F64/'Charges Summary'!F$4 ->  | N64: =G64/'Charges Summary'!G$4 ->  | O64: =H64/'Charges Summary'!H$4 -> 
A65: =#REF! ->  | C65: =IF('PL Tariffs'!C15=0,"",#REF!*'PL Tariffs'!C15) ->  | D65: =#REF!*'PL Tariffs'!D15 ->  | E65: =#REF!*'PL Tariffs'!E15 ->  | F65: =#REF!*'PL Tariffs'!F15 ->  | G65: =#REF!*'PL Tariffs'!G15 ->  | H65: =#REF!*'PL Tariffs'!H15 ->  | K65: =D65/'Charges Summary'!D$4 ->  | L65: =E65/'Charges Summary'!E$4 ->  | M65: =F65/'Charges Summary'!F$4 ->  | N65: =G65/'Charges Summary'!G$4 ->  | O65: =H65/'Charges Summary'!H$4 -> 
A66: =#REF! ->  | C66: =IF('PL Tariffs'!C16=0,"",#REF!*'PL Tariffs'!C16) ->  | D66: =#REF!*'PL Tariffs'!D16 ->  | E66: =#REF!*'PL Tariffs'!E16 ->  | F66: =#REF!*'PL Tariffs'!F16 ->  | G66: =#REF!*'PL Tariffs'!G16 ->  | H66: =#REF!*'PL Tariffs'!H16 ->  | J66: =C66 ->  | K66: =D66/'Charges Summary'!D$4 ->  | L66: =E66/'Charges Summary'!E$4 ->  | M66: =F66/'Charges Summary'!F$4 ->  | N66: =G66/'Charges Summary'!G$4 ->  | O66: =H66/'Charges Summary'!H$4 -> 
A67: =#REF! ->  | C67: =IF('PL Tariffs'!C17=0,"",#REF!*'PL Tariffs'!C17) ->  | D67: =#REF!*'PL Tariffs'!D17 ->  | E67: =#REF!*'PL Tariffs'!E17 ->  | F67: =#REF!*'PL Tariffs'!F17 ->  | G67: =#REF!*'PL Tariffs'!G17 ->  | H67: =#REF!*'PL Tariffs'!H17 ->  | J67: =C67 ->  | K67: =D67/'Charges Summary'!D$4 ->  | L67: =E67/'Charges Summary'!E$4 ->  | M67: =F67/'Charges Summary'!F$4 ->  | N67: =G67/'Charges Summary'!G$4 ->  | O67: =H67/'Charges Summary'!H$4 -> 
A68: =#REF! ->  | C68: =IF('PL Tariffs'!C18=0,"",#REF!*'PL Tariffs'!C18) ->  | D68: =#REF!*'PL Tariffs'!D18 ->  | E68: =#REF!*'PL Tariffs'!E18 ->  | F68: =#REF!*'PL Tariffs'!F18 ->  | G68: =#REF!*'PL Tariffs'!G18 ->  | H68: =#REF!*'PL Tariffs'!H18 ->  | J68: =C68 ->  | K68: =D68/'Charges Summary'!D$4 ->  | L68: =E68/'Charges Summary'!E$4 ->  | M68: =F68/'Charges Summary'!F$4 ->  | N68: =G68/'Charges Summary'!G$4 ->  | O68: =H68/'Charges Summary'!H$4 -> 
A69: =#REF! ->  | C69: =IF('PL Tariffs'!C19=0,"",#REF!*'PL Tariffs'!C19) ->  | D69: =#REF!*'PL Tariffs'!D19 ->  | E69: =#REF!*'PL Tariffs'!E19 ->  | F69: =#REF!*'PL Tariffs'!F19 ->  | G69: =#REF!*'PL Tariffs'!G19 ->  | H69: =#REF!*'PL Tariffs'!H19 ->  | J69: =C69 ->  | K69: =D69/'Charges Summary'!D$4 ->  | L69: =E69/'Charges Summary'!E$4 ->  | M69: =F69/'Charges Summary'!F$4 ->  | N69: =G69/'Charges Summary'!G$4 ->  | O69: =H69/'Charges Summary'!H$4 -> 
A81: =#REF! -> 
A82: =#REF! ->  | C82: =IF('PL Tariffs'!C23=0,"",#REF!*'PL Tariffs'!C23) ->  | D82: =#REF!*'PL Tariffs'!D23 ->  | E82: =#REF!*'PL Tariffs'!E23 ->  | F82: =#REF!*'PL Tariffs'!F23 ->  | G82: =#REF!*'PL Tariffs'!G23 ->  | H82: =#REF!*'PL Tariffs'!H23 ->  | J82: =C82 ->  | K82: =D82/'Charges Summary'!D$4 ->  | L82: =E82/'Charges Summary'!E$4 ->  | M82: =F82/'Charges Summary'!F$4 ->  | N82: =G82/'Charges Summary'!G$4 ->  | O82: =H82/'Charges Summary'!H$4 -> 
A83: =#REF! ->  | C83: =IF('PL Tariffs'!C24=0,"",#REF!*'PL Tariffs'!C24) ->  | D83: =#REF!*'PL Tariffs'!D24 ->  | E83: =#REF!*'PL Tariffs'!E24 ->  | F83: =#REF!*'PL Tariffs'!F24 ->  | G83: =#REF!*'PL Tariffs'!G24 ->  | H83: =#REF!*'PL Tariffs'!H24 ->  | J83: =C83 ->  | K83: =D83/'Charges Summary'!D$4 ->  | L83: =E83/'Charges Summary'!E$4 ->  | M83: =F83/'Charges Summary'!F$4 ->  | N83: =G83/'Charges Summary'!G$4 ->  | O83: =H83/'Charges Summary'!H$4 -> 
A84: =#REF! ->  | C84: =IF('PL Tariffs'!C25=0,"",#REF!*'PL Tariffs'!C25) ->  | D84: =#REF!*'PL Tariffs'!D25 ->  | E84: =#REF!*'PL Tariffs'!E25 ->  | F84: =#REF!*'PL Tariffs'!F25 ->  | G84: =#REF!*'PL Tariffs'!G25 ->  | H84: =#REF!*'PL Tariffs'!H25 ->  | J84: =C84 ->  | K84: =D84/'Charges Summary'!D$4 ->  | L84: =E84/'Charges Summary'!E$4 ->  | M84: =F84/'Charges Summary'!F$4 ->  | N84: =G84/'Charges Summary'!G$4 ->  | O84: =H84/'Charges Summary'!H$4 -> 
A85: =#REF! ->  | C85: =IF('PL Tariffs'!C26=0,"",#REF!*'PL Tariffs'!C26) ->  | D85: =#REF!*'PL Tariffs'!D26 ->  | E85: =#REF!*'PL Tariffs'!E26 ->  | F85: =#REF!*'PL Tariffs'!F26 ->  | G85: =#REF!*'PL Tariffs'!G26 ->  | H85: =#REF!*'PL Tariffs'!H26 ->  | J85: =C85 ->  | K85: =D85/'Charges Summary'!D$4 ->  | L85: =E85/'Charges Summary'!E$4 ->  | M85: =F85/'Charges Summary'!F$4 ->  | N85: =G85/'Charges Summary'!G$4 ->  | O85: =H85/'Charges Summary'!H$4 -> 
A86: =#REF! ->  | C86: =IF('PL Tariffs'!C27=0,"",#REF!*'PL Tariffs'!C27) ->  | D86: =#REF!*'PL Tariffs'!D27 ->  | E86: =#REF!*'PL Tariffs'!E27 ->  | F86: =#REF!*'PL Tariffs'!F27 ->  | G86: =#REF!*'PL Tariffs'!G27 ->  | H86: =#REF!*'PL Tariffs'!H27 ->  | J86: =C86 ->  | K86: =D86/'Charges Summary'!D$4 ->  | L86: =E86/'Charges Summary'!E$4 ->  | M86: =F86/'Charges Summary'!F$4 ->  | N86: =G86/'Charges Summary'!G$4 ->  | O86: =H86/'Charges Summary'!H$4 -> 
A87: =#REF! ->  | C87: =IF('PL Tariffs'!C28=0,"",#REF!*'PL Tariffs'!C28) ->  | D87: =#REF!*'PL Tariffs'!D28 ->  | E87: =#REF!*'PL Tariffs'!E28 ->  | F87: =#REF!*'PL Tariffs'!F28 ->  | G87: =#REF!*'PL Tariffs'!G28 ->  | H87: =#REF!*'PL Tariffs'!H28 ->  | J87: =C87 ->  | K87: =D87/'Charges Summary'!D$4 ->  | L87: =E87/'Charges Summary'!E$4 ->  | M87: =F87/'Charges Summary'!F$4 ->  | N87: =G87/'Charges Summary'!G$4 ->  | O87: =H87/'Charges Summary'!H$4 -> 
A88: =#REF! ->  | C88: =IF('PL Tariffs'!C29=0,"",#REF!*'PL Tariffs'!C29) ->  | D88: =#REF!*'PL Tariffs'!D29 ->  | E88: =#REF!*'PL Tariffs'!E29 ->  | F88: =#REF!*'PL Tariffs'!F29 ->  | G88: =#REF!*'PL Tariffs'!G29 ->  | H88: =#REF!*'PL Tariffs'!H29 ->  | J88: =C88 ->  | K88: =D88/'Charges Summary'!D$4 ->  | L88: =E88/'Charges Summary'!E$4 ->  | M88: =F88/'Charges Summary'!F$4 ->  | N88: =G88/'Charges Summary'!G$4 ->  | O88: =H88/'Charges Summary'!H$4 -> 
A89: =#REF! ->  | C89: =IF('PL Tariffs'!C30=0,"",#REF!*'PL Tariffs'!C30) ->  | D89: =#REF!*'PL Tariffs'!D30 ->  | E89: =#REF!*'PL Tariffs'!E30 ->  | F89: =#REF!*'PL Tariffs'!F30 ->  | G89: =#REF!*'PL Tariffs'!G30 ->  | H89: =#REF!*'PL Tariffs'!H30 ->  | K89: =D89/'Charges Summary'!D$4 ->  | L89: =E89/'Charges Summary'!E$4 ->  | M89: =F89/'Charges Summary'!F$4 ->  | N89: =G89/'Charges Summary'!G$4 ->  | O89: =H89/'Charges Summary'!H$4 -> 
A90: =#REF! ->  | C90: =IF('PL Tariffs'!C31=0,"",#REF!*'PL Tariffs'!C31) ->  | D90: =#REF!*'PL Tariffs'!D31 ->  | E90: =#REF!*'PL Tariffs'!E31 ->  | F90: =#REF!*'PL Tariffs'!F31 ->  | G90: =#REF!*'PL Tariffs'!G31 ->  | H90: =#REF!*'PL Tariffs'!H31 ->  | K90: =D90/'Charges Summary'!D$4 ->  | L90: =E90/'Charges Summary'!E$4 ->  | M90: =F90/'Charges Summary'!F$4 ->  | N90: =G90/'Charges Summary'!G$4 ->  | O90: =H90/'Charges Summary'!H$4 -> 
A91: =#REF! ->  | C91: =IF('PL Tariffs'!C32=0,"",#REF!*'PL Tariffs'!C32) ->  | D91: =#REF!*'PL Tariffs'!D32 ->  | E91: =#REF!*'PL Tariffs'!E32 ->  | F91: =#REF!*'PL Tariffs'!F32 ->  | G91: =#REF!*'PL Tariffs'!G32 ->  | H91: =#REF!*'PL Tariffs'!H32 ->  | K91: =D91/'Charges Summary'!D$4 ->  | L91: =E91/'Charges Summary'!E$4 ->  | M91: =F91/'Charges Summary'!F$4 ->  | N91: =G91/'Charges Summary'!G$4 ->  | O91: =H91/'Charges Summary'!H$4 -> 
A92: =#REF! ->  | C92: =IF('PL Tariffs'!C33=0,"",#REF!*'PL Tariffs'!C33) ->  | D92: =#REF!*'PL Tariffs'!D33 ->  | E92: =#REF!*'PL Tariffs'!E33 ->  | F92: =#REF!*'PL Tariffs'!F33 ->  | G92: =#REF!*'PL Tariffs'!G33 ->  | H92: =#REF!*'PL Tariffs'!H33 ->  | K92: =D92/'Charges Summary'!D$4 ->  | L92: =E92/'Charges Summary'!E$4 ->  | M92: =F92/'Charges Summary'!F$4 ->  | N92: =G92/'Charges Summary'!G$4 ->  | O92: =H92/'Charges Summary'!H$4 -> 
A93: =#REF! ->  | C93: =IF('PL Tariffs'!C34=0,"",#REF!*'PL Tariffs'!C34) ->  | D93: =#REF!*'PL Tariffs'!D34 ->  | E93: =#REF!*'PL Tariffs'!E34 ->  | F93: =#REF!*'PL Tariffs'!F34 ->  | G93: =#REF!*'PL Tariffs'!G34 ->  | H93: =#REF!*'PL Tariffs'!H34 ->  | K93: =D93/'Charges Summary'!D$4 ->  | L93: =E93/'Charges Summary'!E$4 ->  | M93: =F93/'Charges Summary'!F$4 ->  | N93: =G93/'Charges Summary'!G$4 ->  | O93: =H93/'Charges Summary'!H$4 -> 
A95: Total Revenue | C95: =IF(SUM(C57:C93)=0,0,SUM(C57:C93)) ->  | J95: =IF(SUM(J57:J93)=0,0,SUM(J57:J93)) -> 
A98: Public Lighting - O & M | D98: Forecast O & M - $Nominal | K98: Forecast O & M - $Real Jun 2026
D99: =D$2 -> 2027-06-30 | E99: =E$2 -> 2028-06-30 | F99: =F$2 -> 2029-06-30 | G99: =G$2 -> 2030-06-30 | H99: =H$2 -> 2031-06-30 | K99: =K$2 -> 2027-06-30 | L99: =L$2 -> 2028-06-30 | M99: =M$2 -> 2029-06-30 | N99: =N$2 -> 2030-06-30 | O99: =O$2 -> 2031-06-30
A101: Unit cost
A102: =#REF! ->  | D102: =SUM('Charges Summary'!D25,'Charges Summary'!D8) ->  | E102: =SUM('Charges Summary'!E25,'Charges Summary'!E8) ->  | F102: =SUM('Charges Summary'!F25,'Charges Summary'!F8) ->  | G102: =SUM('Charges Summary'!G25,'Charges Summary'!G8) ->  | H102: =SUM('Charges Summary'!H25,'Charges Summary'!H8) ->  | K102: =D102/'Charges Summary'!D$4 ->  | L102: =E102/'Charges Summary'!E$4 ->  | M102: =F102/'Charges Summary'!F$4 ->  | N102: =G102/'Charges Summary'!G$4 ->  | O102: =H102/'Charges Summary'!H$4 -> 
A103: =#REF! ->  | D103: =SUM('Charges Summary'!D49,'Charges Summary'!D8) ->  | E103: =SUM('Charges Summary'!E49,'Charges Summary'!E8) ->  | F103: =SUM('Charges Summary'!F49,'Charges Summary'!F8) ->  | G103: =SUM('Charges Summary'!G49,'Charges Summary'!G8) ->  | H103: =SUM('Charges Summary'!H49,'Charges Summary'!H8) ->  | K103: =D103/'Charges Summary'!D$4 ->  | L103: =E103/'Charges Summary'!E$4 ->  | M103: =F103/'Charges Summary'!F$4 ->  | N103: =G103/'Charges Summary'!G$4 ->  | O103: =H103/'Charges Summary'!H$4 -> 
A104: =#REF! ->  | D104: =SUM('Charges Summary'!D65,'Charges Summary'!D8) ->  | E104: =SUM('Charges Summary'!E65,'Charges Summary'!E8) ->  | F104: =SUM('Charges Summary'!F65,'Charges Summary'!F8) ->  | G104: =SUM('Charges Summary'!G65,'Charges Summary'!G8) ->  | H104: =SUM('Charges Summary'!H65,'Charges Summary'!H8) ->  | K104: =D104/'Charges Summary'!D$4 ->  | L104: =E104/'Charges Summary'!E$4 ->  | M104: =F104/'Charges Summary'!F$4 ->  | N104: =G104/'Charges Summary'!G$4 ->  | O104: =H104/'Charges Summary'!H$4 -> 
A106: =#REF! ->  | D106: =SUM('Charges Summary'!D83,'Charges Summary'!D8) ->  | E106: =SUM('Charges Summary'!E83,'Charges Summary'!E8) ->  | F106: =SUM('Charges Summary'!F83,'Charges Summary'!F8) ->  | G106: =SUM('Charges Summary'!G83,'Charges Summary'!G8) ->  | H106: =SUM('Charges Summary'!H83,'Charges Summary'!H8) ->  | K106: =D106/'Charges Summary'!D$4 ->  | L106: =E106/'Charges Summary'!E$4 ->  | M106: =F106/'Charges Summary'!F$4 ->  | N106: =G106/'Charges Summary'!G$4 ->  | O106: =H106/'Charges Summary'!H$4 -> 
A107: =#REF! ->  | D107: =SUM('Charges Summary'!D99,'Charges Summary'!D8) ->  | E107: =SUM('Charges Summary'!E99,'Charges Summary'!E8) ->  | F107: =SUM('Charges Summary'!F99,'Charges Summary'!F8) ->  | G107: =SUM('Charges Summary'!G99,'Charges Summary'!G8) ->  | H107: =SUM('Charges Summary'!H99,'Charges Summary'!H8) ->  | K107: =D107/'Charges Summary'!D$4 ->  | L107: =E107/'Charges Summary'!E$4 ->  | M107: =F107/'Charges Summary'!F$4 ->  | N107: =G107/'Charges Summary'!G$4 ->  | O107: =H107/'Charges Summary'!H$4 -> 
A108: =#REF! ->  | D108: =SUM('Charges Summary'!D115,'Charges Summary'!D8) ->  | E108: =SUM('Charges Summary'!E115,'Charges Summary'!E8) ->  | F108: =SUM('Charges Summary'!F115,'Charges Summary'!F8) ->  | G108: =SUM('Charges Summary'!G115,'Charges Summary'!G8) ->  | H108: =SUM('Charges Summary'!H115,'Charges Summary'!H8) ->  | K108: =D108/'Charges Summary'!D$4 ->  | L108: =E108/'Charges Summary'!E$4 ->  | M108: =F108/'Charges Summary'!F$4 ->  | N108: =G108/'Charges Summary'!G$4 ->  | O108: =H108/'Charges Summary'!H$4 -> 
A109: =#REF! ->  | D109: =SUM('Charges Summary'!D131,'Charges Summary'!D$8) ->  | E109: =SUM('Charges Summary'!E131,'Charges Summary'!E$8) ->  | F109: =SUM('Charges Summary'!F131,'Charges Summary'!F$8) ->  | G109: =SUM('Charges Summary'!G131,'Charges Summary'!G$8) ->  | H109: =SUM('Charges Summary'!H131,'Charges Summary'!H$8) ->  | K109: =D109/'Charges Summary'!D$4 ->  | L109: =E109/'Charges Summary'!E$4 ->  | M109: =F109/'Charges Summary'!F$4 ->  | N109: =G109/'Charges Summary'!G$4 ->  | O109: =H109/'Charges Summary'!H$4 -> 
A110: =#REF! ->  | D110: =SUM('Charges Summary'!D147,'Charges Summary'!D$8) ->  | E110: =SUM('Charges Summary'!E147,'Charges Summary'!E$8) ->  | F110: =SUM('Charges Summary'!F147,'Charges Summary'!F$8) ->  | G110: =SUM('Charges Summary'!G147,'Charges Summary'!G$8) ->  | H110: =SUM('Charges Summary'!H147,'Charges Summary'!H$8) ->  | K110: =D110/'Charges Summary'!D$4 ->  | L110: =E110/'Charges Summary'!E$4 ->  | M110: =F110/'Charges Summary'!F$4 ->  | N110: =G110/'Charges Summary'!G$4 ->  | O110: =H110/'Charges Summary'!H$4 -> 
A111: =#REF! ->  | D111: =SUM('Charges Summary'!D163,'Charges Summary'!D$8) ->  | E111: =SUM('Charges Summary'!E163,'Charges Summary'!E$8) ->  | F111: =SUM('Charges Summary'!F163,'Charges Summary'!F$8) ->  | G111: =SUM('Charges Summary'!G163,'Charges Summary'!G$8) ->  | H111: =SUM('Charges Summary'!H163,'Charges Summary'!H$8) ->  | K111: =D111/'Charges Summary'!D$4 ->  | L111: =E111/'Charges Summary'!E$4 ->  | M111: =F111/'Charges Summary'!F$4 ->  | N111: =G111/'Charges Summary'!G$4 ->  | O111: =H111/'Charges Summary'!H$4 -> 
A112: =#REF! ->  | D112: =SUM('Charges Summary'!D179,'Charges Summary'!D$8) ->  | E112: =SUM('Charges Summary'!E179,'Charges Summary'!E$8) ->  | F112: =SUM('Charges Summary'!F179,'Charges Summary'!F$8) ->  | G112: =SUM('Charges Summary'!G179,'Charges Summary'!G$8) ->  | H112: =SUM('Charges Summary'!H179,'Charges Summary'!H$8) ->  | K112: =D112/'Charges Summary'!D$4 ->  | L112: =E112/'Charges Summary'!E$4 ->  | M112: =F112/'Charges Summary'!F$4 ->  | N112: =G112/'Charges Summary'!G$4 ->  | O112: =H112/'Charges Summary'!H$4 -> 
A114: =#REF! -> 
A115: =#REF! ->  | D115: =D102*#REF! ->  | E115: =E102*#REF! ->  | F115: =F102*#REF! ->  | G115: =G102*#REF! ->  | H115: =H102*#REF! ->  | K115: =D115/'Charges Summary'!D$4 ->  | L115: =E115/'Charges Summary'!E$4 ->  | M115: =F115/'Charges Summary'!F$4 ->  | N115: =G115/'Charges Summary'!G$4 ->  | O115: =H115/'Charges Summary'!H$4 -> 
A116: =#REF! ->  | D116: =D103*#REF! ->  | E116: =E103*#REF! ->  | F116: =F103*#REF! ->  | G116: =G103*#REF! ->  | H116: =H103*#REF! ->  | K116: =D116/'Charges Summary'!D$4 ->  | L116: =E116/'Charges Summary'!E$4 ->  | M116: =F116/'Charges Summary'!F$4 ->  | N116: =G116/'Charges Summary'!G$4 ->  | O116: =H116/'Charges Summary'!H$4 -> 
A117: =#REF! ->  | D117: =D104*#REF! ->  | E117: =E104*#REF! ->  | F117: =F104*#REF! ->  | G117: =G104*#REF! ->  | H117: =H104*#REF! ->  | K117: =D117/'Charges Summary'!D$4 ->  | L117: =E117/'Charges Summary'!E$4 ->  | M117: =F117/'Charges Summary'!F$4 ->  | N117: =G117/'Charges Summary'!G$4 ->  | O117: =H117/'Charges Summary'!H$4 -> 
A118: =#REF! ->  | D118: =IF(#REF!=#REF!,D$102,IF(#REF!=#REF!,D$103,D$104))*#REF!*#REF! ->  | E118: =IF(#REF!=#REF!,E$102,IF(#REF!=#REF!,E$103,E$104))*#REF!*#REF! ->  | F118: =IF(#REF!=#REF!,F$102,IF(#REF!=#REF!,F$103,F$104))*#REF!*#REF! ->  | G118: =IF(#REF!=#REF!,G$102,IF(#REF!=#REF!,G$103,G$104))*#REF!*#REF! ->  | H118: =IF(#REF!=#REF!,H$102,IF(#REF!=#REF!,H$103,H$104))*#REF!*#REF! ->  | K118: =D118/'Charges Summary'!D$4 ->  | L118: =E118/'Charges Summary'!E$4 ->  | M118: =F118/'Charges Summary'!F$4 ->  | N118: =G118/'Charges Summary'!G$4 ->  | O118: =H118/'Charges Summary'!H$4 -> 
A119: =#REF! ->  | D119: =IF(#REF!=#REF!,D$102,IF(#REF!=#REF!,D$103,D$104))*#REF!*#REF! ->  | E119: =IF(#REF!=#REF!,E$102,IF(#REF!=#REF!,E$103,E$104))*#REF!*#REF! ->  | F119: =IF(#REF!=#REF!,F$102,IF(#REF!=#REF!,F$103,F$104))*#REF!*#REF! ->  | G119: =IF(#REF!=#REF!,G$102,IF(#REF!=#REF!,G$103,G$104))*#REF!*#REF! ->  | H119: =IF(#REF!=#REF!,H$102,IF(#REF!=#REF!,H$103,H$104))*#REF!*#REF! ->  | K119: =D119/'Charges Summary'!D$4 ->  | L119: =E119/'Charges Summary'!E$4 ->  | M119: =F119/'Charges Summary'!F$4 ->  | N119: =G119/'Charges Summary'!G$4 ->  | O119: =H119/'Charges Summary'!H$4 -> 
A120: =#REF! ->  | D120: =IF(#REF!=#REF!,D$102,IF(#REF!=#REF!,D$103,D$104))*#REF!*#REF! ->  | E120: =IF(#REF!=#REF!,E$102,IF(#REF!=#REF!,E$103,E$104))*#REF!*#REF! ->  | F120: =IF(#REF!=#REF!,F$102,IF(#REF!=#REF!,F$103,F$104))*#REF!*#REF! ->  | G120: =IF(#REF!=#REF!,G$102,IF(#REF!=#REF!,G$103,G$104))*#REF!*#REF! ->  | H120: =IF(#REF!=#REF!,H$102,IF(#REF!=#REF!,H$103,H$104))*#REF!*#REF! ->  | K120: =D120/'Charges Summary'!D$4 ->  | L120: =E120/'Charges Summary'!E$4 ->  | M120: =F120/'Charges Summary'!F$4 ->  | N120: =G120/'Charges Summary'!G$4 ->  | O120: =H120/'Charges Summary'!H$4 -> 
A121: =#REF! ->  | D121: =IF(#REF!=#REF!,D$102,IF(#REF!=#REF!,D$103,D$104))*#REF!*#REF! ->  | E121: =IF(#REF!=#REF!,E$102,IF(#REF!=#REF!,E$103,E$104))*#REF!*#REF! ->  | F121: =IF(#REF!=#REF!,F$102,IF(#REF!=#REF!,F$103,F$104))*#REF!*#REF! ->  | G121: =IF(#REF!=#REF!,G$102,IF(#REF!=#REF!,G$103,G$104))*#REF!*#REF! ->  | H121: =IF(#REF!=#REF!,H$102,IF(#REF!=#REF!,H$103,H$104))*#REF!*#REF! ->  | K121: =D121/'Charges Summary'!D$4 ->  | L121: =E121/'Charges Summary'!E$4 ->  | M121: =F121/'Charges Summary'!F$4 ->  | N121: =G121/'Charges Summary'!G$4 ->  | O121: =H121/'Charges Summary'!H$4 -> 
A122: =#REF! ->  | D122: =IF(#REF!=#REF!,D$102,IF(#REF!=#REF!,D$103,D$104))*#REF!*#REF! ->  | E122: =IF(#REF!=#REF!,E$102,IF(#REF!=#REF!,E$103,E$104))*#REF!*#REF! ->  | F122: =IF(#REF!=#REF!,F$102,IF(#REF!=#REF!,F$103,F$104))*#REF!*#REF! ->  | G122: =IF(#REF!=#REF!,G$102,IF(#REF!=#REF!,G$103,G$104))*#REF!*#REF! ->  | H122: =IF(#REF!=#REF!,H$102,IF(#REF!=#REF!,H$103,H$104))*#REF!*#REF! ->  | K122: =D122/'Charges Summary'!D$4 ->  | L122: =E122/'Charges Summary'!E$4 ->  | M122: =F122/'Charges Summary'!F$4 ->  | N122: =G122/'Charges Summary'!G$4 ->  | O122: =H122/'Charges Summary'!H$4 -> 
A123: =#REF! ->  | D123: =IF(#REF!=#REF!,D$102,IF(#REF!=#REF!,D$103,D$104))*#REF!*#REF! ->  | E123: =IF(#REF!=#REF!,E$102,IF(#REF!=#REF!,E$103,E$104))*#REF!*#REF! ->  | F123: =IF(#REF!=#REF!,F$102,IF(#REF!=#REF!,F$103,F$104))*#REF!*#REF! ->  | G123: =IF(#REF!=#REF!,G$102,IF(#REF!=#REF!,G$103,G$104))*#REF!*#REF! ->  | H123: =IF(#REF!=#REF!,H$102,IF(#REF!=#REF!,H$103,H$104))*#REF!*#REF! ->  | K123: =D123/'Charges Summary'!D$4 ->  | L123: =E123/'Charges Summary'!E$4 ->  | M123: =F123/'Charges Summary'!F$4 ->  | N123: =G123/'Charges Summary'!G$4 ->  | O123: =H123/'Charges Summary'!H$4 -> 
A124: =#REF! ->  | D124: =IF(#REF!=#REF!,D$102,IF(#REF!=#REF!,D$103,D$104))*#REF!*#REF! ->  | E124: =IF(#REF!=#REF!,E$102,IF(#REF!=#REF!,E$103,E$104))*#REF!*#REF! ->  | F124: =IF(#REF!=#REF!,F$102,IF(#REF!=#REF!,F$103,F$104))*#REF!*#REF! ->  | G124: =IF(#REF!=#REF!,G$102,IF(#REF!=#REF!,G$103,G$104))*#REF!*#REF! ->  | H124: =IF(#REF!=#REF!,H$102,IF(#REF!=#REF!,H$103,H$104))*#REF!*#REF! ->  | K124: =D124/'Charges Summary'!D$4 ->  | L124: =E124/'Charges Summary'!E$4 ->  | M124: =F124/'Charges Summary'!F$4 ->  | N124: =G124/'Charges Summary'!G$4 ->  | O124: =H124/'Charges Summary'!H$4 -> 
A125: =#REF! ->  | D125: =IF(#REF!=#REF!,D$102,IF(#REF!=#REF!,D$103,D$104))*#REF!*#REF! ->  | E125: =IF(#REF!=#REF!,E$102,IF(#REF!=#REF!,E$103,E$104))*#REF!*#REF! ->  | F125: =IF(#REF!=#REF!,F$102,IF(#REF!=#REF!,F$103,F$104))*#REF!*#REF! ->  | G125: =IF(#REF!=#REF!,G$102,IF(#REF!=#REF!,G$103,G$104))*#REF!*#REF! ->  | H125: =IF(#REF!=#REF!,H$102,IF(#REF!=#REF!,H$103,H$104))*#REF!*#REF! ->  | K125: =D125/'Charges Summary'!D$4 ->  | L125: =E125/'Charges Summary'!E$4 ->  | M125: =F125/'Charges Summary'!F$4 ->  | N125: =G125/'Charges Summary'!G$4 ->  | O125: =H125/'Charges Summary'!H$4 -> 
A126: =#REF! ->  | D126: =IF(#REF!=#REF!,D$102,IF(#REF!=#REF!,D$103,D$104))*#REF!*#REF! ->  | E126: =IF(#REF!=#REF!,E$102,IF(#REF!=#REF!,E$103,E$104))*#REF!*#REF! ->  | F126: =IF(#REF!=#REF!,F$102,IF(#REF!=#REF!,F$103,F$104))*#REF!*#REF! ->  | G126: =IF(#REF!=#REF!,G$102,IF(#REF!=#REF!,G$103,G$104))*#REF!*#REF! ->  | H126: =IF(#REF!=#REF!,H$102,IF(#REF!=#REF!,H$103,H$104))*#REF!*#REF! ->  | K126: =D126/'Charges Summary'!D$4 ->  | L126: =E126/'Charges Summary'!E$4 ->  | M126: =F126/'Charges Summary'!F$4 ->  | N126: =G126/'Charges Summary'!G$4 ->  | O126: =H126/'Charges Summary'!H$4 -> 
A127: =#REF! ->  | D127: =IF(#REF!=#REF!,D$102,IF(#REF!=#REF!,D$103,D$104))*#REF!*#REF! ->  | E127: =IF(#REF!=#REF!,E$102,IF(#REF!=#REF!,E$103,E$104))*#REF!*#REF! ->  | F127: =IF(#REF!=#REF!,F$102,IF(#REF!=#REF!,F$103,F$104))*#REF!*#REF! ->  | G127: =IF(#REF!=#REF!,G$102,IF(#REF!=#REF!,G$103,G$104))*#REF!*#REF! ->  | H127: =IF(#REF!=#REF!,H$102,IF(#REF!=#REF!,H$103,H$104))*#REF!*#REF! ->  | K127: =D127/'Charges Summary'!D$4 ->  | L127: =E127/'Charges Summary'!E$4 ->  | M127: =F127/'Charges Summary'!F$4 ->  | N127: =G127/'Charges Summary'!G$4 ->  | O127: =H127/'Charges Summary'!H$4 -> 
A139: =#REF! -> 
A140: =#REF! ->  | D140: =SUM('Charges Summary'!D83,'Charges Summary'!D8)*#REF!*#REF! ->  | E140: =SUM('Charges Summary'!E83,'Charges Summary'!E8)*#REF!*#REF! ->  | F140: =SUM('Charges Summary'!F83,'Charges Summary'!F8)*#REF!*#REF! ->  | G140: =SUM('Charges Summary'!G83,'Charges Summary'!G8)*#REF!*#REF! ->  | H140: =SUM('Charges Summary'!H83,'Charges Summary'!H8)*#REF!*#REF! ->  | K140: =D140/'Charges Summary'!D$4 ->  | L140: =E140/'Charges Summary'!E$4 ->  | M140: =F140/'Charges Summary'!F$4 ->  | N140: =G140/'Charges Summary'!G$4 ->  | O140: =H140/'Charges Summary'!H$4 -> 
A141: =#REF! ->  | D141: =SUM('Charges Summary'!D99,'Charges Summary'!D8)*#REF!*#REF! ->  | E141: =SUM('Charges Summary'!E99,'Charges Summary'!E8)*#REF!*#REF! ->  | F141: =SUM('Charges Summary'!F99,'Charges Summary'!F8)*#REF!*#REF! ->  | G141: =SUM('Charges Summary'!G99,'Charges Summary'!G8)*#REF!*#REF! ->  | H141: =SUM('Charges Summary'!H99,'Charges Summary'!H8)*#REF!*#REF! ->  | K141: =D141/'Charges Summary'!D$4 ->  | L141: =E141/'Charges Summary'!E$4 ->  | M141: =F141/'Charges Summary'!F$4 ->  | N141: =G141/'Charges Summary'!G$4 ->  | O141: =H141/'Charges Summary'!H$4 -> 
A142: =#REF! ->  | D142: =SUM('Charges Summary'!D115,'Charges Summary'!D8)*#REF!*#REF! ->  | E142: =SUM('Charges Summary'!E115,'Charges Summary'!E8)*#REF!*#REF! ->  | F142: =SUM('Charges Summary'!F115,'Charges Summary'!F8)*#REF!*#REF! ->  | G142: =SUM('Charges Summary'!G115,'Charges Summary'!G8)*#REF!*#REF! ->  | H142: =SUM('Charges Summary'!H115,'Charges Summary'!H8)*#REF!*#REF! ->  | K142: =D142/'Charges Summary'!D$4 ->  | L142: =E142/'Charges Summary'!E$4 ->  | M142: =F142/'Charges Summary'!F$4 ->  | N142: =G142/'Charges Summary'!G$4 ->  | O142: =H142/'Charges Summary'!H$4 -> 
A143: =#REF! ->  | D143: =SUM('Charges Summary'!D131,'Charges Summary'!D$8)*#REF!*#REF! ->  | E143: =SUM('Charges Summary'!E131,'Charges Summary'!E$8)*#REF!*#REF! ->  | F143: =SUM('Charges Summary'!F131,'Charges Summary'!F$8)*#REF!*#REF! ->  | G143: =SUM('Charges Summary'!G131,'Charges Summary'!G$8)*#REF!*#REF! ->  | H143: =SUM('Charges Summary'!H131,'Charges Summary'!H$8)*#REF!*#REF! ->  | K143: =D143/'Charges Summary'!D$4 ->  | L143: =E143/'Charges Summary'!E$4 ->  | M143: =F143/'Charges Summary'!F$4 ->  | N143: =G143/'Charges Summary'!G$4 ->  | O143: =H143/'Charges Summary'!H$4 -> 
A144: =#REF! ->  | D144: =SUM('Charges Summary'!D147,'Charges Summary'!D$8)*#REF!*#REF! ->  | E144: =SUM('Charges Summary'!E147,'Charges Summary'!E$8)*#REF!*#REF! ->  | F144: =SUM('Charges Summary'!F147,'Charges Summary'!F$8)*#REF!*#REF! ->  | G144: =SUM('Charges Summary'!G147,'Charges Summary'!G$8)*#REF!*#REF! ->  | H144: =SUM('Charges Summary'!H147,'Charges Summary'!H$8)*#REF!*#REF! ->  | K144: =D144/'Charges Summary'!D$4 ->  | L144: =E144/'Charges Summary'!E$4 ->  | M144: =F144/'Charges Summary'!F$4 ->  | N144: =G144/'Charges Summary'!G$4 ->  | O144: =H144/'Charges Summary'!H$4 -> 
A145: =#REF! ->  | D145: =SUM('Charges Summary'!D163,'Charges Summary'!D$8)*#REF!*#REF! ->  | E145: =SUM('Charges Summary'!E163,'Charges Summary'!E$8)*#REF!*#REF! ->  | F145: =SUM('Charges Summary'!F163,'Charges Summary'!F$8)*#REF!*#REF! ->  | G145: =SUM('Charges Summary'!G163,'Charges Summary'!G$8)*#REF!*#REF! ->  | H145: =SUM('Charges Summary'!H163,'Charges Summary'!H$8)*#REF!*#REF! ->  | K145: =D145/'Charges Summary'!D$4 ->  | L145: =E145/'Charges Summary'!E$4 ->  | M145: =F145/'Charges Summary'!F$4 ->  | N145: =G145/'Charges Summary'!G$4 ->  | O145: =H145/'Charges Summary'!H$4 -> 
A146: =#REF! ->  | D146: =SUM('Charges Summary'!D179,'Charges Summary'!D$8)*#REF!*#REF! ->  | E146: =SUM('Charges Summary'!E179,'Charges Summary'!E$8)*#REF!*#REF! ->  | F146: =SUM('Charges Summary'!F179,'Charges Summary'!F$8)*#REF!*#REF! ->  | G146: =SUM('Charges Summary'!G179,'Charges Summary'!G$8)*#REF!*#REF! ->  | H146: =SUM('Charges Summary'!H179,'Charges Summary'!H$8)*#REF!*#REF! ->  | K146: =D146/'Charges Summary'!D$4 ->  | L146: =E146/'Charges Summary'!E$4 ->  | M146: =F146/'Charges Summary'!F$4 ->  | N146: =G146/'Charges Summary'!G$4 ->  | O146: =H146/'Charges Summary'!H$4 -> 
A147: =#REF! ->  | D147: =IF(#REF!=#REF!,D$106,D$107)*#REF!*#REF! ->  | E147: =IF(#REF!=#REF!,E$106,E$107)*#REF!*#REF! ->  | F147: =IF(#REF!=#REF!,F$106,F$107)*#REF!*#REF! ->  | G147: =IF(#REF!=#REF!,G$106,G$107)*#REF!*#REF! ->  | H147: =IF(#REF!=#REF!,H$106,H$107)*#REF!*#REF! ->  | K147: =D147/'Charges Summary'!D$4 ->  | L147: =E147/'Charges Summary'!E$4 ->  | M147: =F147/'Charges Summary'!F$4 ->  | N147: =G147/'Charges Summary'!G$4 ->  | O147: =H147/'Charges Summary'!H$4 -> 
A148: =#REF! ->  | D148: =IF(#REF!=#REF!,D$106,D$107)*#REF!*#REF! ->  | E148: =IF(#REF!=#REF!,E$106,E$107)*#REF!*#REF! ->  | F148: =IF(#REF!=#REF!,F$106,F$107)*#REF!*#REF! ->  | G148: =IF(#REF!=#REF!,G$106,G$107)*#REF!*#REF! ->  | H148: =IF(#REF!=#REF!,H$106,H$107)*#REF!*#REF! ->  | K148: =D148/'Charges Summary'!D$4 ->  | L148: =E148/'Charges Summary'!E$4 ->  | M148: =F148/'Charges Summary'!F$4 ->  | N148: =G148/'Charges Summary'!G$4 ->  | O148: =H148/'Charges Summary'!H$4 -> 
A149: =#REF! ->  | D149: =SUM('Charges Summary'!D195,'Charges Summary'!D$8)*#REF!*#REF! ->  | E149: =SUM('Charges Summary'!E195,'Charges Summary'!E$8)*#REF!*#REF! ->  | F149: =SUM('Charges Summary'!F195,'Charges Summary'!F$8)*#REF!*#REF! ->  | G149: =SUM('Charges Summary'!G195,'Charges Summary'!G$8)*#REF!*#REF! ->  | H149: =SUM('Charges Summary'!H195,'Charges Summary'!H$8)*#REF!*#REF! ->  | K149: =D149/'Charges Summary'!D$4 ->  | L149: =E149/'Charges Summary'!E$4 ->  | M149: =F149/'Charges Summary'!F$4 ->  | N149: =G149/'Charges Summary'!G$4 ->  | O149: =H149/'Charges Summary'!H$4 -> 
A150: =#REF! ->  | D150: =SUM('Charges Summary'!D211,'Charges Summary'!D$8)*#REF!*#REF! ->  | E150: =SUM('Charges Summary'!E211,'Charges Summary'!E$8)*#REF!*#REF! ->  | F150: =SUM('Charges Summary'!F211,'Charges Summary'!F$8)*#REF!*#REF! ->  | G150: =SUM('Charges Summary'!G211,'Charges Summary'!G$8)*#REF!*#REF! ->  | H150: =SUM('Charges Summary'!H211,'Charges Summary'!H$8)*#REF!*#REF! ->  | K150: =D150/'Charges Summary'!D$4 ->  | L150: =E150/'Charges Summary'!E$4 ->  | M150: =F150/'Charges Summary'!F$4 ->  | N150: =G150/'Charges Summary'!G$4 ->  | O150: =H150/'Charges Summary'!H$4 -> 
A151: =#REF! ->  | D151: =SUM('Charges Summary'!D227,'Charges Summary'!D$8)*#REF!*#REF! ->  | E151: =SUM('Charges Summary'!E227,'Charges Summary'!E$8)*#REF!*#REF! ->  | F151: =SUM('Charges Summary'!F227,'Charges Summary'!F$8)*#REF!*#REF! ->  | G151: =SUM('Charges Summary'!G227,'Charges Summary'!G$8)*#REF!*#REF! ->  | H151: =SUM('Charges Summary'!H227,'Charges Summary'!H$8)*#REF!*#REF! ->  | K151: =D151/'Charges Summary'!D$4 ->  | L151: =E151/'Charges Summary'!E$4 ->  | M151: =F151/'Charges Summary'!F$4 ->  | N151: =G151/'Charges Summary'!G$4 ->  | O151: =H151/'Charges Summary'!H$4 -> 
A153: Total O & M | D153: =SUM(D115:D151) ->  | E153: =SUM(E115:E151) ->  | F153: =SUM(F115:F151) ->  | G153: =SUM(G115:G151) ->  | H153: =SUM(H115:H151) ->  | K153: =SUM(K115:K151) ->  | L153: =SUM(L115:L151) ->  | M153: =SUM(M115:M151) ->  | N153: =SUM(N115:N151) ->  | O153: =SUM(O115:O151) -> 
A156: Public Lighting - Capital Charge | D156: Capital Charge - $Nominal | K156: Capital Charge - $Real Jun 2026
D157: =D$2 -> 2027-06-30 | E157: =E$2 -> 2028-06-30 | F157: =F$2 -> 2029-06-30 | G157: =G$2 -> 2030-06-30 | H157: =H$2 -> 2031-06-30 | K157: =K$2 -> 2027-06-30 | L157: =L$2 -> 2028-06-30 | M157: =M$2 -> 2029-06-30 | N157: =N$2 -> 2030-06-30 | O157: =O$2 -> 2031-06-30
A159: Unit cost
A160: =#REF! ->  | D160: =SUM('Charges Summary'!D27,'Charges Summary'!D11) ->  | E160: =SUM('Charges Summary'!E27,'Charges Summary'!E11) ->  | F160: =SUM('Charges Summary'!F27,'Charges Summary'!F11) ->  | G160: =SUM('Charges Summary'!G27,'Charges Summary'!G11) ->  | H160: =SUM('Charges Summary'!H27,'Charges Summary'!H11) ->  | K160: =D160/'Charges Summary'!D$4 ->  | L160: =E160/'Charges Summary'!E$4 ->  | M160: =F160/'Charges Summary'!F$4 ->  | N160: =G160/'Charges Summary'!G$4 ->  | O160: =H160/'Charges Summary'!H$4 -> 
A161: =#REF! ->  | D161: =SUM('Charges Summary'!D51,'Charges Summary'!D11) ->  | E161: =SUM('Charges Summary'!E51,'Charges Summary'!E11) ->  | F161: =SUM('Charges Summary'!F51,'Charges Summary'!F11) ->  | G161: =SUM('Charges Summary'!G51,'Charges Summary'!G11) ->  | H161: =SUM('Charges Summary'!H51,'Charges Summary'!H11) ->  | K161: =D161/'Charges Summary'!D$4 ->  | L161: =E161/'Charges Summary'!E$4 ->  | M161: =F161/'Charges Summary'!F$4 ->  | N161: =G161/'Charges Summary'!G$4 ->  | O161: =H161/'Charges Summary'!H$4 -> 
A162: =#REF! ->  | D162: =SUM('Charges Summary'!D67,'Charges Summary'!D11) ->  | E162: =SUM('Charges Summary'!E67,'Charges Summary'!E11) ->  | F162: =SUM('Charges Summary'!F67,'Charges Summary'!F11) ->  | G162: =SUM('Charges Summary'!G67,'Charges Summary'!G11) ->  | H162: =SUM('Charges Summary'!H67,'Charges Summary'!H11) ->  | K162: =D162/'Charges Summary'!D$4 ->  | L162: =E162/'Charges Summary'!E$4 ->  | M162: =F162/'Charges Summary'!F$4 ->  | N162: =G162/'Charges Summary'!G$4 ->  | O162: =H162/'Charges Summary'!H$4 -> 
A164: =#REF! ->  | D164: =SUM('Charges Summary'!D85,'Charges Summary'!D11) ->  | E164: =SUM('Charges Summary'!E85,'Charges Summary'!E11) ->  | F164: =SUM('Charges Summary'!F85,'Charges Summary'!F11) ->  | G164: =SUM('Charges Summary'!G85,'Charges Summary'!G11) ->  | H164: =SUM('Charges Summary'!H85,'Charges Summary'!H11) ->  | K164: =D164/'Charges Summary'!D$4 ->  | L164: =E164/'Charges Summary'!E$4 ->  | M164: =F164/'Charges Summary'!F$4 ->  | N164: =G164/'Charges Summary'!G$4 ->  | O164: =H164/'Charges Summary'!H$4 -> 
A165: =#REF! ->  | D165: =SUM('Charges Summary'!D101,'Charges Summary'!D11) ->  | E165: =SUM('Charges Summary'!E101,'Charges Summary'!E11) ->  | F165: =SUM('Charges Summary'!F101,'Charges Summary'!F11) ->  | G165: =SUM('Charges Summary'!G101,'Charges Summary'!G11) ->  | H165: =SUM('Charges Summary'!H101,'Charges Summary'!H11) ->  | K165: =D165/'Charges Summary'!D$4 ->  | L165: =E165/'Charges Summary'!E$4 ->  | M165: =F165/'Charges Summary'!F$4 ->  | N165: =G165/'Charges Summary'!G$4 ->  | O165: =H165/'Charges Summary'!H$4 -> 
A166: =#REF! ->  | D166: =SUM('Charges Summary'!D117,'Charges Summary'!D11) ->  | E166: =SUM('Charges Summary'!E117,'Charges Summary'!E11) ->  | F166: =SUM('Charges Summary'!F117,'Charges Summary'!F11) ->  | G166: =SUM('Charges Summary'!G117,'Charges Summary'!G11) ->  | H166: =SUM('Charges Summary'!H117,'Charges Summary'!H11) ->  | K166: =D166/'Charges Summary'!D$4 ->  | L166: =E166/'Charges Summary'!E$4 ->  | M166: =F166/'Charges Summary'!F$4 ->  | N166: =G166/'Charges Summary'!G$4 ->  | O166: =H166/'Charges Summary'!H$4 -> 
A167: =#REF! ->  | D167: =SUM('Charges Summary'!D133,'Charges Summary'!D$11) ->  | E167: =SUM('Charges Summary'!E133,'Charges Summary'!E$11) ->  | F167: =SUM('Charges Summary'!F133,'Charges Summary'!F$11) ->  | G167: =SUM('Charges Summary'!G133,'Charges Summary'!G$11) ->  | H167: =SUM('Charges Summary'!H133,'Charges Summary'!H$11) ->  | K167: =D167/'Charges Summary'!D$4 ->  | L167: =E167/'Charges Summary'!E$4 ->  | M167: =F167/'Charges Summary'!F$4 ->  | N167: =G167/'Charges Summary'!G$4 ->  | O167: =H167/'Charges Summary'!H$4 -> 
A168: =#REF! ->  | D168: =SUM('Charges Summary'!D149,'Charges Summary'!D$11) ->  | E168: =SUM('Charges Summary'!E149,'Charges Summary'!E$11) ->  | F168: =SUM('Charges Summary'!F149,'Charges Summary'!F$11) ->  | G168: =SUM('Charges Summary'!G149,'Charges Summary'!G$11) ->  | H168: =SUM('Charges Summary'!H149,'Charges Summary'!H$11) ->  | K168: =D168/'Charges Summary'!D$4 ->  | L168: =E168/'Charges Summary'!E$4 ->  | M168: =F168/'Charges Summary'!F$4 ->  | N168: =G168/'Charges Summary'!G$4 ->  | O168: =H168/'Charges Summary'!H$4 -> 
A169: =#REF! ->  | D169: =SUM('Charges Summary'!D165,'Charges Summary'!D$11) ->  | E169: =SUM('Charges Summary'!E165,'Charges Summary'!E$11) ->  | F169: =SUM('Charges Summary'!F165,'Charges Summary'!F$11) ->  | G169: =SUM('Charges Summary'!G165,'Charges Summary'!G$11) ->  | H169: =SUM('Charges Summary'!H165,'Charges Summary'!H$11) ->  | K169: =D169/'Charges Summary'!D$4 ->  | L169: =E169/'Charges Summary'!E$4 ->  | M169: =F169/'Charges Summary'!F$4 ->  | N169: =G169/'Charges Summary'!G$4 ->  | O169: =H169/'Charges Summary'!H$4 -> 
A170: =#REF! ->  | D170: =SUM('Charges Summary'!D181,'Charges Summary'!D$11) ->  | E170: =SUM('Charges Summary'!E181,'Charges Summary'!E$11) ->  | F170: =SUM('Charges Summary'!F181,'Charges Summary'!F$11) ->  | G170: =SUM('Charges Summary'!G181,'Charges Summary'!G$11) ->  | H170: =SUM('Charges Summary'!H181,'Charges Summary'!H$11) ->  | K170: =D170/'Charges Summary'!D$4 ->  | L170: =E170/'Charges Summary'!E$4 ->  | M170: =F170/'Charges Summary'!F$4 ->  | N170: =G170/'Charges Summary'!G$4 ->  | O170: =H170/'Charges Summary'!H$4 -> 
A172: =#REF! -> 
A173: =#REF! ->  | D173: =D160*#REF! ->  | E173: =E160*#REF! ->  | F173: =F160*#REF! ->  | G173: =G160*#REF! ->  | H173: =H160*#REF! ->  | K173: =D173/'Charges Summary'!D$4 ->  | L173: =E173/'Charges Summary'!E$4 ->  | M173: =F173/'Charges Summary'!F$4 ->  | N173: =G173/'Charges Summary'!G$4 ->  | O173: =H173/'Charges Summary'!H$4 -> 
A174: =#REF! ->  | D174: =D161*#REF! ->  | E174: =E161*#REF! ->  | F174: =F161*#REF! ->  | G174: =G161*#REF! ->  | H174: =H161*#REF! ->  | K174: =D174/'Charges Summary'!D$4 ->  | L174: =E174/'Charges Summary'!E$4 ->  | M174: =F174/'Charges Summary'!F$4 ->  | N174: =G174/'Charges Summary'!G$4 ->  | O174: =H174/'Charges Summary'!H$4 -> 
A175: =#REF! ->  | D175: =D162*#REF! ->  | E175: =E162*#REF! ->  | F175: =F162*#REF! ->  | G175: =G162*#REF! ->  | H175: =H162*#REF! ->  | K175: =D175/'Charges Summary'!D$4 ->  | L175: =E175/'Charges Summary'!E$4 ->  | M175: =F175/'Charges Summary'!F$4 ->  | N175: =G175/'Charges Summary'!G$4 ->  | O175: =H175/'Charges Summary'!H$4 -> 
A176: =#REF! ->  | D176: =IF(#REF!=#REF!,D$160,IF(#REF!=#REF!,D$161,D$162))*#REF!*#REF! ->  | E176: =IF(#REF!=#REF!,E$160,IF(#REF!=#REF!,E$161,E$162))*#REF!*#REF! ->  | F176: =IF(#REF!=#REF!,F$160,IF(#REF!=#REF!,F$161,F$162))*#REF!*#REF! ->  | G176: =IF(#REF!=#REF!,G$160,IF(#REF!=#REF!,G$161,G$162))*#REF!*#REF! ->  | H176: =IF(#REF!=#REF!,H$160,IF(#REF!=#REF!,H$161,H$162))*#REF!*#REF! ->  | K176: =D176/'Charges Summary'!D$4 ->  | L176: =E176/'Charges Summary'!E$4 ->  | M176: =F176/'Charges Summary'!F$4 ->  | N176: =G176/'Charges Summary'!G$4 ->  | O176: =H176/'Charges Summary'!H$4 -> 
A177: =#REF! ->  | D177: =IF(#REF!=#REF!,D$160,IF(#REF!=#REF!,D$161,D$162))*#REF!*#REF! ->  | E177: =IF(#REF!=#REF!,E$160,IF(#REF!=#REF!,E$161,E$162))*#REF!*#REF! ->  | F177: =IF(#REF!=#REF!,F$160,IF(#REF!=#REF!,F$161,F$162))*#REF!*#REF! ->  | G177: =IF(#REF!=#REF!,G$160,IF(#REF!=#REF!,G$161,G$162))*#REF!*#REF! ->  | H177: =IF(#REF!=#REF!,H$160,IF(#REF!=#REF!,H$161,H$162))*#REF!*#REF! ->  | K177: =D177/'Charges Summary'!D$4 ->  | L177: =E177/'Charges Summary'!E$4 ->  | M177: =F177/'Charges Summary'!F$4 ->  | N177: =G177/'Charges Summary'!G$4 ->  | O177: =H177/'Charges Summary'!H$4 -> 
A178: =#REF! ->  | D178: =IF(#REF!=#REF!,D$160,IF(#REF!=#REF!,D$161,D$162))*#REF!*#REF! ->  | E178: =IF(#REF!=#REF!,E$160,IF(#REF!=#REF!,E$161,E$162))*#REF!*#REF! ->  | F178: =IF(#REF!=#REF!,F$160,IF(#REF!=#REF!,F$161,F$162))*#REF!*#REF! ->  | G178: =IF(#REF!=#REF!,G$160,IF(#REF!=#REF!,G$161,G$162))*#REF!*#REF! ->  | H178: =IF(#REF!=#REF!,H$160,IF(#REF!=#REF!,H$161,H$162))*#REF!*#REF! ->  | K178: =D178/'Charges Summary'!D$4 ->  | L178: =E178/'Charges Summary'!E$4 ->  | M178: =F178/'Charges Summary'!F$4 ->  | N178: =G178/'Charges Summary'!G$4 ->  | O178: =H178/'Charges Summary'!H$4 -> 
A179: =#REF! ->  | D179: =IF(#REF!=#REF!,D$160,IF(#REF!=#REF!,D$161,D$162))*#REF!*#REF! ->  | E179: =IF(#REF!=#REF!,E$160,IF(#REF!=#REF!,E$161,E$162))*#REF!*#REF! ->  | F179: =IF(#REF!=#REF!,F$160,IF(#REF!=#REF!,F$161,F$162))*#REF!*#REF! ->  | G179: =IF(#REF!=#REF!,G$160,IF(#REF!=#REF!,G$161,G$162))*#REF!*#REF! ->  | H179: =IF(#REF!=#REF!,H$160,IF(#REF!=#REF!,H$161,H$162))*#REF!*#REF! ->  | K179: =D179/'Charges Summary'!D$4 ->  | L179: =E179/'Charges Summary'!E$4 ->  | M179: =F179/'Charges Summary'!F$4 ->  | N179: =G179/'Charges Summary'!G$4 ->  | O179: =H179/'Charges Summary'!H$4 -> 
A180: =#REF! ->  | D180: =IF(#REF!=#REF!,D$160,IF(#REF!=#REF!,D$161,D$162))*#REF!*#REF! ->  | E180: =IF(#REF!=#REF!,E$160,IF(#REF!=#REF!,E$161,E$162))*#REF!*#REF! ->  | F180: =IF(#REF!=#REF!,F$160,IF(#REF!=#REF!,F$161,F$162))*#REF!*#REF! ->  | G180: =IF(#REF!=#REF!,G$160,IF(#REF!=#REF!,G$161,G$162))*#REF!*#REF! ->  | H180: =IF(#REF!=#REF!,H$160,IF(#REF!=#REF!,H$161,H$162))*#REF!*#REF! ->  | K180: =D180/'Charges Summary'!D$4 ->  | L180: =E180/'Charges Summary'!E$4 ->  | M180: =F180/'Charges Summary'!F$4 ->  | N180: =G180/'Charges Summary'!G$4 ->  | O180: =H180/'Charges Summary'!H$4 -> 
A181: =#REF! ->  | D181: =IF(#REF!=#REF!,D$160,IF(#REF!=#REF!,D$161,D$162))*#REF!*#REF! ->  | E181: =IF(#REF!=#REF!,E$160,IF(#REF!=#REF!,E$161,E$162))*#REF!*#REF! ->  | F181: =IF(#REF!=#REF!,F$160,IF(#REF!=#REF!,F$161,F$162))*#REF!*#REF! ->  | G181: =IF(#REF!=#REF!,G$160,IF(#REF!=#REF!,G$161,G$162))*#REF!*#REF! ->  | H181: =IF(#REF!=#REF!,H$160,IF(#REF!=#REF!,H$161,H$162))*#REF!*#REF! ->  | K181: =D181/'Charges Summary'!D$4 ->  | L181: =E181/'Charges Summary'!E$4 ->  | M181: =F181/'Charges Summary'!F$4 ->  | N181: =G181/'Charges Summary'!G$4 ->  | O181: =H181/'Charges Summary'!H$4 -> 
A182: =#REF! ->  | D182: =IF(#REF!=#REF!,D$160,IF(#REF!=#REF!,D$161,D$162))*#REF!*#REF! ->  | E182: =IF(#REF!=#REF!,E$160,IF(#REF!=#REF!,E$161,E$162))*#REF!*#REF! ->  | F182: =IF(#REF!=#REF!,F$160,IF(#REF!=#REF!,F$161,F$162))*#REF!*#REF! ->  | G182: =IF(#REF!=#REF!,G$160,IF(#REF!=#REF!,G$161,G$162))*#REF!*#REF! ->  | H182: =IF(#REF!=#REF!,H$160,IF(#REF!=#REF!,H$161,H$162))*#REF!*#REF! ->  | K182: =D182/'Charges Summary'!D$4 ->  | L182: =E182/'Charges Summary'!E$4 ->  | M182: =F182/'Charges Summary'!F$4 ->  | N182: =G182/'Charges Summary'!G$4 ->  | O182: =H182/'Charges Summary'!H$4 -> 
A183: =#REF! ->  | D183: =IF(#REF!=#REF!,D$160,IF(#REF!=#REF!,D$161,D$162))*#REF!*#REF! ->  | E183: =IF(#REF!=#REF!,E$160,IF(#REF!=#REF!,E$161,E$162))*#REF!*#REF! ->  | F183: =IF(#REF!=#REF!,F$160,IF(#REF!=#REF!,F$161,F$162))*#REF!*#REF! ->  | G183: =IF(#REF!=#REF!,G$160,IF(#REF!=#REF!,G$161,G$162))*#REF!*#REF! ->  | H183: =IF(#REF!=#REF!,H$160,IF(#REF!=#REF!,H$161,H$162))*#REF!*#REF! ->  | K183: =D183/'Charges Summary'!D$4 ->  | L183: =E183/'Charges Summary'!E$4 ->  | M183: =F183/'Charges Summary'!F$4 ->  | N183: =G183/'Charges Summary'!G$4 ->  | O183: =H183/'Charges Summary'!H$4 -> 
A184: =#REF! ->  | D184: =IF(#REF!=#REF!,D$160,IF(#REF!=#REF!,D$161,D$162))*#REF!*#REF! ->  | E184: =IF(#REF!=#REF!,E$160,IF(#REF!=#REF!,E$161,E$162))*#REF!*#REF! ->  | F184: =IF(#REF!=#REF!,F$160,IF(#REF!=#REF!,F$161,F$162))*#REF!*#REF! ->  | G184: =IF(#REF!=#REF!,G$160,IF(#REF!=#REF!,G$161,G$162))*#REF!*#REF! ->  | H184: =IF(#REF!=#REF!,H$160,IF(#REF!=#REF!,H$161,H$162))*#REF!*#REF! ->  | K184: =D184/'Charges Summary'!D$4 ->  | L184: =E184/'Charges Summary'!E$4 ->  | M184: =F184/'Charges Summary'!F$4 ->  | N184: =G184/'Charges Summary'!G$4 ->  | O184: =H184/'Charges Summary'!H$4 -> 
A185: =#REF! ->  | D185: =IF(#REF!=#REF!,D$160,IF(#REF!=#REF!,D$161,D$162))*#REF!*#REF! ->  | E185: =IF(#REF!=#REF!,E$160,IF(#REF!=#REF!,E$161,E$162))*#REF!*#REF! ->  | F185: =IF(#REF!=#REF!,F$160,IF(#REF!=#REF!,F$161,F$162))*#REF!*#REF! ->  | G185: =IF(#REF!=#REF!,G$160,IF(#REF!=#REF!,G$161,G$162))*#REF!*#REF! ->  | H185: =IF(#REF!=#REF!,H$160,IF(#REF!=#REF!,H$161,H$162))*#REF!*#REF! ->  | K185: =D185/'Charges Summary'!D$4 ->  | L185: =E185/'Charges Summary'!E$4 ->  | M185: =F185/'Charges Summary'!F$4 ->  | N185: =G185/'Charges Summary'!G$4 ->  | O185: =H185/'Charges Summary'!H$4 -> 
A197: =#REF! -> 
A198: =#REF! ->  | D198: =SUM('Charges Summary'!D85,'Charges Summary'!D11)*#REF!*#REF! ->  | E198: =SUM('Charges Summary'!E85,'Charges Summary'!E11)*#REF!*#REF! ->  | F198: =SUM('Charges Summary'!F85,'Charges Summary'!F11)*#REF!*#REF! ->  | G198: =SUM('Charges Summary'!G85,'Charges Summary'!G11)*#REF!*#REF! ->  | H198: =SUM('Charges Summary'!H85,'Charges Summary'!H11)*#REF!*#REF! ->  | K198: =D198/'Charges Summary'!D$4 ->  | L198: =E198/'Charges Summary'!E$4 ->  | M198: =F198/'Charges Summary'!F$4 ->  | N198: =G198/'Charges Summary'!G$4 ->  | O198: =H198/'Charges Summary'!H$4 -> 
A199: =#REF! ->  | D199: =SUM('Charges Summary'!D101,'Charges Summary'!D11)*#REF!*#REF! ->  | E199: =SUM('Charges Summary'!E101,'Charges Summary'!E11)*#REF!*#REF! ->  | F199: =SUM('Charges Summary'!F101,'Charges Summary'!F11)*#REF!*#REF! ->  | G199: =SUM('Charges Summary'!G101,'Charges Summary'!G11)*#REF!*#REF! ->  | H199: =SUM('Charges Summary'!H101,'Charges Summary'!H11)*#REF!*#REF! ->  | K199: =D199/'Charges Summary'!D$4 ->  | L199: =E199/'Charges Summary'!E$4 ->  | M199: =F199/'Charges Summary'!F$4 ->  | N199: =G199/'Charges Summary'!G$4 ->  | O199: =H199/'Charges Summary'!H$4 -> 
A200: =#REF! ->  | D200: =SUM('Charges Summary'!D117,'Charges Summary'!D11)*#REF!*#REF! ->  | E200: =SUM('Charges Summary'!E117,'Charges Summary'!E11)*#REF!*#REF! ->  | F200: =SUM('Charges Summary'!F117,'Charges Summary'!F11)*#REF!*#REF! ->  | G200: =SUM('Charges Summary'!G117,'Charges Summary'!G11)*#REF!*#REF! ->  | H200: =SUM('Charges Summary'!H117,'Charges Summary'!H11)*#REF!*#REF! ->  | K200: =D200/'Charges Summary'!D$4 ->  | L200: =E200/'Charges Summary'!E$4 ->  | M200: =F200/'Charges Summary'!F$4 ->  | N200: =G200/'Charges Summary'!G$4 ->  | O200: =H200/'Charges Summary'!H$4 -> 
A201: =#REF! ->  | D201: =SUM('Charges Summary'!D133,'Charges Summary'!D$11)*#REF!*#REF! ->  | E201: =SUM('Charges Summary'!E133,'Charges Summary'!E$11)*#REF!*#REF! ->  | F201: =SUM('Charges Summary'!F133,'Charges Summary'!F$11)*#REF!*#REF! ->  | G201: =SUM('Charges Summary'!G133,'Charges Summary'!G$11)*#REF!*#REF! ->  | H201: =SUM('Charges Summary'!H133,'Charges Summary'!H$11)*#REF!*#REF! ->  | K201: =D201/'Charges Summary'!D$4 ->  | L201: =E201/'Charges Summary'!E$4 ->  | M201: =F201/'Charges Summary'!F$4 ->  | N201: =G201/'Charges Summary'!G$4 ->  | O201: =H201/'Charges Summary'!H$4 -> 
A202: =#REF! ->  | D202: =SUM('Charges Summary'!D149,'Charges Summary'!D$11)*#REF!*#REF! ->  | E202: =SUM('Charges Summary'!E149,'Charges Summary'!E$11)*#REF!*#REF! ->  | F202: =SUM('Charges Summary'!F149,'Charges Summary'!F$11)*#REF!*#REF! ->  | G202: =SUM('Charges Summary'!G149,'Charges Summary'!G$11)*#REF!*#REF! ->  | H202: =SUM('Charges Summary'!H149,'Charges Summary'!H$11)*#REF!*#REF! ->  | K202: =D202/'Charges Summary'!D$4 ->  | L202: =E202/'Charges Summary'!E$4 ->  | M202: =F202/'Charges Summary'!F$4 ->  | N202: =G202/'Charges Summary'!G$4 ->  | O202: =H202/'Charges Summary'!H$4 -> 
A203: =#REF! ->  | D203: =SUM('Charges Summary'!D165,'Charges Summary'!D$11)*#REF!*#REF! ->  | E203: =SUM('Charges Summary'!E165,'Charges Summary'!E$11)*#REF!*#REF! ->  | F203: =SUM('Charges Summary'!F165,'Charges Summary'!F$11)*#REF!*#REF! ->  | G203: =SUM('Charges Summary'!G165,'Charges Summary'!G$11)*#REF!*#REF! ->  | H203: =SUM('Charges Summary'!H165,'Charges Summary'!H$11)*#REF!*#REF! ->  | K203: =D203/'Charges Summary'!D$4 ->  | L203: =E203/'Charges Summary'!E$4 ->  | M203: =F203/'Charges Summary'!F$4 ->  | N203: =G203/'Charges Summary'!G$4 ->  | O203: =H203/'Charges Summary'!H$4 -> 
A204: =#REF! ->  | D204: =SUM('Charges Summary'!D181,'Charges Summary'!D$11)*#REF!*#REF! ->  | E204: =SUM('Charges Summary'!E181,'Charges Summary'!E$11)*#REF!*#REF! ->  | F204: =SUM('Charges Summary'!F181,'Charges Summary'!F$11)*#REF!*#REF! ->  | G204: =SUM('Charges Summary'!G181,'Charges Summary'!G$11)*#REF!*#REF! ->  | H204: =SUM('Charges Summary'!H181,'Charges Summary'!H$11)*#REF!*#REF! ->  | K204: =D204/'Charges Summary'!D$4 ->  | L204: =E204/'Charges Summary'!E$4 ->  | M204: =F204/'Charges Summary'!F$4 ->  | N204: =G204/'Charges Summary'!G$4 ->  | O204: =H204/'Charges Summary'!H$4 -> 
A205: =#REF! ->  | D205: =IF(#REF!=#REF!,D$164,D$165)*#REF!*#REF! ->  | E205: =IF(#REF!=#REF!,E$164,E$165)*#REF!*#REF! ->  | F205: =IF(#REF!=#REF!,F$164,F$165)*#REF!*#REF! ->  | G205: =IF(#REF!=#REF!,G$164,G$165)*#REF!*#REF! ->  | H205: =IF(#REF!=#REF!,H$164,H$165)*#REF!*#REF! ->  | K205: =D205/'Charges Summary'!D$4 ->  | L205: =E205/'Charges Summary'!E$4 ->  | M205: =F205/'Charges Summary'!F$4 ->  | N205: =G205/'Charges Summary'!G$4 ->  | O205: =H205/'Charges Summary'!H$4 -> 
A206: =#REF! ->  | D206: =IF(#REF!=#REF!,D$164,D$165)*#REF!*#REF! ->  | E206: =IF(#REF!=#REF!,E$164,E$165)*#REF!*#REF! ->  | F206: =IF(#REF!=#REF!,F$164,F$165)*#REF!*#REF! ->  | G206: =IF(#REF!=#REF!,G$164,G$165)*#REF!*#REF! ->  | H206: =IF(#REF!=#REF!,H$164,H$165)*#REF!*#REF! ->  | K206: =D206/'Charges Summary'!D$4 ->  | L206: =E206/'Charges Summary'!E$4 ->  | M206: =F206/'Charges Summary'!F$4 ->  | N206: =G206/'Charges Summary'!G$4 ->  | O206: =H206/'Charges Summary'!H$4 -> 
A207: =#REF! ->  | D207: =SUM('Charges Summary'!D197,'Charges Summary'!D$11)*#REF!*#REF! ->  | E207: =SUM('Charges Summary'!E197,'Charges Summary'!E$11)*#REF!*#REF! ->  | F207: =SUM('Charges Summary'!F197,'Charges Summary'!F$11)*#REF!*#REF! ->  | G207: =SUM('Charges Summary'!G197,'Charges Summary'!G$11)*#REF!*#REF! ->  | H207: =SUM('Charges Summary'!H197,'Charges Summary'!H$11)*#REF!*#REF! ->  | K207: =D207/'Charges Summary'!D$4 ->  | L207: =E207/'Charges Summary'!E$4 ->  | M207: =F207/'Charges Summary'!F$4 ->  | N207: =G207/'Charges Summary'!G$4 ->  | O207: =H207/'Charges Summary'!H$4 -> 
A208: =#REF! ->  | D208: =SUM('Charges Summary'!D213,'Charges Summary'!D$11)*#REF!*#REF! ->  | E208: =SUM('Charges Summary'!E213,'Charges Summary'!E$11)*#REF!*#REF! ->  | F208: =SUM('Charges Summary'!F213,'Charges Summary'!F$11)*#REF!*#REF! ->  | G208: =SUM('Charges Summary'!G213,'Charges Summary'!G$11)*#REF!*#REF! ->  | H208: =SUM('Charges Summary'!H213,'Charges Summary'!H$11)*#REF!*#REF! ->  | K208: =D208/'Charges Summary'!D$4 ->  | L208: =E208/'Charges Summary'!E$4 ->  | M208: =F208/'Charges Summary'!F$4 ->  | N208: =G208/'Charges Summary'!G$4 ->  | O208: =H208/'Charges Summary'!H$4 -> 
A209: =#REF! ->  | D209: =SUM('Charges Summary'!D229,'Charges Summary'!D$11)*#REF!*#REF! ->  | E209: =SUM('Charges Summary'!E229,'Charges Summary'!E$11)*#REF!*#REF! ->  | F209: =SUM('Charges Summary'!F229,'Charges Summary'!F$11)*#REF!*#REF! ->  | G209: =SUM('Charges Summary'!G229,'Charges Summary'!G$11)*#REF!*#REF! ->  | H209: =SUM('Charges Summary'!H229,'Charges Summary'!H$11)*#REF!*#REF! ->  | K209: =D209/'Charges Summary'!D$4 ->  | L209: =E209/'Charges Summary'!E$4 ->  | M209: =F209/'Charges Summary'!F$4 ->  | N209: =G209/'Charges Summary'!G$4 ->  | O209: =H209/'Charges Summary'!H$4 -> 
A211: Total Capital Charge | D211: =SUM(D173:D209) ->  | E211: =SUM(E173:E209) ->  | F211: =SUM(F173:F209) ->  | G211: =SUM(G173:G209) ->  | H211: =SUM(H173:H209) ->  | K211: =SUM(K173:K209) ->  | L211: =SUM(L173:L209) ->  | M211: =SUM(M173:M209) ->  | N211: =SUM(N173:N209) ->  | O211: =SUM(O173:O209) -> 
A213: Check | C213: =SUM(D213:O213) ->  | D213: =ABS(D95-SUM(D153,D211)) ->  | E213: =ABS(E95-SUM(E153,E211)) ->  | F213: =ABS(F95-SUM(F153,F211)) ->  | G213: =ABS(G95-SUM(G153,G211)) ->  | H213: =ABS(H95-SUM(H153,H211)) ->  | K213: =ABS(K95-SUM(K153,K211)) ->  | L213: =ABS(L95-SUM(L153,L211)) ->  | M213: =ABS(M95-SUM(M153,M211)) ->  | N213: =ABS(N95-SUM(N153,N211)) ->  | O213: =ABS(O95-SUM(O153,O211)) -> 
A218: =#REF! -> 
A219: Public Lighting - Revenue | C219: Revenue - $Nominal | J219: Revenue - $Real Jun 2026
C220: =C$2 -> 2026-06-30 | D220: 2027-06-30 | E220: 2028-06-30 | F220: 2029-06-30 | G220: 2030-06-30 | H220: 2031-06-30 | J220: =J$2 -> 2026-06-30 | K220: 2027-06-30 | L220: 2028-06-30 | M220: 2029-06-30 | N220: 2030-06-30 | O220: 2031-06-30
A221: =#REF! -> 
A222: =#REF! ->  | C222: =IF('PL Tariffs'!C44=0,"",#REF!*'PL Tariffs'!C44) ->  | D222: =#REF!*'PL Tariffs'!D44 ->  | E222: =#REF!*'PL Tariffs'!E44 ->  | F222: =#REF!*'PL Tariffs'!F44 ->  | G222: =#REF!*'PL Tariffs'!G44 ->  | H222: =#REF!*'PL Tariffs'!H44 ->  | J222: =C222 ->  | K222: =D222/'Charges Summary'!K$4 ->  | L222: =E222/'Charges Summary'!L$4 ->  | M222: =F222/'Charges Summary'!M$4 ->  | N222: =G222/'Charges Summary'!N$4 ->  | O222: =H222/'Charges Summary'!O$4 -> 
A223: =#REF! ->  | C223: =IF('PL Tariffs'!C45=0,"",#REF!*'PL Tariffs'!C45) ->  | D223: =#REF!*'PL Tariffs'!D45 ->  | E223: =#REF!*'PL Tariffs'!E45 ->  | F223: =#REF!*'PL Tariffs'!F45 ->  | G223: =#REF!*'PL Tariffs'!G45 ->  | H223: =#REF!*'PL Tariffs'!H45 ->  | K223: =D223/'Charges Summary'!K$4 ->  | L223: =E223/'Charges Summary'!L$4 ->  | M223: =F223/'Charges Summary'!M$4 ->  | N223: =G223/'Charges Summary'!N$4 ->  | O223: =H223/'Charges Summary'!O$4 -> 
A224: =#REF! ->  | C224: =IF('PL Tariffs'!C46=0,"",#REF!*'PL Tariffs'!C46) ->  | D224: =#REF!*'PL Tariffs'!D46 ->  | E224: =#REF!*'PL Tariffs'!E46 ->  | F224: =#REF!*'PL Tariffs'!F46 ->  | G224: =#REF!*'PL Tariffs'!G46 ->  | H224: =#REF!*'PL Tariffs'!H46 ->  | K224: =D224/'Charges Summary'!K$4 ->  | L224: =E224/'Charges Summary'!L$4 ->  | M224: =F224/'Charges Summary'!M$4 ->  | N224: =G224/'Charges Summary'!N$4 ->  | O224: =H224/'Charges Summary'!O$4 -> 
A225: =#REF! ->  | C225: =IF('PL Tariffs'!C47=0,"",#REF!*'PL Tariffs'!C47) ->  | D225: =#REF!*'PL Tariffs'!D47 ->  | E225: =#REF!*'PL Tariffs'!E47 ->  | F225: =#REF!*'PL Tariffs'!F47 ->  | G225: =#REF!*'PL Tariffs'!G47 ->  | H225: =#REF!*'PL Tariffs'!H47 ->  | K225: =D225/'Charges Summary'!K$4 ->  | L225: =E225/'Charges Summary'!L$4 ->  | M225: =F225/'Charges Summary'!M$4 ->  | N225: =G225/'Charges Summary'!N$4 ->  | O225: =H225/'Charges Summary'!O$4 -> 
A226: =#REF! ->  | C226: =IF('PL Tariffs'!C48=0,"",#REF!*'PL Tariffs'!C48) ->  | D226: =#REF!*'PL Tariffs'!D48 ->  | E226: =#REF!*'PL Tariffs'!E48 ->  | F226: =#REF!*'PL Tariffs'!F48 ->  | G226: =#REF!*'PL Tariffs'!G48 ->  | H226: =#REF!*'PL Tariffs'!H48 ->  | K226: =D226/'Charges Summary'!K$4 ->  | L226: =E226/'Charges Summary'!L$4 ->  | M226: =F226/'Charges Summary'!M$4 ->  | N226: =G226/'Charges Summary'!N$4 ->  | O226: =H226/'Charges Summary'!O$4 -> 
A227: =#REF! ->  | C227: =IF('PL Tariffs'!C49=0,"",#REF!*'PL Tariffs'!C49) ->  | D227: =#REF!*'PL Tariffs'!D49 ->  | E227: =#REF!*'PL Tariffs'!E49 ->  | F227: =#REF!*'PL Tariffs'!F49 ->  | G227: =#REF!*'PL Tariffs'!G49 ->  | H227: =#REF!*'PL Tariffs'!H49 ->  | K227: =D227/'Charges Summary'!K$4 ->  | L227: =E227/'Charges Summary'!L$4 ->  | M227: =F227/'Charges Summary'!M$4 ->  | N227: =G227/'Charges Summary'!N$4 ->  | O227: =H227/'Charges Summary'!O$4 -> 
A228: =#REF! ->  | C228: =IF('PL Tariffs'!C50=0,"",#REF!*'PL Tariffs'!C50) ->  | D228: =#REF!*'PL Tariffs'!D50 ->  | E228: =#REF!*'PL Tariffs'!E50 ->  | F228: =#REF!*'PL Tariffs'!F50 ->  | G228: =#REF!*'PL Tariffs'!G50 ->  | H228: =#REF!*'PL Tariffs'!H50 ->  | K228: =D228/'Charges Summary'!K$4 ->  | L228: =E228/'Charges Summary'!L$4 ->  | M228: =F228/'Charges Summary'!M$4 ->  | N228: =G228/'Charges Summary'!N$4 ->  | O228: =H228/'Charges Summary'!O$4 -> 
A229: =#REF! ->  | C229: =IF('PL Tariffs'!C51=0,"",#REF!*'PL Tariffs'!C51) ->  | D229: =#REF!*'PL Tariffs'!D51 ->  | E229: =#REF!*'PL Tariffs'!E51 ->  | F229: =#REF!*'PL Tariffs'!F51 ->  | G229: =#REF!*'PL Tariffs'!G51 ->  | H229: =#REF!*'PL Tariffs'!H51 ->  | K229: =D229/'Charges Summary'!K$4 ->  | L229: =E229/'Charges Summary'!L$4 ->  | M229: =F229/'Charges Summary'!M$4 ->  | N229: =G229/'Charges Summary'!N$4 ->  | O229: =H229/'Charges Summary'!O$4 -> 
A230: =#REF! ->  | C230: =IF('PL Tariffs'!C52=0,"",#REF!*'PL Tariffs'!C52) ->  | D230: =#REF!*'PL Tariffs'!D52 ->  | E230: =#REF!*'PL Tariffs'!E52 ->  | F230: =#REF!*'PL Tariffs'!F52 ->  | G230: =#REF!*'PL Tariffs'!G52 ->  | H230: =#REF!*'PL Tariffs'!H52 ->  | K230: =D230/'Charges Summary'!K$4 ->  | L230: =E230/'Charges Summary'!L$4 ->  | M230: =F230/'Charges Summary'!M$4 ->  | N230: =G230/'Charges Summary'!N$4 ->  | O230: =H230/'Charges Summary'!O$4 -> 
A231: =#REF! ->  | C231: =IF('PL Tariffs'!C53=0,"",#REF!*'PL Tariffs'!C53) ->  | D231: =#REF!*'PL Tariffs'!D53 ->  | E231: =#REF!*'PL Tariffs'!E53 ->  | F231: =#REF!*'PL Tariffs'!F53 ->  | G231: =#REF!*'PL Tariffs'!G53 ->  | H231: =#REF!*'PL Tariffs'!H53 ->  | J231: =C231 ->  | K231: =D231/'Charges Summary'!K$4 ->  | L231: =E231/'Charges Summary'!L$4 ->  | M231: =F231/'Charges Summary'!M$4 ->  | N231: =G231/'Charges Summary'!N$4 ->  | O231: =H231/'Charges Summary'!O$4 -> 
A232: =#REF! ->  | C232: =IF('PL Tariffs'!C54=0,"",#REF!*'PL Tariffs'!C54) ->  | D232: =#REF!*'PL Tariffs'!D54 ->  | E232: =#REF!*'PL Tariffs'!E54 ->  | F232: =#REF!*'PL Tariffs'!F54 ->  | G232: =#REF!*'PL Tariffs'!G54 ->  | H232: =#REF!*'PL Tariffs'!H54 ->  | J232: =C232 ->  | K232: =D232/'Charges Summary'!K$4 ->  | L232: =E232/'Charges Summary'!L$4 ->  | M232: =F232/'Charges Summary'!M$4 ->  | N232: =G232/'Charges Summary'!N$4 ->  | O232: =H232/'Charges Summary'!O$4 -> 
A233: =#REF! ->  | C233: =IF('PL Tariffs'!C55=0,"",#REF!*'PL Tariffs'!C55) ->  | D233: =#REF!*'PL Tariffs'!D55 ->  | E233: =#REF!*'PL Tariffs'!E55 ->  | F233: =#REF!*'PL Tariffs'!F55 ->  | G233: =#REF!*'PL Tariffs'!G55 ->  | H233: =#REF!*'PL Tariffs'!H55 ->  | J233: =C233 ->  | K233: =D233/'Charges Summary'!K$4 ->  | L233: =E233/'Charges Summary'!L$4 ->  | M233: =F233/'Charges Summary'!M$4 ->  | N233: =G233/'Charges Summary'!N$4 ->  | O233: =H233/'Charges Summary'!O$4 -> 
A234: =#REF! ->  | C234: =IF('PL Tariffs'!C56=0,"",#REF!*'PL Tariffs'!C56) ->  | D234: =#REF!*'PL Tariffs'!D56 ->  | E234: =#REF!*'PL Tariffs'!E56 ->  | F234: =#REF!*'PL Tariffs'!F56 ->  | G234: =#REF!*'PL Tariffs'!G56 ->  | H234: =#REF!*'PL Tariffs'!H56 ->  | J234: =C234 ->  | K234: =D234/'Charges Summary'!K$4 ->  | L234: =E234/'Charges Summary'!L$4 ->  | M234: =F234/'Charges Summary'!M$4 ->  | N234: =G234/'Charges Summary'!N$4 ->  | O234: =H234/'Charges Summary'!O$4 -> 
A246: =#REF! -> 
A247: =#REF! ->  | C247: =IF('PL Tariffs'!C60=0,"",#REF!*'PL Tariffs'!C60) ->  | D247: =#REF!*'PL Tariffs'!D60 ->  | E247: =#REF!*'PL Tariffs'!E60 ->  | F247: =#REF!*'PL Tariffs'!F60 ->  | G247: =#REF!*'PL Tariffs'!G60 ->  | H247: =#REF!*'PL Tariffs'!H60 ->  | J247: =C247 ->  | K247: =D247/'Charges Summary'!K$4 ->  | L247: =E247/'Charges Summary'!L$4 ->  | M247: =F247/'Charges Summary'!M$4 ->  | N247: =G247/'Charges Summary'!N$4 ->  | O247: =H247/'Charges Summary'!O$4 -> 
A248: =#REF! ->  | C248: =IF('PL Tariffs'!C61=0,"",#REF!*'PL Tariffs'!C61) ->  | D248: =#REF!*'PL Tariffs'!D61 ->  | E248: =#REF!*'PL Tariffs'!E61 ->  | F248: =#REF!*'PL Tariffs'!F61 ->  | G248: =#REF!*'PL Tariffs'!G61 ->  | H248: =#REF!*'PL Tariffs'!H61 ->  | J248: =C248 ->  | K248: =D248/'Charges Summary'!K$4 ->  | L248: =E248/'Charges Summary'!L$4 ->  | M248: =F248/'Charges Summary'!M$4 ->  | N248: =G248/'Charges Summary'!N$4 ->  | O248: =H248/'Charges Summary'!O$4 -> 
A249: =#REF! ->  | C249: =IF('PL Tariffs'!C62=0,"",#REF!*'PL Tariffs'!C62) ->  | D249: =#REF!*'PL Tariffs'!D62 ->  | E249: =#REF!*'PL Tariffs'!E62 ->  | F249: =#REF!*'PL Tariffs'!F62 ->  | G249: =#REF!*'PL Tariffs'!G62 ->  | H249: =#REF!*'PL Tariffs'!H62 ->  | J249: =C249 ->  | K249: =D249/'Charges Summary'!K$4 ->  | L249: =E249/'Charges Summary'!L$4 ->  | M249: =F249/'Charges Summary'!M$4 ->  | N249: =G249/'Charges Summary'!N$4 ->  | O249: =H249/'Charges Summary'!O$4 -> 
A250: =#REF! ->  | C250: =IF('PL Tariffs'!C63=0,"",#REF!*'PL Tariffs'!C63) ->  | D250: =#REF!*'PL Tariffs'!D63 ->  | E250: =#REF!*'PL Tariffs'!E63 ->  | F250: =#REF!*'PL Tariffs'!F63 ->  | G250: =#REF!*'PL Tariffs'!G63 ->  | H250: =#REF!*'PL Tariffs'!H63 ->  | J250: =C250 ->  | K250: =D250/'Charges Summary'!K$4 ->  | L250: =E250/'Charges Summary'!L$4 ->  | M250: =F250/'Charges Summary'!M$4 ->  | N250: =G250/'Charges Summary'!N$4 ->  | O250: =H250/'Charges Summary'!O$4 -> 
A251: =#REF! ->  | C251: =IF('PL Tariffs'!C64=0,"",#REF!*'PL Tariffs'!C64) ->  | D251: =#REF!*'PL Tariffs'!D64 ->  | E251: =#REF!*'PL Tariffs'!E64 ->  | F251: =#REF!*'PL Tariffs'!F64 ->  | G251: =#REF!*'PL Tariffs'!G64 ->  | H251: =#REF!*'PL Tariffs'!H64 ->  | J251: =C251 ->  | K251: =D251/'Charges Summary'!K$4 ->  | L251: =E251/'Charges Summary'!L$4 ->  | M251: =F251/'Charges Summary'!M$4 ->  | N251: =G251/'Charges Summary'!N$4 ->  | O251: =H251/'Charges Summary'!O$4 -> 
A252: =#REF! ->  | C252: =IF('PL Tariffs'!C65=0,"",#REF!*'PL Tariffs'!C65) ->  | D252: =#REF!*'PL Tariffs'!D65 ->  | E252: =#REF!*'PL Tariffs'!E65 ->  | F252: =#REF!*'PL Tariffs'!F65 ->  | G252: =#REF!*'PL Tariffs'!G65 ->  | H252: =#REF!*'PL Tariffs'!H65 ->  | J252: =C252 ->  | K252: =D252/'Charges Summary'!K$4 ->  | L252: =E252/'Charges Summary'!L$4 ->  | M252: =F252/'Charges Summary'!M$4 ->  | N252: =G252/'Charges Summary'!N$4 ->  | O252: =H252/'Charges Summary'!O$4 -> 
A253: =#REF! ->  | C253: =IF('PL Tariffs'!C66=0,"",#REF!*'PL Tariffs'!C66) ->  | D253: =#REF!*'PL Tariffs'!D66 ->  | E253: =#REF!*'PL Tariffs'!E66 ->  | F253: =#REF!*'PL Tariffs'!F66 ->  | G253: =#REF!*'PL Tariffs'!G66 ->  | H253: =#REF!*'PL Tariffs'!H66 ->  | J253: =C253 ->  | K253: =D253/'Charges Summary'!K$4 ->  | L253: =E253/'Charges Summary'!L$4 ->  | M253: =F253/'Charges Summary'!M$4 ->  | N253: =G253/'Charges Summary'!N$4 ->  | O253: =H253/'Charges Summary'!O$4 -> 
A254: =#REF! ->  | C254: =IF('PL Tariffs'!C67=0,"",#REF!*'PL Tariffs'!C67) ->  | D254: =#REF!*'PL Tariffs'!D67 ->  | E254: =#REF!*'PL Tariffs'!E67 ->  | F254: =#REF!*'PL Tariffs'!F67 ->  | G254: =#REF!*'PL Tariffs'!G67 ->  | H254: =#REF!*'PL Tariffs'!H67 ->  | K254: =D254/'Charges Summary'!K$4 ->  | L254: =E254/'Charges Summary'!L$4 ->  | M254: =F254/'Charges Summary'!M$4 ->  | N254: =G254/'Charges Summary'!N$4 ->  | O254: =H254/'Charges Summary'!O$4 -> 
A255: =#REF! ->  | C255: =IF('PL Tariffs'!C68=0,"",#REF!*'PL Tariffs'!C68) ->  | D255: =#REF!*'PL Tariffs'!D68 ->  | E255: =#REF!*'PL Tariffs'!E68 ->  | F255: =#REF!*'PL Tariffs'!F68 ->  | G255: =#REF!*'PL Tariffs'!G68 ->  | H255: =#REF!*'PL Tariffs'!H68 ->  | K255: =D255/'Charges Summary'!K$4 ->  | L255: =E255/'Charges Summary'!L$4 ->  | M255: =F255/'Charges Summary'!M$4 ->  | N255: =G255/'Charges Summary'!N$4 ->  | O255: =H255/'Charges Summary'!O$4 -> 
A256: =#REF! ->  | C256: =IF('PL Tariffs'!C69=0,"",#REF!*'PL Tariffs'!C69) ->  | D256: =#REF!*'PL Tariffs'!D69 ->  | E256: =#REF!*'PL Tariffs'!E69 ->  | F256: =#REF!*'PL Tariffs'!F69 ->  | G256: =#REF!*'PL Tariffs'!G69 ->  | H256: =#REF!*'PL Tariffs'!H69 ->  | J256: =C256 ->  | K256: =D256/'Charges Summary'!K$4 ->  | L256: =E256/'Charges Summary'!L$4 ->  | M256: =F256/'Charges Summary'!M$4 ->  | N256: =G256/'Charges Summary'!N$4 ->  | O256: =H256/'Charges Summary'!O$4 -> 
A257: =#REF! ->  | C257: =IF('PL Tariffs'!C70=0,"",#REF!*'PL Tariffs'!C70) ->  | D257: =#REF!*'PL Tariffs'!D70 ->  | E257: =#REF!*'PL Tariffs'!E70 ->  | F257: =#REF!*'PL Tariffs'!F70 ->  | G257: =#REF!*'PL Tariffs'!G70 ->  | H257: =#REF!*'PL Tariffs'!H70 ->  | J257: =C257 ->  | K257: =D257/'Charges Summary'!K$4 ->  | L257: =E257/'Charges Summary'!L$4 ->  | M257: =F257/'Charges Summary'!M$4 ->  | N257: =G257/'Charges Summary'!N$4 ->  | O257: =H257/'Charges Summary'!O$4 -> 
A258: =#REF! ->  | C258: =IF('PL Tariffs'!C71=0,"",#REF!*'PL Tariffs'!C71) ->  | D258: =#REF!*'PL Tariffs'!D71 ->  | E258: =#REF!*'PL Tariffs'!E71 ->  | F258: =#REF!*'PL Tariffs'!F71 ->  | G258: =#REF!*'PL Tariffs'!G71 ->  | H258: =#REF!*'PL Tariffs'!H71 ->  | J258: =C258 ->  | K258: =D258/'Charges Summary'!K$4 ->  | L258: =E258/'Charges Summary'!L$4 ->  | M258: =F258/'Charges Summary'!M$4 ->  | N258: =G258/'Charges Summary'!N$4 ->  | O258: =H258/'Charges Summary'!O$4 -> 
A260: Total Revenue | C260: =IF(SUM(C222:C258)=0,0,SUM(C222:C258)) ->  | J260: =IF(SUM(J222:J258)=0,0,SUM(J222:J258)) -> 
A263: Public Lighting - O & M | D263: Forecast O & M - $Nominal | K263: Forecast O & M - $Real Jun 2026
D264: =D$2 -> 2027-06-30 | E264: =E$2 -> 2028-06-30 | F264: =F$2 -> 2029-06-30 | G264: =G$2 -> 2030-06-30 | H264: =H$2 -> 2031-06-30 | K264: =K$2 -> 2027-06-30 | L264: =L$2 -> 2028-06-30 | M264: =M$2 -> 2029-06-30 | N264: =N$2 -> 2030-06-30 | O264: =O$2 -> 2031-06-30
A266: Unit cost
A267: =#REF! ->  | D267: =SUM('Charges Summary'!K25,'Charges Summary'!K8) ->  | E267: =SUM('Charges Summary'!L25,'Charges Summary'!L8) ->  | F267: =SUM('Charges Summary'!M25,'Charges Summary'!M8) ->  | G267: =SUM('Charges Summary'!N25,'Charges Summary'!N8) ->  | H267: =SUM('Charges Summary'!O25,'Charges Summary'!O8) ->  | K267: =D267/'Charges Summary'!K$4 ->  | L267: =E267/'Charges Summary'!L$4 ->  | M267: =F267/'Charges Summary'!M$4 ->  | N267: =G267/'Charges Summary'!N$4 ->  | O267: =H267/'Charges Summary'!O$4 -> 
A268: =#REF! ->  | D268: =SUM('Charges Summary'!K49,'Charges Summary'!K8) ->  | E268: =SUM('Charges Summary'!L49,'Charges Summary'!L8) ->  | F268: =SUM('Charges Summary'!M49,'Charges Summary'!M8) ->  | G268: =SUM('Charges Summary'!N49,'Charges Summary'!N8) ->  | H268: =SUM('Charges Summary'!O49,'Charges Summary'!O8) ->  | K268: =D268/'Charges Summary'!K$4 ->  | L268: =E268/'Charges Summary'!L$4 ->  | M268: =F268/'Charges Summary'!M$4 ->  | N268: =G268/'Charges Summary'!N$4 ->  | O268: =H268/'Charges Summary'!O$4 -> 
A269: =#REF! ->  | D269: =SUM('Charges Summary'!K65,'Charges Summary'!K8) ->  | E269: =SUM('Charges Summary'!L65,'Charges Summary'!L8) ->  | F269: =SUM('Charges Summary'!M65,'Charges Summary'!M8) ->  | G269: =SUM('Charges Summary'!N65,'Charges Summary'!N8) ->  | H269: =SUM('Charges Summary'!O65,'Charges Summary'!O8) ->  | K269: =D269/'Charges Summary'!K$4 ->  | L269: =E269/'Charges Summary'!L$4 ->  | M269: =F269/'Charges Summary'!M$4 ->  | N269: =G269/'Charges Summary'!N$4 ->  | O269: =H269/'Charges Summary'!O$4 -> 
A271: =#REF! ->  | D271: =SUM('Charges Summary'!K83,'Charges Summary'!K8) ->  | E271: =SUM('Charges Summary'!L83,'Charges Summary'!L8) ->  | F271: =SUM('Charges Summary'!M83,'Charges Summary'!M8) ->  | G271: =SUM('Charges Summary'!N83,'Charges Summary'!N8) ->  | H271: =SUM('Charges Summary'!O83,'Charges Summary'!O8) ->  | K271: =D271/'Charges Summary'!K$4 ->  | L271: =E271/'Charges Summary'!L$4 ->  | M271: =F271/'Charges Summary'!M$4 ->  | N271: =G271/'Charges Summary'!N$4 ->  | O271: =H271/'Charges Summary'!O$4 -> 
A272: =#REF! ->  | D272: =SUM('Charges Summary'!K99,'Charges Summary'!K8) ->  | E272: =SUM('Charges Summary'!L99,'Charges Summary'!L8) ->  | F272: =SUM('Charges Summary'!M99,'Charges Summary'!M8) ->  | G272: =SUM('Charges Summary'!N99,'Charges Summary'!N8) ->  | H272: =SUM('Charges Summary'!O99,'Charges Summary'!O8) ->  | K272: =D272/'Charges Summary'!K$4 ->  | L272: =E272/'Charges Summary'!L$4 ->  | M272: =F272/'Charges Summary'!M$4 ->  | N272: =G272/'Charges Summary'!N$4 ->  | O272: =H272/'Charges Summary'!O$4 -> 
A273: =#REF! ->  | D273: =SUM('Charges Summary'!K115,'Charges Summary'!K8) ->  | E273: =SUM('Charges Summary'!L115,'Charges Summary'!L8) ->  | F273: =SUM('Charges Summary'!M115,'Charges Summary'!M8) ->  | G273: =SUM('Charges Summary'!N115,'Charges Summary'!N8) ->  | H273: =SUM('Charges Summary'!O115,'Charges Summary'!O8) ->  | K273: =D273/'Charges Summary'!K$4 ->  | L273: =E273/'Charges Summary'!L$4 ->  | M273: =F273/'Charges Summary'!M$4 ->  | N273: =G273/'Charges Summary'!N$4 ->  | O273: =H273/'Charges Summary'!O$4 -> 
A274: =#REF! ->  | D274: =SUM('Charges Summary'!K131,'Charges Summary'!K$8) ->  | E274: =SUM('Charges Summary'!L131,'Charges Summary'!L$8) ->  | F274: =SUM('Charges Summary'!M131,'Charges Summary'!M$8) ->  | G274: =SUM('Charges Summary'!N131,'Charges Summary'!N$8) ->  | H274: =SUM('Charges Summary'!O131,'Charges Summary'!O$8) ->  | K274: =D274/'Charges Summary'!K$4 ->  | L274: =E274/'Charges Summary'!L$4 ->  | M274: =F274/'Charges Summary'!M$4 ->  | N274: =G274/'Charges Summary'!N$4 ->  | O274: =H274/'Charges Summary'!O$4 -> 
A275: =#REF! ->  | D275: =SUM('Charges Summary'!K147,'Charges Summary'!K$8) ->  | E275: =SUM('Charges Summary'!L147,'Charges Summary'!L$8) ->  | F275: =SUM('Charges Summary'!M147,'Charges Summary'!M$8) ->  | G275: =SUM('Charges Summary'!N147,'Charges Summary'!N$8) ->  | H275: =SUM('Charges Summary'!O147,'Charges Summary'!O$8) ->  | K275: =D275/'Charges Summary'!K$4 ->  | L275: =E275/'Charges Summary'!L$4 ->  | M275: =F275/'Charges Summary'!M$4 ->  | N275: =G275/'Charges Summary'!N$4 ->  | O275: =H275/'Charges Summary'!O$4 -> 
A276: =#REF! ->  | D276: =SUM('Charges Summary'!K163,'Charges Summary'!K$8) ->  | E276: =SUM('Charges Summary'!L163,'Charges Summary'!L$8) ->  | F276: =SUM('Charges Summary'!M163,'Charges Summary'!M$8) ->  | G276: =SUM('Charges Summary'!N163,'Charges Summary'!N$8) ->  | H276: =SUM('Charges Summary'!O163,'Charges Summary'!O$8) ->  | K276: =D276/'Charges Summary'!K$4 ->  | L276: =E276/'Charges Summary'!L$4 ->  | M276: =F276/'Charges Summary'!M$4 ->  | N276: =G276/'Charges Summary'!N$4 ->  | O276: =H276/'Charges Summary'!O$4 -> 
A277: =#REF! ->  | D277: =SUM('Charges Summary'!K179,'Charges Summary'!K$8) ->  | E277: =SUM('Charges Summary'!L179,'Charges Summary'!L$8) ->  | F277: =SUM('Charges Summary'!M179,'Charges Summary'!M$8) ->  | G277: =SUM('Charges Summary'!N179,'Charges Summary'!N$8) ->  | H277: =SUM('Charges Summary'!O179,'Charges Summary'!O$8) ->  | K277: =D277/'Charges Summary'!K$4 ->  | L277: =E277/'Charges Summary'!L$4 ->  | M277: =F277/'Charges Summary'!M$4 ->  | N277: =G277/'Charges Summary'!N$4 ->  | O277: =H277/'Charges Summary'!O$4 -> 
A279: =#REF! -> 
A280: =#REF! ->  | D280: =D267*#REF! ->  | E280: =E267*#REF! ->  | F280: =F267*#REF! ->  | G280: =G267*#REF! ->  | H280: =H267*#REF! ->  | K280: =D280/'Charges Summary'!K$4 ->  | L280: =E280/'Charges Summary'!L$4 ->  | M280: =F280/'Charges Summary'!M$4 ->  | N280: =G280/'Charges Summary'!N$4 ->  | O280: =H280/'Charges Summary'!O$4 -> 
A281: =#REF! ->  | D281: =D268*#REF! ->  | E281: =E268*#REF! ->  | F281: =F268*#REF! ->  | G281: =G268*#REF! ->  | H281: =H268*#REF! ->  | K281: =D281/'Charges Summary'!K$4 ->  | L281: =E281/'Charges Summary'!L$4 ->  | M281: =F281/'Charges Summary'!M$4 ->  | N281: =G281/'Charges Summary'!N$4 ->  | O281: =H281/'Charges Summary'!O$4 -> 
A282: =#REF! ->  | D282: =D269*#REF! ->  | E282: =E269*#REF! ->  | F282: =F269*#REF! ->  | G282: =G269*#REF! ->  | H282: =H269*#REF! ->  | K282: =D282/'Charges Summary'!K$4 ->  | L282: =E282/'Charges Summary'!L$4 ->  | M282: =F282/'Charges Summary'!M$4 ->  | N282: =G282/'Charges Summary'!N$4 ->  | O282: =H282/'Charges Summary'!O$4 -> 
A283: =#REF! ->  | D283: =IF(#REF!=#REF!,D$267,IF(#REF!=#REF!,D$268,D$269))*#REF!*#REF! ->  | E283: =IF(#REF!=#REF!,E$267,IF(#REF!=#REF!,E$268,E$269))*#REF!*#REF! ->  | F283: =IF(#REF!=#REF!,F$267,IF(#REF!=#REF!,F$268,F$269))*#REF!*#REF! ->  | G283: =IF(#REF!=#REF!,G$267,IF(#REF!=#REF!,G$268,G$269))*#REF!*#REF! ->  | H283: =IF(#REF!=#REF!,H$267,IF(#REF!=#REF!,H$268,H$269))*#REF!*#REF! ->  | K283: =D283/'Charges Summary'!K$4 ->  | L283: =E283/'Charges Summary'!L$4 ->  | M283: =F283/'Charges Summary'!M$4 ->  | N283: =G283/'Charges Summary'!N$4 ->  | O283: =H283/'Charges Summary'!O$4 -> 
A284: =#REF! ->  | D284: =IF(#REF!=#REF!,D$267,IF(#REF!=#REF!,D$268,D$269))*#REF!*#REF! ->  | E284: =IF(#REF!=#REF!,E$267,IF(#REF!=#REF!,E$268,E$269))*#REF!*#REF! ->  | F284: =IF(#REF!=#REF!,F$267,IF(#REF!=#REF!,F$268,F$269))*#REF!*#REF! ->  | G284: =IF(#REF!=#REF!,G$267,IF(#REF!=#REF!,G$268,G$269))*#REF!*#REF! ->  | H284: =IF(#REF!=#REF!,H$267,IF(#REF!=#REF!,H$268,H$269))*#REF!*#REF! ->  | K284: =D284/'Charges Summary'!K$4 ->  | L284: =E284/'Charges Summary'!L$4 ->  | M284: =F284/'Charges Summary'!M$4 ->  | N284: =G284/'Charges Summary'!N$4 ->  | O284: =H284/'Charges Summary'!O$4 -> 
A285: =#REF! ->  | D285: =IF(#REF!=#REF!,D$267,IF(#REF!=#REF!,D$268,D$269))*#REF!*#REF! ->  | E285: =IF(#REF!=#REF!,E$267,IF(#REF!=#REF!,E$268,E$269))*#REF!*#REF! ->  | F285: =IF(#REF!=#REF!,F$267,IF(#REF!=#REF!,F$268,F$269))*#REF!*#REF! ->  | G285: =IF(#REF!=#REF!,G$267,IF(#REF!=#REF!,G$268,G$269))*#REF!*#REF! ->  | H285: =IF(#REF!=#REF!,H$267,IF(#REF!=#REF!,H$268,H$269))*#REF!*#REF! ->  | K285: =D285/'Charges Summary'!K$4 ->  | L285: =E285/'Charges Summary'!L$4 ->  | M285: =F285/'Charges Summary'!M$4 ->  | N285: =G285/'Charges Summary'!N$4 ->  | O285: =H285/'Charges Summary'!O$4 -> 
A286: =#REF! ->  | D286: =IF(#REF!=#REF!,D$267,IF(#REF!=#REF!,D$268,D$269))*#REF!*#REF! ->  | E286: =IF(#REF!=#REF!,E$267,IF(#REF!=#REF!,E$268,E$269))*#REF!*#REF! ->  | F286: =IF(#REF!=#REF!,F$267,IF(#REF!=#REF!,F$268,F$269))*#REF!*#REF! ->  | G286: =IF(#REF!=#REF!,G$267,IF(#REF!=#REF!,G$268,G$269))*#REF!*#REF! ->  | H286: =IF(#REF!=#REF!,H$267,IF(#REF!=#REF!,H$268,H$269))*#REF!*#REF! ->  | K286: =D286/'Charges Summary'!K$4 ->  | L286: =E286/'Charges Summary'!L$4 ->  | M286: =F286/'Charges Summary'!M$4 ->  | N286: =G286/'Charges Summary'!N$4 ->  | O286: =H286/'Charges Summary'!O$4 -> 
A287: =#REF! ->  | D287: =IF(#REF!=#REF!,D$267,IF(#REF!=#REF!,D$268,D$269))*#REF!*#REF! ->  | E287: =IF(#REF!=#REF!,E$267,IF(#REF!=#REF!,E$268,E$269))*#REF!*#REF! ->  | F287: =IF(#REF!=#REF!,F$267,IF(#REF!=#REF!,F$268,F$269))*#REF!*#REF! ->  | G287: =IF(#REF!=#REF!,G$267,IF(#REF!=#REF!,G$268,G$269))*#REF!*#REF! ->  | H287: =IF(#REF!=#REF!,H$267,IF(#REF!=#REF!,H$268,H$269))*#REF!*#REF! ->  | K287: =D287/'Charges Summary'!K$4 ->  | L287: =E287/'Charges Summary'!L$4 ->  | M287: =F287/'Charges Summary'!M$4 ->  | N287: =G287/'Charges Summary'!N$4 ->  | O287: =H287/'Charges Summary'!O$4 -> 
A288: =#REF! ->  | D288: =IF(#REF!=#REF!,D$267,IF(#REF!=#REF!,D$268,D$269))*#REF!*#REF! ->  | E288: =IF(#REF!=#REF!,E$267,IF(#REF!=#REF!,E$268,E$269))*#REF!*#REF! ->  | F288: =IF(#REF!=#REF!,F$267,IF(#REF!=#REF!,F$268,F$269))*#REF!*#REF! ->  | G288: =IF(#REF!=#REF!,G$267,IF(#REF!=#REF!,G$268,G$269))*#REF!*#REF! ->  | H288: =IF(#REF!=#REF!,H$267,IF(#REF!=#REF!,H$268,H$269))*#REF!*#REF! ->  | K288: =D288/'Charges Summary'!K$4 ->  | L288: =E288/'Charges Summary'!L$4 ->  | M288: =F288/'Charges Summary'!M$4 ->  | N288: =G288/'Charges Summary'!N$4 ->  | O288: =H288/'Charges Summary'!O$4 -> 
A289: =#REF! ->  | D289: =IF(#REF!=#REF!,D$267,IF(#REF!=#REF!,D$268,D$269))*#REF!*#REF! ->  | E289: =IF(#REF!=#REF!,E$267,IF(#REF!=#REF!,E$268,E$269))*#REF!*#REF! ->  | F289: =IF(#REF!=#REF!,F$267,IF(#REF!=#REF!,F$268,F$269))*#REF!*#REF! ->  | G289: =IF(#REF!=#REF!,G$267,IF(#REF!=#REF!,G$268,G$269))*#REF!*#REF! ->  | H289: =IF(#REF!=#REF!,H$267,IF(#REF!=#REF!,H$268,H$269))*#REF!*#REF! ->  | K289: =D289/'Charges Summary'!K$4 ->  | L289: =E289/'Charges Summary'!L$4 ->  | M289: =F289/'Charges Summary'!M$4 ->  | N289: =G289/'Charges Summary'!N$4 ->  | O289: =H289/'Charges Summary'!O$4 -> 
... 59 more rows

Sheet Charges Summary (hidden)
A1: ='DNSP Inputs O&M'!$A$3 -> AusNet | D1: =Instructions!$B$16 -> 2027-06-30 | E1: =EOMONTH(D1,12) -> 2028-06-30 | F1: =EOMONTH(E1,12) -> 2029-06-30 | G1: =EOMONTH(F1,12) -> 2030-06-30 | H1: =EOMONTH(G1,12) -> 2031-06-30 | K1: =D1 -> 2027-06-30 | L1: =E1 -> 2028-06-30 | M1: =F1 -> 2029-06-30 | N1: =G1 -> 2030-06-30 | O1: =H1 -> 2031-06-30
A2: Nominal $ | D2: =#REF! ->  | K2: =#REF! -> 
A4: ='Total RAB'!A20 -> CPI Index | D4: =(1+WACC!E6) ->  | E4: =D4*(1+WACC!F6) ->  | F4: =E4*(1+WACC!G6) ->  | G4: =F4*(1+WACC!H6) ->  | H4: =G4*(1+WACC!I6) ->  | K4: =D4 ->  | L4: =E4 ->  | M4: =F4 ->  | N4: =G4 ->  | O4: =H4 -> 
A6: =#REF! ->  | D6: =D$1 -> 2027-06-30 | E6: =E$1 -> 2028-06-30 | F6: =F$1 -> 2029-06-30 | G6: =G$1 -> 2030-06-30 | H6: =H$1 -> 2031-06-30 | K6: =K$1 -> 2027-06-30 | L6: =L$1 -> 2028-06-30 | M6: =M$1 -> 2029-06-30 | N6: =N$1 -> 2030-06-30 | O6: =O$1 -> 2031-06-30
A7: O & M
A8: ='O & M 2027-2031'!A$10 -> Dedicated poles - inspection | D8: ='O & M 2027-2031'!$B$10*D$4 ->  | E8: ='O & M 2027-2031'!$Y$10*E$4 ->  | F8: ='O & M 2027-2031'!$AV$10*F$4 ->  | G8: ='O & M 2027-2031'!$BS$10*G$4 ->  | H8: ='O & M 2027-2031'!$CP$10*H$4 ->  | K8: ='O & M 2027-2031'!$M$10*K$4 ->  | L8: ='O & M 2027-2031'!$AJ$10*L$4 ->  | M8: ='O & M 2027-2031'!$BG$10*M$4 ->  | N8: ='O & M 2027-2031'!$CD$10*N$4 ->  | O8: ='O & M 2027-2031'!$DA$10*O$4 -> 
A10: Capital Charge
A11: Depreciation and Return | D11: ='Depn & WACC Post 2004 Central'!H$87 ->  | E11: ='Depn & WACC Post 2004 Central'!H$143 ->  | F11: ='Depn & WACC Post 2004 Central'!H$199 ->  | G11: ='Depn & WACC Post 2004 Central'!H$255 ->  | H11: ='Depn & WACC Post 2004 Central'!H$311 ->  | K11: ='Depn & WACC Post 2004 N & E'!H$87 ->  | L11: ='Depn & WACC Post 2004 N & E'!H$143 ->  | M11: ='Depn & WACC Post 2004 N & E'!H$199 ->  | N11: ='Depn & WACC Post 2004 N & E'!H$255 ->  | O11: ='Depn & WACC Post 2004 N & E'!H$311 -> 
A13: Total Charge | D13: =SUM(D8,D11) ->  | E13: =SUM(E8,E11) ->  | F13: =SUM(F8,F11) ->  | G13: =SUM(G8,G11) ->  | H13: =SUM(H8,H11) ->  | K13: =SUM(K8,K11) ->  | L13: =SUM(L8,L11) ->  | M13: =SUM(M8,M11) ->  | N13: =SUM(N8,N11) ->  | O13: =SUM(O8,O11) -> 
A18: =#REF! -> 
A20: ='O & M 2027-2031'!$A$8 -> MV80 | D20: =D$1 -> 2027-06-30 | E20: =E$1 -> 2028-06-30 | F20: =F$1 -> 2029-06-30 | G20: =G$1 -> 2030-06-30 | H20: =H$1 -> 2031-06-30 | K20: =K$1 -> 2027-06-30 | L20: =L$1 -> 2028-06-30 | M20: =M$1 -> 2029-06-30 | N20: =N$1 -> 2030-06-30 | O20: =O$1 -> 2031-06-30
A22: O & M Charge
A23: ='O & M 2027-2031'!A$9 -> Bulk change & repairs | D23: ='O & M 2027-2031'!$B$9*D$4 ->  | E23: ='O & M 2027-2031'!$Y$9*E$4 ->  | F23: ='O & M 2027-2031'!$AV$9*F$4 ->  | G23: ='O & M 2027-2031'!$BS$9*G$4 ->  | H23: ='O & M 2027-2031'!$CP$9*H$4 ->  | K23: ='O & M 2027-2031'!$M$9*K$4 ->  | L23: ='O & M 2027-2031'!$AJ$9*L$4 ->  | M23: ='O & M 2027-2031'!$BG$9*M$4 ->  | N23: ='O & M 2027-2031'!$CD$9*N$4 ->  | O23: ='O & M 2027-2031'!$DA$9*O$4 -> 
A24: ='O & M 2027-2031'!A$11 -> Other costs | D24: ='O & M 2027-2031'!$B$11*D$4 ->  | E24: ='O & M 2027-2031'!$Y$11*E$4 ->  | F24: ='O & M 2027-2031'!$AV$11*F$4 ->  | G24: ='O & M 2027-2031'!$BS$11*G$4 ->  | H24: ='O & M 2027-2031'!$CP$11*H$4 ->  | K24: ='O & M 2027-2031'!$M$11*K$4 ->  | L24: ='O & M 2027-2031'!$AJ$11*L$4 ->  | M24: ='O & M 2027-2031'!$BG$11*M$4 ->  | N24: ='O & M 2027-2031'!$CD$11*N$4 ->  | O24: ='O & M 2027-2031'!$DA$11*O$4 -> 
D25: =SUM(D23:D24) ->  | E25: =SUM(E23:E24) ->  | F25: =SUM(F23:F24) ->  | G25: =SUM(G23:G24) ->  | H25: =SUM(H23:H24) ->  | K25: =SUM(K23:K24) ->  | L25: =SUM(L23:L24) ->  | M25: =SUM(M23:M24) ->  | N25: =SUM(N23:N24) ->  | O25: =SUM(O23:O24) -> 
A26: Capital Charge
A27: Depreciation and Return | D27: ='Depn & WACC Post 2004 Central'!H$40 ->  | E27: ='Depn & WACC Post 2004 Central'!H$96 ->  | F27: ='Depn & WACC Post 2004 Central'!H$152 ->  | G27: ='Depn & WACC Post 2004 Central'!H$208 ->  | H27: ='Depn & WACC Post 2004 Central'!H$264 ->  | K27: ='Depn & WACC Post 2004 N & E'!H$40 ->  | L27: ='Depn & WACC Post 2004 N & E'!H$96 ->  | M27: ='Depn & WACC Post 2004 N & E'!H$152 ->  | N27: ='Depn & WACC Post 2004 N & E'!H$208 ->  | O27: ='Depn & WACC Post 2004 N & E'!H$264 -> 
A29: Poles & Brackets Charge | D29: =D$13 ->  | E29: =E$13 ->  | F29: =F$13 ->  | G29: =G$13 ->  | H29: =H$13 ->  | K29: =K$13 ->  | L29: =L$13 ->  | M29: =M$13 ->  | N29: =N$13 ->  | O29: =O$13 -> 
A31: Total Charge | D31: =SUM(D25,D27,D29) ->  | E31: =SUM(E25,E27,E29) ->  | F31: =SUM(F25,F27,F29) ->  | G31: =SUM(G25,G27,G29) ->  | H31: =SUM(H25,H27,H29) ->  | K31: =SUM(K25,K27,K29) ->  | L31: =SUM(L25,L27,L29) ->  | M31: =SUM(M25,M27,M29) ->  | N31: =SUM(N25,N27,N29) ->  | O31: =SUM(O25,O27,O29) -> 
A33: WDV RAB - MV 80 Luminaire
A34: RAB WDV | D34: ='Depn & WACC Post 2004 Central'!I$8 ->  | E34: ='Depn & WACC Post 2004 Central'!I$40 ->  | F34: ='Depn & WACC Post 2004 Central'!I$96 ->  | G34: ='Depn & WACC Post 2004 Central'!I$152 ->  | H34: ='Depn & WACC Post 2004 Central'!I$208 ->  | K34: ='Depn & WACC Post 2004 N & E'!I$8 ->  | L34: ='Depn & WACC Post 2004 N & E'!I$40 ->  | M34: ='Depn & WACC Post 2004 N & E'!I$96 ->  | N34: ='Depn & WACC Post 2004 N & E'!I$152 ->  | O34: ='Depn & WACC Post 2004 N & E'!I$208 -> 
A36: Avoided Costs - MV 80 O & M
A37: Materials & labour - bulk lamp change | D37: ='O & M 2027-2031'!$G$9*D$4 ->  | E37: ='O & M 2027-2031'!$AD$9*E$4 ->  | F37: ='O & M 2027-2031'!$BA$9*F$4 ->  | G37: ='O & M 2027-2031'!$BX$9*G$4 ->  | H37: ='O & M 2027-2031'!$CU$9*H$4 ->  | K37: ='O & M 2027-2031'!$R$9*K$4 ->  | L37: ='O & M 2027-2031'!$AO$9*L$4 ->  | M37: ='O & M 2027-2031'!$BL$9*M$4 ->  | N37: ='O & M 2027-2031'!$CI$9*N$4 ->  | O37: ='O & M 2027-2031'!$DF$9*O$4 -> 
A38: Materials & Labour - repair of faults | D38: ='O & M 2027-2031'!$G$10*D$4 ->  | E38: ='O & M 2027-2031'!$AD$10*E$4 ->  | F38: ='O & M 2027-2031'!$BA$10*F$4 ->  | G38: ='O & M 2027-2031'!$BX$10*G$4 ->  | H38: ='O & M 2027-2031'!$CU$10*H$4 ->  | K38: ='O & M 2027-2031'!$R$10*K$4 ->  | L38: ='O & M 2027-2031'!$AO$10*L$4 ->  | M38: ='O & M 2027-2031'!$BL$10*M$4 ->  | N38: ='O & M 2027-2031'!$CI$10*N$4 ->  | O38: ='O & M 2027-2031'!$DF$10*O$4 -> 
D39: =SUM(D37:D38) ->  | E39: =SUM(E37:E38) ->  | F39: =SUM(F37:F38) ->  | G39: =SUM(G37:G38) ->  | H39: =SUM(H37:H38) ->  | K39: =SUM(K37:K38) ->  | L39: =SUM(L37:L38) ->  | M39: =SUM(M37:M38) ->  | N39: =SUM(N37:N38) ->  | O39: =SUM(O37:O38) -> 
A44: ='O & M 2027-2031'!$A$14 -> S-HP 150 | D44: =D$1 -> 2027-06-30 | E44: =E$1 -> 2028-06-30 | F44: =F$1 -> 2029-06-30 | G44: =G$1 -> 2030-06-30 | H44: =H$1 -> 2031-06-30 | K44: =K$1 -> 2027-06-30 | L44: =L$1 -> 2028-06-30 | M44: =M$1 -> 2029-06-30 | N44: =N$1 -> 2030-06-30 | O44: =O$1 -> 2031-06-30
A46: O & M Charge
A47: ='O & M 2027-2031'!A$15 -> Patrols and repairs | D47: ='O & M 2027-2031'!$B$15*D$4 ->  | E47: ='O & M 2027-2031'!$Y$15*E$4 ->  | F47: ='O & M 2027-2031'!$AV$15*F$4 ->  | G47: ='O & M 2027-2031'!$BS$15*G$4 ->  | H47: ='O & M 2027-2031'!$CP$15*H$4 ->  | K47: ='O & M 2027-2031'!$M$15*K$4 ->  | L47: ='O & M 2027-2031'!$AJ$15*L$4 ->  | M47: ='O & M 2027-2031'!$BG$15*M$4 ->  | N47: ='O & M 2027-2031'!$CD$15*N$4 ->  | O47: ='O & M 2027-2031'!$DA$15*O$4 -> 
A48: ='O & M 2027-2031'!A$17 -> Other costs | D48: ='O & M 2027-2031'!$B$17*D$4 ->  | E48: ='O & M 2027-2031'!$Y$17*E$4 ->  | F48: ='O & M 2027-2031'!$AV$17*F$4 ->  | G48: ='O & M 2027-2031'!$BS$17*G$4 ->  | H48: ='O & M 2027-2031'!$CP$17*H$4 ->  | K48: ='O & M 2027-2031'!$M$17*K$4 ->  | L48: ='O & M 2027-2031'!$AJ$17*L$4 ->  | M48: ='O & M 2027-2031'!$BG$17*M$4 ->  | N48: ='O & M 2027-2031'!$CD$17*N$4 ->  | O48: ='O & M 2027-2031'!$DA$17*O$4 -> 
D49: =SUM(D47:D48) ->  | E49: =SUM(E47:E48) ->  | F49: =SUM(F47:F48) ->  | G49: =SUM(G47:G48) ->  | H49: =SUM(H47:H48) ->  | K49: =SUM(K47:K48) ->  | L49: =SUM(L47:L48) ->  | M49: =SUM(M47:M48) ->  | N49: =SUM(N47:N48) ->  | O49: =SUM(O47:O48) -> 
A50: Capital Charge
A51: Depreciation and Return | D51: ='Depn & WACC Post 2004 Central'!H$41 ->  | E51: ='Depn & WACC Post 2004 Central'!H$97 ->  | F51: ='Depn & WACC Post 2004 Central'!H$153 ->  | G51: ='Depn & WACC Post 2004 Central'!H$209 ->  | H51: ='Depn & WACC Post 2004 Central'!H$265 ->  | K51: ='Depn & WACC Post 2004 N & E'!H$41 ->  | L51: ='Depn & WACC Post 2004 N & E'!H$97 ->  | M51: ='Depn & WACC Post 2004 N & E'!H$153 ->  | N51: ='Depn & WACC Post 2004 N & E'!H$209 ->  | O51: ='Depn & WACC Post 2004 N & E'!H$265 -> 
A53: Poles & Brackets Charge | D53: =D$13 ->  | E53: =E$13 ->  | F53: =F$13 ->  | G53: =G$13 ->  | H53: =H$13 ->  | K53: =K$13 ->  | L53: =L$13 ->  | M53: =M$13 ->  | N53: =N$13 ->  | O53: =O$13 -> 
A55: Total Charge | D55: =SUM(D49,D51,D53) ->  | E55: =SUM(E49,E51,E53) ->  | F55: =SUM(F49,F51,F53) ->  | G55: =SUM(G49,G51,G53) ->  | H55: =SUM(H49,H51,H53) ->  | K55: =SUM(K49,K51,K53) ->  | L55: =SUM(L49,L51,L53) ->  | M55: =SUM(M49,M51,M53) ->  | N55: =SUM(N49,N51,N53) ->  | O55: =SUM(O49,O51,O53) -> 
A60: ='O & M 2027-2031'!$A$20 -> S-HP 250 | D60: =D$1 -> 2027-06-30 | E60: =E$1 -> 2028-06-30 | F60: =F$1 -> 2029-06-30 | G60: =G$1 -> 2030-06-30 | H60: =H$1 -> 2031-06-30 | K60: =K$1 -> 2027-06-30 | L60: =L$1 -> 2028-06-30 | M60: =M$1 -> 2029-06-30 | N60: =N$1 -> 2030-06-30 | O60: =O$1 -> 2031-06-30
A62: O & M Charge
A63: ='O & M 2027-2031'!A$21 -> Patrols and repairs | D63: ='O & M 2027-2031'!$B$21*D$4 ->  | E63: ='O & M 2027-2031'!$Y$21*E$4 ->  | F63: ='O & M 2027-2031'!$AV$21*F$4 ->  | G63: ='O & M 2027-2031'!$BS$21*G$4 ->  | H63: ='O & M 2027-2031'!$CP$21*H$4 ->  | K63: ='O & M 2027-2031'!$M$21*K$4 ->  | L63: ='O & M 2027-2031'!$AJ$21*L$4 ->  | M63: ='O & M 2027-2031'!$BG$21*M$4 ->  | N63: ='O & M 2027-2031'!$CD$21*N$4 ->  | O63: ='O & M 2027-2031'!$DA$21*O$4 -> 
A64: ='O & M 2027-2031'!A$23 -> Other costs | D64: ='O & M 2027-2031'!$B$23*D$4 ->  | E64: ='O & M 2027-2031'!$Y$23*E$4 ->  | F64: ='O & M 2027-2031'!$AV$23*F$4 ->  | G64: ='O & M 2027-2031'!$BS$23*G$4 ->  | H64: ='O & M 2027-2031'!$CP$23*H$4 ->  | K64: ='O & M 2027-2031'!$M$23*K$4 ->  | L64: ='O & M 2027-2031'!$AJ$23*L$4 ->  | M64: ='O & M 2027-2031'!$BG$23*M$4 ->  | N64: ='O & M 2027-2031'!$CD$23*N$4 ->  | O64: ='O & M 2027-2031'!$DA$23*O$4 -> 
D65: =SUM(D63:D64) ->  | E65: =SUM(E63:E64) ->  | F65: =SUM(F63:F64) ->  | G65: =SUM(G63:G64) ->  | H65: =SUM(H63:H64) ->  | K65: =SUM(K63:K64) ->  | L65: =SUM(L63:L64) ->  | M65: =SUM(M63:M64) ->  | N65: =SUM(N63:N64) ->  | O65: =SUM(O63:O64) -> 
A66: Capital Charge
A67: Depreciation and Return | D67: ='Depn & WACC Post 2004 Central'!H$42 ->  | E67: ='Depn & WACC Post 2004 Central'!H$98 ->  | F67: ='Depn & WACC Post 2004 Central'!H$154 ->  | G67: ='Depn & WACC Post 2004 Central'!H$210 ->  | H67: ='Depn & WACC Post 2004 Central'!H$266 ->  | K67: ='Depn & WACC Post 2004 N & E'!H$42 ->  | L67: ='Depn & WACC Post 2004 N & E'!H$98 ->  | M67: ='Depn & WACC Post 2004 N & E'!H$154 ->  | N67: ='Depn & WACC Post 2004 N & E'!H$210 ->  | O67: ='Depn & WACC Post 2004 N & E'!H$266 -> 
A69: Poles & Brackets Charge | D69: =D$13 ->  | E69: =E$13 ->  | F69: =F$13 ->  | G69: =G$13 ->  | H69: =H$13 ->  | K69: =K$13 ->  | L69: =L$13 ->  | M69: =M$13 ->  | N69: =N$13 ->  | O69: =O$13 -> 
A71: Total Charge | D71: =SUM(D65,D67,D69) ->  | E71: =SUM(E65,E67,E69) ->  | F71: =SUM(F65,F67,F69) ->  | G71: =SUM(G65,G67,G69) ->  | H71: =SUM(H65,H67,H69) ->  | K71: =SUM(K65,K67,K69) ->  | L71: =SUM(L65,L67,L69) ->  | M71: =SUM(M65,M67,M69) ->  | N71: =SUM(N65,N67,N69) ->  | O71: =SUM(O65,O67,O69) -> 
A76: =#REF! -> 
A78: ='O & M 2027-2031'!$A$26 -> T5 (2 X 14W) | D78: =D$1 -> 2027-06-30 | E78: =E$1 -> 2028-06-30 | F78: =F$1 -> 2029-06-30 | G78: =G$1 -> 2030-06-30 | H78: =H$1 -> 2031-06-30 | K78: =K$1 -> 2027-06-30 | L78: =L$1 -> 2028-06-30 | M78: =M$1 -> 2029-06-30 | N78: =N$1 -> 2030-06-30 | O78: =O$1 -> 2031-06-30
A80: O & M Charge
A81: ='O & M 2027-2031'!A$27 -> Bulk change & repairs | D81: ='O & M 2027-2031'!$B$27*D$4 ->  | E81: ='O & M 2027-2031'!$Y$27*E$4 ->  | F81: ='O & M 2027-2031'!$AV$27*F$4 ->  | G81: ='O & M 2027-2031'!$BS$27*G$4 ->  | H81: ='O & M 2027-2031'!$CP$27*H$4 ->  | K81: ='O & M 2027-2031'!$M$27*K$4 ->  | L81: ='O & M 2027-2031'!$AJ$27*L$4 ->  | M81: ='O & M 2027-2031'!$BG$27*M$4 ->  | N81: ='O & M 2027-2031'!$CD$27*N$4 ->  | O81: ='O & M 2027-2031'!$DA$27*O$4 -> 
A82: ='O & M 2027-2031'!A$29 -> Other costs | D82: ='O & M 2027-2031'!$B$29*D$4 ->  | E82: ='O & M 2027-2031'!$Y$29*E$4 ->  | F82: ='O & M 2027-2031'!$AV$29*F$4 ->  | G82: ='O & M 2027-2031'!$BS$29*G$4 ->  | H82: ='O & M 2027-2031'!$CP$29*H$4 ->  | K82: ='O & M 2027-2031'!$M$29*K$4 ->  | L82: ='O & M 2027-2031'!$AJ$29*L$4 ->  | M82: ='O & M 2027-2031'!$BG$29*M$4 ->  | N82: ='O & M 2027-2031'!$CD$29*N$4 ->  | O82: ='O & M 2027-2031'!$DA$29*O$4 -> 
D83: =SUM(D81:D82) ->  | E83: =SUM(E81:E82) ->  | F83: =SUM(F81:F82) ->  | G83: =SUM(G81:G82) ->  | H83: =SUM(H81:H82) ->  | K83: =SUM(K81:K82) ->  | L83: =SUM(L81:L82) ->  | M83: =SUM(M81:M82) ->  | N83: =SUM(N81:N82) ->  | O83: =SUM(O81:O82) -> 
A84: Capital Charge
A85: Depreciation and Return | D85: ='Depn & WACC Post 2004 Central'!$H$69 ->  | E85: ='Depn & WACC Post 2004 Central'!$H$125 ->  | F85: ='Depn & WACC Post 2004 Central'!$H$181 ->  | G85: ='Depn & WACC Post 2004 Central'!$H$237 ->  | H85: ='Depn & WACC Post 2004 Central'!$H$293 ->  | K85: ='Depn & WACC Post 2004 N & E'!$H$69 ->  | L85: ='Depn & WACC Post 2004 N & E'!$H$125 ->  | M85: ='Depn & WACC Post 2004 N & E'!$H$181 ->  | N85: ='Depn & WACC Post 2004 N & E'!$H$237 ->  | O85: ='Depn & WACC Post 2004 N & E'!$H$293 -> 
A87: Poles & Brackets Charge | D87: =D$13 ->  | E87: =E$13 ->  | F87: =F$13 ->  | G87: =G$13 ->  | H87: =H$13 ->  | K87: =K$13 ->  | L87: =L$13 ->  | M87: =M$13 ->  | N87: =N$13 ->  | O87: =O$13 -> 
A89: Total Charge | D89: =SUM(D83,D85,D87) ->  | E89: =SUM(E83,E85,E87) ->  | F89: =SUM(F83,F85,F87) ->  | G89: =SUM(G83,G85,G87) ->  | H89: =SUM(H83,H85,H87) ->  | K89: =SUM(K83,K85,K87) ->  | L89: =SUM(L83,L85,L87) ->  | M89: =SUM(M83,M85,M87) ->  | N89: =SUM(N83,N85,N87) ->  | O89: =SUM(O83,O85,O87) -> 
A94: ='O & M 2027-2031'!$A$32 -> T5 (2 X 24W) | D94: =D$1 -> 2027-06-30 | E94: =E$1 -> 2028-06-30 | F94: =F$1 -> 2029-06-30 | G94: =G$1 -> 2030-06-30 | H94: =H$1 -> 2031-06-30 | K94: =K$1 -> 2027-06-30 | L94: =L$1 -> 2028-06-30 | M94: =M$1 -> 2029-06-30 | N94: =N$1 -> 2030-06-30 | O94: =O$1 -> 2031-06-30
A96: O & M Charge
A97: ='O & M 2027-2031'!A$33 -> Bulk change & repairs | D97: ='O & M 2027-2031'!$B$33*D$4 ->  | E97: ='O & M 2027-2031'!$Y$33*E$4 ->  | F97: ='O & M 2027-2031'!$AV$33*F$4 ->  | G97: ='O & M 2027-2031'!$BS$33*G$4 ->  | H97: ='O & M 2027-2031'!$CP$33*H$4 ->  | K97: ='O & M 2027-2031'!$M$33*K$4 ->  | L97: ='O & M 2027-2031'!$AJ$33*L$4 ->  | M97: ='O & M 2027-2031'!$BG$33*M$4 ->  | N97: ='O & M 2027-2031'!$CD$33*N$4 ->  | O97: ='O & M 2027-2031'!$DA$33*O$4 -> 
A98: ='O & M 2027-2031'!A$35 -> Other costs | D98: ='O & M 2027-2031'!$B$35*D$4 ->  | E98: ='O & M 2027-2031'!$Y$35*E$4 ->  | F98: ='O & M 2027-2031'!$AV$35*F$4 ->  | G98: ='O & M 2027-2031'!$BS$35*G$4 ->  | H98: ='O & M 2027-2031'!$CP$35*H$4 ->  | K98: ='O & M 2027-2031'!$M$35*K$4 ->  | L98: ='O & M 2027-2031'!$AJ$35*L$4 ->  | M98: ='O & M 2027-2031'!$BG$35*M$4 ->  | N98: ='O & M 2027-2031'!$CD$35*N$4 ->  | O98: ='O & M 2027-2031'!$DA$35*O$4 -> 
D99: =SUM(D97:D98) ->  | E99: =SUM(E97:E98) ->  | F99: =SUM(F97:F98) ->  | G99: =SUM(G97:G98) ->  | H99: =SUM(H97:H98) ->  | K99: =SUM(K97:K98) ->  | L99: =SUM(L97:L98) ->  | M99: =SUM(M97:M98) ->  | N99: =SUM(N97:N98) ->  | O99: =SUM(O97:O98) -> 
A100: Capital Charge
A101: Depreciation and Return | D101: ='Depn & WACC Post 2004 Central'!$H$70 ->  | E101: ='Depn & WACC Post 2004 Central'!$H$126 ->  | F101: ='Depn & WACC Post 2004 Central'!$H$182 ->  | G101: ='Depn & WACC Post 2004 Central'!$H$238 ->  | H101: ='Depn & WACC Post 2004 Central'!$H$294 ->  | K101: ='Depn & WACC Post 2004 N & E'!$H$70 ->  | L101: ='Depn & WACC Post 2004 N & E'!$H$126 ->  | M101: ='Depn & WACC Post 2004 N & E'!$H$182 ->  | N101: ='Depn & WACC Post 2004 N & E'!$H$238 ->  | O101: ='Depn & WACC Post 2004 N & E'!$H$294 -> 
A103: Poles & Brackets Charge | D103: =D$13 ->  | E103: =E$13 ->  | F103: =F$13 ->  | G103: =G$13 ->  | H103: =H$13 ->  | K103: =K$13 ->  | L103: =L$13 ->  | M103: =M$13 ->  | N103: =N$13 ->  | O103: =O$13 -> 
A105: Total Charge | D105: =SUM(D99,D101,D103) ->  | E105: =SUM(E99,E101,E103) ->  | F105: =SUM(F99,F101,F103) ->  | G105: =SUM(G99,G101,G103) ->  | H105: =SUM(H99,H101,H103) ->  | K105: =SUM(K99,K101,K103) ->  | L105: =SUM(L99,L101,L103) ->  | M105: =SUM(M99,M101,M103) ->  | N105: =SUM(N99,N101,N103) ->  | O105: =SUM(O99,O101,O103) -> 
A110: ='O & M 2027-2031'!$A$38 -> LED 18W | D110: =D$1 -> 2027-06-30 | E110: =E$1 -> 2028-06-30 | F110: =F$1 -> 2029-06-30 | G110: =G$1 -> 2030-06-30 | H110: =H$1 -> 2031-06-30 | K110: =K$1 -> 2027-06-30 | L110: =L$1 -> 2028-06-30 | M110: =M$1 -> 2029-06-30 | N110: =N$1 -> 2030-06-30 | O110: =O$1 -> 2031-06-30
A112: O & M Charge
A113: ='O & M 2027-2031'!A$33 -> Bulk change & repairs | D113: ='O & M 2027-2031'!$B$39*D$4 ->  | E113: ='O & M 2027-2031'!$Y$39*E$4 ->  | F113: ='O & M 2027-2031'!$AV$39*F$4 ->  | G113: ='O & M 2027-2031'!$BS$39*G$4 ->  | H113: ='O & M 2027-2031'!$CP$39*H$4 ->  | K113: ='O & M 2027-2031'!$M$39*K$4 ->  | L113: ='O & M 2027-2031'!$AJ$39*L$4 ->  | M113: ='O & M 2027-2031'!$BG$39*M$4 ->  | N113: ='O & M 2027-2031'!$CD$39*N$4 ->  | O113: ='O & M 2027-2031'!$DA$39*O$4 -> 
A114: ='O & M 2027-2031'!A$35 -> Other costs | D114: ='O & M 2027-2031'!$B$41*D$4 ->  | E114: ='O & M 2027-2031'!$Y$41*E$4 ->  | F114: ='O & M 2027-2031'!$AV$41*F$4 ->  | G114: ='O & M 2027-2031'!$BS$41*G$4 ->  | H114: ='O & M 2027-2031'!$CP$41*H$4 ->  | K114: ='O & M 2027-2031'!$M$41*K$4 ->  | L114: ='O & M 2027-2031'!$AJ$41*L$4 ->  | M114: ='O & M 2027-2031'!$BG$41*M$4 ->  | N114: ='O & M 2027-2031'!$CD$41*N$4 ->  | O114: ='O & M 2027-2031'!$DA$41*O$4 -> 
D115: =SUM(D113:D114) ->  | E115: =SUM(E113:E114) ->  | F115: =SUM(F113:F114) ->  | G115: =SUM(G113:G114) ->  | H115: =SUM(H113:H114) ->  | K115: =SUM(K113:K114) ->  | L115: =SUM(L113:L114) ->  | M115: =SUM(M113:M114) ->  | N115: =SUM(N113:N114) ->  | O115: =SUM(O113:O114) -> 
A116: Capital Charge
